Workbook

Sheet LCOE
C2: Capacity | F2: kW | G2: 100000
C4: Cost/kW | F4: Eur/kW | G4: 3500
J5: 100 | K5: =-J5 -> -100 | L5: =J11/J5 -> 1.5 | M5: =L5^(1/6)-1 -> 0.06991319393 | N5: CAGR
C6: Cap Factor | F6: % | G6: 0.45 | J6: 0 | K6: 0
J7: 0 | K7: 0
C8: Fixed O&M | F8: Eur/kw-y | G8: 150 | J8: 0 | K8: 0
J9: 0 | K9: 0
C10: Life | F10: Years | G10: 30 | J10: 0 | K10: 0
J11: 150 | K11: =J11 -> 150
C12: Target IRR | F12: % | G12: 0.07
J13: IRR | K13: =IRR(K5:K11) -> 0.06991319393
C14: Capacity Cost | F14: Eur/kwy | G14: =-PMT(G12,G10,G4) -> 282.0524123
C15: O&M Cost | F15: Eur/kwy | G15: =G8 -> 150
C16: Total Cost | F16: Eur/kwy | G16: =SUM(G14:G15) -> 432.0524123
C18: Yield | F18: kWh/kw | G18: =G6*8760 -> 3942
C19: Conversion | F19: Kw/kWh | G19: =1/G18 -> 0.0002536783359
C21: LCOE | F21: EUR/kWh | G21: =G19*G16 -> 0.109602337
C22: LCOE | F22: EUR/MWH | G22: =G21*1000 -> 109.602337

Sheet Financial Model
B2: Timing
C3: Period | H3: 0 | I3: =_xlfn.SEQUENCE(,60) -> 1 | J3: 2 | K3: 3 | L3: 4 | M3: 5 | N3: 6 | O3: 7 | P3: 8 | Q3: 9 | R3: 10 | S3: 11 | T3: 12 | U3: 13 | V3: 14 | W3: 15 | X3: 16 | Y3: 17 | Z3: 18 | AA3: 19 | AB3: 20 | AC3: 21 | AD3: 22 | AE3: 23 | AF3: 24 | AG3: 25 | AH3: 26 | AI3: 27 | AJ3: 28 | AK3: 29 | AL3: 30 | AM3: 31 | AN3: 32 | AO3: 33 | AP3: 34 | AQ3: 35 | AR3: 36 | AS3: 37 | AT3: 38 | AU3: 39 | AV3: 40 | AW3: 41 | AX3: 42 | AY3: 43 | AZ3: 44 | BA3: 45 | BB3: 46 | BC3: 47 | BD3: 48 | BE3: 49 | BF3: 50 | BG3: 51 | BH3: 52 | BI3: 53 | BJ3: 54 | BK3: 55 | BL3: 56 | BM3: 57 | BN3: 58 | BO3: 59 | BP3: 60
C4: Lifetume | F4: =LCOE!G10 -> 30 | I4: =I3<=$F$4 -> TRUE | J4: =J3<=$F$4 -> TRUE | K4: TRUE | L4: TRUE | M4: TRUE | N4: TRUE | O4: TRUE | P4: TRUE | Q4: TRUE | R4: TRUE | S4: TRUE | T4: TRUE | U4: TRUE | V4: TRUE | W4: TRUE | X4: TRUE | Y4: TRUE | Z4: TRUE | AA4: TRUE | AB4: TRUE | AC4: TRUE | AD4: TRUE | AE4: TRUE | AF4: TRUE | AG4: TRUE | AH4: TRUE | AI4: TRUE | AJ4: TRUE | AK4: TRUE | AL4: TRUE | AM4: FALSE | AN4: FALSE | AO4: FALSE | AP4: FALSE | AQ4: FALSE | AR4: FALSE | AS4: FALSE | AT4: FALSE | AU4: FALSE | AV4: FALSE | AW4: FALSE | AX4: FALSE | AY4: FALSE | AZ4: FALSE | BA4: FALSE | BB4: FALSE | BC4: FALSE | BD4: FALSE | BE4: FALSE | BF4: FALSE | BG4: FALSE | BH4: FALSE | BI4: FALSE | BJ4: FALSE | BK4: FALSE | BL4: FALSE | BM4: FALSE | BN4: FALSE | BO4: FALSE | BP4: FALSE
C6: Capacity | E6: kW | F6: =LCOE!G2 -> 100000 | I6: =$F$6*I4 -> 100000 | J6: =$F$6*J4 -> 100000 | K6: 100000 | L6: 100000 | M6: 100000 | N6: 100000 | O6: 100000 | P6: 100000 | Q6: 100000 | R6: 100000 | S6: 100000 | T6: 100000 | U6: 100000 | V6: 100000 | W6: 100000 | X6: 100000 | Y6: 100000 | Z6: 100000 | AA6: 100000 | AB6: 100000 | AC6: 100000 | AD6: 100000 | AE6: 100000 | AF6: 100000 | AG6: 100000 | AH6: 100000 | AI6: 100000 | AJ6: 100000 | AK6: 100000 | AL6: 100000 | AM6: 0 | AN6: 0 | AO6: 0 | AP6: 0 | AQ6: 0 | AR6: 0 | AS6: 0 | AT6: 0 | AU6: 0 | AV6: 0 | AW6: 0 | AX6: 0 | AY6: 0 | AZ6: 0 | BA6: 0 | BB6: 0 | BC6: 0 | BD6: 0 | BE6: 0 | BF6: 0 | BG6: 0 | BH6: 0 | BI6: 0 | BJ6: 0 | BK6: 0 | BL6: 0 | BM6: 0 | BN6: 0 | BO6: 0 | BP6: 0
C8: Cap Factor | E8: % | F8: =LCOE!G6 -> 0.45 | I8: =$F$8 -> 0.45 | J8: =$F$8 -> 0.45 | K8: 0.45 | L8: 0.45 | M8: 0.45 | N8: 0.45 | O8: 0.45 | P8: 0.45 | Q8: 0.45 | R8: 0.45 | S8: 0.45 | T8: 0.45 | U8: 0.45 | V8: 0.45 | W8: 0.45 | X8: 0.45 | Y8: 0.45 | Z8: 0.45 | AA8: 0.45 | AB8: 0.45 | AC8: 0.45 | AD8: 0.45 | AE8: 0.45 | AF8: 0.45 | AG8: 0.45 | AH8: 0.45 | AI8: 0.45 | AJ8: 0.45 | AK8: 0.45 | AL8: 0.45 | AM8: 0.45 | AN8: 0.45 | AO8: 0.45 | AP8: 0.45 | AQ8: 0.45 | AR8: 0.45 | AS8: 0.45 | AT8: 0.45 | AU8: 0.45 | AV8: 0.45 | AW8: 0.45 | AX8: 0.45 | AY8: 0.45 | AZ8: 0.45 | BA8: 0.45 | BB8: 0.45 | BC8: 0.45 | BD8: 0.45 | BE8: 0.45 | BF8: 0.45 | BG8: 0.45 | BH8: 0.45 | BI8: 0.45 | BJ8: 0.45 | BK8: 0.45 | BL8: 0.45 | BM8: 0.45 | BN8: 0.45 | BO8: 0.45 | BP8: 0.45
C9: Generation | E9: kWh | I9: =I6*I8*8760 -> 394200000 | J9: =J6*J8*8760 -> 394200000 | K9: 394200000 | L9: 394200000 | M9: 394200000 | N9: 394200000 | O9: 394200000 | P9: 394200000 | Q9: 394200000 | R9: 394200000 | S9: 394200000 | T9: 394200000 | U9: 394200000 | V9: 394200000 | W9: 394200000 | X9: 394200000 | Y9: 394200000 | Z9: 394200000 | AA9: 394200000 | AB9: 394200000 | AC9: 394200000 | AD9: 394200000 | AE9: 394200000 | AF9: 394200000 | AG9: 394200000 | AH9: 394200000 | AI9: 394200000 | AJ9: 394200000 | AK9: 394200000 | AL9: 394200000 | AM9: 0 | AN9: 0 | AO9: 0 | AP9: 0 | AQ9: 0 | AR9: 0 | AS9: 0 | AT9: 0 | AU9: 0 | AV9: 0 | AW9: 0 | AX9: 0 | AY9: 0 | AZ9: 0 | BA9: 0 | BB9: 0 | BC9: 0 | BD9: 0 | BE9: 0 | BF9: 0 | BG9: 0 | BH9: 0 | BI9: 0 | BJ9: 0 | BK9: 0 | BL9: 0 | BM9: 0 | BN9: 0 | BO9: 0 | BP9: 0
C11: Cost | E11: Eur/kW | F11: =LCOE!G4 -> 3500
C12: Total Cost | E12: Eur | F12: =F11*F6 -> 350000000 | H12: =$F$12 -> 350000000
C14: Price of Electricity | E14: Eur/kWh | F14: =LCOE!G21 -> 0.109602337 | G14: =F14 -> 0.109602337 | I14: =$G$14 -> 0.109602337 | J14: =$G$14 -> 0.109602337 | K14: 0.109602337 | L14: 0.109602337 | M14: 0.109602337 | N14: 0.109602337 | O14: 0.109602337 | P14: 0.109602337 | Q14: 0.109602337 | R14: 0.109602337 | S14: 0.109602337 | T14: 0.109602337 | U14: 0.109602337 | V14: 0.109602337 | W14: 0.109602337 | X14: 0.109602337 | Y14: 0.109602337 | Z14: 0.109602337 | AA14: 0.109602337 | AB14: 0.109602337 | AC14: 0.109602337 | AD14: 0.109602337 | AE14: 0.109602337 | AF14: 0.109602337 | AG14: 0.109602337 | AH14: 0.109602337 | AI14: 0.109602337 | AJ14: 0.109602337 | AK14: 0.109602337 | AL14: 0.109602337 | AM14: 0.109602337 | AN14: 0.109602337 | AO14: 0.109602337 | AP14: 0.109602337 | AQ14: 0.109602337 | AR14: 0.109602337 | AS14: 0.109602337 | AT14: 0.109602337 | AU14: 0.109602337 | AV14: 0.109602337 | AW14: 0.109602337 | AX14: 0.109602337 | AY14: 0.109602337 | AZ14: 0.109602337 | BA14: 0.109602337 | BB14: 0.109602337 | BC14: 0.109602337 | BD14: 0.109602337 | BE14: 0.109602337 | BF14: 0.109602337 | BG14: 0.109602337 | BH14: 0.109602337 | BI14: 0.109602337 | BJ14: 0.109602337 | BK14: 0.109602337 | BL14: 0.109602337 | BM14: 0.109602337 | BN14: 0.109602337 | BO14: 0.109602337 | BP14: 0.109602337
C15: Revenues | E15: Eur | I15: =I14*I9 -> 43205241.23 | J15: =J14*J9 -> 43205241.23 | K15: 43205241.23 | L15: 43205241.23 | M15: 43205241.23 | N15: 43205241.23 | O15: 43205241.23 | P15: 43205241.23 | Q15: 43205241.23 | R15: 43205241.23 | S15: 43205241.23 | T15: 43205241.23 | U15: 43205241.23 | V15: 43205241.23 | W15: 43205241.23 | X15: 43205241.23 | Y15: 43205241.23 | Z15: 43205241.23 | AA15: 43205241.23 | AB15: 43205241.23 | AC15: 43205241.23 | AD15: 43205241.23 | AE15: 43205241.23 | AF15: 43205241.23 | AG15: 43205241.23 | AH15: 43205241.23 | AI15: 43205241.23 | AJ15: 43205241.23 | AK15: 43205241.23 | AL15: 43205241.23 | AM15: 0 | AN15: 0 | AO15: 0 | AP15: 0 | AQ15: 0 | AR15: 0 | AS15: 0 | AT15: 0 | AU15: 0 | AV15: 0 | AW15: 0 | AX15: 0 | AY15: 0 | AZ15: 0 | BA15: 0 | BB15: 0 | BC15: 0 | BD15: 0 | BE15: 0 | BF15: 0 | BG15: 0 | BH15: 0 | BI15: 0 | BJ15: 0 | BK15: 0 | BL15: 0 | BM15: 0 | BN15: 0 | BO15: 0 | BP15: 0
C17: Op exp | E17: Eur/kw-yr | F17: =LCOE!G8 -> 150 | I17: =$F$17*I6*I4 -> 15000000 | J17: =$F$17*J6*J4 -> 15000000 | K17: 15000000 | L17: 15000000 | M17: 15000000 | N17: 15000000 | O17: 15000000 | P17: 15000000 | Q17: 15000000 | R17: 15000000 | S17: 15000000 | T17: 15000000 | U17: 15000000 | V17: 15000000 | W17: 15000000 | X17: 15000000 | Y17: 15000000 | Z17: 15000000 | AA17: 15000000 | AB17: 15000000 | AC17: 15000000 | AD17: 15000000 | AE17: 15000000 | AF17: 15000000 | AG17: 15000000 | AH17: 15000000 | AI17: 15000000 | AJ17: 15000000 | AK17: 15000000 | AL17: 15000000 | AM17: 0 | AN17: 0 | AO17: 0 | AP17: 0 | AQ17: 0 | AR17: 0 | AS17: 0 | AT17: 0 | AU17: 0 | AV17: 0 | AW17: 0 | AX17: 0 | AY17: 0 | AZ17: 0 | BA17: 0 | BB17: 0 | BC17: 0 | BD17: 0 | BE17: 0 | BF17: 0 | BG17: 0 | BH17: 0 | BI17: 0 | BJ17: 0 | BK17: 0 | BL17: 0 | BM17: 0 | BN17: 0 | BO17: 0 | BP17: 0
C19: EBITDA | E19: Eur | I19: =I15-I17 -> 28205241.23 | J19: =J15-J17 -> 28205241.23 | K19: 28205241.23 | L19: 28205241.23 | M19: 28205241.23 | N19: 28205241.23 | O19: 28205241.23 | P19: 28205241.23 | Q19: 28205241.23 | R19: 28205241.23 | S19: 28205241.23 | T19: 28205241.23 | U19: 28205241.23 | V19: 28205241.23 | W19: 28205241.23 | X19: 28205241.23 | Y19: 28205241.23 | Z19: 28205241.23 | AA19: 28205241.23 | AB19: 28205241.23 | AC19: 28205241.23 | AD19: 28205241.23 | AE19: 28205241.23 | AF19: 28205241.23 | AG19: 28205241.23 | AH19: 28205241.23 | AI19: 28205241.23 | AJ19: 28205241.23 | AK19: 28205241.23 | AL19: 28205241.23 | AM19: 0 | AN19: 0 | AO19: 0 | AP19: 0 | AQ19: 0 | AR19: 0 | AS19: 0 | AT19: 0 | AU19: 0 | AV19: 0 | AW19: 0 | AX19: 0 | AY19: 0 | AZ19: 0 | BA19: 0 | BB19: 0 | BC19: 0 | BD19: 0 | BE19: 0 | BF19: 0 | BG19: 0 | BH19: 0 | BI19: 0 | BJ19: 0 | BK19: 0 | BL19: 0 | BM19: 0 | BN19: 0 | BO19: 0 | BP19: 0
C20: Free Cash Flow | E20: Eur | H20: =H19-H12 -> -350000000 | I20: =I19-I12 -> 28205241.23 | J20: 28205241.23 | K20: 28205241.23 | L20: 28205241.23 | M20: 28205241.23 | N20: 28205241.23 | O20: 28205241.23 | P20: 28205241.23 | Q20: 28205241.23 | R20: 28205241.23 | S20: 28205241.23 | T20: 28205241.23 | U20: 28205241.23 | V20: 28205241.23 | W20: 28205241.23 | X20: 28205241.23 | Y20: 28205241.23 | Z20: 28205241.23 | AA20: 28205241.23 | AB20: 28205241.23 | AC20: 28205241.23 | AD20: 28205241.23 | AE20: 28205241.23 | AF20: 28205241.23 | AG20: 28205241.23 | AH20: 28205241.23 | AI20: 28205241.23 | AJ20: 28205241.23 | AK20: 28205241.23 | AL20: 28205241.23 | AM20: 0 | AN20: 0 | AO20: 0 | AP20: 0 | AQ20: 0 | AR20: 0 | AS20: 0 | AT20: 0 | AU20: 0 | AV20: 0 | AW20: 0 | AX20: 0 | AY20: 0 | AZ20: 0 | BA20: 0 | BB20: 0 | BC20: 0 | BD20: 0 | BE20: 0 | BF20: 0 | BG20: 0 | BH20: 0 | BI20: 0 | BJ20: 0 | BK20: 0 | BL20: 0 | BM20: 0 | BN20: 0 | BO20: 0 | BP20: 0
C22: Project IRR | E22: % | F22: =IRR(H20:BP20) -> 0.07
C24: Pretend Cash Account
D25: Opening | I25: =H28 -> 0 | J25: =I28 -> 28205241.23 | K25: 58384849.34 | L25: 90677030.03 | M25: 125229663.4 | N25: 162200981 | O25: 201760290.9 | P25: 244088752.5 | Q25: 289380206.4 | R25: 337842062.1 | S25: 389696247.7 | T25: 445180226.2 | U25: 504548083.3 | V25: 568071690.4 | W25: 636041949.9 | X25: 708770127.6 | Y25: 786589277.8 | Z25: 869855768.5 | AA25: 958950913.5 | AB25: 1054282719 | AC25: 1156287750 | AD25: 1265433134 | AE25: 1382218695 | AF25: 1507179244 | AG25: 1640887033 | AH25: 1783954366 | AI25: 1937036413 | AJ25: 2100834203 | AK25: 2276097839 | AL25: 2463629929 | AM25: 2664289265 | AN25: 2664289265 | AO25: 2664289265 | AP25: 2664289265 | AQ25: 2664289265 | AR25: 2664289265 | AS25: 2664289265 | AT25: 2664289265 | AU25: 2664289265 | AV25: 2664289265 | AW25: 2664289265 | AX25: 2664289265 | AY25: 2664289265 | AZ25: 2664289265 | BA25: 2664289265 | BB25: 2664289265 | BC25: 2664289265 | BD25: 2664289265 | BE25: 2664289265 | BF25: 2664289265 | BG25: 2664289265 | BH25: 2664289265 | BI25: 2664289265 | BJ25: 2664289265 | BK25: 2664289265 | BL25: 2664289265 | BM25: 2664289265 | BN25: 2664289265 | BO25: 2664289265 | BP25: 2664289265
D26: Add Re-invstment Income | F26: =F22 -> 0.07 | I26: =I25*$F$26*I4 -> 0 | J26: =J25*$F$26*J4 -> 1974366.886 | K26: 4086939.454 | L26: 6347392.102 | M26: 8766076.435 | N26: 11354068.67 | O26: 14123220.36 | P26: 17086212.68 | Q26: 20256614.45 | R26: 23648944.35 | S26: 27278737.34 | T26: 31162615.84 | U26: 35318365.83 | V26: 39765018.33 | W26: 44522936.49 | X26: 49613908.94 | Y26: 55061249.45 | Z26: 60889903.79 | AA26: 67126563.95 | AB26: 73799790.31 | AC26: 80940142.52 | AD26: 88580319.38 | AE26: 96755308.62 | AF26: 105502547.1 | AG26: 114862092.3 | AH26: 124876805.6 | AI26: 135592548.9 | AJ26: 147058394.2 | AK26: 159326848.7 | AL26: 172454095 | AM26: 0 | AN26: 0 | AO26: 0 | AP26: 0 | AQ26: 0 | AR26: 0 | AS26: 0 | AT26: 0 | AU26: 0 | AV26: 0 | AW26: 0 | AX26: 0 | AY26: 0 | AZ26: 0 | BA26: 0 | BB26: 0 | BC26: 0 | BD26: 0 | BE26: 0 | BF26: 0 | BG26: 0 | BH26: 0 | BI26: 0 | BJ26: 0 | BK26: 0 | BL26: 0 | BM26: 0 | BN26: 0 | BO26: 0 | BP26: 0
D27: Add: Dividends | I27: =I20 -> 28205241.23 | J27: =J20 -> 28205241.23 | K27: 28205241.23 | L27: 28205241.23 | M27: 28205241.23 | N27: 28205241.23 | O27: 28205241.23 | P27: 28205241.23 | Q27: 28205241.23 | R27: 28205241.23 | S27: 28205241.23 | T27: 28205241.23 | U27: 28205241.23 | V27: 28205241.23 | W27: 28205241.23 | X27: 28205241.23 | Y27: 28205241.23 | Z27: 28205241.23 | AA27: 28205241.23 | AB27: 28205241.23 | AC27: 28205241.23 | AD27: 28205241.23 | AE27: 28205241.23 | AF27: 28205241.23 | AG27: 28205241.23 | AH27: 28205241.23 | AI27: 28205241.23 | AJ27: 28205241.23 | AK27: 28205241.23 | AL27: 28205241.23 | AM27: 0 | AN27: 0 | AO27: 0 | AP27: 0 | AQ27: 0 | AR27: 0 | AS27: 0 | AT27: 0 | AU27: 0 | AV27: 0 | AW27: 0 | AX27: 0 | AY27: 0 | AZ27: 0 | BA27: 0 | BB27: 0 | BC27: 0 | BD27: 0 | BE27: 0 | BF27: 0 | BG27: 0 | BH27: 0 | BI27: 0 | BJ27: 0 | BK27: 0 | BL27: 0 | BM27: 0 | BN27: 0 | BO27: 0 | BP27: 0
D28: Closing Balance | I28: =I25+I26+I27 -> 28205241.23 | J28: =J25+J26+J27 -> 58384849.34 | K28: 90677030.03 | L28: 125229663.4 | M28: 162200981 | N28: 201760290.9 | O28: 244088752.5 | P28: 289380206.4 | Q28: 337842062.1 | R28: 389696247.7 | S28: 445180226.2 | T28: 504548083.3 | U28: 568071690.4 | V28: 636041949.9 | W28: 708770127.6 | X28: 786589277.8 | Y28: 869855768.5 | Z28: 958950913.5 | AA28: 1054282719 | AB28: 1156287750 | AC28: 1265433134 | AD28: 1382218695 | AE28: 1507179244 | AF28: 1640887033 | AG28: 1783954366 | AH28: 1937036413 | AI28: 2100834203 | AJ28: 2276097839 | AK28: 2463629929 | AL28: 2664289265 | AM28: 2664289265 | AN28: 2664289265 | AO28: 2664289265 | AP28: 2664289265 | AQ28: 2664289265 | AR28: 2664289265 | AS28: 2664289265 | AT28: 2664289265 | AU28: 2664289265 | AV28: 2664289265 | AW28: 2664289265 | AX28: 2664289265 | AY28: 2664289265 | AZ28: 2664289265 | BA28: 2664289265 | BB28: 2664289265 | BC28: 2664289265 | BD28: 2664289265 | BE28: 2664289265 | BF28: 2664289265 | BG28: 2664289265 | BH28: 2664289265 | BI28: 2664289265 | BJ28: 2664289265 | BK28: 2664289265 | BL28: 2664289265 | BM28: 2664289265 | BN28: 2664289265 | BO28: 2664289265 | BP28: 2664289265
D30: Ending Value | F30: =MAX(I28:BP28) -> 2664289265
D31: Investment | F31: =H12 -> 350000000
D32: Total Return | F32: =F30/F31 -> 7.612255043
D33: CAGR | F33: =F32^(1/F4)-1 -> 0.07
F36: 6107290794 | G36: =F36/F30-1 -> 1.292277672
F37: 1.463065036e+11
F38: =F37/F36-1 -> 22.95604017

Sheet Settlement
C3: Settlement Amount = (Fixed Price Payment + Make-Whole Payments, if any) minus (the Floating Price Payment + Additional Product revenues, if any)
C5: “Fixed Price Payment” equals the sum over all Calculation Intervals in such Settlement Period, or portion thereof, of the product of (X) the Fixed Price for each such Calculation Interval, and (Y) the Interval Quantity for each such Calculation Interval.
C7: “Floating Price Payment” equals the sum over all Calculation Intervals in such Settlement Period, or portion thereof, of the product of (X) the Floating Price for each such Calculation Interval, and (Y) the Interval Quantity for each such Calculation Interval. For the avoidance of doubt, the Floating Price Payment may be positive or negative.
C9: “Fixed Price” means $21.40/MWh, escalated by 1% per year on each anniversary of the Commercial Operation Date.
D10: Note: very low price assumption, escalator not indexed on CPI
C11: Seller intends to develop, design, construct, own and operate a wind turbine electrical generation facility on a site located in Reagan and Iron Counties, Texas, with a total expected nameplate capacity of approximately 320 MW
C13: Non-Settlement Periods.
C14: To mitigate the impact of negative Floating Prices on Buyer, the Interval Quantity will be deemed to equal zero megawatt-hours (0 MWh) during any Calculation Interval when the Floating Price is less than the Minimum Floating Price
C15: (each a “Non-Settlement Period”).
C16: In consideration therefor, for each Non-Settlement Period, Buyer will pay to Seller an amount (the “Make-Whole Payment”)
C17: equal to the product of (X) the positive difference resulting from the subtraction of (i) the then-applicable Minimum Floating Price, from (ii) the Fixed Price,
C18: and (Y) Buyer’s Percentage of the Deemed Generated Energy for such Calculation Interval;
C19: provided that, for purposes of calculating the Make-Whole Payment, for each MWh of Deemed Generated Energy that the Project received the Production Tax Credit, the Minimum Floating Price will equal zero Dollars ($0).
C21: Volatility | M21: 0.8 | N21: Fixed Price | O21: Capacity | P21: Generation | Q21: Deemed | R21: Fixed | S21: Folating | T21: Settlement | U21: Sale to | V21: Total | W21: Non- | X21: Floating | Y21: Make Whole | Z21: Total
C22: Mean Reversion | J22: 1 | M22: 0.9 | P22: @ CF | Q22: Generation | R22: Payment | S22: Payment | T22: b/4 Adjust | U22: Grid | V22: Revenues | W22: Settlement | X22: Less Fixed | Y22: Payments | Z22: Revenues | AC22: 2025-01-01
C23: Base Price | J23: 15 | M23: 21 | N23: 21.4 | O23: 320 | P23: 0.4 | W23: Period | Y23: 0 | AD23: Revenues | AE23: Revenues | AF23: Revenues
C24: Escalator | E24: Date/Hour | F24: End of Month | G24: Year | H24: Change Year | I24: Inflation | J24: =DATE(2025,J22,J23) -> 2025-01-15 | K24: Price | M24: USD/MWH | O24: MW | P24: MWH | Q24: MWH | R24: USD | S24: USD | T24: USD | U24: USD | V24: USD | W24: Flag | X24: USD/MWH | Y24: USD | Z24: USD | AD24: Floating | AE24: Fixed w/o Adj | AF24: Fixed Adj
H25: =SUM(H27:H26305) -> 2 | I25: 0.01 | M25: Price
D26: =_xlfn.SEQUENCE(3*8760) -> 1 | E26: 2025-01-01 | F26: =EOMONTH(E26,0) -> 2025-01-31 | G26: =YEAR(E26) -> 2025 | I26: 1 | J26: =IF(E26<=$J$24,D26,NA()) -> 1 | K26: =IF(ISNUMBER(J26),M26,NA()) -> 21 | M26: =M23 -> 21 | N26: =$N$23*I26 -> 21.4 | O26: =$O$23 -> 320 | P26: =(IF(M26>0,$P$23*O26))*1 -> 128 | Q26: =$O$26*$P$23 -> 128 | R26: =N26*P26 -> 2739.2 | S26: =P26*M26 -> 2688 | T26: =R26-S26 -> 51.2 | U26: =P26*M26 -> 2688 | V26: =U26+T26 -> 2739.2 | W26: =M26<=0 -> FALSE | X26: =(N26-M26*0)*W26 -> 0 | Y26: =X26*Q26 -> 0 | Z26: =T26+U26+Y26 -> 2739.2 | AB26: =_xlfn.SEQUENCE(36) -> 1 | AC26: =EOMONTH(AC22,0) -> 2025-01-31 | AD26: =SUMIF(F:F,AC26,S:S) -> 2120798.706 | AE26: =SUMIF(F:F,AC26,V:V) -> 1761305.6 | AF26: =SUMIF(F:F,AC26,Z:Z) -> 2040704
D27: 2 | E27: =E26+1/24 -> 2025-01-01T01:00:00 | F27: =EOMONTH(E27,0) -> 2025-01-31 | G27: =YEAR(E27) -> 2025 | H27: =(G26<>G27)*1 -> 0 | I27: =I26*(1+$I$25*H27) -> 1 | J27: =IF(E27<=$J$24,D27,NA()) -> 2 | K27: =IF(ISNUMBER(J27),M27,NA()) -> -7.928597333 | M27: =M26+M26*NORMSINV(RAND())*$M$21+($M$26-M26)*$M$22 -> -7.928597333 | N27: =$N$23*I27 -> 21.4 | O27: =$O$23 -> 320 | P27: =(IF(M27>0,$P$23*O27))*1 -> 0 | Q27: =$O$26*$P$23 -> 128 | R27: =N27*P27 -> 0 | S27: =P27*M27 -> 0 | T27: =R27-S27 -> 0 | U27: =P27*M27 -> 0 | V27: =U27+T27 -> 0 | W27: =M27<=0 -> TRUE | X27: =(N27-M27*0)*W27 -> 21.4 | Y27: =X27*Q27 -> 2739.2 | Z27: =T27+U27+Y27 -> 2739.2 | AB27: 2 | AC27: =EOMONTH(AC26,1) -> 2025-02-28 | AD27: =SUMIF(F:F,AC27,S:S) -> 2138161.065 | AE27: =SUMIF(F:F,AC27,V:V) -> 1561344 | AF27: =SUMIF(F:F,AC27,Z:Z) -> 1840742.4
D28: 3 | E28: =E27+1/24 -> 2025-01-01T02:00:00 | F28: 2025-01-31 | G28: 2025 | H28: =(G27<>G28)*1 -> 0 | I28: =I27*(1+$I$25*H28) -> 1 | J28: 3 | K28: 23.95014654 | M28: =M27+M27*NORMSINV(RAND())*$M$21+($M$26-M27)*$M$22 -> 23.95014654 | N28: 21.4 | O28: 320 | P28: 128 | Q28: 128 | R28: 2739.2 | S28: 3065.618757 | T28: -326.4187571 | U28: 3065.618757 | V28: 2739.2 | W28: FALSE | X28: 0 | Y28: 0 | Z28: 2739.2 | AB28: 3 | AC28: =EOMONTH(AC27,1) -> 2025-03-31 | AD28: 2113682.479 | AE28: 1813350.4 | AF28: 2037964.8
D29: 4 | E29: 2025-01-01T03:00:00 | F29: 2025-01-31 | G29: 2025 | H29: 0 | I29: =I28*(1+$I$25*H29) -> 1 | J29: 4 | K29: -1.092391262 | M29: -1.092391262 | N29: 21.4 | O29: 320 | P29: 0 | Q29: 128 | R29: 0 | S29: 0 | T29: 0 | U29: 0 | V29: 0 | W29: TRUE | X29: 21.4 | Y29: 2739.2 | Z29: 2739.2 | AB29: 4 | AC29: 2025-04-30 | AD29: 2139054.884 | AE29: 1709260.8 | AF29: 1972224
D30: 5 | E30: 2025-01-01T04:00:00 | F30: 2025-01-31 | G30: 2025 | H30: 0 | I30: =I29*(1+$I$25*H30) -> 1 | J30: 5 | K30: 18.94994806 | M30: 18.94994806 | N30: 21.4 | O30: 320 | P30: 128 | Q30: 128 | R30: 2739.2 | S30: 2425.593351 | T30: 313.6066486 | U30: 2425.593351 | V30: 2739.2 | W30: FALSE | X30: 0 | Y30: 0 | Z30: 2739.2 | AB30: 5 | AC30: 2025-05-31 | AD30: 2227018.689 | AE30: 1720217.6 | AF30: 2037964.8
D31: 6 | E31: 2025-01-01T05:00:00 | F31: 2025-01-31 | G31: 2025 | H31: 0 | I31: =I30*(1+$I$25*H31) -> 1 | J31: 6 | K31: 4.613671909 | M31: 4.613671909 | N31: 21.4 | O31: 320 | P31: 128 | Q31: 128 | R31: 2739.2 | S31: 590.5500043 | T31: 2148.649996 | U31: 590.5500043 | V31: 2739.2 | W31: FALSE | X31: 0 | Y31: 0 | Z31: 2739.2 | AB31: 6 | AC31: 2025-06-30 | AD31: 2434622.989 | AE31: 1706521.6 | AF31: 1972224
D32: 7 | E32: 2025-01-01T06:00:00 | F32: 2025-01-31 | G32: 2025 | H32: 0 | I32: =I31*(1+$I$25*H32) -> 1 | J32: 7 | K32: 19.45169318 | M32: 19.45169318 | N32: 21.4 | O32: 320 | P32: 128 | Q32: 128 | R32: 2739.2 | S32: 2489.816727 | T32: 249.383273 | U32: 2489.816727 | V32: 2739.2 | W32: FALSE | X32: 0 | Y32: 0 | Z32: 2739.2 | AB32: 7 | AC32: 2025-07-31 | AD32: 2109940.222 | AE32: 1766784 | AF32: 2037964.8
D33: 8 | E33: 2025-01-01T07:00:00 | F33: 2025-01-31 | G33: 2025 | H33: 0 | I33: =I32*(1+$I$25*H33) -> 1 | J33: 8 | K33: 8.59570373 | M33: 8.59570373 | N33: 21.4 | O33: 320 | P33: 128 | Q33: 128 | R33: 2739.2 | S33: 1100.250077 | T33: 1638.949923 | U33: 1100.250077 | V33: 2739.2 | W33: FALSE | X33: 0 | Y33: 0 | Z33: 2739.2 | AB33: 8 | AC33: 2025-08-31 | AD33: 2334190.363 | AE33: 1766784 | AF33: 2037964.8
D34: 9 | E34: 2025-01-01T08:00:00 | F34: 2025-01-31 | G34: 2025 | H34: 0 | I34: =I33*(1+$I$25*H34) -> 1 | J34: 9 | K34: 25.71694218 | M34: 25.71694218 | N34: 21.4 | O34: 320 | P34: 128 | Q34: 128 | R34: 2739.2 | S34: 3291.768599 | T34: -552.5685989 | U34: 3291.768599 | V34: 2739.2 | W34: FALSE | X34: 0 | Y34: 0 | Z34: 2739.2 | AB34: 9 | AC34: 2025-09-30 | AD34: 2051287.159 | AE34: 1739392 | AF34: 1972224
D35: 10 | E35: 2025-01-01T09:00:00 | F35: 2025-01-31 | G35: 2025 | H35: 0 | I35: =I34*(1+$I$25*H35) -> 1 | J35: 10 | K35: 20.03265492 | M35: 20.03265492 | N35: 21.4 | O35: 320 | P35: 128 | Q35: 128 | R35: 2739.2 | S35: 2564.17983 | T35: 175.0201698 | U35: 2564.17983 | V35: 2739.2 | W35: FALSE | X35: 0 | Y35: 0 | Z35: 2739.2 | AB35: 10 | AC35: 2025-10-31 | AD35: 2576025.33 | AE35: 1791436.8 | AF35: 2037964.8
D36: 11 | E36: 2025-01-01T10:00:00 | F36: 2025-01-31 | G36: 2025 | H36: 0 | I36: =I35*(1+$I$25*H36) -> 1 | J36: 11 | K36: 24.59348113 | M36: 24.59348113 | N36: 21.4 | O36: 320 | P36: 128 | Q36: 128 | R36: 2739.2 | S36: 3147.965585 | T36: -408.7655849 | U36: 3147.965585 | V36: 2739.2 | W36: FALSE | X36: 0 | Y36: 0 | Z36: 2739.2 | AB36: 11 | AC36: 2025-11-30 | AD36: 2144238.635 | AE36: 1747609.6 | AF36: 1972224
D37: 12 | E37: 2025-01-01T11:00:00 | F37: 2025-01-31 | G37: 2025 | H37: 0 | I37: =I36*(1+$I$25*H37) -> 1 | J37: 12 | K37: 35.43609457 | M37: 35.43609457 | N37: 21.4 | O37: 320 | P37: 128 | Q37: 128 | R37: 2739.2 | S37: 4535.820105 | T37: -1796.620105 | U37: 4535.820105 | V37: 2739.2 | W37: FALSE | X37: 0 | Y37: 0 | Z37: 2739.2 | AB37: 12 | AC37: 2025-12-31 | AD37: 2237866.558 | AE37: 1739419.392 | AF37: 2037992.192
D38: 13 | E38: 2025-01-01T12:00:00 | F38: 2025-01-31 | G38: 2025 | H38: 0 | I38: =I37*(1+$I$25*H38) -> 1 | J38: 13 | K38: 26.02141424 | M38: 26.02141424 | N38: 21.4 | O38: 320 | P38: 128 | Q38: 128 | R38: 2739.2 | S38: 3330.741023 | T38: -591.5410231 | U38: 3330.741023 | V38: 2739.2 | W38: FALSE | X38: 0 | Y38: 0 | Z38: 2739.2 | AB38: 13 | AC38: 2026-01-31 | AD38: 2297528.921 | AE38: 1787218.432 | AF38: 2058344.448
D39: 14 | E39: 2025-01-01T13:00:00 | F39: 2025-01-31 | G39: 2025 | H39: 0 | I39: =I38*(1+$I$25*H39) -> 1 | J39: 14 | K39: 35.03568415 | M39: 35.03568415 | N39: 21.4 | O39: 320 | P39: 128 | Q39: 128 | R39: 2739.2 | S39: 4484.567571 | T39: -1745.367571 | U39: 4484.567571 | V39: 2739.2 | W39: FALSE | X39: 0 | Y39: 0 | Z39: 2739.2 | AB39: 14 | AC39: 2026-02-28 | AD39: 1985202.426 | AE39: 1643355.648 | AF39: 1859149.824
D40: 15 | E40: 2025-01-01T14:00:00 | F40: 2025-01-31 | G40: 2025 | H40: 0 | I40: =I39*(1+$I$25*H40) -> 1 | J40: 15 | K40: 13.8875286 | M40: 13.8875286 | N40: 21.4 | O40: 320 | P40: 128 | Q40: 128 | R40: 2739.2 | S40: 1777.603661 | T40: 961.5963392 | U40: 1777.603661 | V40: 2739.2 | W40: FALSE | X40: 0 | Y40: 0 | Z40: 2739.2 | AB40: 15 | AC40: 2026-03-31 | AD40: 2234264.627 | AE40: 1798284.8 | AF40: 2058344.448
D41: 16 | E41: 2025-01-01T15:00:00 | F41: 2025-01-31 | G41: 2025 | H41: 0 | I41: =I40*(1+$I$25*H41) -> 1 | J41: 16 | K41: 38.21288598 | M41: 38.21288598 | N41: 21.4 | O41: 320 | P41: 128 | Q41: 128 | R41: 2739.2 | S41: 4891.249406 | T41: -2152.049406 | U41: 4891.249406 | V41: 2739.2 | W41: FALSE | X41: 0 | Y41: 0 | Z41: 2739.2 | AB41: 16 | AC41: 2026-04-30 | AD41: 2310842.253 | AE41: 1723586.816 | AF41: 1991946.24
D42: 17 | E42: 2025-01-01T16:00:00 | F42: 2025-01-31 | G42: 2025 | H42: 0 | I42: =I41*(1+$I$25*H42) -> 1 | J42: 17 | K42: 17.52357491 | M42: 17.52357491 | N42: 21.4 | O42: 320 | P42: 128 | Q42: 128 | R42: 2739.2 | S42: 2243.017588 | T42: 496.1824117 | U42: 2243.017588 | V42: 2739.2 | W42: FALSE | X42: 0 | Y42: 0 | Z42: 2739.2 | AB42: 17 | AC42: 2026-05-31 | AD42: 2332294.229 | AE42: 1817650.944 | AF42: 2058344.448
D43: 18 | E43: 2025-01-01T17:00:00 | F43: 2025-01-31 | G43: 2025 | H43: 0 | I43: =I42*(1+$I$25*H43) -> 1 | J43: 18 | K43: -2.314101808 | M43: -2.314101808 | N43: 21.4 | O43: 320 | P43: 0 | Q43: 128 | R43: 0 | S43: 0 | T43: 0 | U43: 0 | V43: 0 | W43: TRUE | X43: 21.4 | Y43: 2739.2 | Z43: 2739.2 | AB43: 18 | AC43: 2026-06-30 | AD43: 2323401.075 | AE43: 1762319.104 | AF43: 1991946.24
D44: 19 | E44: 2025-01-01T18:00:00 | F44: 2025-01-31 | G44: 2025 | H44: 0 | I44: =I43*(1+$I$25*H44) -> 1 | J44: 19 | K44: 16.05695012 | M44: 16.05695012 | N44: 21.4 | O44: 320 | P44: 128 | Q44: 128 | R44: 2739.2 | S44: 2055.289616 | T44: 683.9103841 | U44: 2055.289616 | V44: 2739.2 | W44: FALSE | X44: 0 | Y44: 0 | Z44: 2739.2 | AB44: 19 | AC44: 2026-07-31 | AD44: 2252552.382 | AE44: 1781685.248 | AF44: 2058344.448
D45: 20 | E45: 2025-01-01T19:00:00 | F45: 2025-01-31 | G45: 2025 | H45: 0 | I45: =I44*(1+$I$25*H45) -> 1 | J45: 20 | K45: 27.5939696 | M45: 27.5939696 | N45: 21.4 | O45: 320 | P45: 128 | Q45: 128 | R45: 2739.2 | S45: 3532.028109 | T45: -792.8281087 | U45: 3532.028109 | V45: 2739.2 | W45: FALSE | X45: 0 | Y45: 0 | Z45: 2739.2 | AB45: 20 | AC45: 2026-08-31 | AD45: 2325393.912 | AE45: 1823184.128 | AF45: 2058344.448
D46: 21 | E46: 2025-01-01T20:00:00 | F46: 2025-01-31 | G46: 2025 | H46: 0 | I46: =I45*(1+$I$25*H46) -> 1 | J46: 21 | K46: -5.699880884 | M46: -5.699880884 | N46: 21.4 | O46: 320 | P46: 0 | Q46: 128 | R46: 0 | S46: 0 | T46: 0 | U46: 0 | V46: 0 | W46: TRUE | X46: 21.4 | Y46: 2739.2 | Z46: 2739.2 | AB46: 21 | AC46: 2026-09-30 | AD46: 2102999.203 | AE46: 1690387.712 | AF46: 1991946.24
D47: 22 | E47: 2025-01-01T21:00:00 | F47: 2025-01-31 | G47: 2025 | H47: 0 | I47: =I46*(1+$I$25*H47) -> 1 | J47: 22 | K47: 20.99801645 | M47: 20.99801645 | N47: 21.4 | O47: 320 | P47: 128 | Q47: 128 | R47: 2739.2 | S47: 2687.746106 | T47: 51.45389411 | U47: 2687.746106 | V47: 2739.2 | W47: FALSE | X47: 0 | Y47: 0 | Z47: 2739.2 | AB47: 22 | AC47: 2026-10-31 | AD47: 2203466.414 | AE47: 1798284.8 | AF47: 2058344.448
D48: 23 | E48: 2025-01-01T22:00:00 | F48: 2025-01-31 | G48: 2025 | H48: 0 | I48: =I47*(1+$I$25*H48) -> 1 | J48: 23 | K48: 16.44957626 | M48: 16.44957626 | N48: 21.4 | O48: 320 | P48: 128 | Q48: 128 | R48: 2739.2 | S48: 2105.545761 | T48: 633.6542389 | U48: 2105.545761 | V48: 2739.2 | W48: FALSE | X48: 0 | Y48: 0 | Z48: 2739.2 | AB48: 23 | AC48: 2026-11-30 | AD48: 2206521.923 | AE48: 1718053.632 | AF48: 1991946.24
D49: 24 | E49: 2025-01-01T23:00:00 | F49: 2025-01-31 | G49: 2025 | H49: 0 | I49: =I48*(1+$I$25*H49) -> 1 | J49: 24 | K49: -13.34117125 | M49: -13.34117125 | N49: 21.4 | O49: 320 | P49: 0 | Q49: 128 | R49: 0 | S49: 0 | T49: 0 | U49: 0 | V49: 0 | W49: TRUE | X49: 21.4 | Y49: 2739.2 | Z49: 2739.2 | AB49: 24 | AC49: 2026-12-31 | AD49: 2291371.084 | AE49: 1842577.938 | AF49: 2058372.114
D50: 25 | E50: 2025-01-02 | F50: 2025-01-31 | G50: 2025 | H50: 0 | I50: =I49*(1+$I$25*H50) -> 1 | J50: 25 | K50: 6.06924034 | M50: 6.06924034 | N50: 21.4 | O50: 320 | P50: 128 | Q50: 128 | R50: 2739.2 | S50: 776.8627636 | T50: 1962.337236 | U50: 776.8627636 | V50: 2739.2 | W50: FALSE | X50: 0 | Y50: 0 | Z50: 2739.2 | AB50: 25 | AC50: 2027-01-31 | AD50: 2167747.574 | AE50: 1833033.196 | AF50: 2078927.892
D51: 26 | E51: 2025-01-02T01:00:00 | F51: 2025-01-31 | G51: 2025 | H51: 0 | I51: =I50*(1+$I$25*H51) -> 1 | J51: 26 | K51: 22.54786659 | M51: 22.54786659 | N51: 21.4 | O51: 320 | P51: 128 | Q51: 128 | R51: 2739.2 | S51: 2886.126923 | T51: -146.9269229 | U51: 2886.126923 | V51: 2739.2 | W51: FALSE | X51: 0 | Y51: 0 | Z51: 2739.2 | AB51: 26 | AC51: 2027-02-28 | AD51: 2049060.399 | AE51: 1612286.82 | AF51: 1877741.322
D52: 27 | E52: 2025-01-02T02:00:00 | F52: 2025-01-31 | G52: 2025 | H52: 0 | I52: =I51*(1+$I$25*H52) -> 1 | J52: 27 | K52: -0.1992797355 | M52: -0.1992797355 | N52: 21.4 | O52: 320 | P52: 0 | Q52: 128 | R52: 0 | S52: 0 | T52: 0 | U52: 0 | V52: 0 | W52: TRUE | X52: 21.4 | Y52: 2739.2 | Z52: 2739.2 | AB52: 27 | AC52: 2027-03-31 | AD52: 2184708.064 | AE52: 1821856.164 | AF52: 2078927.892
D53: 28 | E53: 2025-01-02T03:00:00 | F53: 2025-01-31 | G53: 2025 | H53: 0 | I53: =I52*(1+$I$25*H53) -> 1 | J53: 28 | K53: 18.7007991 | M53: 18.7007991 | N53: 21.4 | O53: 320 | P53: 128 | Q53: 128 | R53: 2739.2 | S53: 2393.702285 | T53: 345.4977152 | U53: 2393.702285 | V53: 2739.2 | W53: FALSE | X53: 0 | Y53: 0 | Z53: 2739.2 | AB53: 28 | AC53: 2027-04-30 | AD53: 2265282.118 | AE53: 1777148.037 | AF53: 2011865.702
D54: 29 | E54: 2025-01-02T04:00:00 | F54: 2025-01-31 | G54: 2025 | H54: 0 | I54: =I53*(1+$I$25*H54) -> 1 | J54: 29 | K54: 59.27742467 | M54: 59.27742467 | N54: 21.4 | O54: 320 | P54: 128 | Q54: 128 | R54: 2739.2 | S54: 7587.510357 | T54: -4848.310357 | U54: 7587.510357 | V54: 2739.2 | W54: FALSE | X54: 0 | Y54: 0 | Z54: 2739.2 | AB54: 29 | AC54: 2027-05-31 | AD54: 2251159.954 | AE54: 1835827.453 | AF54: 2078927.892
D55: 30 | E55: 2025-01-02T05:00:00 | F55: 2025-01-31 | G55: 2025 | H55: 0 | I55: =I54*(1+$I$25*H55) -> 1 | J55: 30 | K55: -162.8946627 | M55: -162.8946627 | N55: 21.4 | O55: 320 | P55: 0 | Q55: 128 | R55: 0 | S55: 0 | T55: 0 | U55: 0 | V55: 0 | W55: TRUE | X55: 21.4 | Y55: 2739.2 | Z55: 2739.2 | AB55: 30 | AC55: 2027-06-30 | AD55: 2223894.783 | AE55: 1704497.331 | AF55: 2011865.702
D56: 31 | E56: 2025-01-02T06:00:00 | F56: 2025-01-31 | G56: 2025 | H56: 0 | I56: =I55*(1+$I$25*H56) -> 1 | J56: 31 | K56: 86.69309567 | M56: 86.69309567 | N56: 21.4 | O56: 320 | P56: 128 | Q56: 128 | R56: 2739.2 | S56: 11096.71625 | T56: -8357.516246 | U56: 11096.71625 | V56: 2739.2 | W56: FALSE | X56: 0 | Y56: 0 | Z56: 2739.2 | AB56: 31 | AC56: 2027-07-31 | AD56: 2395849.414 | AE56: 1819061.906 | AF56: 2078927.892
D57: 32 | E57: 2025-01-02T07:00:00 | F57: 2025-01-31 | G57: 2025 | H57: 0 | I57: =I56*(1+$I$25*H57) -> 1 | J57: 32 | K57: -32.50280327 | M57: -32.50280327 | N57: 21.4 | O57: 320 | P57: 0 | Q57: 128 | R57: 0 | S57: 0 | T57: 0 | U57: 0 | V57: 0 | W57: TRUE | X57: 21.4 | Y57: 2739.2 | Z57: 2739.2 | AB57: 32 | AC57: 2027-08-31 | AD57: 2015604.33 | AE57: 1796707.843 | AF57: 2078927.892
D58: 33 | E58: 2025-01-02T08:00:00 | F58: 2025-01-31 | G58: 2025 | H58: 0 | I58: =I57*(1+$I$25*H58) -> 1 | J58: 33 | K58: 12.02040053 | M58: 12.02040053 | N58: 21.4 | O58: 320 | P58: 128 | Q58: 128 | R58: 2739.2 | S58: 1538.611268 | T58: 1200.588732 | U58: 1538.611268 | V58: 2739.2 | W58: FALSE | X58: 0 | Y58: 0 | Z58: 2739.2 | AB58: 33 | AC58: 2027-09-30 | AD58: 2141534.513 | AE58: 1765971.005 | AF58: 2011865.702
D59: 34 | E59: 2025-01-02T09:00:00 | F59: 2025-01-31 | G59: 2025 | H59: 0 | I59: =I58*(1+$I$25*H59) -> 1 | J59: 34 | K59: 23.32123672 | M59: 23.32123672 | N59: 21.4 | O59: 320 | P59: 128 | Q59: 128 | R59: 2739.2 | S59: 2985.118301 | T59: -245.9183006 | U59: 2985.118301 | V59: 2739.2 | W59: FALSE | X59: 0 | Y59: 0 | Z59: 2739.2 | AB59: 34 | AC59: 2027-10-31 | AD59: 2393755.828 | AE59: 1802296.358 | AF59: 2078927.892
D60: 35 | E60: 2025-01-02T10:00:00 | F60: 2025-01-31 | G60: 2025 | H60: 0 | I60: =I59*(1+$I$25*H60) -> 1 | J60: 35 | K60: 18.67510804 | M60: 18.67510804 | N60: 21.4 | O60: 320 | P60: 128 | Q60: 128 | R60: 2739.2 | S60: 2390.413829 | T60: 348.7861708 | U60: 2390.413829 | V60: 2739.2 | W60: FALSE | X60: 0 | Y60: 0 | Z60: 2739.2 | AB60: 35 | AC60: 2027-11-30 | AD60: 2106658.06 | AE60: 1768765.263 | AF60: 2011865.702
D61: 36 | E61: 2025-01-02T11:00:00 | F61: 2025-01-31 | G61: 2025 | H61: 0 | I61: =I60*(1+$I$25*H61) -> 1 | J61: 36 | K61: 19.05595248 | M61: 19.05595248 | N61: 21.4 | O61: 320 | P61: 128 | Q61: 128 | R61: 2739.2 | S61: 2439.161918 | T61: 300.0380823 | U61: 2439.161918 | V61: 2739.2 | W61: FALSE | X61: 0 | Y61: 0 | Z61: 2739.2 | AB61: 36 | AC61: 2027-12-31 | AD61: 2348025.498 | AE61: 1802296.358 | AF61: 2076133.635
D62: 37 | E62: 2025-01-02T12:00:00 | F62: 2025-01-31 | G62: 2025 | H62: 0 | I62: =I61*(1+$I$25*H62) -> 1 | J62: 37 | K62: 39.45492032 | M62: 39.45492032 | N62: 21.4 | O62: 320 | P62: 128 | Q62: 128 | R62: 2739.2 | S62: 5050.229801 | T62: -2311.029801 | U62: 5050.229801 | V62: 2739.2 | W62: FALSE | X62: 0 | Y62: 0 | Z62: 2739.2
D63: 38 | E63: 2025-01-02T13:00:00 | F63: 2025-01-31 | G63: 2025 | H63: 0 | I63: =I62*(1+$I$25*H63) -> 1 | J63: 38 | K63: 57.6947634 | M63: 57.6947634 | N63: 21.4 | O63: 320 | P63: 128 | Q63: 128 | R63: 2739.2 | S63: 7384.929715 | T63: -4645.729715 | U63: 7384.929715 | V63: 2739.2 | W63: FALSE | X63: 0 | Y63: 0 | Z63: 2739.2
D64: 39 | E64: 2025-01-02T14:00:00 | F64: 2025-01-31 | G64: 2025 | H64: 0 | I64: =I63*(1+$I$25*H64) -> 1 | J64: 39 | K64: 79.18333721 | M64: 79.18333721 | N64: 21.4 | O64: 320 | P64: 128 | Q64: 128 | R64: 2739.2 | S64: 10135.46716 | T64: -7396.267163 | U64: 10135.46716 | V64: 2739.2 | W64: FALSE | X64: 0 | Y64: 0 | Z64: 2739.2
D65: 40 | E65: 2025-01-02T15:00:00 | F65: 2025-01-31 | G65: 2025 | H65: 0 | I65: =I64*(1+$I$25*H65) -> 1 | J65: 40 | K65: -16.8922929 | M65: -16.8922929 | N65: 21.4 | O65: 320 | P65: 0 | Q65: 128 | R65: 0 | S65: 0 | T65: 0 | U65: 0 | V65: 0 | W65: TRUE | X65: 21.4 | Y65: 2739.2 | Z65: 2739.2
D66: 41 | E66: 2025-01-02T16:00:00 | F66: 2025-01-31 | G66: 2025 | H66: 0 | I66: =I65*(1+$I$25*H66) -> 1 | J66: 41 | K66: 26.37269016 | M66: 26.37269016 | N66: 21.4 | O66: 320 | P66: 128 | Q66: 128 | R66: 2739.2 | S66: 3375.704341 | T66: -636.5043406 | U66: 3375.704341 | V66: 2739.2 | W66: FALSE | X66: 0 | Y66: 0 | Z66: 2739.2
D67: 42 | E67: 2025-01-02T17:00:00 | F67: 2025-01-31 | G67: 2025 | H67: 0 | I67: =I66*(1+$I$25*H67) -> 1 | J67: 42 | K67: 0.5586596515 | M67: 0.5586596515 | N67: 21.4 | O67: 320 | P67: 128 | Q67: 128 | R67: 2739.2 | S67: 71.50843539 | T67: 2667.691565 | U67: 71.50843539 | V67: 2739.2 | W67: FALSE | X67: 0 | Y67: 0 | Z67: 2739.2
D68: 43 | E68: 2025-01-02T18:00:00 | F68: 2025-01-31 | G68: 2025 | H68: 0 | I68: =I67*(1+$I$25*H68) -> 1 | J68: 43 | K68: 19.42968176 | M68: 19.42968176 | N68: 21.4 | O68: 320 | P68: 128 | Q68: 128 | R68: 2739.2 | S68: 2486.999265 | T68: 252.2007349 | U68: 2486.999265 | V68: 2739.2 | W68: FALSE | X68: 0 | Y68: 0 | Z68: 2739.2
D69: 44 | E69: 2025-01-02T19:00:00 | F69: 2025-01-31 | G69: 2025 | H69: 0 | I69: =I68*(1+$I$25*H69) -> 1 | J69: 44 | K69: 11.14077989 | M69: 11.14077989 | N69: 21.4 | O69: 320 | P69: 128 | Q69: 128 | R69: 2739.2 | S69: 1426.019826 | T69: 1313.180174 | U69: 1426.019826 | V69: 2739.2 | W69: FALSE | X69: 0 | Y69: 0 | Z69: 2739.2
D70: 45 | E70: 2025-01-02T20:00:00 | F70: 2025-01-31 | G70: 2025 | H70: 0 | I70: =I69*(1+$I$25*H70) -> 1 | J70: 45 | K70: 21.58527757 | M70: 21.58527757 | N70: 21.4 | O70: 320 | P70: 128 | Q70: 128 | R70: 2739.2 | S70: 2762.915529 | T70: -23.7155288 | U70: 2762.915529 | V70: 2739.2 | W70: FALSE | X70: 0 | Y70: 0 | Z70: 2739.2
D71: 46 | E71: 2025-01-02T21:00:00 | F71: 2025-01-31 | G71: 2025 | H71: 0 | I71: =I70*(1+$I$25*H71) -> 1 | J71: 46 | K71: 28.60815651 | M71: 28.60815651 | N71: 21.4 | O71: 320 | P71: 128 | Q71: 128 | R71: 2739.2 | S71: 3661.844033 | T71: -922.6440333 | U71: 3661.844033 | V71: 2739.2 | W71: FALSE | X71: 0 | Y71: 0 | Z71: 2739.2
D72: 47 | E72: 2025-01-02T22:00:00 | F72: 2025-01-31 | G72: 2025 | H72: 0 | I72: =I71*(1+$I$25*H72) -> 1 | J72: 47 | K72: 29.63780619 | M72: 29.63780619 | N72: 21.4 | O72: 320 | P72: 128 | Q72: 128 | R72: 2739.2 | S72: 3793.639192 | T72: -1054.439192 | U72: 3793.639192 | V72: 2739.2 | W72: FALSE | X72: 0 | Y72: 0 | Z72: 2739.2
D73: 48 | E73: 2025-01-02T23:00:00 | F73: 2025-01-31 | G73: 2025 | H73: 0 | I73: =I72*(1+$I$25*H73) -> 1 | J73: 48 | K73: 26.38378069 | M73: 26.38378069 | N73: 21.4 | O73: 320 | P73: 128 | Q73: 128 | R73: 2739.2 | S73: 3377.123929 | T73: -637.9239289 | U73: 3377.123929 | V73: 2739.2 | W73: FALSE | X73: 0 | Y73: 0 | Z73: 2739.2
D74: 49 | E74: 2025-01-03 | F74: 2025-01-31 | G74: 2025 | H74: 0 | I74: =I73*(1+$I$25*H74) -> 1 | J74: 49 | K74: 19.09643982 | M74: 19.09643982 | N74: 21.4 | O74: 320 | P74: 128 | Q74: 128 | R74: 2739.2 | S74: 2444.344297 | T74: 294.8557032 | U74: 2444.344297 | V74: 2739.2 | W74: FALSE | X74: 0 | Y74: 0 | Z74: 2739.2
D75: 50 | E75: 2025-01-03T01:00:00 | F75: 2025-01-31 | G75: 2025 | H75: 0 | I75: =I74*(1+$I$25*H75) -> 1 | J75: 50 | K75: 16.10944367 | M75: 16.10944367 | N75: 21.4 | O75: 320 | P75: 128 | Q75: 128 | R75: 2739.2 | S75: 2062.008789 | T75: 677.1912107 | U75: 2062.008789 | V75: 2739.2 | W75: FALSE | X75: 0 | Y75: 0 | Z75: 2739.2
D76: 51 | E76: 2025-01-03T02:00:00 | F76: 2025-01-31 | G76: 2025 | H76: 0 | I76: =I75*(1+$I$25*H76) -> 1 | J76: 51 | K76: -2.574587252 | M76: -2.574587252 | N76: 21.4 | O76: 320 | P76: 0 | Q76: 128 | R76: 0 | S76: 0 | T76: 0 | U76: 0 | V76: 0 | W76: TRUE | X76: 21.4 | Y76: 2739.2 | Z76: 2739.2
D77: 52 | E77: 2025-01-03T03:00:00 | F77: 2025-01-31 | G77: 2025 | H77: 0 | I77: =I76*(1+$I$25*H77) -> 1 | J77: 52 | K77: 17.50407006 | M77: 17.50407006 | N77: 21.4 | O77: 320 | P77: 128 | Q77: 128 | R77: 2739.2 | S77: 2240.520968 | T77: 498.6790319 | U77: 2240.520968 | V77: 2739.2 | W77: FALSE | X77: 0 | Y77: 0 | Z77: 2739.2
D78: 53 | E78: 2025-01-03T04:00:00 | F78: 2025-01-31 | G78: 2025 | H78: 0 | I78: =I77*(1+$I$25*H78) -> 1 | J78: 53 | K78: 51.76014487 | M78: 51.76014487 | N78: 21.4 | O78: 320 | P78: 128 | Q78: 128 | R78: 2739.2 | S78: 6625.298544 | T78: -3886.098544 | U78: 6625.298544 | V78: 2739.2 | W78: FALSE | X78: 0 | Y78: 0 | Z78: 2739.2
D79: 54 | E79: 2025-01-03T05:00:00 | F79: 2025-01-31 | G79: 2025 | H79: 0 | I79: =I78*(1+$I$25*H79) -> 1 | J79: 54 | K79: 3.69849132 | M79: 3.69849132 | N79: 21.4 | O79: 320 | P79: 128 | Q79: 128 | R79: 2739.2 | S79: 473.4068889 | T79: 2265.793111 | U79: 473.4068889 | V79: 2739.2 | W79: FALSE | X79: 0 | Y79: 0 | Z79: 2739.2
D80: 55 | E80: 2025-01-03T06:00:00 | F80: 2025-01-31 | G80: 2025 | H80: 0 | I80: =I79*(1+$I$25*H80) -> 1 | J80: 55 | K80: 21.00888973 | M80: 21.00888973 | N80: 21.4 | O80: 320 | P80: 128 | Q80: 128 | R80: 2739.2 | S80: 2689.137885 | T80: 50.0621147 | U80: 2689.137885 | V80: 2739.2 | W80: FALSE | X80: 0 | Y80: 0 | Z80: 2739.2
D81: 56 | E81: 2025-01-03T07:00:00 | F81: 2025-01-31 | G81: 2025 | H81: 0 | I81: =I80*(1+$I$25*H81) -> 1 | J81: 56 | K81: 27.56333152 | M81: 27.56333152 | N81: 21.4 | O81: 320 | P81: 128 | Q81: 128 | R81: 2739.2 | S81: 3528.106435 | T81: -788.9064351 | U81: 3528.106435 | V81: 2739.2 | W81: FALSE | X81: 0 | Y81: 0 | Z81: 2739.2
D82: 57 | E82: 2025-01-03T08:00:00 | F82: 2025-01-31 | G82: 2025 | H82: 0 | I82: =I81*(1+$I$25*H82) -> 1 | J82: 57 | K82: 24.70007729 | M82: 24.70007729 | N82: 21.4 | O82: 320 | P82: 128 | Q82: 128 | R82: 2739.2 | S82: 3161.609893 | T82: -422.4098928 | U82: 3161.609893 | V82: 2739.2 | W82: FALSE | X82: 0 | Y82: 0 | Z82: 2739.2
D83: 58 | E83: 2025-01-03T09:00:00 | F83: 2025-01-31 | G83: 2025 | H83: 0 | I83: =I82*(1+$I$25*H83) -> 1 | J83: 58 | K83: -19.97803055 | M83: -19.97803055 | N83: 21.4 | O83: 320 | P83: 0 | Q83: 128 | R83: 0 | S83: 0 | T83: 0 | U83: 0 | V83: 0 | W83: TRUE | X83: 21.4 | Y83: 2739.2 | Z83: 2739.2
D84: 59 | E84: 2025-01-03T10:00:00 | F84: 2025-01-31 | G84: 2025 | H84: 0 | I84: =I83*(1+$I$25*H84) -> 1 | J84: 59 | K84: -2.979148952 | M84: -2.979148952 | N84: 21.4 | O84: 320 | P84: 0 | Q84: 128 | R84: 0 | S84: 0 | T84: 0 | U84: 0 | V84: 0 | W84: TRUE | X84: 21.4 | Y84: 2739.2 | Z84: 2739.2
D85: 60 | E85: 2025-01-03T11:00:00 | F85: 2025-01-31 | G85: 2025 | H85: 0 | I85: =I84*(1+$I$25*H85) -> 1 | J85: 60 | K85: 15.44595843 | M85: 15.44595843 | N85: 21.4 | O85: 320 | P85: 128 | Q85: 128 | R85: 2739.2 | S85: 1977.082679 | T85: 762.1173211 | U85: 1977.082679 | V85: 2739.2 | W85: FALSE | X85: 0 | Y85: 0 | Z85: 2739.2
D86: 61 | E86: 2025-01-03T12:00:00 | F86: 2025-01-31 | G86: 2025 | H86: 0 | I86: =I85*(1+$I$25*H86) -> 1 | J86: 61 | K86: 22.52786646 | M86: 22.52786646 | N86: 21.4 | O86: 320 | P86: 128 | Q86: 128 | R86: 2739.2 | S86: 2883.566907 | T86: -144.3669073 | U86: 2883.566907 | V86: 2739.2 | W86: FALSE | X86: 0 | Y86: 0 | Z86: 2739.2
D87: 62 | E87: 2025-01-03T13:00:00 | F87: 2025-01-31 | G87: 2025 | H87: 0 | I87: =I86*(1+$I$25*H87) -> 1 | J87: 62 | K87: 32.58490249 | M87: 32.58490249 | N87: 21.4 | O87: 320 | P87: 128 | Q87: 128 | R87: 2739.2 | S87: 4170.867519 | T87: -1431.667519 | U87: 4170.867519 | V87: 2739.2 | W87: FALSE | X87: 0 | Y87: 0 | Z87: 2739.2
D88: 63 | E88: 2025-01-03T14:00:00 | F88: 2025-01-31 | G88: 2025 | H88: 0 | I88: =I87*(1+$I$25*H88) -> 1 | J88: 63 | K88: -59.31230548 | M88: -59.31230548 | N88: 21.4 | O88: 320 | P88: 0 | Q88: 128 | R88: 0 | S88: 0 | T88: 0 | U88: 0 | V88: 0 | W88: TRUE | X88: 21.4 | Y88: 2739.2 | Z88: 2739.2
D89: 64 | E89: 2025-01-03T15:00:00 | F89: 2025-01-31 | G89: 2025 | H89: 0 | I89: =I88*(1+$I$25*H89) -> 1 | J89: 64 | K89: 37.49044129 | M89: 37.49044129 | N89: 21.4 | O89: 320 | P89: 128 | Q89: 128 | R89: 2739.2 | S89: 4798.776486 | T89: -2059.576486 | U89: 4798.776486 | V89: 2739.2 | W89: FALSE | X89: 0 | Y89: 0 | Z89: 2739.2
D90: 65 | E90: 2025-01-03T16:00:00 | F90: 2025-01-31 | G90: 2025 | H90: 0 | I90: =I89*(1+$I$25*H90) -> 1 | J90: 65 | K90: 7.479723293 | M90: 7.479723293 | N90: 21.4 | O90: 320 | P90: 128 | Q90: 128 | R90: 2739.2 | S90: 957.4045815 | T90: 1781.795418 | U90: 957.4045815 | V90: 2739.2 | W90: FALSE | X90: 0 | Y90: 0 | Z90: 2739.2
D91: 66 | E91: 2025-01-03T17:00:00 | F91: =EOMONTH(E91,0) -> 2025-01-31 | G91: =YEAR(E91) -> 2025 | H91: 0 | I91: =I90*(1+$I$25*H91) -> 1 | J91: =IF(E91<=$J$24,D91,NA()) -> 66 | K91: =IF(ISNUMBER(J91),M91,NA()) -> 4.613623118 | M91: 4.613623118 | N91: =$N$23*I91 -> 21.4 | O91: =$O$23 -> 320 | P91: =(IF(M91>0,$P$23*O91))*1 -> 128 | Q91: =$O$26*$P$23 -> 128 | R91: =N91*P91 -> 2739.2 | S91: =P91*M91 -> 590.5437591 | T91: =R91-S91 -> 2148.656241 | U91: =P91*M91 -> 590.5437591 | V91: =U91+T91 -> 2739.2 | W91: =M91<=0 -> FALSE | X91: =(N91-M91*0)*W91 -> 0 | Y91: =X91*Q91 -> 0 | Z91: =T91+U91+Y91 -> 2739.2
D92: 67 | E92: =E91+1/24 -> 2025-01-03T18:00:00 | F92: 2025-01-31 | G92: 2025 | H92: =(G91<>G92)*1 -> 0 | I92: =I91*(1+$I$25*H92) -> 1 | J92: 67 | K92: 20.82761393 | M92: =M91+M91*NORMSINV(RAND())*$M$21+($M$26-M91)*$M$22 -> 20.82761393 | N92: 21.4 | O92: 320 | P92: 128 | Q92: 128 | R92: 2739.2 | S92: 2665.934583 | T92: 73.26541725 | U92: 2665.934583 | V92: 2739.2 | W92: FALSE | X92: 0 | Y92: 0 | Z92: 2739.2
D93: 68 | E93: 2025-01-03T19:00:00 | F93: 2025-01-31 | G93: 2025 | H93: 0 | I93: =I92*(1+$I$25*H93) -> 1 | J93: 68 | K93: 29.74311164 | M93: 29.74311164 | N93: 21.4 | O93: 320 | P93: 128 | Q93: 128 | R93: 2739.2 | S93: 3807.11829 | T93: -1067.91829 | U93: 3807.11829 | V93: 2739.2 | W93: FALSE | X93: 0 | Y93: 0 | Z93: 2739.2
D94: 69 | E94: 2025-01-03T20:00:00 | F94: 2025-01-31 | G94: 2025 | H94: 0 | I94: =I93*(1+$I$25*H94) -> 1 | J94: 69 | K94: 22.92058269 | M94: 22.92058269 | N94: 21.4 | O94: 320 | P94: 128 | Q94: 128 | R94: 2739.2 | S94: 2933.834584 | T94: -194.6345843 | U94: 2933.834584 | V94: 2739.2 | W94: FALSE | X94: 0 | Y94: 0 | Z94: 2739.2
D95: 70 | E95: 2025-01-03T21:00:00 | F95: 2025-01-31 | G95: 2025 | H95: 0 | I95: =I94*(1+$I$25*H95) -> 1 | J95: 70 | K95: 40.81075339 | M95: 40.81075339 | N95: 21.4 | O95: 320 | P95: 128 | Q95: 128 | R95: 2739.2 | S95: 5223.776435 | T95: -2484.576435 | U95: 5223.776435 | V95: 2739.2 | W95: FALSE | X95: 0 | Y95: 0 | Z95: 2739.2
D96: 71 | E96: 2025-01-03T22:00:00 | F96: 2025-01-31 | G96: 2025 | H96: 0 | I96: =I95*(1+$I$25*H96) -> 1 | J96: 71 | K96: 41.370254 | M96: 41.370254 | N96: 21.4 | O96: 320 | P96: 128 | Q96: 128 | R96: 2739.2 | S96: 5295.392512 | T96: -2556.192512 | U96: 5295.392512 | V96: 2739.2 | W96: FALSE | X96: 0 | Y96: 0 | Z96: 2739.2
D97: 72 | E97: 2025-01-03T23:00:00 | F97: 2025-01-31 | G97: 2025 | H97: 0 | I97: =I96*(1+$I$25*H97) -> 1 | J97: 72 | K97: -9.690162172 | M97: -9.690162172 | N97: 21.4 | O97: 320 | P97: 0 | Q97: 128 | R97: 0 | S97: 0 | T97: 0 | U97: 0 | V97: 0 | W97: TRUE | X97: 21.4 | Y97: 2739.2 | Z97: 2739.2
D98: 73 | E98: 2025-01-04 | F98: 2025-01-31 | G98: 2025 | H98: 0 | I98: =I97*(1+$I$25*H98) -> 1 | J98: 73 | K98: 17.26567004 | M98: 17.26567004 | N98: 21.4 | O98: 320 | P98: 128 | Q98: 128 | R98: 2739.2 | S98: 2210.005766 | T98: 529.1942345 | U98: 2210.005766 | V98: 2739.2 | W98: FALSE | X98: 0 | Y98: 0 | Z98: 2739.2
D99: 74 | E99: 2025-01-04T01:00:00 | F99: 2025-01-31 | G99: 2025 | H99: 0 | I99: =I98*(1+$I$25*H99) -> 1 | J99: 74 | K99: 30.16209706 | M99: 30.16209706 | N99: 21.4 | O99: 320 | P99: 128 | Q99: 128 | R99: 2739.2 | S99: 3860.748424 | T99: -1121.548424 | U99: 3860.748424 | V99: 2739.2 | W99: FALSE | X99: 0 | Y99: 0 | Z99: 2739.2
D100: 75 | E100: 2025-01-04T02:00:00 | F100: 2025-01-31 | G100: 2025 | H100: 0 | I100: =I99*(1+$I$25*H100) -> 1 | J100: 75 | K100: 14.14480838 | M100: 14.14480838 | N100: 21.4 | O100: 320 | P100: 128 | Q100: 128 | R100: 2739.2 | S100: 1810.535472 | T100: 928.6645278 | U100: 1810.535472 | V100: 2739.2 | W100: FALSE | X100: 0 | Y100: 0 | Z100: 2739.2
D101: 76 | E101: 2025-01-04T03:00:00 | F101: 2025-01-31 | G101: 2025 | H101: 0 | I101: =I100*(1+$I$25*H101) -> 1 | J101: 76 | K101: 21.72874265 | M101: 21.72874265 | N101: 21.4 | O101: 320 | P101: 128 | Q101: 128 | R101: 2739.2 | S101: 2781.279059 | T101: -42.07905857 | U101: 2781.279059 | V101: 2739.2 | W101: FALSE | X101: 0 | Y101: 0 | Z101: 2739.2
D102: 77 | E102: 2025-01-04T04:00:00 | F102: 2025-01-31 | G102: 2025 | H102: 0 | I102: =I101*(1+$I$25*H102) -> 1 | J102: 77 | K102: 47.35497457 | M102: 47.35497457 | N102: 21.4 | O102: 320 | P102: 128 | Q102: 128 | R102: 2739.2 | S102: 6061.436745 | T102: -3322.236745 | U102: 6061.436745 | V102: 2739.2 | W102: FALSE | X102: 0 | Y102: 0 | Z102: 2739.2
D103: 78 | E103: 2025-01-04T05:00:00 | F103: 2025-01-31 | G103: 2025 | H103: 0 | I103: =I102*(1+$I$25*H103) -> 1 | J103: 78 | K103: -3.045175899 | M103: -3.045175899 | N103: 21.4 | O103: 320 | P103: 0 | Q103: 128 | R103: 0 | S103: 0 | T103: 0 | U103: 0 | V103: 0 | W103: TRUE | X103: 21.4 | Y103: 2739.2 | Z103: 2739.2
D104: 79 | E104: 2025-01-04T06:00:00 | F104: 2025-01-31 | G104: 2025 | H104: 0 | I104: =I103*(1+$I$25*H104) -> 1 | J104: 79 | K104: 17.74721915 | M104: 17.74721915 | N104: 21.4 | O104: 320 | P104: 128 | Q104: 128 | R104: 2739.2 | S104: 2271.644051 | T104: 467.5559488 | U104: 2271.644051 | V104: 2739.2 | W104: FALSE | X104: 0 | Y104: 0 | Z104: 2739.2
D105: 80 | E105: 2025-01-04T07:00:00 | F105: 2025-01-31 | G105: 2025 | H105: 0 | I105: =I104*(1+$I$25*H105) -> 1 | J105: 80 | K105: 3.224937417 | M105: 3.224937417 | N105: 21.4 | O105: 320 | P105: 128 | Q105: 128 | R105: 2739.2 | S105: 412.7919894 | T105: 2326.408011 | U105: 412.7919894 | V105: 2739.2 | W105: FALSE | X105: 0 | Y105: 0 | Z105: 2739.2
D106: 81 | E106: 2025-01-04T08:00:00 | F106: 2025-01-31 | G106: 2025 | H106: 0 | I106: =I105*(1+$I$25*H106) -> 1 | J106: 81 | K106: 22.26721169 | M106: 22.26721169 | N106: 21.4 | O106: 320 | P106: 128 | Q106: 128 | R106: 2739.2 | S106: 2850.203097 | T106: -111.0030967 | U106: 2850.203097 | V106: 2739.2 | W106: FALSE | X106: 0 | Y106: 0 | Z106: 2739.2
D107: 82 | E107: 2025-01-04T09:00:00 | F107: 2025-01-31 | G107: 2025 | H107: 0 | I107: =I106*(1+$I$25*H107) -> 1 | J107: 82 | K107: 1.595381166 | M107: 1.595381166 | N107: 21.4 | O107: 320 | P107: 128 | Q107: 128 | R107: 2739.2 | S107: 204.2087892 | T107: 2534.991211 | U107: 204.2087892 | V107: 2739.2 | W107: FALSE | X107: 0 | Y107: 0 | Z107: 2739.2
D108: 83 | E108: 2025-01-04T10:00:00 | F108: 2025-01-31 | G108: 2025 | H108: 0 | I108: =I107*(1+$I$25*H108) -> 1 | J108: 83 | K108: 18.83437342 | M108: 18.83437342 | N108: 21.4 | O108: 320 | P108: 128 | Q108: 128 | R108: 2739.2 | S108: 2410.799798 | T108: 328.400202 | U108: 2410.799798 | V108: 2739.2 | W108: FALSE | X108: 0 | Y108: 0 | Z108: 2739.2
D109: 84 | E109: 2025-01-04T11:00:00 | F109: 2025-01-31 | G109: 2025 | H109: 0 | I109: =I108*(1+$I$25*H109) -> 1 | J109: 84 | K109: 17.40150172 | M109: 17.40150172 | N109: 21.4 | O109: 320 | P109: 128 | Q109: 128 | R109: 2739.2 | S109: 2227.39222 | T109: 511.8077797 | U109: 2227.39222 | V109: 2739.2 | W109: FALSE | X109: 0 | Y109: 0 | Z109: 2739.2
D110: 85 | E110: 2025-01-04T12:00:00 | F110: 2025-01-31 | G110: 2025 | H110: 0 | I110: =I109*(1+$I$25*H110) -> 1 | J110: 85 | K110: 10.97222429 | M110: 10.97222429 | N110: 21.4 | O110: 320 | P110: 128 | Q110: 128 | R110: 2739.2 | S110: 1404.444709 | T110: 1334.755291 | U110: 1404.444709 | V110: 2739.2 | W110: FALSE | X110: 0 | Y110: 0 | Z110: 2739.2
D111: 86 | E111: 2025-01-04T13:00:00 | F111: 2025-01-31 | G111: 2025 | H111: 0 | I111: =I110*(1+$I$25*H111) -> 1 | J111: 86 | K111: 15.28429962 | M111: 15.28429962 | N111: 21.4 | O111: 320 | P111: 128 | Q111: 128 | R111: 2739.2 | S111: 1956.390351 | T111: 782.8096491 | U111: 1956.390351 | V111: 2739.2 | W111: FALSE | X111: 0 | Y111: 0 | Z111: 2739.2
D112: 87 | E112: 2025-01-04T14:00:00 | F112: 2025-01-31 | G112: 2025 | H112: 0 | I112: =I111*(1+$I$25*H112) -> 1 | J112: 87 | K112: 45.07578084 | M112: 45.07578084 | N112: 21.4 | O112: 320 | P112: 128 | Q112: 128 | R112: 2739.2 | S112: 5769.699948 | T112: -3030.499948 | U112: 5769.699948 | V112: 2739.2 | W112: FALSE | X112: 0 | Y112: 0 | Z112: 2739.2
D113: 88 | E113: 2025-01-04T15:00:00 | F113: 2025-01-31 | G113: 2025 | H113: 0 | I113: =I112*(1+$I$25*H113) -> 1 | J113: 88 | K113: -14.0973697 | M113: -14.0973697 | N113: 21.4 | O113: 320 | P113: 0 | Q113: 128 | R113: 0 | S113: 0 | T113: 0 | U113: 0 | V113: 0 | W113: TRUE | X113: 21.4 | Y113: 2739.2 | Z113: 2739.2
D114: 89 | E114: 2025-01-04T16:00:00 | F114: 2025-01-31 | G114: 2025 | H114: 0 | I114: =I113*(1+$I$25*H114) -> 1 | J114: 89 | K114: 18.80100916 | M114: 18.80100916 | N114: 21.4 | O114: 320 | P114: 128 | Q114: 128 | R114: 2739.2 | S114: 2406.529173 | T114: 332.6708274 | U114: 2406.529173 | V114: 2739.2 | W114: FALSE | X114: 0 | Y114: 0 | Z114: 2739.2
D115: 90 | E115: 2025-01-04T17:00:00 | F115: 2025-01-31 | G115: 2025 | H115: 0 | I115: =I114*(1+$I$25*H115) -> 1 | J115: 90 | K115: 4.310639835 | M115: 4.310639835 | N115: 21.4 | O115: 320 | P115: 128 | Q115: 128 | R115: 2739.2 | S115: 551.7618989 | T115: 2187.438101 | U115: 551.7618989 | V115: 2739.2 | W115: FALSE | X115: 0 | Y115: 0 | Z115: 2739.2
D116: 91 | E116: 2025-01-04T18:00:00 | F116: 2025-01-31 | G116: 2025 | H116: 0 | I116: =I115*(1+$I$25*H116) -> 1 | J116: 91 | K116: 22.24724447 | M116: 22.24724447 | N116: 21.4 | O116: 320 | P116: 128 | Q116: 128 | R116: 2739.2 | S116: 2847.647293 | T116: -108.4472926 | U116: 2847.647293 | V116: 2739.2 | W116: FALSE | X116: 0 | Y116: 0 | Z116: 2739.2
D117: 92 | E117: 2025-01-04T19:00:00 | F117: 2025-01-31 | G117: 2025 | H117: 0 | I117: =I116*(1+$I$25*H117) -> 1 | J117: 92 | K117: 44.43702313 | M117: 44.43702313 | N117: 21.4 | O117: 320 | P117: 128 | Q117: 128 | R117: 2739.2 | S117: 5687.93896 | T117: -2948.73896 | U117: 5687.93896 | V117: 2739.2 | W117: FALSE | X117: 0 | Y117: 0 | Z117: 2739.2
D118: 93 | E118: 2025-01-04T20:00:00 | F118: 2025-01-31 | G118: 2025 | H118: 0 | I118: =I117*(1+$I$25*H118) -> 1 | J118: 93 | K118: 7.854966394 | M118: 7.854966394 | N118: 21.4 | O118: 320 | P118: 128 | Q118: 128 | R118: 2739.2 | S118: 1005.435698 | T118: 1733.764302 | U118: 1005.435698 | V118: 2739.2 | W118: FALSE | X118: 0 | Y118: 0 | Z118: 2739.2
D119: 94 | E119: 2025-01-04T21:00:00 | F119: 2025-01-31 | G119: 2025 | H119: 0 | I119: =I118*(1+$I$25*H119) -> 1 | J119: 94 | K119: 21.21797339 | M119: 21.21797339 | N119: 21.4 | O119: 320 | P119: 128 | Q119: 128 | R119: 2739.2 | S119: 2715.900594 | T119: 23.2994058 | U119: 2715.900594 | V119: 2739.2 | W119: FALSE | X119: 0 | Y119: 0 | Z119: 2739.2
D120: 95 | E120: 2025-01-04T22:00:00 | F120: 2025-01-31 | G120: 2025 | H120: 0 | I120: =I119*(1+$I$25*H120) -> 1 | J120: 95 | K120: 9.473943858 | M120: 9.473943858 | N120: 21.4 | O120: 320 | P120: 128 | Q120: 128 | R120: 2739.2 | S120: 1212.664814 | T120: 1526.535186 | U120: 1212.664814 | V120: 2739.2 | W120: FALSE | X120: 0 | Y120: 0 | Z120: 2739.2
D121: 96 | E121: 2025-01-04T23:00:00 | F121: 2025-01-31 | G121: 2025 | H121: 0 | I121: =I120*(1+$I$25*H121) -> 1 | J121: 96 | K121: 20.29035914 | M121: 20.29035914 | N121: 21.4 | O121: 320 | P121: 128 | Q121: 128 | R121: 2739.2 | S121: 2597.16597 | T121: 142.0340303 | U121: 2597.16597 | V121: 2739.2 | W121: FALSE | X121: 0 | Y121: 0 | Z121: 2739.2
D122: 97 | E122: 2025-01-05 | F122: 2025-01-31 | G122: 2025 | H122: 0 | I122: =I121*(1+$I$25*H122) -> 1 | J122: 97 | K122: 58.68274426 | M122: 58.68274426 | N122: 21.4 | O122: 320 | P122: 128 | Q122: 128 | R122: 2739.2 | S122: 7511.391266 | T122: -4772.191266 | U122: 7511.391266 | V122: 2739.2 | W122: FALSE | X122: 0 | Y122: 0 | Z122: 2739.2
D123: 98 | E123: 2025-01-05T01:00:00 | F123: 2025-01-31 | G123: 2025 | H123: 0 | I123: =I122*(1+$I$25*H123) -> 1 | J123: 98 | K123: 37.43469905 | M123: 37.43469905 | N123: 21.4 | O123: 320 | P123: 128 | Q123: 128 | R123: 2739.2 | S123: 4791.641478 | T123: -2052.441478 | U123: 4791.641478 | V123: 2739.2 | W123: FALSE | X123: 0 | Y123: 0 | Z123: 2739.2
D124: 99 | E124: 2025-01-05T02:00:00 | F124: 2025-01-31 | G124: 2025 | H124: 0 | I124: =I123*(1+$I$25*H124) -> 1 | J124: 99 | K124: 44.79131684 | M124: 44.79131684 | N124: 21.4 | O124: 320 | P124: 128 | Q124: 128 | R124: 2739.2 | S124: 5733.288556 | T124: -2994.088556 | U124: 5733.288556 | V124: 2739.2 | W124: FALSE | X124: 0 | Y124: 0 | Z124: 2739.2
D125: 100 | E125: 2025-01-05T03:00:00 | F125: 2025-01-31 | G125: 2025 | H125: 0 | I125: =I124*(1+$I$25*H125) -> 1 | J125: 100 | K125: 48.05781738 | M125: 48.05781738 | N125: 21.4 | O125: 320 | P125: 128 | Q125: 128 | R125: 2739.2 | S125: 6151.400624 | T125: -3412.200624 | U125: 6151.400624 | V125: 2739.2 | W125: FALSE | X125: 0 | Y125: 0 | Z125: 2739.2
D126: 101 | E126: 2025-01-05T04:00:00 | F126: 2025-01-31 | G126: 2025 | H126: 0 | I126: =I125*(1+$I$25*H126) -> 1 | J126: 101 | K126: -38.03439416 | M126: -38.03439416 | N126: 21.4 | O126: 320 | P126: 0 | Q126: 128 | R126: 0 | S126: 0 | T126: 0 | U126: 0 | V126: 0 | W126: TRUE | X126: 21.4 | Y126: 2739.2 | Z126: 2739.2
D127: 102 | E127: 2025-01-05T05:00:00 | F127: 2025-01-31 | G127: 2025 | H127: 0 | I127: =I126*(1+$I$25*H127) -> 1 | J127: 102 | K127: 27.82981875 | M127: 27.82981875 | N127: 21.4 | O127: 320 | P127: 128 | Q127: 128 | R127: 2739.2 | S127: 3562.216801 | T127: -823.0168006 | U127: 3562.216801 | V127: 2739.2 | W127: FALSE | X127: 0 | Y127: 0 | Z127: 2739.2
D128: 103 | E128: 2025-01-05T06:00:00 | F128: 2025-01-31 | G128: 2025 | H128: 0 | I128: =I127*(1+$I$25*H128) -> 1 | J128: 103 | K128: 36.82110492 | M128: 36.82110492 | N128: 21.4 | O128: 320 | P128: 128 | Q128: 128 | R128: 2739.2 | S128: 4713.10143 | T128: -1973.90143 | U128: 4713.10143 | V128: 2739.2 | W128: FALSE | X128: 0 | Y128: 0 | Z128: 2739.2
D129: 104 | E129: 2025-01-05T07:00:00 | F129: 2025-01-31 | G129: 2025 | H129: 0 | I129: =I128*(1+$I$25*H129) -> 1 | J129: 104 | K129: -15.78277319 | M129: -15.78277319 | N129: 21.4 | O129: 320 | P129: 0 | Q129: 128 | R129: 0 | S129: 0 | T129: 0 | U129: 0 | V129: 0 | W129: TRUE | X129: 21.4 | Y129: 2739.2 | Z129: 2739.2
D130: 105 | E130: 2025-01-05T08:00:00 | F130: 2025-01-31 | G130: 2025 | H130: 0 | I130: =I129*(1+$I$25*H130) -> 1 | J130: 105 | K130: 15.07485993 | M130: 15.07485993 | N130: 21.4 | O130: 320 | P130: 128 | Q130: 128 | R130: 2739.2 | S130: 1929.582071 | T130: 809.6179286 | U130: 1929.582071 | V130: 2739.2 | W130: FALSE | X130: 0 | Y130: 0 | Z130: 2739.2
D131: 106 | E131: 2025-01-05T09:00:00 | F131: 2025-01-31 | G131: 2025 | H131: 0 | I131: =I130*(1+$I$25*H131) -> 1 | J131: 106 | K131: 14.75632995 | M131: 14.75632995 | N131: 21.4 | O131: 320 | P131: 128 | Q131: 128 | R131: 2739.2 | S131: 1888.810234 | T131: 850.389766 | U131: 1888.810234 | V131: 2739.2 | W131: FALSE | X131: 0 | Y131: 0 | Z131: 2739.2
D132: 107 | E132: 2025-01-05T10:00:00 | F132: 2025-01-31 | G132: 2025 | H132: 0 | I132: =I131*(1+$I$25*H132) -> 1 | J132: 107 | K132: 32.05764937 | M132: 32.05764937 | N132: 21.4 | O132: 320 | P132: 128 | Q132: 128 | R132: 2739.2 | S132: 4103.379119 | T132: -1364.179119 | U132: 4103.379119 | V132: 2739.2 | W132: FALSE | X132: 0 | Y132: 0 | Z132: 2739.2
D133: 108 | E133: 2025-01-05T11:00:00 | F133: 2025-01-31 | G133: 2025 | H133: 0 | I133: =I132*(1+$I$25*H133) -> 1 | J133: 108 | K133: 36.96233916 | M133: 36.96233916 | N133: 21.4 | O133: 320 | P133: 128 | Q133: 128 | R133: 2739.2 | S133: 4731.179413 | T133: -1991.979413 | U133: 4731.179413 | V133: 2739.2 | W133: FALSE | X133: 0 | Y133: 0 | Z133: 2739.2
D134: 109 | E134: 2025-01-05T12:00:00 | F134: 2025-01-31 | G134: 2025 | H134: 0 | I134: =I133*(1+$I$25*H134) -> 1 | J134: 109 | K134: 4.234202243 | M134: 4.234202243 | N134: 21.4 | O134: 320 | P134: 128 | Q134: 128 | R134: 2739.2 | S134: 541.9778871 | T134: 2197.222113 | U134: 541.9778871 | V134: 2739.2 | W134: FALSE | X134: 0 | Y134: 0 | Z134: 2739.2
D135: 110 | E135: 2025-01-05T13:00:00 | F135: 2025-01-31 | G135: 2025 | H135: 0 | I135: =I134*(1+$I$25*H135) -> 1 | J135: 110 | K135: 19.98854831 | M135: 19.98854831 | N135: 21.4 | O135: 320 | P135: 128 | Q135: 128 | R135: 2739.2 | S135: 2558.534184 | T135: 180.6658162 | U135: 2558.534184 | V135: 2739.2 | W135: FALSE | X135: 0 | Y135: 0 | Z135: 2739.2
D136: 111 | E136: 2025-01-05T14:00:00 | F136: 2025-01-31 | G136: 2025 | H136: 0 | I136: =I135*(1+$I$25*H136) -> 1 | J136: 111 | K136: 17.35361446 | M136: 17.35361446 | N136: 21.4 | O136: 320 | P136: 128 | Q136: 128 | R136: 2739.2 | S136: 2221.262651 | T136: 517.9373493 | U136: 2221.262651 | V136: 2739.2 | W136: FALSE | X136: 0 | Y136: 0 | Z136: 2739.2
D137: 112 | E137: 2025-01-05T15:00:00 | F137: 2025-01-31 | G137: 2025 | H137: 0 | I137: =I136*(1+$I$25*H137) -> 1 | J137: 112 | K137: 16.25723004 | M137: 16.25723004 | N137: 21.4 | O137: 320 | P137: 128 | Q137: 128 | R137: 2739.2 | S137: 2080.925445 | T137: 658.2745553 | U137: 2080.925445 | V137: 2739.2 | W137: FALSE | X137: 0 | Y137: 0 | Z137: 2739.2
D138: 113 | E138: 2025-01-05T16:00:00 | F138: 2025-01-31 | G138: 2025 | H138: 0 | I138: =I137*(1+$I$25*H138) -> 1 | J138: 113 | K138: 18.2275684 | M138: 18.2275684 | N138: 21.4 | O138: 320 | P138: 128 | Q138: 128 | R138: 2739.2 | S138: 2333.128756 | T138: 406.0712442 | U138: 2333.128756 | V138: 2739.2 | W138: FALSE | X138: 0 | Y138: 0 | Z138: 2739.2
D139: 114 | E139: 2025-01-05T17:00:00 | F139: 2025-01-31 | G139: 2025 | H139: 0 | I139: =I138*(1+$I$25*H139) -> 1 | J139: 114 | K139: 21.65593709 | M139: 21.65593709 | N139: 21.4 | O139: 320 | P139: 128 | Q139: 128 | R139: 2739.2 | S139: 2771.959948 | T139: -32.75994757 | U139: 2771.959948 | V139: 2739.2 | W139: FALSE | X139: 0 | Y139: 0 | Z139: 2739.2
D140: 115 | E140: 2025-01-05T18:00:00 | F140: 2025-01-31 | G140: 2025 | H140: 0 | I140: =I139*(1+$I$25*H140) -> 1 | J140: 115 | K140: 45.65521046 | M140: 45.65521046 | N140: 21.4 | O140: 320 | P140: 128 | Q140: 128 | R140: 2739.2 | S140: 5843.866939 | T140: -3104.666939 | U140: 5843.866939 | V140: 2739.2 | W140: FALSE | X140: 0 | Y140: 0 | Z140: 2739.2
D141: 116 | E141: 2025-01-05T19:00:00 | F141: 2025-01-31 | G141: 2025 | H141: 0 | I141: =I140*(1+$I$25*H141) -> 1 | J141: 116 | K141: 4.811515366 | M141: 4.811515366 | N141: 21.4 | O141: 320 | P141: 128 | Q141: 128 | R141: 2739.2 | S141: 615.8739668 | T141: 2123.326033 | U141: 615.8739668 | V141: 2739.2 | W141: FALSE | X141: 0 | Y141: 0 | Z141: 2739.2
D142: 117 | E142: 2025-01-05T20:00:00 | F142: 2025-01-31 | G142: 2025 | H142: 0 | I142: =I141*(1+$I$25*H142) -> 1 | J142: 117 | K142: 17.89681365 | M142: 17.89681365 | N142: 21.4 | O142: 320 | P142: 128 | Q142: 128 | R142: 2739.2 | S142: 2290.792148 | T142: 448.4078524 | U142: 2290.792148 | V142: 2739.2 | W142: FALSE | X142: 0 | Y142: 0 | Z142: 2739.2
D143: 118 | E143: 2025-01-05T21:00:00 | F143: 2025-01-31 | G143: 2025 | H143: 0 | I143: =I142*(1+$I$25*H143) -> 1 | J143: 118 | K143: 13.0714549 | M143: 13.0714549 | N143: 21.4 | O143: 320 | P143: 128 | Q143: 128 | R143: 2739.2 | S143: 1673.146227 | T143: 1066.053773 | U143: 1673.146227 | V143: 2739.2 | W143: FALSE | X143: 0 | Y143: 0 | Z143: 2739.2
D144: 119 | E144: 2025-01-05T22:00:00 | F144: 2025-01-31 | G144: 2025 | H144: 0 | I144: =I143*(1+$I$25*H144) -> 1 | J144: 119 | K144: 5.802930243 | M144: 5.802930243 | N144: 21.4 | O144: 320 | P144: 128 | Q144: 128 | R144: 2739.2 | S144: 742.7750711 | T144: 1996.424929 | U144: 742.7750711 | V144: 2739.2 | W144: FALSE | X144: 0 | Y144: 0 | Z144: 2739.2
D145: 120 | E145: 2025-01-05T23:00:00 | F145: 2025-01-31 | G145: 2025 | H145: 0 | I145: =I144*(1+$I$25*H145) -> 1 | J145: 120 | K145: 18.46757051 | M145: 18.46757051 | N145: 21.4 | O145: 320 | P145: 128 | Q145: 128 | R145: 2739.2 | S145: 2363.849025 | T145: 375.3509752 | U145: 2363.849025 | V145: 2739.2 | W145: FALSE | X145: 0 | Y145: 0 | Z145: 2739.2
D146: 121 | E146: 2025-01-06 | F146: 2025-01-31 | G146: 2025 | H146: 0 | I146: =I145*(1+$I$25*H146) -> 1 | J146: 121 | K146: 29.7124388 | M146: 29.7124388 | N146: 21.4 | O146: 320 | P146: 128 | Q146: 128 | R146: 2739.2 | S146: 3803.192166 | T146: -1063.992166 | U146: 3803.192166 | V146: 2739.2 | W146: FALSE | X146: 0 | Y146: 0 | Z146: 2739.2
D147: 122 | E147: 2025-01-06T01:00:00 | F147: 2025-01-31 | G147: 2025 | H147: 0 | I147: =I146*(1+$I$25*H147) -> 1 | J147: 122 | K147: 10.06747805 | M147: 10.06747805 | N147: 21.4 | O147: 320 | P147: 128 | Q147: 128 | R147: 2739.2 | S147: 1288.637191 | T147: 1450.562809 | U147: 1288.637191 | V147: 2739.2 | W147: FALSE | X147: 0 | Y147: 0 | Z147: 2739.2
D148: 123 | E148: 2025-01-06T02:00:00 | F148: 2025-01-31 | G148: 2025 | H148: 0 | I148: =I147*(1+$I$25*H148) -> 1 | J148: 123 | K148: 33.89363566 | M148: 33.89363566 | N148: 21.4 | O148: 320 | P148: 128 | Q148: 128 | R148: 2739.2 | S148: 4338.385364 | T148: -1599.185364 | U148: 4338.385364 | V148: 2739.2 | W148: FALSE | X148: 0 | Y148: 0 | Z148: 2739.2
D149: 124 | E149: 2025-01-06T03:00:00 | F149: 2025-01-31 | G149: 2025 | H149: 0 | I149: =I148*(1+$I$25*H149) -> 1 | J149: 124 | K149: 57.90937758 | M149: 57.90937758 | N149: 21.4 | O149: 320 | P149: 128 | Q149: 128 | R149: 2739.2 | S149: 7412.400331 | T149: -4673.200331 | U149: 7412.400331 | V149: 2739.2 | W149: FALSE | X149: 0 | Y149: 0 | Z149: 2739.2
D150: 125 | E150: 2025-01-06T04:00:00 | F150: 2025-01-31 | G150: 2025 | H150: 0 | I150: =I149*(1+$I$25*H150) -> 1 | J150: 125 | K150: 14.96352906 | M150: 14.96352906 | N150: 21.4 | O150: 320 | P150: 128 | Q150: 128 | R150: 2739.2 | S150: 1915.33172 | T150: 823.8682798 | U150: 1915.33172 | V150: 2739.2 | W150: FALSE | X150: 0 | Y150: 0 | Z150: 2739.2
D151: 126 | E151: 2025-01-06T05:00:00 | F151: 2025-01-31 | G151: 2025 | H151: 0 | I151: =I150*(1+$I$25*H151) -> 1 | J151: 126 | K151: 24.36897464 | M151: 24.36897464 | N151: 21.4 | O151: 320 | P151: 128 | Q151: 128 | R151: 2739.2 | S151: 3119.228754 | T151: -380.0287536 | U151: 3119.228754 | V151: 2739.2 | W151: FALSE | X151: 0 | Y151: 0 | Z151: 2739.2
D152: 127 | E152: 2025-01-06T06:00:00 | F152: 2025-01-31 | G152: 2025 | H152: 0 | I152: =I151*(1+$I$25*H152) -> 1 | J152: 127 | K152: 11.45465518 | M152: 11.45465518 | N152: 21.4 | O152: 320 | P152: 128 | Q152: 128 | R152: 2739.2 | S152: 1466.195863 | T152: 1273.004137 | U152: 1466.195863 | V152: 2739.2 | W152: FALSE | X152: 0 | Y152: 0 | Z152: 2739.2
D153: 128 | E153: 2025-01-06T07:00:00 | F153: 2025-01-31 | G153: 2025 | H153: 0 | I153: =I152*(1+$I$25*H153) -> 1 | J153: 128 | K153: 25.47034227 | M153: 25.47034227 | N153: 21.4 | O153: 320 | P153: 128 | Q153: 128 | R153: 2739.2 | S153: 3260.203811 | T153: -521.0038109 | U153: 3260.203811 | V153: 2739.2 | W153: FALSE | X153: 0 | Y153: 0 | Z153: 2739.2
D154: 129 | E154: 2025-01-06T08:00:00 | F154: 2025-01-31 | G154: 2025 | H154: 0 | I154: =I153*(1+$I$25*H154) -> 1 | J154: 129 | K154: -4.603105145 | M154: -4.603105145 | N154: 21.4 | O154: 320 | P154: 0 | Q154: 128 | R154: 0 | S154: 0 | T154: 0 | U154: 0 | V154: 0 | W154: TRUE | X154: 21.4 | Y154: 2739.2 | Z154: 2739.2
D155: 130 | E155: 2025-01-06T09:00:00 | F155: =EOMONTH(E155,0) -> 2025-01-31 | G155: =YEAR(E155) -> 2025 | H155: 0 | I155: =I154*(1+$I$25*H155) -> 1 | J155: =IF(E155<=$J$24,D155,NA()) -> 130 | K155: =IF(ISNUMBER(J155),M155,NA()) -> 24.08716171 | M155: 24.08716171 | N155: =$N$23*I155 -> 21.4 | O155: =$O$23 -> 320 | P155: =(IF(M155>0,$P$23*O155))*1 -> 128 | Q155: =$O$26*$P$23 -> 128 | R155: =N155*P155 -> 2739.2 | S155: =P155*M155 -> 3083.156699 | T155: =R155-S155 -> -343.9566986 | U155: =P155*M155 -> 3083.156699 | V155: =U155+T155 -> 2739.2 | W155: =M155<=0 -> FALSE | X155: =(N155-M155*0)*W155 -> 0 | Y155: =X155*Q155 -> 0 | Z155: =T155+U155+Y155 -> 2739.2
D156: 131 | E156: =E155+1/24 -> 2025-01-06T10:00:00 | F156: 2025-01-31 | G156: 2025 | H156: =(G155<>G156)*1 -> 0 | I156: =I155*(1+$I$25*H156) -> 1 | J156: 131 | K156: 14.64329826 | M156: =M155+M155*NORMSINV(RAND())*$M$21+($M$26-M155)*$M$22 -> 14.64329826 | N156: 21.4 | O156: 320 | P156: 128 | Q156: 128 | R156: 2739.2 | S156: 1874.342178 | T156: 864.8578224 | U156: 1874.342178 | V156: 2739.2 | W156: FALSE | X156: 0 | Y156: 0 | Z156: 2739.2
D157: 132 | E157: 2025-01-06T11:00:00 | F157: 2025-01-31 | G157: 2025 | H157: 0 | I157: =I156*(1+$I$25*H157) -> 1 | J157: 132 | K157: 1.346710177 | M157: 1.346710177 | N157: 21.4 | O157: 320 | P157: 128 | Q157: 128 | R157: 2739.2 | S157: 172.3789027 | T157: 2566.821097 | U157: 172.3789027 | V157: 2739.2 | W157: FALSE | X157: 0 | Y157: 0 | Z157: 2739.2
D158: 133 | E158: 2025-01-06T12:00:00 | F158: 2025-01-31 | G158: 2025 | H158: 0 | I158: =I157*(1+$I$25*H158) -> 1 | J158: 133 | K158: 19.68079636 | M158: 19.68079636 | N158: 21.4 | O158: 320 | P158: 128 | Q158: 128 | R158: 2739.2 | S158: 2519.141934 | T158: 220.0580658 | U158: 2519.141934 | V158: 2739.2 | W158: FALSE | X158: 0 | Y158: 0 | Z158: 2739.2
D159: 134 | E159: 2025-01-06T13:00:00 | F159: 2025-01-31 | G159: 2025 | H159: 0 | I159: =I158*(1+$I$25*H159) -> 1 | J159: 134 | K159: 20.69813679 | M159: 20.69813679 | N159: 21.4 | O159: 320 | P159: 128 | Q159: 128 | R159: 2739.2 | S159: 2649.361509 | T159: 89.83849114 | U159: 2649.361509 | V159: 2739.2 | W159: FALSE | X159: 0 | Y159: 0 | Z159: 2739.2
D160: 135 | E160: 2025-01-06T14:00:00 | F160: 2025-01-31 | G160: 2025 | H160: 0 | I160: =I159*(1+$I$25*H160) -> 1 | J160: 135 | K160: 18.01287251 | M160: 18.01287251 | N160: 21.4 | O160: 320 | P160: 128 | Q160: 128 | R160: 2739.2 | S160: 2305.647682 | T160: 433.5523183 | U160: 2305.647682 | V160: 2739.2 | W160: FALSE | X160: 0 | Y160: 0 | Z160: 2739.2
D161: 136 | E161: 2025-01-06T15:00:00 | F161: 2025-01-31 | G161: 2025 | H161: 0 | I161: =I160*(1+$I$25*H161) -> 1 | J161: 136 | K161: 21.50328444 | M161: 21.50328444 | N161: 21.4 | O161: 320 | P161: 128 | Q161: 128 | R161: 2739.2 | S161: 2752.420408 | T161: -13.22040797 | U161: 2752.420408 | V161: 2739.2 | W161: FALSE | X161: 0 | Y161: 0 | Z161: 2739.2
D162: 137 | E162: 2025-01-06T16:00:00 | F162: 2025-01-31 | G162: 2025 | H162: 0 | I162: =I161*(1+$I$25*H162) -> 1 | J162: 137 | K162: 34.53477299 | M162: 34.53477299 | N162: 21.4 | O162: 320 | P162: 128 | Q162: 128 | R162: 2739.2 | S162: 4420.450943 | T162: -1681.250943 | U162: 4420.450943 | V162: 2739.2 | W162: FALSE | X162: 0 | Y162: 0 | Z162: 2739.2
D163: 138 | E163: 2025-01-06T17:00:00 | F163: 2025-01-31 | G163: 2025 | H163: 0 | I163: =I162*(1+$I$25*H163) -> 1 | J163: 138 | K163: 38.52852854 | M163: 38.52852854 | N163: 21.4 | O163: 320 | P163: 128 | Q163: 128 | R163: 2739.2 | S163: 4931.651654 | T163: -2192.451654 | U163: 4931.651654 | V163: 2739.2 | W163: FALSE | X163: 0 | Y163: 0 | Z163: 2739.2
D164: 139 | E164: 2025-01-06T18:00:00 | F164: 2025-01-31 | G164: 2025 | H164: 0 | I164: =I163*(1+$I$25*H164) -> 1 | J164: 139 | K164: -40.30735085 | M164: -40.30735085 | N164: 21.4 | O164: 320 | P164: 0 | Q164: 128 | R164: 0 | S164: 0 | T164: 0 | U164: 0 | V164: 0 | W164: TRUE | X164: 21.4 | Y164: 2739.2 | Z164: 2739.2
D165: 140 | E165: 2025-01-06T19:00:00 | F165: 2025-01-31 | G165: 2025 | H165: 0 | I165: =I164*(1+$I$25*H165) -> 1 | J165: 140 | K165: -13.84501921 | M165: -13.84501921 | N165: 21.4 | O165: 320 | P165: 0 | Q165: 128 | R165: 0 | S165: 0 | T165: 0 | U165: 0 | V165: 0 | W165: TRUE | X165: 21.4 | Y165: 2739.2 | Z165: 2739.2
D166: 141 | E166: 2025-01-06T20:00:00 | F166: 2025-01-31 | G166: 2025 | H166: 0 | I166: =I165*(1+$I$25*H166) -> 1 | J166: 141 | K166: 10.83637873 | M166: 10.83637873 | N166: 21.4 | O166: 320 | P166: 128 | Q166: 128 | R166: 2739.2 | S166: 1387.056478 | T166: 1352.143522 | U166: 1387.056478 | V166: 2739.2 | W166: FALSE | X166: 0 | Y166: 0 | Z166: 2739.2
D167: 142 | E167: 2025-01-06T21:00:00 | F167: 2025-01-31 | G167: 2025 | H167: 0 | I167: =I166*(1+$I$25*H167) -> 1 | J167: 142 | K167: 22.77772141 | M167: 22.77772141 | N167: 21.4 | O167: 320 | P167: 128 | Q167: 128 | R167: 2739.2 | S167: 2915.54834 | T167: -176.3483403 | U167: 2915.54834 | V167: 2739.2 | W167: FALSE | X167: 0 | Y167: 0 | Z167: 2739.2
D168: 143 | E168: 2025-01-06T22:00:00 | F168: 2025-01-31 | G168: 2025 | H168: 0 | I168: =I167*(1+$I$25*H168) -> 1 | J168: 143 | K168: 18.30500959 | M168: 18.30500959 | N168: 21.4 | O168: 320 | P168: 128 | Q168: 128 | R168: 2739.2 | S168: 2343.041227 | T168: 396.1587729 | U168: 2343.041227 | V168: 2739.2 | W168: FALSE | X168: 0 | Y168: 0 | Z168: 2739.2
D169: 144 | E169: 2025-01-06T23:00:00 | F169: 2025-01-31 | G169: 2025 | H169: 0 | I169: =I168*(1+$I$25*H169) -> 1 | J169: 144 | K169: 35.26038399 | M169: 35.26038399 | N169: 21.4 | O169: 320 | P169: 128 | Q169: 128 | R169: 2739.2 | S169: 4513.32915 | T169: -1774.12915 | U169: 4513.32915 | V169: 2739.2 | W169: FALSE | X169: 0 | Y169: 0 | Z169: 2739.2
D170: 145 | E170: 2025-01-07 | F170: 2025-01-31 | G170: 2025 | H170: 0 | I170: =I169*(1+$I$25*H170) -> 1 | J170: 145 | K170: -30.88156841 | M170: -30.88156841 | N170: 21.4 | O170: 320 | P170: 0 | Q170: 128 | R170: 0 | S170: 0 | T170: 0 | U170: 0 | V170: 0 | W170: TRUE | X170: 21.4 | Y170: 2739.2 | Z170: 2739.2
D171: 146 | E171: 2025-01-07T01:00:00 | F171: 2025-01-31 | G171: 2025 | H171: 0 | I171: =I170*(1+$I$25*H171) -> 1 | J171: 146 | K171: -13.99058912 | M171: -13.99058912 | N171: 21.4 | O171: 320 | P171: 0 | Q171: 128 | R171: 0 | S171: 0 | T171: 0 | U171: 0 | V171: 0 | W171: TRUE | X171: 21.4 | Y171: 2739.2 | Z171: 2739.2
D172: 147 | E172: 2025-01-07T02:00:00 | F172: 2025-01-31 | G172: 2025 | H172: 0 | I172: =I171*(1+$I$25*H172) -> 1 | J172: 147 | K172: 12.23021923 | M172: 12.23021923 | N172: 21.4 | O172: 320 | P172: 128 | Q172: 128 | R172: 2739.2 | S172: 1565.468061 | T172: 1173.731939 | U172: 1565.468061 | V172: 2739.2 | W172: FALSE | X172: 0 | Y172: 0 | Z172: 2739.2
D173: 148 | E173: 2025-01-07T03:00:00 | F173: 2025-01-31 | G173: 2025 | H173: 0 | I173: =I172*(1+$I$25*H173) -> 1 | J173: 148 | K173: 15.2500159 | M173: 15.2500159 | N173: 21.4 | O173: 320 | P173: 128 | Q173: 128 | R173: 2739.2 | S173: 1952.002036 | T173: 787.1979645 | U173: 1952.002036 | V173: 2739.2 | W173: FALSE | X173: 0 | Y173: 0 | Z173: 2739.2
D174: 149 | E174: 2025-01-07T04:00:00 | F174: 2025-01-31 | G174: 2025 | H174: 0 | I174: =I173*(1+$I$25*H174) -> 1 | J174: 149 | K174: 19.08728655 | M174: 19.08728655 | N174: 21.4 | O174: 320 | P174: 128 | Q174: 128 | R174: 2739.2 | S174: 2443.172679 | T174: 296.0273215 | U174: 2443.172679 | V174: 2739.2 | W174: FALSE | X174: 0 | Y174: 0 | Z174: 2739.2
D175: 150 | E175: 2025-01-07T05:00:00 | F175: 2025-01-31 | G175: 2025 | H175: 0 | I175: =I174*(1+$I$25*H175) -> 1 | J175: 150 | K175: 15.50988062 | M175: 15.50988062 | N175: 21.4 | O175: 320 | P175: 128 | Q175: 128 | R175: 2739.2 | S175: 1985.264719 | T175: 753.9352808 | U175: 1985.264719 | V175: 2739.2 | W175: FALSE | X175: 0 | Y175: 0 | Z175: 2739.2
D176: 151 | E176: 2025-01-07T06:00:00 | F176: 2025-01-31 | G176: 2025 | H176: 0 | I176: =I175*(1+$I$25*H176) -> 1 | J176: 151 | K176: 21.75406132 | M176: 21.75406132 | N176: 21.4 | O176: 320 | P176: 128 | Q176: 128 | R176: 2739.2 | S176: 2784.519849 | T176: -45.31984879 | U176: 2784.519849 | V176: 2739.2 | W176: FALSE | X176: 0 | Y176: 0 | Z176: 2739.2
D177: 152 | E177: 2025-01-07T07:00:00 | F177: 2025-01-31 | G177: 2025 | H177: 0 | I177: =I176*(1+$I$25*H177) -> 1 | J177: 152 | K177: 47.16638595 | M177: 47.16638595 | N177: 21.4 | O177: 320 | P177: 128 | Q177: 128 | R177: 2739.2 | S177: 6037.297402 | T177: -3298.097402 | U177: 6037.297402 | V177: 2739.2 | W177: FALSE | X177: 0 | Y177: 0 | Z177: 2739.2
D178: 153 | E178: 2025-01-07T08:00:00 | F178: 2025-01-31 | G178: 2025 | H178: 0 | I178: =I177*(1+$I$25*H178) -> 1 | J178: 153 | K178: -40.71758075 | M178: -40.71758075 | N178: 21.4 | O178: 320 | P178: 0 | Q178: 128 | R178: 0 | S178: 0 | T178: 0 | U178: 0 | V178: 0 | W178: TRUE | X178: 21.4 | Y178: 2739.2 | Z178: 2739.2
D179: 154 | E179: 2025-01-07T09:00:00 | F179: 2025-01-31 | G179: 2025 | H179: 0 | I179: =I178*(1+$I$25*H179) -> 1 | J179: 154 | K179: -16.52931008 | M179: -16.52931008 | N179: 21.4 | O179: 320 | P179: 0 | Q179: 128 | R179: 0 | S179: 0 | T179: 0 | U179: 0 | V179: 0 | W179: TRUE | X179: 21.4 | Y179: 2739.2 | Z179: 2739.2
D180: 155 | E180: 2025-01-07T10:00:00 | F180: 2025-01-31 | G180: 2025 | H180: 0 | I180: =I179*(1+$I$25*H180) -> 1 | J180: 155 | K180: 49.5897628 | M180: 49.5897628 | N180: 21.4 | O180: 320 | P180: 128 | Q180: 128 | R180: 2739.2 | S180: 6347.489638 | T180: -3608.289638 | U180: 6347.489638 | V180: 2739.2 | W180: FALSE | X180: 0 | Y180: 0 | Z180: 2739.2
D181: 156 | E181: 2025-01-07T11:00:00 | F181: 2025-01-31 | G181: 2025 | H181: 0 | I181: =I180*(1+$I$25*H181) -> 1 | J181: 156 | K181: 15.23038829 | M181: 15.23038829 | N181: 21.4 | O181: 320 | P181: 128 | Q181: 128 | R181: 2739.2 | S181: 1949.489701 | T181: 789.7102992 | U181: 1949.489701 | V181: 2739.2 | W181: FALSE | X181: 0 | Y181: 0 | Z181: 2739.2
D182: 157 | E182: 2025-01-07T12:00:00 | F182: 2025-01-31 | G182: 2025 | H182: 0 | I182: =I181*(1+$I$25*H182) -> 1 | J182: 157 | K182: 22.98320399 | M182: 22.98320399 | N182: 21.4 | O182: 320 | P182: 128 | Q182: 128 | R182: 2739.2 | S182: 2941.85011 | T182: -202.6501103 | U182: 2941.85011 | V182: 2739.2 | W182: FALSE | X182: 0 | Y182: 0 | Z182: 2739.2
D183: 158 | E183: 2025-01-07T13:00:00 | F183: 2025-01-31 | G183: 2025 | H183: 0 | I183: =I182*(1+$I$25*H183) -> 1 | J183: 158 | K183: 38.64798767 | M183: 38.64798767 | N183: 21.4 | O183: 320 | P183: 128 | Q183: 128 | R183: 2739.2 | S183: 4946.942422 | T183: -2207.742422 | U183: 4946.942422 | V183: 2739.2 | W183: FALSE | X183: 0 | Y183: 0 | Z183: 2739.2
D184: 159 | E184: 2025-01-07T14:00:00 | F184: 2025-01-31 | G184: 2025 | H184: 0 | I184: =I183*(1+$I$25*H184) -> 1 | J184: 159 | K184: 4.758371226 | M184: 4.758371226 | N184: 21.4 | O184: 320 | P184: 128 | Q184: 128 | R184: 2739.2 | S184: 609.071517 | T184: 2130.128483 | U184: 609.071517 | V184: 2739.2 | W184: FALSE | X184: 0 | Y184: 0 | Z184: 2739.2
D185: 160 | E185: 2025-01-07T15:00:00 | F185: 2025-01-31 | G185: 2025 | H185: 0 | I185: =I184*(1+$I$25*H185) -> 1 | J185: 160 | K185: 19.32744952 | M185: 19.32744952 | N185: 21.4 | O185: 320 | P185: 128 | Q185: 128 | R185: 2739.2 | S185: 2473.913539 | T185: 265.2864612 | U185: 2473.913539 | V185: 2739.2 | W185: FALSE | X185: 0 | Y185: 0 | Z185: 2739.2
D186: 161 | E186: 2025-01-07T16:00:00 | F186: 2025-01-31 | G186: 2025 | H186: 0 | I186: =I185*(1+$I$25*H186) -> 1 | J186: 161 | K186: 51.12730982 | M186: 51.12730982 | N186: 21.4 | O186: 320 | P186: 128 | Q186: 128 | R186: 2739.2 | S186: 6544.295657 | T186: -3805.095657 | U186: 6544.295657 | V186: 2739.2 | W186: FALSE | X186: 0 | Y186: 0 | Z186: 2739.2
D187: 162 | E187: 2025-01-07T17:00:00 | F187: 2025-01-31 | G187: 2025 | H187: 0 | I187: =I186*(1+$I$25*H187) -> 1 | J187: 162 | K187: 14.89838205 | M187: 14.89838205 | N187: 21.4 | O187: 320 | P187: 128 | Q187: 128 | R187: 2739.2 | S187: 1906.992903 | T187: 832.2070974 | U187: 1906.992903 | V187: 2739.2 | W187: FALSE | X187: 0 | Y187: 0 | Z187: 2739.2
D188: 163 | E188: 2025-01-07T18:00:00 | F188: 2025-01-31 | G188: 2025 | H188: 0 | I188: =I187*(1+$I$25*H188) -> 1 | J188: 163 | K188: 30.92738778 | M188: 30.92738778 | N188: 21.4 | O188: 320 | P188: 128 | Q188: 128 | R188: 2739.2 | S188: 3958.705636 | T188: -1219.505636 | U188: 3958.705636 | V188: 2739.2 | W188: FALSE | X188: 0 | Y188: 0 | Z188: 2739.2
D189: 164 | E189: 2025-01-07T19:00:00 | F189: 2025-01-31 | G189: 2025 | H189: 0 | I189: =I188*(1+$I$25*H189) -> 1 | J189: 164 | K189: 13.99635919 | M189: 13.99635919 | N189: 21.4 | O189: 320 | P189: 128 | Q189: 128 | R189: 2739.2 | S189: 1791.533976 | T189: 947.6660243 | U189: 1791.533976 | V189: 2739.2 | W189: FALSE | X189: 0 | Y189: 0 | Z189: 2739.2
D190: 165 | E190: 2025-01-07T20:00:00 | F190: 2025-01-31 | G190: 2025 | H190: 0 | I190: =I189*(1+$I$25*H190) -> 1 | J190: 165 | K190: 34.40000937 | M190: 34.40000937 | N190: 21.4 | O190: 320 | P190: 128 | Q190: 128 | R190: 2739.2 | S190: 4403.201199 | T190: -1664.001199 | U190: 4403.201199 | V190: 2739.2 | W190: FALSE | X190: 0 | Y190: 0 | Z190: 2739.2
D191: 166 | E191: 2025-01-07T21:00:00 | F191: 2025-01-31 | G191: 2025 | H191: 0 | I191: =I190*(1+$I$25*H191) -> 1 | J191: 166 | K191: 56.48838926 | M191: 56.48838926 | N191: 21.4 | O191: 320 | P191: 128 | Q191: 128 | R191: 2739.2 | S191: 7230.513825 | T191: -4491.313825 | U191: 7230.513825 | V191: 2739.2 | W191: FALSE | X191: 0 | Y191: 0 | Z191: 2739.2
D192: 167 | E192: 2025-01-07T22:00:00 | F192: 2025-01-31 | G192: 2025 | H192: 0 | I192: =I191*(1+$I$25*H192) -> 1 | J192: 167 | K192: 2.555455528 | M192: 2.555455528 | N192: 21.4 | O192: 320 | P192: 128 | Q192: 128 | R192: 2739.2 | S192: 327.0983076 | T192: 2412.101692 | U192: 327.0983076 | V192: 2739.2 | W192: FALSE | X192: 0 | Y192: 0 | Z192: 2739.2
D193: 168 | E193: 2025-01-07T23:00:00 | F193: 2025-01-31 | G193: 2025 | H193: 0 | I193: =I192*(1+$I$25*H193) -> 1 | J193: 168 | K193: 20.15419204 | M193: 20.15419204 | N193: 21.4 | O193: 320 | P193: 128 | Q193: 128 | R193: 2739.2 | S193: 2579.736581 | T193: 159.4634193 | U193: 2579.736581 | V193: 2739.2 | W193: FALSE | X193: 0 | Y193: 0 | Z193: 2739.2
D194: 169 | E194: 2025-01-08 | F194: 2025-01-31 | G194: 2025 | H194: 0 | I194: =I193*(1+$I$25*H194) -> 1 | J194: 169 | K194: 31.17128724 | M194: 31.17128724 | N194: 21.4 | O194: 320 | P194: 128 | Q194: 128 | R194: 2739.2 | S194: 3989.924766 | T194: -1250.724766 | U194: 3989.924766 | V194: 2739.2 | W194: FALSE | X194: 0 | Y194: 0 | Z194: 2739.2
D195: 170 | E195: 2025-01-08T01:00:00 | F195: 2025-01-31 | G195: 2025 | H195: 0 | I195: =I194*(1+$I$25*H195) -> 1 | J195: 170 | K195: -18.65719451 | M195: -18.65719451 | N195: 21.4 | O195: 320 | P195: 0 | Q195: 128 | R195: 0 | S195: 0 | T195: 0 | U195: 0 | V195: 0 | W195: TRUE | X195: 21.4 | Y195: 2739.2 | Z195: 2739.2
D196: 171 | E196: 2025-01-08T02:00:00 | F196: 2025-01-31 | G196: 2025 | H196: 0 | I196: =I195*(1+$I$25*H196) -> 1 | J196: 171 | K196: 28.870932 | M196: 28.870932 | N196: 21.4 | O196: 320 | P196: 128 | Q196: 128 | R196: 2739.2 | S196: 3695.479295 | T196: -956.2792954 | U196: 3695.479295 | V196: 2739.2 | W196: FALSE | X196: 0 | Y196: 0 | Z196: 2739.2
D197: 172 | E197: 2025-01-08T03:00:00 | F197: 2025-01-31 | G197: 2025 | H197: 0 | I197: =I196*(1+$I$25*H197) -> 1 | J197: 172 | K197: 33.74857976 | M197: 33.74857976 | N197: 21.4 | O197: 320 | P197: 128 | Q197: 128 | R197: 2739.2 | S197: 4319.818209 | T197: -1580.618209 | U197: 4319.818209 | V197: 2739.2 | W197: FALSE | X197: 0 | Y197: 0 | Z197: 2739.2
D198: 173 | E198: 2025-01-08T04:00:00 | F198: 2025-01-31 | G198: 2025 | H198: 0 | I198: =I197*(1+$I$25*H198) -> 1 | J198: 173 | K198: 47.58306565 | M198: 47.58306565 | N198: 21.4 | O198: 320 | P198: 128 | Q198: 128 | R198: 2739.2 | S198: 6090.632403 | T198: -3351.432403 | U198: 6090.632403 | V198: 2739.2 | W198: FALSE | X198: 0 | Y198: 0 | Z198: 2739.2
D199: 174 | E199: 2025-01-08T05:00:00 | F199: 2025-01-31 | G199: 2025 | H199: 0 | I199: =I198*(1+$I$25*H199) -> 1 | J199: 174 | K199: 44.08083489 | M199: 44.08083489 | N199: 21.4 | O199: 320 | P199: 128 | Q199: 128 | R199: 2739.2 | S199: 5642.346866 | T199: -2903.146866 | U199: 5642.346866 | V199: 2739.2 | W199: FALSE | X199: 0 | Y199: 0 | Z199: 2739.2
D200: 175 | E200: 2025-01-08T06:00:00 | F200: 2025-01-31 | G200: 2025 | H200: 0 | I200: =I199*(1+$I$25*H200) -> 1 | J200: 175 | K200: -23.11893304 | M200: -23.11893304 | N200: 21.4 | O200: 320 | P200: 0 | Q200: 128 | R200: 0 | S200: 0 | T200: 0 | U200: 0 | V200: 0 | W200: TRUE | X200: 21.4 | Y200: 2739.2 | Z200: 2739.2
D201: 176 | E201: 2025-01-08T07:00:00 | F201: 2025-01-31 | G201: 2025 | H201: 0 | I201: =I200*(1+$I$25*H201) -> 1 | J201: 176 | K201: 32.40343297 | M201: 32.40343297 | N201: 21.4 | O201: 320 | P201: 128 | Q201: 128 | R201: 2739.2 | S201: 4147.63942 | T201: -1408.43942 | U201: 4147.63942 | V201: 2739.2 | W201: FALSE | X201: 0 | Y201: 0 | Z201: 2739.2
D202: 177 | E202: 2025-01-08T08:00:00 | F202: 2025-01-31 | G202: 2025 | H202: 0 | I202: =I201*(1+$I$25*H202) -> 1 | J202: 177 | K202: 21.91038568 | M202: 21.91038568 | N202: 21.4 | O202: 320 | P202: 128 | Q202: 128 | R202: 2739.2 | S202: 2804.529366 | T202: -65.32936647 | U202: 2804.529366 | V202: 2739.2 | W202: FALSE | X202: 0 | Y202: 0 | Z202: 2739.2
D203: 178 | E203: 2025-01-08T09:00:00 | F203: 2025-01-31 | G203: 2025 | H203: 0 | I203: =I202*(1+$I$25*H203) -> 1 | J203: 178 | K203: 6.923808935 | M203: 6.923808935 | N203: 21.4 | O203: 320 | P203: 128 | Q203: 128 | R203: 2739.2 | S203: 886.2475437 | T203: 1852.952456 | U203: 886.2475437 | V203: 2739.2 | W203: FALSE | X203: 0 | Y203: 0 | Z203: 2739.2
D204: 179 | E204: 2025-01-08T10:00:00 | F204: 2025-01-31 | G204: 2025 | H204: 0 | I204: =I203*(1+$I$25*H204) -> 1 | J204: 179 | K204: 21.13426303 | M204: 21.13426303 | N204: 21.4 | O204: 320 | P204: 128 | Q204: 128 | R204: 2739.2 | S204: 2705.185668 | T204: 34.01433199 | U204: 2705.185668 | V204: 2739.2 | W204: FALSE | X204: 0 | Y204: 0 | Z204: 2739.2
D205: 180 | E205: 2025-01-08T11:00:00 | F205: 2025-01-31 | G205: 2025 | H205: 0 | I205: =I204*(1+$I$25*H205) -> 1 | J205: 180 | K205: 45.91376294 | M205: 45.91376294 | N205: 21.4 | O205: 320 | P205: 128 | Q205: 128 | R205: 2739.2 | S205: 5876.961656 | T205: -3137.761656 | U205: 5876.961656 | V205: 2739.2 | W205: FALSE | X205: 0 | Y205: 0 | Z205: 2739.2
D206: 181 | E206: 2025-01-08T12:00:00 | F206: 2025-01-31 | G206: 2025 | H206: 0 | I206: =I205*(1+$I$25*H206) -> 1 | J206: 181 | K206: 52.0014594 | M206: 52.0014594 | N206: 21.4 | O206: 320 | P206: 128 | Q206: 128 | R206: 2739.2 | S206: 6656.186803 | T206: -3916.986803 | U206: 6656.186803 | V206: 2739.2 | W206: FALSE | X206: 0 | Y206: 0 | Z206: 2739.2
D207: 182 | E207: 2025-01-08T13:00:00 | F207: 2025-01-31 | G207: 2025 | H207: 0 | I207: =I206*(1+$I$25*H207) -> 1 | J207: 182 | K207: 87.94690001 | M207: 87.94690001 | N207: 21.4 | O207: 320 | P207: 128 | Q207: 128 | R207: 2739.2 | S207: 11257.2032 | T207: -8518.003201 | U207: 11257.2032 | V207: 2739.2 | W207: FALSE | X207: 0 | Y207: 0 | Z207: 2739.2
... 2043 more rows

Sheet Liquidated Damage
B4: Capacity Liquidated Damages
C5: Capacity | D5: MW | E5: =Settlement!O23 -> 320
C6: Cost | D6: USD/MW | E6: 900000
C7: Total | D7: USD | E7: =E5*E6 -> 288000000
C9: Capacity Short-fall LD | D9: USD/MW | E9: 100000
B11: Delay LD
C12: Delay Damages. If Commercial Operation has not been achieved on or before the Target Commercial Operation Date,
C13: Seller will continue construction of the Project and pay Buyer
C14: daily liquidated damages for the delay equal to (a) (i) 80% of the Project Expected Capacity,
C15: minus (ii) the Installed Capacity, multiplied by (iii) the Buyer’s Percentage,
C16: multiplied by (b) $250 per MW (“Delay Damages”).
C17: Delay Damages will begin to accrue on the day following the Target Commercial Operation Date and continue daily until the date that Commercial Operation is achieved. The payment of Delay Damages is not a penalty.
C19: Delay Damanges | D19: USD/MW-d | E19: 250
C20: Capacity Factor | D20: % | E20: 0.45
C21: Hours | E21: =24*E20 -> 10.8
C22: Per Hour | E22: =E19/E21 -> 23.14814815
C24: Buyer Perspective
C25: Purchase at Merchant | E25: 35
C26: Added Cost of Carbon | E26: 5
C27: Less: Savings from Not Paying PPA | E27: =-Settlement!N23 -> -21.4
C28: Net Cost to Buyer | E28: =E25+E26+E27 -> 18.6
C30: Benefit from Recipt of LD | E30: =E22 -> 23.14814815
C31: Less: Net Cost | E31: =E28 -> 18.6
C32: Net Benefit | E32: =E30-E31 -> 4.548148148

Sheet Other
B18: Amount | C18: 12500000
B19: Monthly Revenue

Sheet Timeseries_35.772_-101.829_E5_3
D1: Latitude (decimal degrees): 35.772
D2: Longitude (decimal degrees): -101.829
D3: Elevation (m): 1034
D4: Radiation database: PVGIS-ERA5
D7: Slope: 35 deg. (optimum)
D8: Azimuth: -2 deg. (optimum)
D9: time | E9: G(i) | F9: H_sun | G9: T2m | H9: WS10m | I9: Int
D10: 20050101:0030 | E10: 0 | F10: 0 | G10: 13.14 | H10: 4.07 | I10: 0
D11: 20050101:0130 | E11: 0 | F11: 0 | G11: 11.51 | H11: 4.55 | I11: 0
D12: 20050101:0230 | E12: 0 | F12: 0 | G12: 10.37 | H12: 4.83 | I12: 0
D13: 20050101:0330 | E13: 0 | F13: 0 | G13: 9.5 | H13: 4.69 | I13: 0
D14: 20050101:0430 | E14: 0 | F14: 0 | G14: 9.04 | H14: 4.69 | I14: 0
D15: 20050101:0530 | E15: 0 | F15: 0 | G15: 8.99 | H15: 4.9 | I15: 0
D16: 20050101:0630 | E16: 0 | F16: 0 | G16: 9.1 | H16: 5.17 | I16: 0
D17: 20050101:0730 | E17: 0 | F17: 0 | G17: 9.65 | H17: 5.38 | I17: 0
D18: 20050101:0830 | E18: 0 | F18: 0 | G18: 9.74 | H18: 5.45 | I18: 0
D19: 20050101:0930 | E19: 0 | F19: 0 | G19: 9.71 | H19: 5.45 | I19: 0
D20: 20050101:1030 | E20: 0 | F20: 0 | G20: 9.58 | H20: 5.52 | I20: 0
D21: 20050101:1130 | E21: 0 | F21: 0 | G21: 9.52 | H21: 5.52 | I21: 0
D22: 20050101:1230 | E22: 0 | F22: 0 | G22: 9.44 | H22: 5.45 | I22: 0
D23: 20050101:1330 | E23: 0 | F23: 0 | G23: 9.13 | H23: 5.31 | I23: 0
D24: 20050101:1430 | E24: 145.93 | F24: 4.87 | G24: 8.73 | H24: 5.17 | I24: 0
D25: 20050101:1530 | E25: 395.77 | F25: 14.46 | G25: 9.01 | H25: 5.24 | I25: 0
D26: 20050101:1630 | E26: 586.93 | F26: 22.45 | G26: 10.64 | H26: 5.59 | I26: 0
D27: 20050101:1730 | E27: 823.36 | F27: 28.19 | G27: 12.81 | H27: 6.55 | I27: 0
D28: 20050101:1830 | E28: 907.35 | F28: 31.01 | G28: 14.93 | H28: 6.76 | I28: 0
D29: 20050101:1930 | E29: 931.02 | F29: 30.49 | G29: 16.51 | H29: 7.1 | I29: 0
D30: 20050101:2030 | E30: 830.14 | F30: 26.7 | G30: 17.76 | H30: 7.03 | I30: 0
D31: 20050101:2130 | E31: 644.62 | F31: 20.19 | G31: 18.32 | H31: 6.76 | I31: 0
D32: 20050101:2230 | E32: 396.17 | F32: 11.64 | G32: 18.32 | H32: 6 | I32: 0
D33: 20050101:2330 | E33: 10.55 | F33: 1.67 | G33: 17.14 | H33: 4.62 | I33: 0
D34: 20050102:0030 | E34: 0 | F34: 0 | G34: 14.46 | H34: 4.14 | I34: 0
D35: 20050102:0130 | E35: 0 | F35: 0 | G35: 12.54 | H35: 4 | I35: 0
D36: 20050102:0230 | E36: 0 | F36: 0 | G36: 11.21 | H36: 3.93 | I36: 0
D37: 20050102:0330 | E37: 0 | F37: 0 | G37: 10.1 | H37: 3.72 | I37: 0
D38: 20050102:0430 | E38: 0 | F38: 0 | G38: 9.16 | H38: 3.52 | I38: 0
D39: 20050102:0530 | E39: 0 | F39: 0 | G39: 8.25 | H39: 3.31 | I39: 0
D40: 20050102:0630 | E40: 0 | F40: 0 | G40: 7.41 | H40: 3.17 | I40: 0
D41: 20050102:0730 | E41: 0 | F41: 0 | G41: 7.32 | H41: 3.45 | I41: 0
D42: 20050102:0830 | E42: 0 | F42: 0 | G42: 6.68 | H42: 3.45 | I42: 0
D43: 20050102:0930 | E43: 0 | F43: 0 | G43: 6.33 | H43: 3.38 | I43: 0
D44: 20050102:1030 | E44: 0 | F44: 0 | G44: 5.81 | H44: 2.76 | I44: 0
D45: 20050102:1130 | E45: 0 | F45: 0 | G45: 4.87 | H45: 2.76 | I45: 0
D46: 20050102:1230 | E46: 0 | F46: 0 | G46: 4.24 | H46: 2.41 | I46: 0
D47: 20050102:1330 | E47: 0 | F47: 0 | G47: 4.06 | H47: 1.38 | I47: 0
D48: 20050102:1430 | E48: 29.02 | F48: 4.86 | G48: 4.73 | H48: 0.76 | I48: 0
D49: 20050102:1530 | E49: 154.42 | F49: 14.46 | G49: 4.62 | H49: 1.17 | I49: 0
D50: 20050102:1630 | E50: 260.89 | F50: 22.47 | G50: 6.59 | H50: 2.21 | I50: 0
D51: 20050102:1730 | E51: 311.2 | F51: 28.24 | G51: 7.82 | H51: 2.34 | I51: 0
D52: 20050102:1830 | E52: 215.36 | F52: 31.09 | G52: 8.87 | H52: 2.14 | I52: 0
D53: 20050102:1930 | E53: 310.89 | F53: 30.59 | G53: 8.98 | H53: 1.72 | I53: 0
D54: 20050102:2030 | E54: 262.81 | F54: 26.82 | G54: 10.01 | H54: 1.52 | I54: 0
D55: 20050102:2130 | E55: 264.27 | F55: 20.32 | G55: 10.82 | H55: 1.24 | I55: 0
D56: 20050102:2230 | E56: 90.36 | F56: 11.77 | G56: 11.36 | H56: 0.83 | I56: 0
D57: 20050102:2330 | E57: 12.96 | F57: 1.8 | G57: 11 | H57: 1.72 | I57: 0
D58: 20050103:0030 | E58: 0 | F58: 0 | G58: 9.68 | H58: 3.1 | I58: 0
D59: 20050103:0130 | E59: 0 | F59: 0 | G59: 9.09 | H59: 2.76 | I59: 0
D60: 20050103:0230 | E60: 0 | F60: 0 | G60: 8.35 | H60: 2.55 | I60: 0
D61: 20050103:0330 | E61: 0 | F61: 0 | G61: 7.61 | H61: 2.83 | I61: 0
D62: 20050103:0430 | E62: 0 | F62: 0 | G62: 7.68 | H62: 2.21 | I62: 0
D63: 20050103:0530 | E63: 0 | F63: 0 | G63: 7.77 | H63: 1.93 | I63: 0
D64: 20050103:0630 | E64: 0 | F64: 0 | G64: 7.67 | H64: 1.66 | I64: 0
D65: 20050103:0730 | E65: 0 | F65: 0 | G65: 6.49 | H65: 1.93 | I65: 0
D66: 20050103:0830 | E66: 0 | F66: 0 | G66: 6.83 | H66: 1.03 | I66: 0
D67: 20050103:0930 | E67: 0 | F67: 0 | G67: 7.17 | H67: 0.76 | I67: 0
D68: 20050103:1030 | E68: 0 | F68: 0 | G68: 7.17 | H68: 1.31 | I68: 0
D69: 20050103:1130 | E69: 0 | F69: 0 | G69: 6.62 | H69: 1.52 | I69: 0
D70: 20050103:1230 | E70: 0 | F70: 0 | G70: 6.04 | H70: 1.79 | I70: 0
D71: 20050103:1330 | E71: 0 | F71: 0 | G71: 5.46 | H71: 2.07 | I71: 0
D72: 20050103:1430 | E72: 208.47 | F72: 4.84 | G72: 4.69 | H72: 2.28 | I72: 0
D73: 20050103:1530 | E73: 502.39 | F73: 14.47 | G73: 4.97 | H73: 2.14 | I73: 0
D74: 20050103:1630 | E74: 728 | F74: 22.5 | G74: 7.52 | H74: 2.69 | I74: 0
D75: 20050103:1730 | E75: 866.82 | F75: 28.3 | G75: 10.07 | H75: 3.52 | I75: 0
D76: 20050103:1830 | E76: 832.23 | F76: 31.18 | G76: 12.14 | H76: 4.07 | I76: 0
D77: 20050103:1930 | E77: 734.79 | F77: 30.7 | G77: 12.22 | H77: 2.07 | I77: 0
D78: 20050103:2030 | E78: 606.9 | F78: 26.94 | G78: 13.18 | H78: 1.38 | I78: 0
D79: 20050103:2130 | E79: 466.31 | F79: 20.45 | G79: 13.91 | H79: 1.45 | I79: 0
D80: 20050103:2230 | E80: 245.96 | F80: 11.91 | G80: 14.39 | H80: 1.86 | I80: 0
D81: 20050103:2330 | E81: 17.45 | F81: 1.94 | G81: 13.87 | H81: 1.93 | I81: 0
D82: 20050104:0030 | E82: 0 | F82: 0 | G82: 11.81 | H82: 3.03 | I82: 0
D83: 20050104:0130 | E83: 0 | F83: 0 | G83: 10 | H83: 3.38 | I83: 0
D84: 20050104:0230 | E84: 0 | F84: 0 | G84: 8.52 | H84: 3.79 | I84: 0
D85: 20050104:0330 | E85: 0 | F85: 0 | G85: 7.87 | H85: 4.21 | I85: 0
D86: 20050104:0430 | E86: 0 | F86: 0 | G86: 8.01 | H86: 3.93 | I86: 0
D87: 20050104:0530 | E87: 0 | F87: 0 | G87: 8.31 | H87: 3.45 | I87: 0
D88: 20050104:0630 | E88: 0 | F88: 0 | G88: 8.51 | H88: 3.52 | I88: 0
D89: 20050104:0730 | E89: 0 | F89: 0 | G89: 7.43 | H89: 3.24 | I89: 0
D90: 20050104:0830 | E90: 0 | F90: 0 | G90: 7.32 | H90: 3.24 | I90: 0
D91: 20050104:0930 | E91: 0 | F91: 0 | G91: 7.04 | H91: 4.28 | I91: 0
D92: 20050104:1030 | E92: 0 | F92: 0 | G92: 6.68 | H92: 4.21 | I92: 0
D93: 20050104:1130 | E93: 0 | F93: 0 | G93: 6.43 | H93: 4.07 | I93: 0
D94: 20050104:1230 | E94: 0 | F94: 0 | G94: 6.25 | H94: 4.07 | I94: 0
D95: 20050104:1330 | E95: 0 | F95: 0 | G95: 6.1 | H95: 4 | I95: 0
D96: 20050104:1430 | E96: 3.52 | F96: 4.84 | G96: 5.82 | H96: 4 | I96: 0
D97: 20050104:1530 | E97: 23.67 | F97: 14.48 | G97: 5.45 | H97: 4.69 | I97: 0
D98: 20050104:1630 | E98: 39.62 | F98: 22.54 | G98: 5.15 | H98: 5.1 | I98: 0
D99: 20050104:1730 | E99: 69.62 | F99: 28.36 | G99: 5 | H99: 4.76 | I99: 0
D100: 20050104:1830 | E100: 37.3 | F100: 31.27 | G100: 5.23 | H100: 4.55 | I100: 0
D101: 20050104:1930 | E101: 73.48 | F101: 30.81 | G101: 5.52 | H101: 4.07 | I101: 0
D102: 20050104:2030 | E102: 93.55 | F102: 27.08 | G102: 6.38 | H102: 3.59 | I102: 0
D103: 20050104:2130 | E103: 61.8 | F103: 20.59 | G103: 7.46 | H103: 2.97 | I103: 0
D104: 20050104:2230 | E104: 47.71 | F104: 12.06 | G104: 7.89 | H104: 3.1 | I104: 0
D105: 20050104:2330 | E105: 6.53 | F105: 2.09 | G105: 8.01 | H105: 3.38 | I105: 0
D106: 20050105:0030 | E106: 0 | F106: 0 | G106: 7.52 | H106: 3.31 | I106: 0
D107: 20050105:0130 | E107: 0 | F107: 0 | G107: 6.73 | H107: 4 | I107: 0
D108: 20050105:0230 | E108: 0 | F108: 0 | G108: 5.68 | H108: 4.48 | I108: 0
D109: 20050105:0330 | E109: 0 | F109: 0 | G109: 4.21 | H109: 4.9 | I109: 0
D110: 20050105:0430 | E110: 0 | F110: 0 | G110: 2.32 | H110: 5.38 | I110: 0
D111: 20050105:0530 | E111: 0 | F111: 0 | G111: 0.11 | H111: 6.21 | I111: 0
D112: 20050105:0630 | E112: 0 | F112: 0 | G112: -1.53 | H112: 6.62 | I112: 0
D113: 20050105:0730 | E113: 0 | F113: 0 | G113: -5.19 | H113: 7.17 | I113: 0
D114: 20050105:0830 | E114: 0 | F114: 0 | G114: -5.94 | H114: 7.03 | I114: 0
D115: 20050105:0930 | E115: 0 | F115: 0 | G115: -6.46 | H115: 6.69 | I115: 0
D116: 20050105:1030 | E116: 0 | F116: 0 | G116: -6.82 | H116: 6.14 | I116: 0
D117: 20050105:1130 | E117: 0 | F117: 0 | G117: -7.04 | H117: 5.72 | I117: 0
D118: 20050105:1230 | E118: 0 | F118: 0 | G118: -7.25 | H118: 5.93 | I118: 0
D119: 20050105:1330 | E119: 0 | F119: 0 | G119: -7.44 | H119: 5.93 | I119: 0
D120: 20050105:1430 | E120: 16.98 | F120: 4.84 | G120: -7.54 | H120: 5.52 | I120: 0
D121: 20050105:1530 | E121: 251.36 | F121: 14.5 | G121: -7.58 | H121: 4.97 | I121: 0
D122: 20050105:1630 | E122: 714.98 | F122: 22.58 | G122: -6.88 | H122: 4.62 | I122: 0
D123: 20050105:1730 | E123: 690.77 | F123: 28.43 | G123: -5.52 | H123: 4.34 | I123: 0
D124: 20050105:1830 | E124: 981.09 | F124: 31.37 | G124: -4.26 | H124: 3.93 | I124: 0
D125: 20050105:1930 | E125: 966.95 | F125: 30.94 | G125: -3.43 | H125: 3.45 | I125: 0
D126: 20050105:2030 | E126: 844.9 | F126: 27.21 | G126: -2.34 | H126: 3.17 | I126: 0
D127: 20050105:2130 | E127: 682.99 | F127: 20.74 | G127: -1.68 | H127: 3.1 | I127: 0
D128: 20050105:2230 | E128: 431.87 | F128: 12.2 | G128: -1.48 | H128: 3.17 | I128: 0
D129: 20050105:2330 | E129: 12.22 | F129: 2.23 | G129: -2.21 | H129: 3.38 | I129: 0
D130: 20050106:0030 | E130: 0 | F130: 0 | G130: -3.87 | H130: 3.59 | I130: 0
D131: 20050106:0130 | E131: 0 | F131: 0 | G131: -5.28 | H131: 3.93 | I131: 0
D132: 20050106:0230 | E132: 0 | F132: 0 | G132: -6.32 | H132: 4.07 | I132: 0
D133: 20050106:0330 | E133: 0 | F133: 0 | G133: -7.08 | H133: 3.79 | I133: 0
D134: 20050106:0430 | E134: 0 | F134: 0 | G134: -7.61 | H134: 3.45 | I134: 0
D135: 20050106:0530 | E135: 0 | F135: 0 | G135: -8.01 | H135: 3.03 | I135: 0
D136: 20050106:0630 | E136: 0 | F136: 0 | G136: -8.32 | H136: 2.62 | I136: 0
D137: 20050106:0730 | E137: 0 | F137: 0 | G137: -9.02 | H137: 3.03 | I137: 0
D138: 20050106:0830 | E138: 0 | F138: 0 | G138: -9.05 | H138: 2.83 | I138: 0
D139: 20050106:0930 | E139: 0 | F139: 0 | G139: -8.94 | H139: 2.07 | I139: 0
D140: 20050106:1030 | E140: 0 | F140: 0 | G140: -8.93 | H140: 1.38 | I140: 0
D141: 20050106:1130 | E141: 0 | F141: 0 | G141: -8.75 | H141: 0.83 | I141: 0
D142: 20050106:1230 | E142: 0 | F142: 0 | G142: -8.71 | H142: 0.48 | I142: 0
D143: 20050106:1330 | E143: 0 | F143: 0 | G143: -8.54 | H143: 1.31 | I143: 0
D144: 20050106:1430 | E144: 224.62 | F144: 4.84 | G144: -8.4 | H144: 1.86 | I144: 0
D145: 20050106:1530 | E145: 533.54 | F145: 14.52 | G145: -7.53 | H145: 2.83 | I145: 0
D146: 20050106:1630 | E146: 711.77 | F146: 22.63 | G146: -5.39 | H146: 3.86 | I146: 0
D147: 20050106:1730 | E147: 918.18 | F147: 28.51 | G147: -2.97 | H147: 4.62 | I147: 0
D148: 20050106:1830 | E148: 987.32 | F148: 31.47 | G148: -0.25 | H148: 5.17 | I148: 0
D149: 20050106:1930 | E149: 957.75 | F149: 31.07 | G149: 1.76 | H149: 5.79 | I149: 0
D150: 20050106:2030 | E150: 807.64 | F150: 27.36 | G150: 4.28 | H150: 6.07 | I150: 0
D151: 20050106:2130 | E151: 583.19 | F151: 20.89 | G151: 6.76 | H151: 6.28 | I151: 0
D152: 20050106:2230 | E152: 219.44 | F152: 12.35 | G152: 8.37 | H152: 5.86 | I152: 0
D153: 20050106:2330 | E153: 101.21 | F153: 2.38 | G153: 7.28 | H153: 5.31 | I153: 0
D154: 20050107:0030 | E154: 0 | F154: 0 | G154: 5.11 | H154: 5.59 | I154: 0
D155: 20050107:0130 | E155: 0 | F155: 0 | G155: 3.64 | H155: 5.93 | I155: 0
D156: 20050107:0230 | E156: 0 | F156: 0 | G156: 2.71 | H156: 6.21 | I156: 0
D157: 20050107:0330 | E157: 0 | F157: 0 | G157: 2.33 | H157: 6.34 | I157: 0
D158: 20050107:0430 | E158: 0 | F158: 0 | G158: 2.22 | H158: 6.34 | I158: 0
D159: 20050107:0530 | E159: 0 | F159: 0 | G159: 1.88 | H159: 5.93 | I159: 0
D160: 20050107:0630 | E160: 0 | F160: 0 | G160: 1.25 | H160: 5.24 | I160: 0
D161: 20050107:0730 | E161: 0 | F161: 0 | G161: 1.04 | H161: 5.24 | I161: 0
D162: 20050107:0830 | E162: 0 | F162: 0 | G162: 0.34 | H162: 4.76 | I162: 0
D163: 20050107:0930 | E163: 0 | F163: 0 | G163: -0.02 | H163: 4.55 | I163: 0
D164: 20050107:1030 | E164: 0 | F164: 0 | G164: 0.04 | H164: 4.48 | I164: 0
D165: 20050107:1130 | E165: 0 | F165: 0 | G165: 0.02 | H165: 4.55 | I165: 0
D166: 20050107:1230 | E166: 0 | F166: 0 | G166: -0.55 | H166: 4.62 | I166: 0
D167: 20050107:1330 | E167: 0 | F167: 0 | G167: -1.17 | H167: 4.62 | I167: 0
D168: 20050107:1430 | E168: 236.99 | F168: 4.85 | G168: -1.5 | H168: 4.83 | I168: 0
D169: 20050107:1530 | E169: 530.61 | F169: 14.55 | G169: -0.49 | H169: 5.1 | I169: 0
D170: 20050107:1630 | E170: 762.5 | F170: 22.68 | G170: 1.88 | H170: 5.66 | I170: 0
D171: 20050107:1730 | E171: 919.92 | F171: 28.59 | G171: 4.1 | H171: 5.93 | I171: 0
D172: 20050107:1830 | E172: 991.97 | F172: 31.59 | G172: 5.5 | H172: 6 | I172: 0
D173: 20050107:1930 | E173: 983.42 | F173: 31.2 | G173: 4.43 | H173: 5.93 | I173: 0
D174: 20050107:2030 | E174: 887.56 | F174: 27.51 | G174: 4.96 | H174: 5.1 | I174: 0
D175: 20050107:2130 | E175: 708.52 | F175: 21.04 | G175: 5.24 | H175: 3.86 | I175: 0
D176: 20050107:2230 | E176: 457.7 | F176: 12.51 | G176: 5.14 | H176: 3.17 | I176: 0
D177: 20050107:2330 | E177: 186.1 | F177: 2.54 | G177: 4.04 | H177: 1.86 | I177: 0
D178: 20050108:0030 | E178: 0 | F178: 0 | G178: 2.74 | H178: 0.34 | I178: 0
D179: 20050108:0130 | E179: 0 | F179: 0 | G179: -0.09 | H179: 1.45 | I179: 0
D180: 20050108:0230 | E180: 0 | F180: 0 | G180: -1.9 | H180: 2.62 | I180: 0
D181: 20050108:0330 | E181: 0 | F181: 0 | G181: -2.25 | H181: 2.9 | I181: 0
D182: 20050108:0430 | E182: 0 | F182: 0 | G182: -2.01 | H182: 3.03 | I182: 0
D183: 20050108:0530 | E183: 0 | F183: 0 | G183: -2.06 | H183: 3.24 | I183: 0
D184: 20050108:0630 | E184: 0 | F184: 0 | G184: -1.82 | H184: 3.52 | I184: 0
D185: 20050108:0730 | E185: 0 | F185: 0 | G185: -2.17 | H185: 3.72 | I185: 0
D186: 20050108:0830 | E186: 0 | F186: 0 | G186: -1.67 | H186: 4 | I186: 0
D187: 20050108:0930 | E187: 0 | F187: 0 | G187: -1.1 | H187: 4.69 | I187: 0
D188: 20050108:1030 | E188: 0 | F188: 0 | G188: -0.57 | H188: 5.45 | I188: 0
D189: 20050108:1130 | E189: 0 | F189: 0 | G189: -0.31 | H189: 5.93 | I189: 0
D190: 20050108:1230 | E190: 0 | F190: 0 | G190: 0.13 | H190: 6.41 | I190: 0
D191: 20050108:1330 | E191: 0 | F191: 0 | G191: 0.59 | H191: 6.34 | I191: 0
D192: 20050108:1430 | E192: 217.7 | F192: 4.87 | G192: 0.84 | H192: 6.07 | I192: 0
D193: 20050108:1530 | E193: 482.08 | F193: 14.59 | G193: 2.21 | H193: 6.14 | I193: 0
D194: 20050108:1630 | E194: 690.09 | F194: 22.75 | G194: 5.09 | H194: 5.86 | I194: 0
D195: 20050108:1730 | E195: 821.9 | F195: 28.69 | G195: 8.09 | H195: 6.69 | I195: 0
D196: 20050108:1830 | E196: 866.82 | F196: 31.71 | G196: 10.51 | H196: 7.03 | I196: 0
D197: 20050108:1930 | E197: 793.68 | F197: 31.35 | G197: 12.84 | H197: 7.79 | I197: 0
D198: 20050108:2030 | E198: 783.3 | F198: 27.67 | G198: 14.23 | H198: 7.59 | I198: 0
D199: 20050108:2130 | E199: 674.68 | F199: 21.21 | G199: 14.94 | H199: 7.24 | I199: 0
D200: 20050108:2230 | E200: 424.8 | F200: 12.67 | G200: 14.76 | H200: 6.55 | I200: 0
D201: 20050108:2330 | E201: 125.81 | F201: 2.69 | G201: 12.98 | H201: 5.72 | I201: 0
D202: 20050109:0030 | E202: 0 | F202: 0 | G202: 9.89 | H202: 5.17 | I202: 0
... 4294 more rows

Sheet Merchant Summary
D2: 2025-01-01
C3: =_xlfn.SEQUENCE(8760) -> 1 | D3: =D2+1/24 -> 2025-01-01T01:00:00 | E3: =TEXT(D3,"mmm") -> Jan | F3: =M4 -> HB_HOUSTON | G3: =TEXT(D3,"dd-mmm-yyyy hh")& " "&F3 -> 01-Jan-2025 01 HB_HOUSTON | H3: =_xlfn.XLOOKUP(G3,Jan!G:G,Jan!E:E,0,-1) -> 22.87 | M3: HB_BUSAVG
C4: 2 | M4: HB_HOUSTON
C5: 3 | M5: HB_HUBAVG
C6: 4 | M6: HB_NORTH
C7: 5 | M7: HB_PAN
C8: 6 | M8: HB_SOUTH
C9: 7 | M9: HB_WEST
C10: 8 | M10: LZ_AEN
C11: 9 | M11: LZ_CPS
C12: 10 | M12: LZ_HOUSTON
C13: 11 | M13: LZ_LCRA
C14: 12 | M14: LZ_NORTH
C15: 13 | M15: LZ_RAYBN
C16: 14 | M16: LZ_SOUTH
C17: 15 | M17: LZ_WEST
C18: 16
C19: 17
C20: 18
C21: 19
C22: 20
C23: 21
C24: 22
C25: 23
C26: 24
C27: 25
C28: 26
C29: 27
C30: 28
C31: 29
C32: 30
C33: 31
C34: 32
C35: 33
C36: 34
C37: 35
C38: 36
C39: 37
C40: 38
C41: 39
C42: 40
C43: 41
C44: 42
C45: 43
C46: 44
C47: 45
C48: 46
C49: 47
C50: 48
C51: 49
C52: 50
C53: 51
C54: 52
C55: 53
C56: 54
C57: 55
C58: 56
C59: 57
C60: 58
C61: 59
C62: 60
C63: 61
C64: 62
C65: 63
C66: 64
C67: 65
C68: 66
C69: 67
C70: 68
C71: 69
C72: 70
C73: 71
C74: 72
C75: 73
C76: 74
C77: 75
C78: 76
C79: 77
C80: 78
C81: 79
C82: 80
C83: 81
C84: 82
C85: 83
C86: 84
C87: 85
C88: 86
C89: 87
C90: 88
C91: 89
C92: 90
C93: 91
C94: 92
C95: 93
C96: 94
C97: 95
C98: 96
C99: 97
C100: 98
C101: 99
C102: 100
C103: 101
C104: 102
C105: 103
C106: 104
C107: 105
C108: 106
C109: 107
C110: 108
C111: 109
C112: 110
C113: 111
C114: 112
C115: 113
C116: 114
C117: 115
C118: 116
C119: 117
C120: 118
C121: 119
C122: 120
C123: 121
C124: 122
C125: 123
C126: 124
C127: 125
C128: 126
C129: 127
C130: 128
C131: 129
C132: 130
C133: 131
C134: 132
C135: 133
C136: 134
C137: 135
C138: 136
C139: 137
C140: 138
C141: 139
C142: 140
C143: 141
C144: 142
C145: 143
C146: 144
C147: 145
C148: 146
C149: 147
C150: 148
C151: 149
C152: 150
C153: 151
C154: 152
C155: 153
C156: 154
C157: 155
C158: 156
C159: 157
C160: 158
C161: 159
C162: 160
C163: 161
C164: 162
C165: 163
C166: 164
C167: 165
C168: 166
C169: 167
C170: 168
C171: 169
C172: 170
C173: 171
C174: 172
C175: 173
C176: 174
C177: 175
C178: 176
C179: 177
C180: 178
C181: 179
C182: 180
C183: 181
C184: 182
C185: 183
C186: 184
C187: 185
C188: 186
C189: 187
C190: 188
C191: 189
C192: 190
C193: 191
C194: 192
C195: 193
C196: 194
C197: 195
C198: 196
C199: 197
C200: 198
C201: 199
... 8561 more rows

Sheet Jan
A1: Delivery Date | B1: Hour Ending | C1: Repeated Hour Flag | D1: Settlement Point | E1: Settlement Point Price
A2: 01/01/2025 | B2: 01:00 | C2: N | D2: HB_BUSAVG | E2: 23 | F2: =A2+HOUR(B2)/24 -> 2025-01-01T01:00:00 | G2: =TEXT(F2,"dd-mmm-yyyy hh")&" "&D2 -> 01-Jan-2025 01 HB_BUSAVG
A3: 01/01/2025 | B3: 01:00 | C3: N | D3: HB_HOUSTON | E3: 22.87 | F3: =A3+HOUR(B3)/24 -> 2025-01-01T01:00:00 | G3: =TEXT(F3,"dd-mmm-yyyy hh")&" "&D3 -> 01-Jan-2025 01 HB_HOUSTON
A4: 01/01/2025 | B4: 01:00 | C4: N | D4: HB_HUBAVG | E4: 23.07 | F4: 2025-01-01T01:00:00 | G4: 01-Jan-2025 01 HB_HUBAVG
A5: 01/01/2025 | B5: 01:00 | C5: N | D5: HB_NORTH | E5: 22.96 | F5: 2025-01-01T01:00:00 | G5: 01-Jan-2025 01 HB_NORTH
A6: 01/01/2025 | B6: 01:00 | C6: N | D6: HB_PAN | E6: 23.15 | F6: 2025-01-01T01:00:00 | G6: 01-Jan-2025 01 HB_PAN
A7: 01/01/2025 | B7: 01:00 | C7: N | D7: HB_SOUTH | E7: 22.79 | F7: 2025-01-01T01:00:00 | G7: 01-Jan-2025 01 HB_SOUTH
A8: 01/01/2025 | B8: 01:00 | C8: N | D8: HB_WEST | E8: 23.67 | F8: 2025-01-01T01:00:00 | G8: 01-Jan-2025 01 HB_WEST
A9: 01/01/2025 | B9: 01:00 | C9: N | D9: LZ_AEN | E9: 22.8 | F9: 2025-01-01T01:00:00 | G9: 01-Jan-2025 01 LZ_AEN
A10: 01/01/2025 | B10: 01:00 | C10: N | D10: LZ_CPS | E10: 22.77 | F10: 2025-01-01T01:00:00 | G10: 01-Jan-2025 01 LZ_CPS
A11: 01/01/2025 | B11: 01:00 | C11: N | D11: LZ_HOUSTON | E11: 22.87 | F11: 2025-01-01T01:00:00 | G11: 01-Jan-2025 01 LZ_HOUSTON
A12: 01/01/2025 | B12: 01:00 | C12: N | D12: LZ_LCRA | E12: 22.94 | F12: 2025-01-01T01:00:00 | G12: 01-Jan-2025 01 LZ_LCRA
A13: 01/01/2025 | B13: 01:00 | C13: N | D13: LZ_NORTH | E13: 22.97 | F13: 2025-01-01T01:00:00 | G13: 01-Jan-2025 01 LZ_NORTH
A14: 01/01/2025 | B14: 01:00 | C14: N | D14: LZ_RAYBN | E14: 22.99 | F14: 2025-01-01T01:00:00 | G14: 01-Jan-2025 01 LZ_RAYBN
A15: 01/01/2025 | B15: 01:00 | C15: N | D15: LZ_SOUTH | E15: 23.01 | F15: 2025-01-01T01:00:00 | G15: 01-Jan-2025 01 LZ_SOUTH
A16: 01/01/2025 | B16: 01:00 | C16: N | D16: LZ_WEST | E16: 27.22 | F16: 2025-01-01T01:00:00 | G16: 01-Jan-2025 01 LZ_WEST
A17: 01/01/2025 | B17: 02:00 | C17: N | D17: HB_BUSAVG | E17: 21.11 | F17: 2025-01-01T02:00:00 | G17: 01-Jan-2025 02 HB_BUSAVG
A18: 01/01/2025 | B18: 02:00 | C18: N | D18: HB_HOUSTON | E18: 20.93 | F18: 2025-01-01T02:00:00 | G18: 01-Jan-2025 02 HB_HOUSTON
A19: 01/01/2025 | B19: 02:00 | C19: N | D19: HB_HUBAVG | E19: 21.2 | F19: 2025-01-01T02:00:00 | G19: 01-Jan-2025 02 HB_HUBAVG
A20: 01/01/2025 | B20: 02:00 | C20: N | D20: HB_NORTH | E20: 21.09 | F20: 2025-01-01T02:00:00 | G20: 01-Jan-2025 02 HB_NORTH
A21: 01/01/2025 | B21: 02:00 | C21: N | D21: HB_PAN | E21: 21.36 | F21: 2025-01-01T02:00:00 | G21: 01-Jan-2025 02 HB_PAN
A22: 01/01/2025 | B22: 02:00 | C22: N | D22: HB_SOUTH | E22: 20.8 | F22: 2025-01-01T02:00:00 | G22: 01-Jan-2025 02 HB_SOUTH
A23: 01/01/2025 | B23: 02:00 | C23: N | D23: HB_WEST | E23: 21.96 | F23: 2025-01-01T02:00:00 | G23: 01-Jan-2025 02 HB_WEST
A24: 01/01/2025 | B24: 02:00 | C24: N | D24: LZ_AEN | E24: 20.84 | F24: 2025-01-01T02:00:00 | G24: 01-Jan-2025 02 LZ_AEN
A25: 01/01/2025 | B25: 02:00 | C25: N | D25: LZ_CPS | E25: 20.79 | F25: 2025-01-01T02:00:00 | G25: 01-Jan-2025 02 LZ_CPS
A26: 01/01/2025 | B26: 02:00 | C26: N | D26: LZ_HOUSTON | E26: 20.93 | F26: 2025-01-01T02:00:00 | G26: 01-Jan-2025 02 LZ_HOUSTON
A27: 01/01/2025 | B27: 02:00 | C27: N | D27: LZ_LCRA | E27: 21 | F27: 2025-01-01T02:00:00 | G27: 01-Jan-2025 02 LZ_LCRA
A28: 01/01/2025 | B28: 02:00 | C28: N | D28: LZ_NORTH | E28: 21.11 | F28: 2025-01-01T02:00:00 | G28: 01-Jan-2025 02 LZ_NORTH
A29: 01/01/2025 | B29: 02:00 | C29: N | D29: LZ_RAYBN | E29: 21.13 | F29: 2025-01-01T02:00:00 | G29: 01-Jan-2025 02 LZ_RAYBN
A30: 01/01/2025 | B30: 02:00 | C30: N | D30: LZ_SOUTH | E30: 21.01 | F30: 2025-01-01T02:00:00 | G30: 01-Jan-2025 02 LZ_SOUTH
A31: 01/01/2025 | B31: 02:00 | C31: N | D31: LZ_WEST | E31: 25.96 | F31: 2025-01-01T02:00:00 | G31: 01-Jan-2025 02 LZ_WEST
A32: 01/01/2025 | B32: 03:00 | C32: N | D32: HB_BUSAVG | E32: 20.3 | F32: 2025-01-01T03:00:00 | G32: 01-Jan-2025 03 HB_BUSAVG
A33: 01/01/2025 | B33: 03:00 | C33: N | D33: HB_HOUSTON | E33: 20.14 | F33: 2025-01-01T03:00:00 | G33: 01-Jan-2025 03 HB_HOUSTON
A34: 01/01/2025 | B34: 03:00 | C34: N | D34: HB_HUBAVG | E34: 20.37 | F34: 2025-01-01T03:00:00 | G34: 01-Jan-2025 03 HB_HUBAVG
A35: 01/01/2025 | B35: 03:00 | C35: N | D35: HB_NORTH | E35: 20.29 | F35: 2025-01-01T03:00:00 | G35: 01-Jan-2025 03 HB_NORTH
A36: 01/01/2025 | B36: 03:00 | C36: N | D36: HB_PAN | E36: 20.56 | F36: 2025-01-01T03:00:00 | G36: 01-Jan-2025 03 HB_PAN
A37: 01/01/2025 | B37: 03:00 | C37: N | D37: HB_SOUTH | E37: 20 | F37: 2025-01-01T03:00:00 | G37: 01-Jan-2025 03 HB_SOUTH
A38: 01/01/2025 | B38: 03:00 | C38: N | D38: HB_WEST | E38: 21.07 | F38: 2025-01-01T03:00:00 | G38: 01-Jan-2025 03 HB_WEST
A39: 01/01/2025 | B39: 03:00 | C39: N | D39: LZ_AEN | E39: 20.06 | F39: 2025-01-01T03:00:00 | G39: 01-Jan-2025 03 LZ_AEN
A40: 01/01/2025 | B40: 03:00 | C40: N | D40: LZ_CPS | E40: 20 | F40: 2025-01-01T03:00:00 | G40: 01-Jan-2025 03 LZ_CPS
A41: 01/01/2025 | B41: 03:00 | C41: N | D41: LZ_HOUSTON | E41: 20.13 | F41: 2025-01-01T03:00:00 | G41: 01-Jan-2025 03 LZ_HOUSTON
A42: 01/01/2025 | B42: 03:00 | C42: N | D42: LZ_LCRA | E42: 20.25 | F42: 2025-01-01T03:00:00 | G42: 01-Jan-2025 03 LZ_LCRA
A43: 01/01/2025 | B43: 03:00 | C43: N | D43: LZ_NORTH | E43: 20.3 | F43: 2025-01-01T03:00:00 | G43: 01-Jan-2025 03 LZ_NORTH
A44: 01/01/2025 | B44: 03:00 | C44: N | D44: LZ_RAYBN | E44: 20.32 | F44: 2025-01-01T03:00:00 | G44: 01-Jan-2025 03 LZ_RAYBN
A45: 01/01/2025 | B45: 03:00 | C45: N | D45: LZ_SOUTH | E45: 20.27 | F45: 2025-01-01T03:00:00 | G45: 01-Jan-2025 03 LZ_SOUTH
A46: 01/01/2025 | B46: 03:00 | C46: N | D46: LZ_WEST | E46: 24.87 | F46: 2025-01-01T03:00:00 | G46: 01-Jan-2025 03 LZ_WEST
A47: 01/01/2025 | B47: 04:00 | C47: N | D47: HB_BUSAVG | E47: 21.53 | F47: 2025-01-01T04:00:00 | G47: 01-Jan-2025 04 HB_BUSAVG
A48: 01/01/2025 | B48: 04:00 | C48: N | D48: HB_HOUSTON | E48: 21.29 | F48: 2025-01-01T04:00:00 | G48: 01-Jan-2025 04 HB_HOUSTON
A49: 01/01/2025 | B49: 04:00 | C49: N | D49: HB_HUBAVG | E49: 21.61 | F49: 2025-01-01T04:00:00 | G49: 01-Jan-2025 04 HB_HUBAVG
A50: 01/01/2025 | B50: 04:00 | C50: N | D50: HB_NORTH | E50: 21.56 | F50: 2025-01-01T04:00:00 | G50: 01-Jan-2025 04 HB_NORTH
A51: 01/01/2025 | B51: 04:00 | C51: N | D51: HB_PAN | E51: 21.9 | F51: 2025-01-01T04:00:00 | G51: 01-Jan-2025 04 HB_PAN
A52: 01/01/2025 | B52: 04:00 | C52: N | D52: HB_SOUTH | E52: 21.05 | F52: 2025-01-01T04:00:00 | G52: 01-Jan-2025 04 HB_SOUTH
A53: 01/01/2025 | B53: 04:00 | C53: N | D53: HB_WEST | E53: 22.54 | F53: 2025-01-01T04:00:00 | G53: 01-Jan-2025 04 HB_WEST
A54: 01/01/2025 | B54: 04:00 | C54: N | D54: LZ_AEN | E54: 21.16 | F54: 2025-01-01T04:00:00 | G54: 01-Jan-2025 04 LZ_AEN
A55: 01/01/2025 | B55: 04:00 | C55: N | D55: LZ_CPS | E55: 21.09 | F55: 2025-01-01T04:00:00 | G55: 01-Jan-2025 04 LZ_CPS
A56: 01/01/2025 | B56: 04:00 | C56: N | D56: LZ_HOUSTON | E56: 21.28 | F56: 2025-01-01T04:00:00 | G56: 01-Jan-2025 04 LZ_HOUSTON
A57: 01/01/2025 | B57: 04:00 | C57: N | D57: LZ_LCRA | E57: 21.32 | F57: 2025-01-01T04:00:00 | G57: 01-Jan-2025 04 LZ_LCRA
A58: 01/01/2025 | B58: 04:00 | C58: N | D58: LZ_NORTH | E58: 21.57 | F58: 2025-01-01T04:00:00 | G58: 01-Jan-2025 04 LZ_NORTH
A59: 01/01/2025 | B59: 04:00 | C59: N | D59: LZ_RAYBN | E59: 21.6 | F59: 2025-01-01T04:00:00 | G59: 01-Jan-2025 04 LZ_RAYBN
A60: 01/01/2025 | B60: 04:00 | C60: N | D60: LZ_SOUTH | E60: 21.36 | F60: 2025-01-01T04:00:00 | G60: 01-Jan-2025 04 LZ_SOUTH
A61: 01/01/2025 | B61: 04:00 | C61: N | D61: LZ_WEST | E61: 27.02 | F61: 2025-01-01T04:00:00 | G61: 01-Jan-2025 04 LZ_WEST
A62: 01/01/2025 | B62: 05:00 | C62: N | D62: HB_BUSAVG | E62: 21.69 | F62: 2025-01-01T05:00:00 | G62: 01-Jan-2025 05 HB_BUSAVG
A63: 01/01/2025 | B63: 05:00 | C63: N | D63: HB_HOUSTON | E63: 21.35 | F63: 2025-01-01T05:00:00 | G63: 01-Jan-2025 05 HB_HOUSTON
A64: 01/01/2025 | B64: 05:00 | C64: N | D64: HB_HUBAVG | E64: 21.79 | F64: 2025-01-01T05:00:00 | G64: 01-Jan-2025 05 HB_HUBAVG
A65: 01/01/2025 | B65: 05:00 | C65: N | D65: HB_NORTH | E65: 21.79 | F65: 2025-01-01T05:00:00 | G65: 01-Jan-2025 05 HB_NORTH
A66: 01/01/2025 | B66: 05:00 | C66: N | D66: HB_PAN | E66: 22.26 | F66: 2025-01-01T05:00:00 | G66: 01-Jan-2025 05 HB_PAN
A67: 01/01/2025 | B67: 05:00 | C67: N | D67: HB_SOUTH | E67: 20.95 | F67: =A67+HOUR(B67)/24 -> 2025-01-01T05:00:00 | G67: =TEXT(F67,"dd-mmm-yyyy hh")&" "&D67 -> 01-Jan-2025 05 HB_SOUTH
A68: 01/01/2025 | B68: 05:00 | C68: N | D68: HB_WEST | E68: 23.06 | F68: 2025-01-01T05:00:00 | G68: 01-Jan-2025 05 HB_WEST
A69: 01/01/2025 | B69: 05:00 | C69: N | D69: LZ_AEN | E69: 21.18 | F69: 2025-01-01T05:00:00 | G69: 01-Jan-2025 05 LZ_AEN
A70: 01/01/2025 | B70: 05:00 | C70: N | D70: LZ_CPS | E70: 21.08 | F70: 2025-01-01T05:00:00 | G70: 01-Jan-2025 05 LZ_CPS
A71: 01/01/2025 | B71: 05:00 | C71: N | D71: LZ_HOUSTON | E71: 21.34 | F71: 2025-01-01T05:00:00 | G71: 01-Jan-2025 05 LZ_HOUSTON
A72: 01/01/2025 | B72: 05:00 | C72: N | D72: LZ_LCRA | E72: 21.35 | F72: 2025-01-01T05:00:00 | G72: 01-Jan-2025 05 LZ_LCRA
A73: 01/01/2025 | B73: 05:00 | C73: N | D73: LZ_NORTH | E73: 21.81 | F73: 2025-01-01T05:00:00 | G73: 01-Jan-2025 05 LZ_NORTH
A74: 01/01/2025 | B74: 05:00 | C74: N | D74: LZ_RAYBN | E74: 21.84 | F74: 2025-01-01T05:00:00 | G74: 01-Jan-2025 05 LZ_RAYBN
A75: 01/01/2025 | B75: 05:00 | C75: N | D75: LZ_SOUTH | E75: 21.29 | F75: 2025-01-01T05:00:00 | G75: 01-Jan-2025 05 LZ_SOUTH
A76: 01/01/2025 | B76: 05:00 | C76: N | D76: LZ_WEST | E76: 26.93 | F76: 2025-01-01T05:00:00 | G76: 01-Jan-2025 05 LZ_WEST
A77: 01/01/2025 | B77: 06:00 | C77: N | D77: HB_BUSAVG | E77: 24.11 | F77: 2025-01-01T06:00:00 | G77: 01-Jan-2025 06 HB_BUSAVG
A78: 01/01/2025 | B78: 06:00 | C78: N | D78: HB_HOUSTON | E78: 23.7 | F78: 2025-01-01T06:00:00 | G78: 01-Jan-2025 06 HB_HOUSTON
A79: 01/01/2025 | B79: 06:00 | C79: N | D79: HB_HUBAVG | E79: 24.19 | F79: 2025-01-01T06:00:00 | G79: 01-Jan-2025 06 HB_HUBAVG
A80: 01/01/2025 | B80: 06:00 | C80: N | D80: HB_NORTH | E80: 24.31 | F80: 2025-01-01T06:00:00 | G80: 01-Jan-2025 06 HB_NORTH
A81: 01/01/2025 | B81: 06:00 | C81: N | D81: HB_PAN | E81: 24.88 | F81: 2025-01-01T06:00:00 | G81: 01-Jan-2025 06 HB_PAN
A82: 01/01/2025 | B82: 06:00 | C82: N | D82: HB_SOUTH | E82: 23.03 | F82: 2025-01-01T06:00:00 | G82: 01-Jan-2025 06 HB_SOUTH
A83: 01/01/2025 | B83: 06:00 | C83: N | D83: HB_WEST | E83: 25.71 | F83: 2025-01-01T06:00:00 | G83: 01-Jan-2025 06 HB_WEST
A84: 01/01/2025 | B84: 06:00 | C84: N | D84: LZ_AEN | E84: 23.45 | F84: 2025-01-01T06:00:00 | G84: 01-Jan-2025 06 LZ_AEN
A85: 01/01/2025 | B85: 06:00 | C85: N | D85: LZ_CPS | E85: 23.31 | F85: 2025-01-01T06:00:00 | G85: 01-Jan-2025 06 LZ_CPS
A86: 01/01/2025 | B86: 06:00 | C86: N | D86: LZ_HOUSTON | E86: 23.68 | F86: 2025-01-01T06:00:00 | G86: 01-Jan-2025 06 LZ_HOUSTON
A87: 01/01/2025 | B87: 06:00 | C87: N | D87: LZ_LCRA | E87: 23.49 | F87: 2025-01-01T06:00:00 | G87: 01-Jan-2025 06 LZ_LCRA
A88: 01/01/2025 | B88: 06:00 | C88: N | D88: LZ_NORTH | E88: 24.33 | F88: 2025-01-01T06:00:00 | G88: 01-Jan-2025 06 LZ_NORTH
A89: 01/01/2025 | B89: 06:00 | C89: N | D89: LZ_RAYBN | E89: 24.37 | F89: 2025-01-01T06:00:00 | G89: 01-Jan-2025 06 LZ_RAYBN
A90: 01/01/2025 | B90: 06:00 | C90: N | D90: LZ_SOUTH | E90: 23.46 | F90: 2025-01-01T06:00:00 | G90: 01-Jan-2025 06 LZ_SOUTH
A91: 01/01/2025 | B91: 06:00 | C91: N | D91: LZ_WEST | E91: 28.78 | F91: 2025-01-01T06:00:00 | G91: 01-Jan-2025 06 LZ_WEST
A92: 01/01/2025 | B92: 07:00 | C92: N | D92: HB_BUSAVG | E92: 26.03 | F92: 2025-01-01T07:00:00 | G92: 01-Jan-2025 07 HB_BUSAVG
A93: 01/01/2025 | B93: 07:00 | C93: N | D93: HB_HOUSTON | E93: 25.41 | F93: 2025-01-01T07:00:00 | G93: 01-Jan-2025 07 HB_HOUSTON
A94: 01/01/2025 | B94: 07:00 | C94: N | D94: HB_HUBAVG | E94: 26.11 | F94: 2025-01-01T07:00:00 | G94: 01-Jan-2025 07 HB_HUBAVG
A95: 01/01/2025 | B95: 07:00 | C95: N | D95: HB_NORTH | E95: 26.42 | F95: 2025-01-01T07:00:00 | G95: 01-Jan-2025 07 HB_NORTH
A96: 01/01/2025 | B96: 07:00 | C96: N | D96: HB_PAN | E96: 27.49 | F96: 2025-01-01T07:00:00 | G96: 01-Jan-2025 07 HB_PAN
A97: 01/01/2025 | B97: 07:00 | C97: N | D97: HB_SOUTH | E97: 24.26 | F97: 2025-01-01T07:00:00 | G97: 01-Jan-2025 07 HB_SOUTH
A98: 01/01/2025 | B98: 07:00 | C98: N | D98: HB_WEST | E98: 28.34 | F98: 2025-01-01T07:00:00 | G98: 01-Jan-2025 07 HB_WEST
A99: 01/01/2025 | B99: 07:00 | C99: N | D99: LZ_AEN | E99: 24.91 | F99: 2025-01-01T07:00:00 | G99: 01-Jan-2025 07 LZ_AEN
A100: 01/01/2025 | B100: 07:00 | C100: N | D100: LZ_CPS | E100: 24.66 | F100: 2025-01-01T07:00:00 | G100: 01-Jan-2025 07 LZ_CPS
A101: 01/01/2025 | B101: 07:00 | C101: N | D101: LZ_HOUSTON | E101: 25.37 | F101: 2025-01-01T07:00:00 | G101: 01-Jan-2025 07 LZ_HOUSTON
A102: 01/01/2025 | B102: 07:00 | C102: N | D102: LZ_LCRA | E102: 24.91 | F102: 2025-01-01T07:00:00 | G102: 01-Jan-2025 07 LZ_LCRA
A103: 01/01/2025 | B103: 07:00 | C103: N | D103: LZ_NORTH | E103: 26.45 | F103: 2025-01-01T07:00:00 | G103: 01-Jan-2025 07 LZ_NORTH
A104: 01/01/2025 | B104: 07:00 | C104: N | D104: LZ_RAYBN | E104: 26.52 | F104: 2025-01-01T07:00:00 | G104: 01-Jan-2025 07 LZ_RAYBN
A105: 01/01/2025 | B105: 07:00 | C105: N | D105: LZ_SOUTH | E105: 24.76 | F105: 2025-01-01T07:00:00 | G105: 01-Jan-2025 07 LZ_SOUTH
A106: 01/01/2025 | B106: 07:00 | C106: N | D106: LZ_WEST | E106: 32.72 | F106: 2025-01-01T07:00:00 | G106: 01-Jan-2025 07 LZ_WEST
A107: 01/01/2025 | B107: 08:00 | C107: N | D107: HB_BUSAVG | E107: 30.24 | F107: 2025-01-01T08:00:00 | G107: 01-Jan-2025 08 HB_BUSAVG
A108: 01/01/2025 | B108: 08:00 | C108: N | D108: HB_HOUSTON | E108: 29.51 | F108: 2025-01-01T08:00:00 | G108: 01-Jan-2025 08 HB_HOUSTON
A109: 01/01/2025 | B109: 08:00 | C109: N | D109: HB_HUBAVG | E109: 30.32 | F109: 2025-01-01T08:00:00 | G109: 01-Jan-2025 08 HB_HUBAVG
A110: 01/01/2025 | B110: 08:00 | C110: N | D110: HB_NORTH | E110: 30.59 | F110: 2025-01-01T08:00:00 | G110: 01-Jan-2025 08 HB_NORTH
A111: 01/01/2025 | B111: 08:00 | C111: N | D111: HB_PAN | E111: 31.73 | F111: 2025-01-01T08:00:00 | G111: 01-Jan-2025 08 HB_PAN
A112: 01/01/2025 | B112: 08:00 | C112: N | D112: HB_SOUTH | E112: 28.6 | F112: 2025-01-01T08:00:00 | G112: 01-Jan-2025 08 HB_SOUTH
A113: 01/01/2025 | B113: 08:00 | C113: N | D113: HB_WEST | E113: 32.6 | F113: 2025-01-01T08:00:00 | G113: 01-Jan-2025 08 HB_WEST
A114: 01/01/2025 | B114: 08:00 | C114: N | D114: LZ_AEN | E114: 28.93 | F114: 2025-01-01T08:00:00 | G114: 01-Jan-2025 08 LZ_AEN
A115: 01/01/2025 | B115: 08:00 | C115: N | D115: LZ_CPS | E115: 28.57 | F115: 2025-01-01T08:00:00 | G115: 01-Jan-2025 08 LZ_CPS
A116: 01/01/2025 | B116: 08:00 | C116: N | D116: LZ_HOUSTON | E116: 29.47 | F116: 2025-01-01T08:00:00 | G116: 01-Jan-2025 08 LZ_HOUSTON
A117: 01/01/2025 | B117: 08:00 | C117: N | D117: LZ_LCRA | E117: 28.93 | F117: 2025-01-01T08:00:00 | G117: 01-Jan-2025 08 LZ_LCRA
A118: 01/01/2025 | B118: 08:00 | C118: N | D118: LZ_NORTH | E118: 30.65 | F118: 2025-01-01T08:00:00 | G118: 01-Jan-2025 08 LZ_NORTH
A119: 01/01/2025 | B119: 08:00 | C119: N | D119: LZ_RAYBN | E119: 30.72 | F119: 2025-01-01T08:00:00 | G119: 01-Jan-2025 08 LZ_RAYBN
A120: 01/01/2025 | B120: 08:00 | C120: N | D120: LZ_SOUTH | E120: 29.29 | F120: 2025-01-01T08:00:00 | G120: 01-Jan-2025 08 LZ_SOUTH
A121: 01/01/2025 | B121: 08:00 | C121: N | D121: LZ_WEST | E121: 36.46 | F121: 2025-01-01T08:00:00 | G121: 01-Jan-2025 08 LZ_WEST
A122: 01/01/2025 | B122: 09:00 | C122: N | D122: HB_BUSAVG | E122: 22.46 | F122: 2025-01-01T09:00:00 | G122: 01-Jan-2025 09 HB_BUSAVG
A123: 01/01/2025 | B123: 09:00 | C123: N | D123: HB_HOUSTON | E123: 22.45 | F123: 2025-01-01T09:00:00 | G123: 01-Jan-2025 09 HB_HOUSTON
A124: 01/01/2025 | B124: 09:00 | C124: N | D124: HB_HUBAVG | E124: 22.46 | F124: 2025-01-01T09:00:00 | G124: 01-Jan-2025 09 HB_HUBAVG
A125: 01/01/2025 | B125: 09:00 | C125: N | D125: HB_NORTH | E125: 22.48 | F125: 2025-01-01T09:00:00 | G125: 01-Jan-2025 09 HB_NORTH
A126: 01/01/2025 | B126: 09:00 | C126: N | D126: HB_PAN | E126: 22.51 | F126: 2025-01-01T09:00:00 | G126: 01-Jan-2025 09 HB_PAN
A127: 01/01/2025 | B127: 09:00 | C127: N | D127: HB_SOUTH | E127: 22.4 | F127: 2025-01-01T09:00:00 | G127: 01-Jan-2025 09 HB_SOUTH
A128: 01/01/2025 | B128: 09:00 | C128: N | D128: HB_WEST | E128: 22.51 | F128: 2025-01-01T09:00:00 | G128: 01-Jan-2025 09 HB_WEST
A129: 01/01/2025 | B129: 09:00 | C129: N | D129: LZ_AEN | E129: 22.46 | F129: 2025-01-01T09:00:00 | G129: 01-Jan-2025 09 LZ_AEN
A130: 01/01/2025 | B130: 09:00 | C130: N | D130: LZ_CPS | E130: 22.38 | F130: 2025-01-01T09:00:00 | G130: 01-Jan-2025 09 LZ_CPS
A131: 01/01/2025 | B131: 09:00 | C131: N | D131: LZ_HOUSTON | E131: 22.45 | F131: =A131+HOUR(B131)/24 -> 2025-01-01T09:00:00 | G131: =TEXT(F131,"dd-mmm-yyyy hh")&" "&D131 -> 01-Jan-2025 09 LZ_HOUSTON
A132: 01/01/2025 | B132: 09:00 | C132: N | D132: LZ_LCRA | E132: 22.52 | F132: 2025-01-01T09:00:00 | G132: 01-Jan-2025 09 LZ_LCRA
A133: 01/01/2025 | B133: 09:00 | C133: N | D133: LZ_NORTH | E133: 22.48 | F133: 2025-01-01T09:00:00 | G133: 01-Jan-2025 09 LZ_NORTH
A134: 01/01/2025 | B134: 09:00 | C134: N | D134: LZ_RAYBN | E134: 22.48 | F134: 2025-01-01T09:00:00 | G134: 01-Jan-2025 09 LZ_RAYBN
A135: 01/01/2025 | B135: 09:00 | C135: N | D135: LZ_SOUTH | E135: 22.53 | F135: 2025-01-01T09:00:00 | G135: 01-Jan-2025 09 LZ_SOUTH
A136: 01/01/2025 | B136: 09:00 | C136: N | D136: LZ_WEST | E136: 22.71 | F136: 2025-01-01T09:00:00 | G136: 01-Jan-2025 09 LZ_WEST
A137: 01/01/2025 | B137: 10:00 | C137: N | D137: HB_BUSAVG | E137: 18.83 | F137: 2025-01-01T10:00:00 | G137: 01-Jan-2025 10 HB_BUSAVG
A138: 01/01/2025 | B138: 10:00 | C138: N | D138: HB_HOUSTON | E138: 18.81 | F138: 2025-01-01T10:00:00 | G138: 01-Jan-2025 10 HB_HOUSTON
A139: 01/01/2025 | B139: 10:00 | C139: N | D139: HB_HUBAVG | E139: 18.8 | F139: 2025-01-01T10:00:00 | G139: 01-Jan-2025 10 HB_HUBAVG
A140: 01/01/2025 | B140: 10:00 | C140: N | D140: HB_NORTH | E140: 18.93 | F140: 2025-01-01T10:00:00 | G140: 01-Jan-2025 10 HB_NORTH
A141: 01/01/2025 | B141: 10:00 | C141: N | D141: HB_PAN | E141: 18.93 | F141: 2025-01-01T10:00:00 | G141: 01-Jan-2025 10 HB_PAN
A142: 01/01/2025 | B142: 10:00 | C142: N | D142: HB_SOUTH | E142: 18.57 | F142: 2025-01-01T10:00:00 | G142: 01-Jan-2025 10 HB_SOUTH
A143: 01/01/2025 | B143: 10:00 | C143: N | D143: HB_WEST | E143: 18.88 | F143: 2025-01-01T10:00:00 | G143: 01-Jan-2025 10 HB_WEST
A144: 01/01/2025 | B144: 10:00 | C144: N | D144: LZ_AEN | E144: 18.74 | F144: 2025-01-01T10:00:00 | G144: 01-Jan-2025 10 LZ_AEN
A145: 01/01/2025 | B145: 10:00 | C145: N | D145: LZ_CPS | E145: 18.68 | F145: 2025-01-01T10:00:00 | G145: 01-Jan-2025 10 LZ_CPS
A146: 01/01/2025 | B146: 10:00 | C146: N | D146: LZ_HOUSTON | E146: 18.77 | F146: 2025-01-01T10:00:00 | G146: 01-Jan-2025 10 LZ_HOUSTON
A147: 01/01/2025 | B147: 10:00 | C147: N | D147: LZ_LCRA | E147: 18.74 | F147: 2025-01-01T10:00:00 | G147: 01-Jan-2025 10 LZ_LCRA
A148: 01/01/2025 | B148: 10:00 | C148: N | D148: LZ_NORTH | E148: 18.93 | F148: 2025-01-01T10:00:00 | G148: 01-Jan-2025 10 LZ_NORTH
A149: 01/01/2025 | B149: 10:00 | C149: N | D149: LZ_RAYBN | E149: 18.94 | F149: 2025-01-01T10:00:00 | G149: 01-Jan-2025 10 LZ_RAYBN
A150: 01/01/2025 | B150: 10:00 | C150: N | D150: LZ_SOUTH | E150: 18.49 | F150: 2025-01-01T10:00:00 | G150: 01-Jan-2025 10 LZ_SOUTH
A151: 01/01/2025 | B151: 10:00 | C151: N | D151: LZ_WEST | E151: 18.92 | F151: 2025-01-01T10:00:00 | G151: 01-Jan-2025 10 LZ_WEST
A152: 01/01/2025 | B152: 11:00 | C152: N | D152: HB_BUSAVG | E152: 17.13 | F152: 2025-01-01T11:00:00 | G152: 01-Jan-2025 11 HB_BUSAVG
A153: 01/01/2025 | B153: 11:00 | C153: N | D153: HB_HOUSTON | E153: 17.16 | F153: 2025-01-01T11:00:00 | G153: 01-Jan-2025 11 HB_HOUSTON
A154: 01/01/2025 | B154: 11:00 | C154: N | D154: HB_HUBAVG | E154: 17.13 | F154: 2025-01-01T11:00:00 | G154: 01-Jan-2025 11 HB_HUBAVG
A155: 01/01/2025 | B155: 11:00 | C155: N | D155: HB_NORTH | E155: 17.16 | F155: 2025-01-01T11:00:00 | G155: 01-Jan-2025 11 HB_NORTH
A156: 01/01/2025 | B156: 11:00 | C156: N | D156: HB_PAN | E156: 17.19 | F156: 2025-01-01T11:00:00 | G156: 01-Jan-2025 11 HB_PAN
A157: 01/01/2025 | B157: 11:00 | C157: N | D157: HB_SOUTH | E157: 17.05 | F157: 2025-01-01T11:00:00 | G157: 01-Jan-2025 11 HB_SOUTH
A158: 01/01/2025 | B158: 11:00 | C158: N | D158: HB_WEST | E158: 17.14 | F158: 2025-01-01T11:00:00 | G158: 01-Jan-2025 11 HB_WEST
A159: 01/01/2025 | B159: 11:00 | C159: N | D159: LZ_AEN | E159: 17.1 | F159: 2025-01-01T11:00:00 | G159: 01-Jan-2025 11 LZ_AEN
A160: 01/01/2025 | B160: 11:00 | C160: N | D160: LZ_CPS | E160: 17.09 | F160: 2025-01-01T11:00:00 | G160: 01-Jan-2025 11 LZ_CPS
A161: 01/01/2025 | B161: 11:00 | C161: N | D161: LZ_HOUSTON | E161: 17.17 | F161: 2025-01-01T11:00:00 | G161: 01-Jan-2025 11 LZ_HOUSTON
A162: 01/01/2025 | B162: 11:00 | C162: N | D162: LZ_LCRA | E162: 17.1 | F162: 2025-01-01T11:00:00 | G162: 01-Jan-2025 11 LZ_LCRA
A163: 01/01/2025 | B163: 11:00 | C163: N | D163: LZ_NORTH | E163: 17.16 | F163: 2025-01-01T11:00:00 | G163: 01-Jan-2025 11 LZ_NORTH
A164: 01/01/2025 | B164: 11:00 | C164: N | D164: LZ_RAYBN | E164: 17.17 | F164: 2025-01-01T11:00:00 | G164: 01-Jan-2025 11 LZ_RAYBN
A165: 01/01/2025 | B165: 11:00 | C165: N | D165: LZ_SOUTH | E165: 17.18 | F165: 2025-01-01T11:00:00 | G165: 01-Jan-2025 11 LZ_SOUTH
A166: 01/01/2025 | B166: 11:00 | C166: N | D166: LZ_WEST | E166: 17.21 | F166: 2025-01-01T11:00:00 | G166: 01-Jan-2025 11 LZ_WEST
A167: 01/01/2025 | B167: 12:00 | C167: N | D167: HB_BUSAVG | E167: 16.64 | F167: 2025-01-01T12:00:00 | G167: 01-Jan-2025 12 HB_BUSAVG
A168: 01/01/2025 | B168: 12:00 | C168: N | D168: HB_HOUSTON | E168: 16.62 | F168: 2025-01-01T12:00:00 | G168: 01-Jan-2025 12 HB_HOUSTON
A169: 01/01/2025 | B169: 12:00 | C169: N | D169: HB_HUBAVG | E169: 16.63 | F169: 2025-01-01T12:00:00 | G169: 01-Jan-2025 12 HB_HUBAVG
A170: 01/01/2025 | B170: 12:00 | C170: N | D170: HB_NORTH | E170: 16.66 | F170: 2025-01-01T12:00:00 | G170: 01-Jan-2025 12 HB_NORTH
A171: 01/01/2025 | B171: 12:00 | C171: N | D171: HB_PAN | E171: 16.69 | F171: 2025-01-01T12:00:00 | G171: 01-Jan-2025 12 HB_PAN
A172: 01/01/2025 | B172: 12:00 | C172: N | D172: HB_SOUTH | E172: 16.59 | F172: 2025-01-01T12:00:00 | G172: 01-Jan-2025 12 HB_SOUTH
A173: 01/01/2025 | B173: 12:00 | C173: N | D173: HB_WEST | E173: 16.65 | F173: 2025-01-01T12:00:00 | G173: 01-Jan-2025 12 HB_WEST
A174: 01/01/2025 | B174: 12:00 | C174: N | D174: LZ_AEN | E174: 16.62 | F174: 2025-01-01T12:00:00 | G174: 01-Jan-2025 12 LZ_AEN
A175: 01/01/2025 | B175: 12:00 | C175: N | D175: LZ_CPS | E175: 16.61 | F175: 2025-01-01T12:00:00 | G175: 01-Jan-2025 12 LZ_CPS
A176: 01/01/2025 | B176: 12:00 | C176: N | D176: LZ_HOUSTON | E176: 16.62 | F176: 2025-01-01T12:00:00 | G176: 01-Jan-2025 12 LZ_HOUSTON
A177: 01/01/2025 | B177: 12:00 | C177: N | D177: LZ_LCRA | E177: 16.62 | F177: 2025-01-01T12:00:00 | G177: 01-Jan-2025 12 LZ_LCRA
A178: 01/01/2025 | B178: 12:00 | C178: N | D178: LZ_NORTH | E178: 16.66 | F178: 2025-01-01T12:00:00 | G178: 01-Jan-2025 12 LZ_NORTH
A179: 01/01/2025 | B179: 12:00 | C179: N | D179: LZ_RAYBN | E179: 16.66 | F179: 2025-01-01T12:00:00 | G179: 01-Jan-2025 12 LZ_RAYBN
A180: 01/01/2025 | B180: 12:00 | C180: N | D180: LZ_SOUTH | E180: 16.69 | F180: 2025-01-01T12:00:00 | G180: 01-Jan-2025 12 LZ_SOUTH
A181: 01/01/2025 | B181: 12:00 | C181: N | D181: LZ_WEST | E181: 16.72 | F181: 2025-01-01T12:00:00 | G181: 01-Jan-2025 12 LZ_WEST
A182: 01/01/2025 | B182: 13:00 | C182: N | D182: HB_BUSAVG | E182: 16.62 | F182: 2025-01-01T13:00:00 | G182: 01-Jan-2025 13 HB_BUSAVG
A183: 01/01/2025 | B183: 13:00 | C183: N | D183: HB_HOUSTON | E183: 16.62 | F183: 2025-01-01T13:00:00 | G183: 01-Jan-2025 13 HB_HOUSTON
A184: 01/01/2025 | B184: 13:00 | C184: N | D184: HB_HUBAVG | E184: 16.61 | F184: 2025-01-01T13:00:00 | G184: 01-Jan-2025 13 HB_HUBAVG
A185: 01/01/2025 | B185: 13:00 | C185: N | D185: HB_NORTH | E185: 16.63 | F185: 2025-01-01T13:00:00 | G185: 01-Jan-2025 13 HB_NORTH
A186: 01/01/2025 | B186: 13:00 | C186: N | D186: HB_PAN | E186: 16.64 | F186: 2025-01-01T13:00:00 | G186: 01-Jan-2025 13 HB_PAN
A187: 01/01/2025 | B187: 13:00 | C187: N | D187: HB_SOUTH | E187: 16.57 | F187: 2025-01-01T13:00:00 | G187: 01-Jan-2025 13 HB_SOUTH
A188: 01/01/2025 | B188: 13:00 | C188: N | D188: HB_WEST | E188: 16.64 | F188: 2025-01-01T13:00:00 | G188: 01-Jan-2025 13 HB_WEST
A189: 01/01/2025 | B189: 13:00 | C189: N | D189: LZ_AEN | E189: 16.62 | F189: 2025-01-01T13:00:00 | G189: 01-Jan-2025 13 LZ_AEN
A190: 01/01/2025 | B190: 13:00 | C190: N | D190: LZ_CPS | E190: 16.62 | F190: 2025-01-01T13:00:00 | G190: 01-Jan-2025 13 LZ_CPS
A191: 01/01/2025 | B191: 13:00 | C191: N | D191: LZ_HOUSTON | E191: 16.62 | F191: 2025-01-01T13:00:00 | G191: 01-Jan-2025 13 LZ_HOUSTON
A192: 01/01/2025 | B192: 13:00 | C192: N | D192: LZ_LCRA | E192: 16.62 | F192: 2025-01-01T13:00:00 | G192: 01-Jan-2025 13 LZ_LCRA
A193: 01/01/2025 | B193: 13:00 | C193: N | D193: LZ_NORTH | E193: 16.63 | F193: 2025-01-01T13:00:00 | G193: 01-Jan-2025 13 LZ_NORTH
A194: 01/01/2025 | B194: 13:00 | C194: N | D194: LZ_RAYBN | E194: 16.63 | F194: 2025-01-01T13:00:00 | G194: 01-Jan-2025 13 LZ_RAYBN
A195: 01/01/2025 | B195: 13:00 | C195: N | D195: LZ_SOUTH | E195: 16.77 | F195: =A195+HOUR(B195)/24 -> 2025-01-01T13:00:00 | G195: =TEXT(F195,"dd-mmm-yyyy hh")&" "&D195 -> 01-Jan-2025 13 LZ_SOUTH
A196: 01/01/2025 | B196: 13:00 | C196: N | D196: LZ_WEST | E196: 16.67 | F196: 2025-01-01T13:00:00 | G196: 01-Jan-2025 13 LZ_WEST
A197: 01/01/2025 | B197: 14:00 | C197: N | D197: HB_BUSAVG | E197: 15.45 | F197: 2025-01-01T14:00:00 | G197: 01-Jan-2025 14 HB_BUSAVG
A198: 01/01/2025 | B198: 14:00 | C198: N | D198: HB_HOUSTON | E198: 15.43 | F198: 2025-01-01T14:00:00 | G198: 01-Jan-2025 14 HB_HOUSTON
A199: 01/01/2025 | B199: 14:00 | C199: N | D199: HB_HUBAVG | E199: 15.44 | F199: 2025-01-01T14:00:00 | G199: 01-Jan-2025 14 HB_HUBAVG
A200: 01/01/2025 | B200: 14:00 | C200: N | D200: HB_NORTH | E200: 15.5 | F200: 2025-01-01T14:00:00 | G200: 01-Jan-2025 14 HB_NORTH
... 10961 more rows

Sheet Feb
A1: Delivery Date | B1: Hour Ending | C1: Repeated Hour Flag | D1: Settlement Point | E1: Settlement Point Price
A2: 02/01/2025 | B2: 01:00 | C2: N | D2: HB_BUSAVG | E2: 34.05 | F2: =A2+HOUR(B2)/24 -> 2025-02-01T01:00:00 | G2: =TEXT(F2,"dd-mmm-yyyy hh")&" "&D2 -> 01-Feb-2025 01 HB_BUSAVG
A3: 02/01/2025 | B3: 01:00 | C3: N | D3: HB_HOUSTON | E3: 32.45 | F3: =A3+HOUR(B3)/24 -> 2025-02-01T01:00:00 | G3: =TEXT(F3,"dd-mmm-yyyy hh")&" "&D3 -> 01-Feb-2025 01 HB_HOUSTON
A4: 02/01/2025 | B4: 01:00 | C4: N | D4: HB_HUBAVG | E4: 35.7 | F4: 2025-02-01T01:00:00 | G4: 01-Feb-2025 01 HB_HUBAVG
A5: 02/01/2025 | B5: 01:00 | C5: N | D5: HB_NORTH | E5: 32.35 | F5: 2025-02-01T01:00:00 | G5: 01-Feb-2025 01 HB_NORTH
A6: 02/01/2025 | B6: 01:00 | C6: N | D6: HB_PAN | E6: 24.89 | F6: 2025-02-01T01:00:00 | G6: 01-Feb-2025 01 HB_PAN
A7: 02/01/2025 | B7: 01:00 | C7: N | D7: HB_SOUTH | E7: 32.87 | F7: 2025-02-01T01:00:00 | G7: 01-Feb-2025 01 HB_SOUTH
A8: 02/01/2025 | B8: 01:00 | C8: N | D8: HB_WEST | E8: 45.12 | F8: 2025-02-01T01:00:00 | G8: 01-Feb-2025 01 HB_WEST
A9: 02/01/2025 | B9: 01:00 | C9: N | D9: LZ_AEN | E9: 31.7 | F9: 2025-02-01T01:00:00 | G9: 01-Feb-2025 01 LZ_AEN
A10: 02/01/2025 | B10: 01:00 | C10: N | D10: LZ_CPS | E10: 33.31 | F10: 2025-02-01T01:00:00 | G10: 01-Feb-2025 01 LZ_CPS
A11: 02/01/2025 | B11: 01:00 | C11: N | D11: LZ_HOUSTON | E11: 32.43 | F11: 2025-02-01T01:00:00 | G11: 01-Feb-2025 01 LZ_HOUSTON
A12: 02/01/2025 | B12: 01:00 | C12: N | D12: LZ_LCRA | E12: 31.52 | F12: 2025-02-01T01:00:00 | G12: 01-Feb-2025 01 LZ_LCRA
A13: 02/01/2025 | B13: 01:00 | C13: N | D13: LZ_NORTH | E13: 32.37 | F13: 2025-02-01T01:00:00 | G13: 01-Feb-2025 01 LZ_NORTH
A14: 02/01/2025 | B14: 01:00 | C14: N | D14: LZ_RAYBN | E14: 32.37 | F14: 2025-02-01T01:00:00 | G14: 01-Feb-2025 01 LZ_RAYBN
A15: 02/01/2025 | B15: 01:00 | C15: N | D15: LZ_SOUTH | E15: 34.19 | F15: 2025-02-01T01:00:00 | G15: 01-Feb-2025 01 LZ_SOUTH
A16: 02/01/2025 | B16: 01:00 | C16: N | D16: LZ_WEST | E16: 74.92 | F16: 2025-02-01T01:00:00 | G16: 01-Feb-2025 01 LZ_WEST
A17: 02/01/2025 | B17: 02:00 | C17: N | D17: HB_BUSAVG | E17: 28.63 | F17: 2025-02-01T02:00:00 | G17: 01-Feb-2025 02 HB_BUSAVG
A18: 02/01/2025 | B18: 02:00 | C18: N | D18: HB_HOUSTON | E18: 27.57 | F18: 2025-02-01T02:00:00 | G18: 01-Feb-2025 02 HB_HOUSTON
A19: 02/01/2025 | B19: 02:00 | C19: N | D19: HB_HUBAVG | E19: 30.47 | F19: 2025-02-01T02:00:00 | G19: 01-Feb-2025 02 HB_HUBAVG
A20: 02/01/2025 | B20: 02:00 | C20: N | D20: HB_NORTH | E20: 26.19 | F20: 2025-02-01T02:00:00 | G20: 01-Feb-2025 02 HB_NORTH
A21: 02/01/2025 | B21: 02:00 | C21: N | D21: HB_PAN | E21: 17.42 | F21: 2025-02-01T02:00:00 | G21: 01-Feb-2025 02 HB_PAN
A22: 02/01/2025 | B22: 02:00 | C22: N | D22: HB_SOUTH | E22: 29.27 | F22: 2025-02-01T02:00:00 | G22: 01-Feb-2025 02 HB_SOUTH
A23: 02/01/2025 | B23: 02:00 | C23: N | D23: HB_WEST | E23: 38.84 | F23: 2025-02-01T02:00:00 | G23: 01-Feb-2025 02 HB_WEST
A24: 02/01/2025 | B24: 02:00 | C24: N | D24: LZ_AEN | E24: 27.81 | F24: 2025-02-01T02:00:00 | G24: 01-Feb-2025 02 LZ_AEN
A25: 02/01/2025 | B25: 02:00 | C25: N | D25: LZ_CPS | E25: 30.23 | F25: 2025-02-01T02:00:00 | G25: 01-Feb-2025 02 LZ_CPS
A26: 02/01/2025 | B26: 02:00 | C26: N | D26: LZ_HOUSTON | E26: 27.6 | F26: 2025-02-01T02:00:00 | G26: 01-Feb-2025 02 LZ_HOUSTON
A27: 02/01/2025 | B27: 02:00 | C27: N | D27: LZ_LCRA | E27: 28.57 | F27: 2025-02-01T02:00:00 | G27: 01-Feb-2025 02 LZ_LCRA
A28: 02/01/2025 | B28: 02:00 | C28: N | D28: LZ_NORTH | E28: 26.21 | F28: 2025-02-01T02:00:00 | G28: 01-Feb-2025 02 LZ_NORTH
A29: 02/01/2025 | B29: 02:00 | C29: N | D29: LZ_RAYBN | E29: 26.1 | F29: 2025-02-01T02:00:00 | G29: 01-Feb-2025 02 LZ_RAYBN
A30: 02/01/2025 | B30: 02:00 | C30: N | D30: LZ_SOUTH | E30: 30.32 | F30: 2025-02-01T02:00:00 | G30: 01-Feb-2025 02 LZ_SOUTH
A31: 02/01/2025 | B31: 02:00 | C31: N | D31: LZ_WEST | E31: 73.46 | F31: 2025-02-01T02:00:00 | G31: 01-Feb-2025 02 LZ_WEST
A32: 02/01/2025 | B32: 03:00 | C32: N | D32: HB_BUSAVG | E32: 26.6 | F32: 2025-02-01T03:00:00 | G32: 01-Feb-2025 03 HB_BUSAVG
A33: 02/01/2025 | B33: 03:00 | C33: N | D33: HB_HOUSTON | E33: 25.93 | F33: 2025-02-01T03:00:00 | G33: 01-Feb-2025 03 HB_HOUSTON
A34: 02/01/2025 | B34: 03:00 | C34: N | D34: HB_HUBAVG | E34: 28.41 | F34: 2025-02-01T03:00:00 | G34: 01-Feb-2025 03 HB_HUBAVG
A35: 02/01/2025 | B35: 03:00 | C35: N | D35: HB_NORTH | E35: 23.68 | F35: 2025-02-01T03:00:00 | G35: 01-Feb-2025 03 HB_NORTH
A36: 02/01/2025 | B36: 03:00 | C36: N | D36: HB_PAN | E36: 13.12 | F36: 2025-02-01T03:00:00 | G36: 01-Feb-2025 03 HB_PAN
A37: 02/01/2025 | B37: 03:00 | C37: N | D37: HB_SOUTH | E37: 28.47 | F37: 2025-02-01T03:00:00 | G37: 01-Feb-2025 03 HB_SOUTH
A38: 02/01/2025 | B38: 03:00 | C38: N | D38: HB_WEST | E38: 35.56 | F38: 2025-02-01T03:00:00 | G38: 01-Feb-2025 03 HB_WEST
A39: 02/01/2025 | B39: 03:00 | C39: N | D39: LZ_AEN | E39: 27.39 | F39: 2025-02-01T03:00:00 | G39: 01-Feb-2025 03 LZ_AEN
A40: 02/01/2025 | B40: 03:00 | C40: N | D40: LZ_CPS | E40: 29.52 | F40: 2025-02-01T03:00:00 | G40: 01-Feb-2025 03 LZ_CPS
A41: 02/01/2025 | B41: 03:00 | C41: N | D41: LZ_HOUSTON | E41: 26.19 | F41: 2025-02-01T03:00:00 | G41: 01-Feb-2025 03 LZ_HOUSTON
A42: 02/01/2025 | B42: 03:00 | C42: N | D42: LZ_LCRA | E42: 29.14 | F42: 2025-02-01T03:00:00 | G42: 01-Feb-2025 03 LZ_LCRA
A43: 02/01/2025 | B43: 03:00 | C43: N | D43: LZ_NORTH | E43: 23.77 | F43: 2025-02-01T03:00:00 | G43: 01-Feb-2025 03 LZ_NORTH
A44: 02/01/2025 | B44: 03:00 | C44: N | D44: LZ_RAYBN | E44: 23.53 | F44: 2025-02-01T03:00:00 | G44: 01-Feb-2025 03 LZ_RAYBN
A45: 02/01/2025 | B45: 03:00 | C45: N | D45: LZ_SOUTH | E45: 29.36 | F45: 2025-02-01T03:00:00 | G45: 01-Feb-2025 03 LZ_SOUTH
A46: 02/01/2025 | B46: 03:00 | C46: N | D46: LZ_WEST | E46: 69.26 | F46: 2025-02-01T03:00:00 | G46: 01-Feb-2025 03 LZ_WEST
A47: 02/01/2025 | B47: 04:00 | C47: N | D47: HB_BUSAVG | E47: 25.17 | F47: 2025-02-01T04:00:00 | G47: 01-Feb-2025 04 HB_BUSAVG
A48: 02/01/2025 | B48: 04:00 | C48: N | D48: HB_HOUSTON | E48: 24.74 | F48: 2025-02-01T04:00:00 | G48: 01-Feb-2025 04 HB_HOUSTON
A49: 02/01/2025 | B49: 04:00 | C49: N | D49: HB_HUBAVG | E49: 27.09 | F49: 2025-02-01T04:00:00 | G49: 01-Feb-2025 04 HB_HUBAVG
A50: 02/01/2025 | B50: 04:00 | C50: N | D50: HB_NORTH | E50: 22.02 | F50: 2025-02-01T04:00:00 | G50: 01-Feb-2025 04 HB_NORTH
A51: 02/01/2025 | B51: 04:00 | C51: N | D51: HB_PAN | E51: 9.59 | F51: 2025-02-01T04:00:00 | G51: 01-Feb-2025 04 HB_PAN
A52: 02/01/2025 | B52: 04:00 | C52: N | D52: HB_SOUTH | E52: 27.67 | F52: 2025-02-01T04:00:00 | G52: 01-Feb-2025 04 HB_SOUTH
A53: 02/01/2025 | B53: 04:00 | C53: N | D53: HB_WEST | E53: 33.93 | F53: 2025-02-01T04:00:00 | G53: 01-Feb-2025 04 HB_WEST
A54: 02/01/2025 | B54: 04:00 | C54: N | D54: LZ_AEN | E54: 26.36 | F54: 2025-02-01T04:00:00 | G54: 01-Feb-2025 04 LZ_AEN
A55: 02/01/2025 | B55: 04:00 | C55: N | D55: LZ_CPS | E55: 28.92 | F55: 2025-02-01T04:00:00 | G55: 01-Feb-2025 04 LZ_CPS
A56: 02/01/2025 | B56: 04:00 | C56: N | D56: LZ_HOUSTON | E56: 24.98 | F56: 2025-02-01T04:00:00 | G56: 01-Feb-2025 04 LZ_HOUSTON
A57: 02/01/2025 | B57: 04:00 | C57: N | D57: LZ_LCRA | E57: 27.92 | F57: 2025-02-01T04:00:00 | G57: 01-Feb-2025 04 LZ_LCRA
A58: 02/01/2025 | B58: 04:00 | C58: N | D58: LZ_NORTH | E58: 22.06 | F58: 2025-02-01T04:00:00 | G58: 01-Feb-2025 04 LZ_NORTH
A59: 02/01/2025 | B59: 04:00 | C59: N | D59: LZ_RAYBN | E59: 21.76 | F59: 2025-02-01T04:00:00 | G59: 01-Feb-2025 04 LZ_RAYBN
A60: 02/01/2025 | B60: 04:00 | C60: N | D60: LZ_SOUTH | E60: 28.37 | F60: 2025-02-01T04:00:00 | G60: 01-Feb-2025 04 LZ_SOUTH
A61: 02/01/2025 | B61: 04:00 | C61: N | D61: LZ_WEST | E61: 68.49 | F61: 2025-02-01T04:00:00 | G61: 01-Feb-2025 04 LZ_WEST
A62: 02/01/2025 | B62: 05:00 | C62: N | D62: HB_BUSAVG | E62: 26.26 | F62: 2025-02-01T05:00:00 | G62: 01-Feb-2025 05 HB_BUSAVG
A63: 02/01/2025 | B63: 05:00 | C63: N | D63: HB_HOUSTON | E63: 25.92 | F63: 2025-02-01T05:00:00 | G63: 01-Feb-2025 05 HB_HOUSTON
A64: 02/01/2025 | B64: 05:00 | C64: N | D64: HB_HUBAVG | E64: 28.46 | F64: 2025-02-01T05:00:00 | G64: 01-Feb-2025 05 HB_HUBAVG
A65: 02/01/2025 | B65: 05:00 | C65: N | D65: HB_NORTH | E65: 22.7 | F65: 2025-02-01T05:00:00 | G65: 01-Feb-2025 05 HB_NORTH
A66: 02/01/2025 | B66: 05:00 | C66: N | D66: HB_PAN | E66: 3.87 | F66: 2025-02-01T05:00:00 | G66: 01-Feb-2025 05 HB_PAN
A67: 02/01/2025 | B67: 05:00 | C67: N | D67: HB_SOUTH | E67: 29.25 | F67: =A67+HOUR(B67)/24 -> 2025-02-01T05:00:00 | G67: =TEXT(F67,"dd-mmm-yyyy hh")&" "&D67 -> 01-Feb-2025 05 HB_SOUTH
A68: 02/01/2025 | B68: 05:00 | C68: N | D68: HB_WEST | E68: 35.99 | F68: 2025-02-01T05:00:00 | G68: 01-Feb-2025 05 HB_WEST
A69: 02/01/2025 | B69: 05:00 | C69: N | D69: LZ_AEN | E69: 27.93 | F69: 2025-02-01T05:00:00 | G69: 01-Feb-2025 05 LZ_AEN
A70: 02/01/2025 | B70: 05:00 | C70: N | D70: LZ_CPS | E70: 30.61 | F70: 2025-02-01T05:00:00 | G70: 01-Feb-2025 05 LZ_CPS
A71: 02/01/2025 | B71: 05:00 | C71: N | D71: LZ_HOUSTON | E71: 26.13 | F71: 2025-02-01T05:00:00 | G71: 01-Feb-2025 05 LZ_HOUSTON
A72: 02/01/2025 | B72: 05:00 | C72: N | D72: LZ_LCRA | E72: 29.4 | F72: 2025-02-01T05:00:00 | G72: 01-Feb-2025 05 LZ_LCRA
A73: 02/01/2025 | B73: 05:00 | C73: N | D73: LZ_NORTH | E73: 22.69 | F73: 2025-02-01T05:00:00 | G73: 01-Feb-2025 05 LZ_NORTH
A74: 02/01/2025 | B74: 05:00 | C74: N | D74: LZ_RAYBN | E74: 22.26 | F74: 2025-02-01T05:00:00 | G74: 01-Feb-2025 05 LZ_RAYBN
A75: 02/01/2025 | B75: 05:00 | C75: N | D75: LZ_SOUTH | E75: 29.63 | F75: 2025-02-01T05:00:00 | G75: 01-Feb-2025 05 LZ_SOUTH
A76: 02/01/2025 | B76: 05:00 | C76: N | D76: LZ_WEST | E76: 72.3 | F76: 2025-02-01T05:00:00 | G76: 01-Feb-2025 05 LZ_WEST
A77: 02/01/2025 | B77: 06:00 | C77: N | D77: HB_BUSAVG | E77: 24.15 | F77: 2025-02-01T06:00:00 | G77: 01-Feb-2025 06 HB_BUSAVG
A78: 02/01/2025 | B78: 06:00 | C78: N | D78: HB_HOUSTON | E78: 23.68 | F78: 2025-02-01T06:00:00 | G78: 01-Feb-2025 06 HB_HOUSTON
A79: 02/01/2025 | B79: 06:00 | C79: N | D79: HB_HUBAVG | E79: 25.93 | F79: 2025-02-01T06:00:00 | G79: 01-Feb-2025 06 HB_HUBAVG
A80: 02/01/2025 | B80: 06:00 | C80: N | D80: HB_NORTH | E80: 21.26 | F80: 2025-02-01T06:00:00 | G80: 01-Feb-2025 06 HB_NORTH
A81: 02/01/2025 | B81: 06:00 | C81: N | D81: HB_PAN | E81: 1.29 | F81: 2025-02-01T06:00:00 | G81: 01-Feb-2025 06 HB_PAN
A82: 02/01/2025 | B82: 06:00 | C82: N | D82: HB_SOUTH | E82: 26.86 | F82: 2025-02-01T06:00:00 | G82: 01-Feb-2025 06 HB_SOUTH
A83: 02/01/2025 | B83: 06:00 | C83: N | D83: HB_WEST | E83: 31.93 | F83: 2025-02-01T06:00:00 | G83: 01-Feb-2025 06 HB_WEST
A84: 02/01/2025 | B84: 06:00 | C84: N | D84: LZ_AEN | E84: 25.7 | F84: 2025-02-01T06:00:00 | G84: 01-Feb-2025 06 LZ_AEN
A85: 02/01/2025 | B85: 06:00 | C85: N | D85: LZ_CPS | E85: 27.96 | F85: 2025-02-01T06:00:00 | G85: 01-Feb-2025 06 LZ_CPS
A86: 02/01/2025 | B86: 06:00 | C86: N | D86: LZ_HOUSTON | E86: 23.77 | F86: 2025-02-01T06:00:00 | G86: 01-Feb-2025 06 LZ_HOUSTON
A87: 02/01/2025 | B87: 06:00 | C87: N | D87: LZ_LCRA | E87: 26.89 | F87: 2025-02-01T06:00:00 | G87: 01-Feb-2025 06 LZ_LCRA
A88: 02/01/2025 | B88: 06:00 | C88: N | D88: LZ_NORTH | E88: 21.21 | F88: 2025-02-01T06:00:00 | G88: 01-Feb-2025 06 LZ_NORTH
A89: 02/01/2025 | B89: 06:00 | C89: N | D89: LZ_RAYBN | E89: 20.86 | F89: 2025-02-01T06:00:00 | G89: 01-Feb-2025 06 LZ_RAYBN
A90: 02/01/2025 | B90: 06:00 | C90: N | D90: LZ_SOUTH | E90: 27.54 | F90: 2025-02-01T06:00:00 | G90: 01-Feb-2025 06 LZ_SOUTH
A91: 02/01/2025 | B91: 06:00 | C91: N | D91: LZ_WEST | E91: 61.28 | F91: 2025-02-01T06:00:00 | G91: 01-Feb-2025 06 LZ_WEST
A92: 02/01/2025 | B92: 07:00 | C92: N | D92: HB_BUSAVG | E92: 25.7 | F92: 2025-02-01T07:00:00 | G92: 01-Feb-2025 07 HB_BUSAVG
A93: 02/01/2025 | B93: 07:00 | C93: N | D93: HB_HOUSTON | E93: 25.07 | F93: 2025-02-01T07:00:00 | G93: 01-Feb-2025 07 HB_HOUSTON
A94: 02/01/2025 | B94: 07:00 | C94: N | D94: HB_HUBAVG | E94: 27.1 | F94: 2025-02-01T07:00:00 | G94: 01-Feb-2025 07 HB_HUBAVG
A95: 02/01/2025 | B95: 07:00 | C95: N | D95: HB_NORTH | E95: 23.34 | F95: 2025-02-01T07:00:00 | G95: 01-Feb-2025 07 HB_NORTH
A96: 02/01/2025 | B96: 07:00 | C96: N | D96: HB_PAN | E96: 0.77 | F96: 2025-02-01T07:00:00 | G96: 01-Feb-2025 07 HB_PAN
A97: 02/01/2025 | B97: 07:00 | C97: N | D97: HB_SOUTH | E97: 28.29 | F97: 2025-02-01T07:00:00 | G97: 01-Feb-2025 07 HB_SOUTH
A98: 02/01/2025 | B98: 07:00 | C98: N | D98: HB_WEST | E98: 31.7 | F98: 2025-02-01T07:00:00 | G98: 01-Feb-2025 07 HB_WEST
A99: 02/01/2025 | B99: 07:00 | C99: N | D99: LZ_AEN | E99: 27.13 | F99: 2025-02-01T07:00:00 | G99: 01-Feb-2025 07 LZ_AEN
A100: 02/01/2025 | B100: 07:00 | C100: N | D100: LZ_CPS | E100: 29.25 | F100: 2025-02-01T07:00:00 | G100: 01-Feb-2025 07 LZ_CPS
A101: 02/01/2025 | B101: 07:00 | C101: N | D101: LZ_HOUSTON | E101: 25.08 | F101: 2025-02-01T07:00:00 | G101: 01-Feb-2025 07 LZ_HOUSTON
A102: 02/01/2025 | B102: 07:00 | C102: N | D102: LZ_LCRA | E102: 28.27 | F102: 2025-02-01T07:00:00 | G102: 01-Feb-2025 07 LZ_LCRA
A103: 02/01/2025 | B103: 07:00 | C103: N | D103: LZ_NORTH | E103: 23.3 | F103: 2025-02-01T07:00:00 | G103: 01-Feb-2025 07 LZ_NORTH
A104: 02/01/2025 | B104: 07:00 | C104: N | D104: LZ_RAYBN | E104: 23.27 | F104: 2025-02-01T07:00:00 | G104: 01-Feb-2025 07 LZ_RAYBN
A105: 02/01/2025 | B105: 07:00 | C105: N | D105: LZ_SOUTH | E105: 29.41 | F105: 2025-02-01T07:00:00 | G105: 01-Feb-2025 07 LZ_SOUTH
A106: 02/01/2025 | B106: 07:00 | C106: N | D106: LZ_WEST | E106: 56.67 | F106: 2025-02-01T07:00:00 | G106: 01-Feb-2025 07 LZ_WEST
A107: 02/01/2025 | B107: 08:00 | C107: N | D107: HB_BUSAVG | E107: 23.87 | F107: 2025-02-01T08:00:00 | G107: 01-Feb-2025 08 HB_BUSAVG
A108: 02/01/2025 | B108: 08:00 | C108: N | D108: HB_HOUSTON | E108: 23.14 | F108: 2025-02-01T08:00:00 | G108: 01-Feb-2025 08 HB_HOUSTON
A109: 02/01/2025 | B109: 08:00 | C109: N | D109: HB_HUBAVG | E109: 25.12 | F109: 2025-02-01T08:00:00 | G109: 01-Feb-2025 08 HB_HUBAVG
A110: 02/01/2025 | B110: 08:00 | C110: N | D110: HB_NORTH | E110: 21.81 | F110: 2025-02-01T08:00:00 | G110: 01-Feb-2025 08 HB_NORTH
A111: 02/01/2025 | B111: 08:00 | C111: N | D111: HB_PAN | E111: 0.18 | F111: 2025-02-01T08:00:00 | G111: 01-Feb-2025 08 HB_PAN
A112: 02/01/2025 | B112: 08:00 | C112: N | D112: HB_SOUTH | E112: 25.96 | F112: 2025-02-01T08:00:00 | G112: 01-Feb-2025 08 HB_SOUTH
A113: 02/01/2025 | B113: 08:00 | C113: N | D113: HB_WEST | E113: 29.57 | F113: 2025-02-01T08:00:00 | G113: 01-Feb-2025 08 HB_WEST
A114: 02/01/2025 | B114: 08:00 | C114: N | D114: LZ_AEN | E114: 24.97 | F114: 2025-02-01T08:00:00 | G114: 01-Feb-2025 08 LZ_AEN
A115: 02/01/2025 | B115: 08:00 | C115: N | D115: LZ_CPS | E115: 26.75 | F115: 2025-02-01T08:00:00 | G115: 01-Feb-2025 08 LZ_CPS
A116: 02/01/2025 | B116: 08:00 | C116: N | D116: LZ_HOUSTON | E116: 23.12 | F116: 2025-02-01T08:00:00 | G116: 01-Feb-2025 08 LZ_HOUSTON
A117: 02/01/2025 | B117: 08:00 | C117: N | D117: LZ_LCRA | E117: 25.91 | F117: 2025-02-01T08:00:00 | G117: 01-Feb-2025 08 LZ_LCRA
A118: 02/01/2025 | B118: 08:00 | C118: N | D118: LZ_NORTH | E118: 21.78 | F118: 2025-02-01T08:00:00 | G118: 01-Feb-2025 08 LZ_NORTH
A119: 02/01/2025 | B119: 08:00 | C119: N | D119: LZ_RAYBN | E119: 21.57 | F119: 2025-02-01T08:00:00 | G119: 01-Feb-2025 08 LZ_RAYBN
A120: 02/01/2025 | B120: 08:00 | C120: N | D120: LZ_SOUTH | E120: 27.04 | F120: 2025-02-01T08:00:00 | G120: 01-Feb-2025 08 LZ_SOUTH
A121: 02/01/2025 | B121: 08:00 | C121: N | D121: LZ_WEST | E121: 48.18 | F121: 2025-02-01T08:00:00 | G121: 01-Feb-2025 08 LZ_WEST
A122: 02/01/2025 | B122: 09:00 | C122: N | D122: HB_BUSAVG | E122: 18.54 | F122: 2025-02-01T09:00:00 | G122: 01-Feb-2025 09 HB_BUSAVG
A123: 02/01/2025 | B123: 09:00 | C123: N | D123: HB_HOUSTON | E123: 18.33 | F123: 2025-02-01T09:00:00 | G123: 01-Feb-2025 09 HB_HOUSTON
A124: 02/01/2025 | B124: 09:00 | C124: N | D124: HB_HUBAVG | E124: 18.71 | F124: 2025-02-01T09:00:00 | G124: 01-Feb-2025 09 HB_HUBAVG
A125: 02/01/2025 | B125: 09:00 | C125: N | D125: HB_NORTH | E125: 18.27 | F125: 2025-02-01T09:00:00 | G125: 01-Feb-2025 09 HB_NORTH
A126: 02/01/2025 | B126: 09:00 | C126: N | D126: HB_PAN | E126: -0.87 | F126: 2025-02-01T09:00:00 | G126: 01-Feb-2025 09 HB_PAN
A127: 02/01/2025 | B127: 09:00 | C127: N | D127: HB_SOUTH | E127: 18.86 | F127: 2025-02-01T09:00:00 | G127: 01-Feb-2025 09 HB_SOUTH
A128: 02/01/2025 | B128: 09:00 | C128: N | D128: HB_WEST | E128: 19.37 | F128: 2025-02-01T09:00:00 | G128: 01-Feb-2025 09 HB_WEST
A129: 02/01/2025 | B129: 09:00 | C129: N | D129: LZ_AEN | E129: 18.71 | F129: 2025-02-01T09:00:00 | G129: 01-Feb-2025 09 LZ_AEN
A130: 02/01/2025 | B130: 09:00 | C130: N | D130: LZ_CPS | E130: 18.97 | F130: 2025-02-01T09:00:00 | G130: 01-Feb-2025 09 LZ_CPS
A131: 02/01/2025 | B131: 09:00 | C131: N | D131: LZ_HOUSTON | E131: 18.3 | F131: =A131+HOUR(B131)/24 -> 2025-02-01T09:00:00 | G131: =TEXT(F131,"dd-mmm-yyyy hh")&" "&D131 -> 01-Feb-2025 09 LZ_HOUSTON
A132: 02/01/2025 | B132: 09:00 | C132: N | D132: LZ_LCRA | E132: 18.88 | F132: 2025-02-01T09:00:00 | G132: 01-Feb-2025 09 LZ_LCRA
A133: 02/01/2025 | B133: 09:00 | C133: N | D133: LZ_NORTH | E133: 18.27 | F133: 2025-02-01T09:00:00 | G133: 01-Feb-2025 09 LZ_NORTH
A134: 02/01/2025 | B134: 09:00 | C134: N | D134: LZ_RAYBN | E134: 18.24 | F134: 2025-02-01T09:00:00 | G134: 01-Feb-2025 09 LZ_RAYBN
A135: 02/01/2025 | B135: 09:00 | C135: N | D135: LZ_SOUTH | E135: 19.09 | F135: 2025-02-01T09:00:00 | G135: 01-Feb-2025 09 LZ_SOUTH
A136: 02/01/2025 | B136: 09:00 | C136: N | D136: LZ_WEST | E136: 21.36 | F136: 2025-02-01T09:00:00 | G136: 01-Feb-2025 09 LZ_WEST
A137: 02/01/2025 | B137: 10:00 | C137: N | D137: HB_BUSAVG | E137: 10.32 | F137: 2025-02-01T10:00:00 | G137: 01-Feb-2025 10 HB_BUSAVG
A138: 02/01/2025 | B138: 10:00 | C138: N | D138: HB_HOUSTON | E138: 10.58 | F138: 2025-02-01T10:00:00 | G138: 01-Feb-2025 10 HB_HOUSTON
A139: 02/01/2025 | B139: 10:00 | C139: N | D139: HB_HUBAVG | E139: 10.31 | F139: 2025-02-01T10:00:00 | G139: 01-Feb-2025 10 HB_HUBAVG
A140: 02/01/2025 | B140: 10:00 | C140: N | D140: HB_NORTH | E140: 10.1 | F140: 2025-02-01T10:00:00 | G140: 01-Feb-2025 10 HB_NORTH
A141: 02/01/2025 | B141: 10:00 | C141: N | D141: HB_PAN | E141: -5.48 | F141: 2025-02-01T10:00:00 | G141: 01-Feb-2025 10 HB_PAN
A142: 02/01/2025 | B142: 10:00 | C142: N | D142: HB_SOUTH | E142: 11.09 | F142: 2025-02-01T10:00:00 | G142: 01-Feb-2025 10 HB_SOUTH
A143: 02/01/2025 | B143: 10:00 | C143: N | D143: HB_WEST | E143: 9.48 | F143: 2025-02-01T10:00:00 | G143: 01-Feb-2025 10 HB_WEST
A144: 02/01/2025 | B144: 10:00 | C144: N | D144: LZ_AEN | E144: 10.72 | F144: 2025-02-01T10:00:00 | G144: 01-Feb-2025 10 LZ_AEN
A145: 02/01/2025 | B145: 10:00 | C145: N | D145: LZ_CPS | E145: 11.09 | F145: 2025-02-01T10:00:00 | G145: 01-Feb-2025 10 LZ_CPS
A146: 02/01/2025 | B146: 10:00 | C146: N | D146: LZ_HOUSTON | E146: 10.6 | F146: 2025-02-01T10:00:00 | G146: 01-Feb-2025 10 LZ_HOUSTON
A147: 02/01/2025 | B147: 10:00 | C147: N | D147: LZ_LCRA | E147: 10.79 | F147: 2025-02-01T10:00:00 | G147: 01-Feb-2025 10 LZ_LCRA
A148: 02/01/2025 | B148: 10:00 | C148: N | D148: LZ_NORTH | E148: 10.11 | F148: 2025-02-01T10:00:00 | G148: 01-Feb-2025 10 LZ_NORTH
A149: 02/01/2025 | B149: 10:00 | C149: N | D149: LZ_RAYBN | E149: 10.09 | F149: 2025-02-01T10:00:00 | G149: 01-Feb-2025 10 LZ_RAYBN
A150: 02/01/2025 | B150: 10:00 | C150: N | D150: LZ_SOUTH | E150: 11.4 | F150: 2025-02-01T10:00:00 | G150: 01-Feb-2025 10 LZ_SOUTH
A151: 02/01/2025 | B151: 10:00 | C151: N | D151: LZ_WEST | E151: 9.38 | F151: 2025-02-01T10:00:00 | G151: 01-Feb-2025 10 LZ_WEST
A152: 02/01/2025 | B152: 11:00 | C152: N | D152: HB_BUSAVG | E152: 6.73 | F152: 2025-02-01T11:00:00 | G152: 01-Feb-2025 11 HB_BUSAVG
A153: 02/01/2025 | B153: 11:00 | C153: N | D153: HB_HOUSTON | E153: 7.19 | F153: 2025-02-01T11:00:00 | G153: 01-Feb-2025 11 HB_HOUSTON
A154: 02/01/2025 | B154: 11:00 | C154: N | D154: HB_HUBAVG | E154: 6.8 | F154: 2025-02-01T11:00:00 | G154: 01-Feb-2025 11 HB_HUBAVG
A155: 02/01/2025 | B155: 11:00 | C155: N | D155: HB_NORTH | E155: 6.19 | F155: 2025-02-01T11:00:00 | G155: 01-Feb-2025 11 HB_NORTH
A156: 02/01/2025 | B156: 11:00 | C156: N | D156: HB_PAN | E156: -8.57 | F156: 2025-02-01T11:00:00 | G156: 01-Feb-2025 11 HB_PAN
A157: 02/01/2025 | B157: 11:00 | C157: N | D157: HB_SOUTH | E157: 8.35 | F157: 2025-02-01T11:00:00 | G157: 01-Feb-2025 11 HB_SOUTH
A158: 02/01/2025 | B158: 11:00 | C158: N | D158: HB_WEST | E158: 5.47 | F158: 2025-02-01T11:00:00 | G158: 01-Feb-2025 11 HB_WEST
A159: 02/01/2025 | B159: 11:00 | C159: N | D159: LZ_AEN | E159: 7.61 | F159: 2025-02-01T11:00:00 | G159: 01-Feb-2025 11 LZ_AEN
A160: 02/01/2025 | B160: 11:00 | C160: N | D160: LZ_CPS | E160: 8.21 | F160: 2025-02-01T11:00:00 | G160: 01-Feb-2025 11 LZ_CPS
A161: 02/01/2025 | B161: 11:00 | C161: N | D161: LZ_HOUSTON | E161: 7.23 | F161: 2025-02-01T11:00:00 | G161: 01-Feb-2025 11 LZ_HOUSTON
A162: 02/01/2025 | B162: 11:00 | C162: N | D162: LZ_LCRA | E162: 7.82 | F162: 2025-02-01T11:00:00 | G162: 01-Feb-2025 11 LZ_LCRA
A163: 02/01/2025 | B163: 11:00 | C163: N | D163: LZ_NORTH | E163: 6.19 | F163: 2025-02-01T11:00:00 | G163: 01-Feb-2025 11 LZ_NORTH
A164: 02/01/2025 | B164: 11:00 | C164: N | D164: LZ_RAYBN | E164: 6.14 | F164: 2025-02-01T11:00:00 | G164: 01-Feb-2025 11 LZ_RAYBN
A165: 02/01/2025 | B165: 11:00 | C165: N | D165: LZ_SOUTH | E165: 9.17 | F165: 2025-02-01T11:00:00 | G165: 01-Feb-2025 11 LZ_SOUTH
A166: 02/01/2025 | B166: 11:00 | C166: N | D166: LZ_WEST | E166: 5.5 | F166: 2025-02-01T11:00:00 | G166: 01-Feb-2025 11 LZ_WEST
A167: 02/01/2025 | B167: 12:00 | C167: N | D167: HB_BUSAVG | E167: 4.46 | F167: 2025-02-01T12:00:00 | G167: 01-Feb-2025 12 HB_BUSAVG
A168: 02/01/2025 | B168: 12:00 | C168: N | D168: HB_HOUSTON | E168: 4.97 | F168: 2025-02-01T12:00:00 | G168: 01-Feb-2025 12 HB_HOUSTON
A169: 02/01/2025 | B169: 12:00 | C169: N | D169: HB_HUBAVG | E169: 4.54 | F169: 2025-02-01T12:00:00 | G169: 01-Feb-2025 12 HB_HUBAVG
A170: 02/01/2025 | B170: 12:00 | C170: N | D170: HB_NORTH | E170: 3.89 | F170: 2025-02-01T12:00:00 | G170: 01-Feb-2025 12 HB_NORTH
A171: 02/01/2025 | B171: 12:00 | C171: N | D171: HB_PAN | E171: -9.86 | F171: 2025-02-01T12:00:00 | G171: 01-Feb-2025 12 HB_PAN
A172: 02/01/2025 | B172: 12:00 | C172: N | D172: HB_SOUTH | E172: 6.19 | F172: 2025-02-01T12:00:00 | G172: 01-Feb-2025 12 HB_SOUTH
A173: 02/01/2025 | B173: 12:00 | C173: N | D173: HB_WEST | E173: 3.12 | F173: 2025-02-01T12:00:00 | G173: 01-Feb-2025 12 HB_WEST
A174: 02/01/2025 | B174: 12:00 | C174: N | D174: LZ_AEN | E174: 5.09 | F174: 2025-02-01T12:00:00 | G174: 01-Feb-2025 12 LZ_AEN
A175: 02/01/2025 | B175: 12:00 | C175: N | D175: LZ_CPS | E175: 6.39 | F175: 2025-02-01T12:00:00 | G175: 01-Feb-2025 12 LZ_CPS
A176: 02/01/2025 | B176: 12:00 | C176: N | D176: LZ_HOUSTON | E176: 5.01 | F176: 2025-02-01T12:00:00 | G176: 01-Feb-2025 12 LZ_HOUSTON
A177: 02/01/2025 | B177: 12:00 | C177: N | D177: LZ_LCRA | E177: 5.16 | F177: 2025-02-01T12:00:00 | G177: 01-Feb-2025 12 LZ_LCRA
A178: 02/01/2025 | B178: 12:00 | C178: N | D178: LZ_NORTH | E178: 3.87 | F178: 2025-02-01T12:00:00 | G178: 01-Feb-2025 12 LZ_NORTH
A179: 02/01/2025 | B179: 12:00 | C179: N | D179: LZ_RAYBN | E179: 3.82 | F179: 2025-02-01T12:00:00 | G179: 01-Feb-2025 12 LZ_RAYBN
A180: 02/01/2025 | B180: 12:00 | C180: N | D180: LZ_SOUTH | E180: 7.17 | F180: 2025-02-01T12:00:00 | G180: 01-Feb-2025 12 LZ_SOUTH
A181: 02/01/2025 | B181: 12:00 | C181: N | D181: LZ_WEST | E181: 3.22 | F181: 2025-02-01T12:00:00 | G181: 01-Feb-2025 12 LZ_WEST
A182: 02/01/2025 | B182: 13:00 | C182: N | D182: HB_BUSAVG | E182: 2.48 | F182: 2025-02-01T13:00:00 | G182: 01-Feb-2025 13 HB_BUSAVG
A183: 02/01/2025 | B183: 13:00 | C183: N | D183: HB_HOUSTON | E183: 3.36 | F183: 2025-02-01T13:00:00 | G183: 01-Feb-2025 13 HB_HOUSTON
A184: 02/01/2025 | B184: 13:00 | C184: N | D184: HB_HUBAVG | E184: 2.33 | F184: 2025-02-01T13:00:00 | G184: 01-Feb-2025 13 HB_HUBAVG
A185: 02/01/2025 | B185: 13:00 | C185: N | D185: HB_NORTH | E185: 1.99 | F185: 2025-02-01T13:00:00 | G185: 01-Feb-2025 13 HB_NORTH
A186: 02/01/2025 | B186: 13:00 | C186: N | D186: HB_PAN | E186: -10.31 | F186: 2025-02-01T13:00:00 | G186: 01-Feb-2025 13 HB_PAN
A187: 02/01/2025 | B187: 13:00 | C187: N | D187: HB_SOUTH | E187: 4.95 | F187: 2025-02-01T13:00:00 | G187: 01-Feb-2025 13 HB_SOUTH
A188: 02/01/2025 | B188: 13:00 | C188: N | D188: HB_WEST | E188: -0.98 | F188: 2025-02-01T13:00:00 | G188: 01-Feb-2025 13 HB_WEST
A189: 02/01/2025 | B189: 13:00 | C189: N | D189: LZ_AEN | E189: 3.42 | F189: 2025-02-01T13:00:00 | G189: 01-Feb-2025 13 LZ_AEN
A190: 02/01/2025 | B190: 13:00 | C190: N | D190: LZ_CPS | E190: 5.37 | F190: 2025-02-01T13:00:00 | G190: 01-Feb-2025 13 LZ_CPS
A191: 02/01/2025 | B191: 13:00 | C191: N | D191: LZ_HOUSTON | E191: 3.42 | F191: 2025-02-01T13:00:00 | G191: 01-Feb-2025 13 LZ_HOUSTON
A192: 02/01/2025 | B192: 13:00 | C192: N | D192: LZ_LCRA | E192: 3.36 | F192: 2025-02-01T13:00:00 | G192: 01-Feb-2025 13 LZ_LCRA
A193: 02/01/2025 | B193: 13:00 | C193: N | D193: LZ_NORTH | E193: 1.95 | F193: 2025-02-01T13:00:00 | G193: 01-Feb-2025 13 LZ_NORTH
A194: 02/01/2025 | B194: 13:00 | C194: N | D194: LZ_RAYBN | E194: 1.93 | F194: 2025-02-01T13:00:00 | G194: 01-Feb-2025 13 LZ_RAYBN
A195: 02/01/2025 | B195: 13:00 | C195: N | D195: LZ_SOUTH | E195: 6.41 | F195: =A195+HOUR(B195)/24 -> 2025-02-01T13:00:00 | G195: =TEXT(F195,"dd-mmm-yyyy hh")&" "&D195 -> 01-Feb-2025 13 LZ_SOUTH
A196: 02/01/2025 | B196: 13:00 | C196: N | D196: LZ_WEST | E196: -0.87 | F196: 2025-02-01T13:00:00 | G196: 01-Feb-2025 13 LZ_WEST
A197: 02/01/2025 | B197: 14:00 | C197: N | D197: HB_BUSAVG | E197: 1.39 | F197: 2025-02-01T14:00:00 | G197: 01-Feb-2025 14 HB_BUSAVG
A198: 02/01/2025 | B198: 14:00 | C198: N | D198: HB_HOUSTON | E198: 2.44 | F198: 2025-02-01T14:00:00 | G198: 01-Feb-2025 14 HB_HOUSTON
A199: 02/01/2025 | B199: 14:00 | C199: N | D199: HB_HUBAVG | E199: 1.11 | F199: 2025-02-01T14:00:00 | G199: 01-Feb-2025 14 HB_HUBAVG
A200: 02/01/2025 | B200: 14:00 | C200: N | D200: HB_NORTH | E200: 0.98 | F200: 2025-02-01T14:00:00 | G200: 01-Feb-2025 14 HB_NORTH
... 9881 more rows

Sheet Mar
A1: Delivery Date | B1: Hour Ending | C1: Repeated Hour Flag | D1: Settlement Point | E1: Settlement Point Price
A2: 03/01/2025 | B2: 01:00 | C2: N | D2: HB_BUSAVG | E2: 31.14 | F2: =A2+HOUR(B2)/24 -> 2025-03-01T01:00:00 | G2: =TEXT(F2,"dd-mmm-yyyy hh")&" "&D2 -> 01-Mar-2025 01 HB_BUSAVG
A3: 03/01/2025 | B3: 01:00 | C3: N | D3: HB_HOUSTON | E3: 30.22 | F3: =A3+HOUR(B3)/24 -> 2025-03-01T01:00:00 | G3: =TEXT(F3,"dd-mmm-yyyy hh")&" "&D3 -> 01-Mar-2025 01 HB_HOUSTON
A4: 03/01/2025 | B4: 01:00 | C4: N | D4: HB_HUBAVG | E4: 32.05 | F4: 2025-03-01T01:00:00 | G4: 01-Mar-2025 01 HB_HUBAVG
A5: 03/01/2025 | B5: 01:00 | C5: N | D5: HB_NORTH | E5: 30.19 | F5: 2025-03-01T01:00:00 | G5: 01-Mar-2025 01 HB_NORTH
A6: 03/01/2025 | B6: 01:00 | C6: N | D6: HB_PAN | E6: 32.02 | F6: 2025-03-01T01:00:00 | G6: 01-Mar-2025 01 HB_PAN
A7: 03/01/2025 | B7: 01:00 | C7: N | D7: HB_SOUTH | E7: 30.74 | F7: 2025-03-01T01:00:00 | G7: 01-Mar-2025 01 HB_SOUTH
A8: 03/01/2025 | B8: 01:00 | C8: N | D8: HB_WEST | E8: 37.05 | F8: 2025-03-01T01:00:00 | G8: 01-Mar-2025 01 HB_WEST
A9: 03/01/2025 | B9: 01:00 | C9: N | D9: LZ_AEN | E9: 30.11 | F9: 2025-03-01T01:00:00 | G9: 01-Mar-2025 01 LZ_AEN
A10: 03/01/2025 | B10: 01:00 | C10: N | D10: LZ_CPS | E10: 31.14 | F10: 2025-03-01T01:00:00 | G10: 01-Mar-2025 01 LZ_CPS
A11: 03/01/2025 | B11: 01:00 | C11: N | D11: LZ_HOUSTON | E11: 30.22 | F11: 2025-03-01T01:00:00 | G11: 01-Mar-2025 01 LZ_HOUSTON
A12: 03/01/2025 | B12: 01:00 | C12: N | D12: LZ_LCRA | E12: 30.83 | F12: 2025-03-01T01:00:00 | G12: 01-Mar-2025 01 LZ_LCRA
A13: 03/01/2025 | B13: 01:00 | C13: N | D13: LZ_NORTH | E13: 30.19 | F13: 2025-03-01T01:00:00 | G13: 01-Mar-2025 01 LZ_NORTH
A14: 03/01/2025 | B14: 01:00 | C14: N | D14: LZ_RAYBN | E14: 30.26 | F14: 2025-03-01T01:00:00 | G14: 01-Mar-2025 01 LZ_RAYBN
A15: 03/01/2025 | B15: 01:00 | C15: N | D15: LZ_SOUTH | E15: 32.13 | F15: 2025-03-01T01:00:00 | G15: 01-Mar-2025 01 LZ_SOUTH
A16: 03/01/2025 | B16: 01:00 | C16: N | D16: LZ_WEST | E16: 59.75 | F16: 2025-03-01T01:00:00 | G16: 01-Mar-2025 01 LZ_WEST
A17: 03/01/2025 | B17: 02:00 | C17: N | D17: HB_BUSAVG | E17: 33.16 | F17: 2025-03-01T02:00:00 | G17: 01-Mar-2025 02 HB_BUSAVG
A18: 03/01/2025 | B18: 02:00 | C18: N | D18: HB_HOUSTON | E18: 32.03 | F18: 2025-03-01T02:00:00 | G18: 01-Mar-2025 02 HB_HOUSTON
A19: 03/01/2025 | B19: 02:00 | C19: N | D19: HB_HUBAVG | E19: 34.19 | F19: 2025-03-01T02:00:00 | G19: 01-Mar-2025 02 HB_HUBAVG
A20: 03/01/2025 | B20: 02:00 | C20: N | D20: HB_NORTH | E20: 32.19 | F20: 2025-03-01T02:00:00 | G20: 01-Mar-2025 02 HB_NORTH
A21: 03/01/2025 | B21: 02:00 | C21: N | D21: HB_PAN | E21: 34.59 | F21: 2025-03-01T02:00:00 | G21: 01-Mar-2025 02 HB_PAN
A22: 03/01/2025 | B22: 02:00 | C22: N | D22: HB_SOUTH | E22: 32.27 | F22: 2025-03-01T02:00:00 | G22: 01-Mar-2025 02 HB_SOUTH
A23: 03/01/2025 | B23: 02:00 | C23: N | D23: HB_WEST | E23: 40.26 | F23: 2025-03-01T02:00:00 | G23: 01-Mar-2025 02 HB_WEST
A24: 03/01/2025 | B24: 02:00 | C24: N | D24: LZ_AEN | E24: 31.72 | F24: 2025-03-01T02:00:00 | G24: 01-Mar-2025 02 LZ_AEN
A25: 03/01/2025 | B25: 02:00 | C25: N | D25: LZ_CPS | E25: 32.63 | F25: 2025-03-01T02:00:00 | G25: 01-Mar-2025 02 LZ_CPS
A26: 03/01/2025 | B26: 02:00 | C26: N | D26: LZ_HOUSTON | E26: 32.02 | F26: 2025-03-01T02:00:00 | G26: 01-Mar-2025 02 LZ_HOUSTON
A27: 03/01/2025 | B27: 02:00 | C27: N | D27: LZ_LCRA | E27: 32.5 | F27: 2025-03-01T02:00:00 | G27: 01-Mar-2025 02 LZ_LCRA
A28: 03/01/2025 | B28: 02:00 | C28: N | D28: LZ_NORTH | E28: 32.19 | F28: 2025-03-01T02:00:00 | G28: 01-Mar-2025 02 LZ_NORTH
A29: 03/01/2025 | B29: 02:00 | C29: N | D29: LZ_RAYBN | E29: 32.29 | F29: 2025-03-01T02:00:00 | G29: 01-Mar-2025 02 LZ_RAYBN
A30: 03/01/2025 | B30: 02:00 | C30: N | D30: LZ_SOUTH | E30: 33.64 | F30: 2025-03-01T02:00:00 | G30: 01-Mar-2025 02 LZ_SOUTH
A31: 03/01/2025 | B31: 02:00 | C31: N | D31: LZ_WEST | E31: 63.95 | F31: 2025-03-01T02:00:00 | G31: 01-Mar-2025 02 LZ_WEST
A32: 03/01/2025 | B32: 03:00 | C32: N | D32: HB_BUSAVG | E32: 34.11 | F32: 2025-03-01T03:00:00 | G32: 01-Mar-2025 03 HB_BUSAVG
A33: 03/01/2025 | B33: 03:00 | C33: N | D33: HB_HOUSTON | E33: 32.66 | F33: 2025-03-01T03:00:00 | G33: 01-Mar-2025 03 HB_HOUSTON
A34: 03/01/2025 | B34: 03:00 | C34: N | D34: HB_HUBAVG | E34: 35.29 | F34: 2025-03-01T03:00:00 | G34: 01-Mar-2025 03 HB_HUBAVG
A35: 03/01/2025 | B35: 03:00 | C35: N | D35: HB_NORTH | E35: 33 | F35: 2025-03-01T03:00:00 | G35: 01-Mar-2025 03 HB_NORTH
A36: 03/01/2025 | B36: 03:00 | C36: N | D36: HB_PAN | E36: 35.95 | F36: 2025-03-01T03:00:00 | G36: 01-Mar-2025 03 HB_PAN
A37: 03/01/2025 | B37: 03:00 | C37: N | D37: HB_SOUTH | E37: 33.14 | F37: 2025-03-01T03:00:00 | G37: 01-Mar-2025 03 HB_SOUTH
A38: 03/01/2025 | B38: 03:00 | C38: N | D38: HB_WEST | E38: 42.37 | F38: 2025-03-01T03:00:00 | G38: 01-Mar-2025 03 HB_WEST
A39: 03/01/2025 | B39: 03:00 | C39: N | D39: LZ_AEN | E39: 32.44 | F39: 2025-03-01T03:00:00 | G39: 01-Mar-2025 03 LZ_AEN
A40: 03/01/2025 | B40: 03:00 | C40: N | D40: LZ_CPS | E40: 33.54 | F40: 2025-03-01T03:00:00 | G40: 01-Mar-2025 03 LZ_CPS
A41: 03/01/2025 | B41: 03:00 | C41: N | D41: LZ_HOUSTON | E41: 32.64 | F41: 2025-03-01T03:00:00 | G41: 01-Mar-2025 03 LZ_HOUSTON
A42: 03/01/2025 | B42: 03:00 | C42: N | D42: LZ_LCRA | E42: 33.72 | F42: 2025-03-01T03:00:00 | G42: 01-Mar-2025 03 LZ_LCRA
A43: 03/01/2025 | B43: 03:00 | C43: N | D43: LZ_NORTH | E43: 33.01 | F43: 2025-03-01T03:00:00 | G43: 01-Mar-2025 03 LZ_NORTH
A44: 03/01/2025 | B44: 03:00 | C44: N | D44: LZ_RAYBN | E44: 33.12 | F44: 2025-03-01T03:00:00 | G44: 01-Mar-2025 03 LZ_RAYBN
A45: 03/01/2025 | B45: 03:00 | C45: N | D45: LZ_SOUTH | E45: 35.04 | F45: 2025-03-01T03:00:00 | G45: 01-Mar-2025 03 LZ_SOUTH
A46: 03/01/2025 | B46: 03:00 | C46: N | D46: LZ_WEST | E46: 69.13 | F46: 2025-03-01T03:00:00 | G46: 01-Mar-2025 03 LZ_WEST
A47: 03/01/2025 | B47: 04:00 | C47: N | D47: HB_BUSAVG | E47: 32.82 | F47: 2025-03-01T04:00:00 | G47: 01-Mar-2025 04 HB_BUSAVG
A48: 03/01/2025 | B48: 04:00 | C48: N | D48: HB_HOUSTON | E48: 31.15 | F48: 2025-03-01T04:00:00 | G48: 01-Mar-2025 04 HB_HOUSTON
A49: 03/01/2025 | B49: 04:00 | C49: N | D49: HB_HUBAVG | E49: 33.82 | F49: 2025-03-01T04:00:00 | G49: 01-Mar-2025 04 HB_HUBAVG
A50: 03/01/2025 | B50: 04:00 | C50: N | D50: HB_NORTH | E50: 31.99 | F50: 2025-03-01T04:00:00 | G50: 01-Mar-2025 04 HB_NORTH
A51: 03/01/2025 | B51: 04:00 | C51: N | D51: HB_PAN | E51: 34.89 | F51: 2025-03-01T04:00:00 | G51: 01-Mar-2025 04 HB_PAN
A52: 03/01/2025 | B52: 04:00 | C52: N | D52: HB_SOUTH | E52: 31.7 | F52: 2025-03-01T04:00:00 | G52: 01-Mar-2025 04 HB_SOUTH
A53: 03/01/2025 | B53: 04:00 | C53: N | D53: HB_WEST | E53: 40.45 | F53: 2025-03-01T04:00:00 | G53: 01-Mar-2025 04 HB_WEST
A54: 03/01/2025 | B54: 04:00 | C54: N | D54: LZ_AEN | E54: 30.94 | F54: 2025-03-01T04:00:00 | G54: 01-Mar-2025 04 LZ_AEN
A55: 03/01/2025 | B55: 04:00 | C55: N | D55: LZ_CPS | E55: 32.02 | F55: 2025-03-01T04:00:00 | G55: 01-Mar-2025 04 LZ_CPS
A56: 03/01/2025 | B56: 04:00 | C56: N | D56: LZ_HOUSTON | E56: 31.12 | F56: 2025-03-01T04:00:00 | G56: 01-Mar-2025 04 LZ_HOUSTON
A57: 03/01/2025 | B57: 04:00 | C57: N | D57: LZ_LCRA | E57: 32.27 | F57: 2025-03-01T04:00:00 | G57: 01-Mar-2025 04 LZ_LCRA
A58: 03/01/2025 | B58: 04:00 | C58: N | D58: LZ_NORTH | E58: 32.01 | F58: 2025-03-01T04:00:00 | G58: 01-Mar-2025 04 LZ_NORTH
A59: 03/01/2025 | B59: 04:00 | C59: N | D59: LZ_RAYBN | E59: 32.15 | F59: 2025-03-01T04:00:00 | G59: 01-Mar-2025 04 LZ_RAYBN
A60: 03/01/2025 | B60: 04:00 | C60: N | D60: LZ_SOUTH | E60: 34.23 | F60: 2025-03-01T04:00:00 | G60: 01-Mar-2025 04 LZ_SOUTH
A61: 03/01/2025 | B61: 04:00 | C61: N | D61: LZ_WEST | E61: 66.6 | F61: 2025-03-01T04:00:00 | G61: 01-Mar-2025 04 LZ_WEST
A62: 03/01/2025 | B62: 05:00 | C62: N | D62: HB_BUSAVG | E62: 35.7 | F62: 2025-03-01T05:00:00 | G62: 01-Mar-2025 05 HB_BUSAVG
A63: 03/01/2025 | B63: 05:00 | C63: N | D63: HB_HOUSTON | E63: 33.47 | F63: 2025-03-01T05:00:00 | G63: 01-Mar-2025 05 HB_HOUSTON
A64: 03/01/2025 | B64: 05:00 | C64: N | D64: HB_HUBAVG | E64: 36.86 | F64: 2025-03-01T05:00:00 | G64: 01-Mar-2025 05 HB_HUBAVG
A65: 03/01/2025 | B65: 05:00 | C65: N | D65: HB_NORTH | E65: 34.62 | F65: 2025-03-01T05:00:00 | G65: 01-Mar-2025 05 HB_NORTH
A66: 03/01/2025 | B66: 05:00 | C66: N | D66: HB_PAN | E66: 37.58 | F66: 2025-03-01T05:00:00 | G66: 01-Mar-2025 05 HB_PAN
A67: 03/01/2025 | B67: 05:00 | C67: N | D67: HB_SOUTH | E67: 35 | F67: =A67+HOUR(B67)/24 -> 2025-03-01T05:00:00 | G67: =TEXT(F67,"dd-mmm-yyyy hh")&" "&D67 -> 01-Mar-2025 05 HB_SOUTH
A68: 03/01/2025 | B68: 05:00 | C68: N | D68: HB_WEST | E68: 44.35 | F68: 2025-03-01T05:00:00 | G68: 01-Mar-2025 05 HB_WEST
A69: 03/01/2025 | B69: 05:00 | C69: N | D69: LZ_AEN | E69: 33.9 | F69: 2025-03-01T05:00:00 | G69: 01-Mar-2025 05 LZ_AEN
A70: 03/01/2025 | B70: 05:00 | C70: N | D70: LZ_CPS | E70: 35.39 | F70: 2025-03-01T05:00:00 | G70: 01-Mar-2025 05 LZ_CPS
A71: 03/01/2025 | B71: 05:00 | C71: N | D71: LZ_HOUSTON | E71: 33.46 | F71: 2025-03-01T05:00:00 | G71: 01-Mar-2025 05 LZ_HOUSTON
A72: 03/01/2025 | B72: 05:00 | C72: N | D72: LZ_LCRA | E72: 35.65 | F72: 2025-03-01T05:00:00 | G72: 01-Mar-2025 05 LZ_LCRA
A73: 03/01/2025 | B73: 05:00 | C73: N | D73: LZ_NORTH | E73: 34.64 | F73: 2025-03-01T05:00:00 | G73: 01-Mar-2025 05 LZ_NORTH
A74: 03/01/2025 | B74: 05:00 | C74: N | D74: LZ_RAYBN | E74: 34.77 | F74: 2025-03-01T05:00:00 | G74: 01-Mar-2025 05 LZ_RAYBN
A75: 03/01/2025 | B75: 05:00 | C75: N | D75: LZ_SOUTH | E75: 38.77 | F75: 2025-03-01T05:00:00 | G75: 01-Mar-2025 05 LZ_SOUTH
A76: 03/01/2025 | B76: 05:00 | C76: N | D76: LZ_WEST | E76: 74.68 | F76: 2025-03-01T05:00:00 | G76: 01-Mar-2025 05 LZ_WEST
A77: 03/01/2025 | B77: 06:00 | C77: N | D77: HB_BUSAVG | E77: 49.51 | F77: 2025-03-01T06:00:00 | G77: 01-Mar-2025 06 HB_BUSAVG
A78: 03/01/2025 | B78: 06:00 | C78: N | D78: HB_HOUSTON | E78: 47.19 | F78: 2025-03-01T06:00:00 | G78: 01-Mar-2025 06 HB_HOUSTON
A79: 03/01/2025 | B79: 06:00 | C79: N | D79: HB_HUBAVG | E79: 50.49 | F79: 2025-03-01T06:00:00 | G79: 01-Mar-2025 06 HB_HUBAVG
A80: 03/01/2025 | B80: 06:00 | C80: N | D80: HB_NORTH | E80: 48.58 | F80: 2025-03-01T06:00:00 | G80: 01-Mar-2025 06 HB_NORTH
A81: 03/01/2025 | B81: 06:00 | C81: N | D81: HB_PAN | E81: 50.89 | F81: 2025-03-01T06:00:00 | G81: 01-Mar-2025 06 HB_PAN
A82: 03/01/2025 | B82: 06:00 | C82: N | D82: HB_SOUTH | E82: 49.05 | F82: 2025-03-01T06:00:00 | G82: 01-Mar-2025 06 HB_SOUTH
A83: 03/01/2025 | B83: 06:00 | C83: N | D83: HB_WEST | E83: 57.16 | F83: 2025-03-01T06:00:00 | G83: 01-Mar-2025 06 HB_WEST
A84: 03/01/2025 | B84: 06:00 | C84: N | D84: LZ_AEN | E84: 47.95 | F84: 2025-03-01T06:00:00 | G84: 01-Mar-2025 06 LZ_AEN
A85: 03/01/2025 | B85: 06:00 | C85: N | D85: LZ_CPS | E85: 49.37 | F85: 2025-03-01T06:00:00 | G85: 01-Mar-2025 06 LZ_CPS
A86: 03/01/2025 | B86: 06:00 | C86: N | D86: LZ_HOUSTON | E86: 47.18 | F86: 2025-03-01T06:00:00 | G86: 01-Mar-2025 06 LZ_HOUSTON
A87: 03/01/2025 | B87: 06:00 | C87: N | D87: LZ_LCRA | E87: 49.65 | F87: 2025-03-01T06:00:00 | G87: 01-Mar-2025 06 LZ_LCRA
A88: 03/01/2025 | B88: 06:00 | C88: N | D88: LZ_NORTH | E88: 48.6 | F88: 2025-03-01T06:00:00 | G88: 01-Mar-2025 06 LZ_NORTH
A89: 03/01/2025 | B89: 06:00 | C89: N | D89: LZ_RAYBN | E89: 48.71 | F89: 2025-03-01T06:00:00 | G89: 01-Mar-2025 06 LZ_RAYBN
A90: 03/01/2025 | B90: 06:00 | C90: N | D90: LZ_SOUTH | E90: 53.33 | F90: 2025-03-01T06:00:00 | G90: 01-Mar-2025 06 LZ_SOUTH
A91: 03/01/2025 | B91: 06:00 | C91: N | D91: LZ_WEST | E91: 82.14 | F91: 2025-03-01T06:00:00 | G91: 01-Mar-2025 06 LZ_WEST
A92: 03/01/2025 | B92: 07:00 | C92: N | D92: HB_BUSAVG | E92: 46.89 | F92: 2025-03-01T07:00:00 | G92: 01-Mar-2025 07 HB_BUSAVG
A93: 03/01/2025 | B93: 07:00 | C93: N | D93: HB_HOUSTON | E93: 44.83 | F93: 2025-03-01T07:00:00 | G93: 01-Mar-2025 07 HB_HOUSTON
A94: 03/01/2025 | B94: 07:00 | C94: N | D94: HB_HUBAVG | E94: 47.69 | F94: 2025-03-01T07:00:00 | G94: 01-Mar-2025 07 HB_HUBAVG
A95: 03/01/2025 | B95: 07:00 | C95: N | D95: HB_NORTH | E95: 46.14 | F95: 2025-03-01T07:00:00 | G95: 01-Mar-2025 07 HB_NORTH
A96: 03/01/2025 | B96: 07:00 | C96: N | D96: HB_PAN | E96: 47.34 | F96: 2025-03-01T07:00:00 | G96: 01-Mar-2025 07 HB_PAN
A97: 03/01/2025 | B97: 07:00 | C97: N | D97: HB_SOUTH | E97: 46.57 | F97: 2025-03-01T07:00:00 | G97: 01-Mar-2025 07 HB_SOUTH
A98: 03/01/2025 | B98: 07:00 | C98: N | D98: HB_WEST | E98: 53.24 | F98: 2025-03-01T07:00:00 | G98: 01-Mar-2025 07 HB_WEST
A99: 03/01/2025 | B99: 07:00 | C99: N | D99: LZ_AEN | E99: 45.66 | F99: 2025-03-01T07:00:00 | G99: 01-Mar-2025 07 LZ_AEN
A100: 03/01/2025 | B100: 07:00 | C100: N | D100: LZ_CPS | E100: 46.86 | F100: 2025-03-01T07:00:00 | G100: 01-Mar-2025 07 LZ_CPS
A101: 03/01/2025 | B101: 07:00 | C101: N | D101: LZ_HOUSTON | E101: 44.89 | F101: 2025-03-01T07:00:00 | G101: 01-Mar-2025 07 LZ_HOUSTON
A102: 03/01/2025 | B102: 07:00 | C102: N | D102: LZ_LCRA | E102: 47.38 | F102: 2025-03-01T07:00:00 | G102: 01-Mar-2025 07 LZ_LCRA
A103: 03/01/2025 | B103: 07:00 | C103: N | D103: LZ_NORTH | E103: 46.15 | F103: 2025-03-01T07:00:00 | G103: 01-Mar-2025 07 LZ_NORTH
A104: 03/01/2025 | B104: 07:00 | C104: N | D104: LZ_RAYBN | E104: 46.24 | F104: 2025-03-01T07:00:00 | G104: 01-Mar-2025 07 LZ_RAYBN
A105: 03/01/2025 | B105: 07:00 | C105: N | D105: LZ_SOUTH | E105: 50.73 | F105: 2025-03-01T07:00:00 | G105: 01-Mar-2025 07 LZ_SOUTH
A106: 03/01/2025 | B106: 07:00 | C106: N | D106: LZ_WEST | E106: 75.01 | F106: 2025-03-01T07:00:00 | G106: 01-Mar-2025 07 LZ_WEST
A107: 03/01/2025 | B107: 08:00 | C107: N | D107: HB_BUSAVG | E107: 43.52 | F107: 2025-03-01T08:00:00 | G107: 01-Mar-2025 08 HB_BUSAVG
A108: 03/01/2025 | B108: 08:00 | C108: N | D108: HB_HOUSTON | E108: 42.27 | F108: 2025-03-01T08:00:00 | G108: 01-Mar-2025 08 HB_HOUSTON
A109: 03/01/2025 | B109: 08:00 | C109: N | D109: HB_HUBAVG | E109: 43.99 | F109: 2025-03-01T08:00:00 | G109: 01-Mar-2025 08 HB_HUBAVG
A110: 03/01/2025 | B110: 08:00 | C110: N | D110: HB_NORTH | E110: 42.89 | F110: 2025-03-01T08:00:00 | G110: 01-Mar-2025 08 HB_NORTH
A111: 03/01/2025 | B111: 08:00 | C111: N | D111: HB_PAN | E111: 41.69 | F111: 2025-03-01T08:00:00 | G111: 01-Mar-2025 08 HB_PAN
A112: 03/01/2025 | B112: 08:00 | C112: N | D112: HB_SOUTH | E112: 44.05 | F112: 2025-03-01T08:00:00 | G112: 01-Mar-2025 08 HB_SOUTH
A113: 03/01/2025 | B113: 08:00 | C113: N | D113: HB_WEST | E113: 46.74 | F113: 2025-03-01T08:00:00 | G113: 01-Mar-2025 08 HB_WEST
A114: 03/01/2025 | B114: 08:00 | C114: N | D114: LZ_AEN | E114: 43.65 | F114: 2025-03-01T08:00:00 | G114: 01-Mar-2025 08 LZ_AEN
A115: 03/01/2025 | B115: 08:00 | C115: N | D115: LZ_CPS | E115: 44.49 | F115: 2025-03-01T08:00:00 | G115: 01-Mar-2025 08 LZ_CPS
A116: 03/01/2025 | B116: 08:00 | C116: N | D116: LZ_HOUSTON | E116: 42.38 | F116: 2025-03-01T08:00:00 | G116: 01-Mar-2025 08 LZ_HOUSTON
A117: 03/01/2025 | B117: 08:00 | C117: N | D117: LZ_LCRA | E117: 44.41 | F117: 2025-03-01T08:00:00 | G117: 01-Mar-2025 08 LZ_LCRA
A118: 03/01/2025 | B118: 08:00 | C118: N | D118: LZ_NORTH | E118: 42.89 | F118: 2025-03-01T08:00:00 | G118: 01-Mar-2025 08 LZ_NORTH
A119: 03/01/2025 | B119: 08:00 | C119: N | D119: LZ_RAYBN | E119: 42.87 | F119: 2025-03-01T08:00:00 | G119: 01-Mar-2025 08 LZ_RAYBN
A120: 03/01/2025 | B120: 08:00 | C120: N | D120: LZ_SOUTH | E120: 46.5 | F120: 2025-03-01T08:00:00 | G120: 01-Mar-2025 08 LZ_SOUTH
A121: 03/01/2025 | B121: 08:00 | C121: N | D121: LZ_WEST | E121: 56.33 | F121: 2025-03-01T08:00:00 | G121: 01-Mar-2025 08 LZ_WEST
A122: 03/01/2025 | B122: 09:00 | C122: N | D122: HB_BUSAVG | E122: 22.25 | F122: 2025-03-01T09:00:00 | G122: 01-Mar-2025 09 HB_BUSAVG
A123: 03/01/2025 | B123: 09:00 | C123: N | D123: HB_HOUSTON | E123: 22.01 | F123: 2025-03-01T09:00:00 | G123: 01-Mar-2025 09 HB_HOUSTON
A124: 03/01/2025 | B124: 09:00 | C124: N | D124: HB_HUBAVG | E124: 22.25 | F124: 2025-03-01T09:00:00 | G124: 01-Mar-2025 09 HB_HUBAVG
A125: 03/01/2025 | B125: 09:00 | C125: N | D125: HB_NORTH | E125: 22.21 | F125: 2025-03-01T09:00:00 | G125: 01-Mar-2025 09 HB_NORTH
A126: 03/01/2025 | B126: 09:00 | C126: N | D126: HB_PAN | E126: 22.21 | F126: 2025-03-01T09:00:00 | G126: 01-Mar-2025 09 HB_PAN
A127: 03/01/2025 | B127: 09:00 | C127: N | D127: HB_SOUTH | E127: 22.5 | F127: 2025-03-01T09:00:00 | G127: 01-Mar-2025 09 HB_SOUTH
A128: 03/01/2025 | B128: 09:00 | C128: N | D128: HB_WEST | E128: 22.28 | F128: 2025-03-01T09:00:00 | G128: 01-Mar-2025 09 HB_WEST
A129: 03/01/2025 | B129: 09:00 | C129: N | D129: LZ_AEN | E129: 22.35 | F129: 2025-03-01T09:00:00 | G129: 01-Mar-2025 09 LZ_AEN
A130: 03/01/2025 | B130: 09:00 | C130: N | D130: LZ_CPS | E130: 22.61 | F130: 2025-03-01T09:00:00 | G130: 01-Mar-2025 09 LZ_CPS
A131: 03/01/2025 | B131: 09:00 | C131: N | D131: LZ_HOUSTON | E131: 22.05 | F131: =A131+HOUR(B131)/24 -> 2025-03-01T09:00:00 | G131: =TEXT(F131,"dd-mmm-yyyy hh")&" "&D131 -> 01-Mar-2025 09 LZ_HOUSTON
A132: 03/01/2025 | B132: 09:00 | C132: N | D132: LZ_LCRA | E132: 22.53 | F132: 2025-03-01T09:00:00 | G132: 01-Mar-2025 09 LZ_LCRA
A133: 03/01/2025 | B133: 09:00 | C133: N | D133: LZ_NORTH | E133: 22.22 | F133: 2025-03-01T09:00:00 | G133: 01-Mar-2025 09 LZ_NORTH
A134: 03/01/2025 | B134: 09:00 | C134: N | D134: LZ_RAYBN | E134: 22.22 | F134: 2025-03-01T09:00:00 | G134: 01-Mar-2025 09 LZ_RAYBN
A135: 03/01/2025 | B135: 09:00 | C135: N | D135: LZ_SOUTH | E135: 23.34 | F135: 2025-03-01T09:00:00 | G135: 01-Mar-2025 09 LZ_SOUTH
A136: 03/01/2025 | B136: 09:00 | C136: N | D136: LZ_WEST | E136: 22.37 | F136: 2025-03-01T09:00:00 | G136: 01-Mar-2025 09 LZ_WEST
A137: 03/01/2025 | B137: 10:00 | C137: N | D137: HB_BUSAVG | E137: 20.81 | F137: 2025-03-01T10:00:00 | G137: 01-Mar-2025 10 HB_BUSAVG
A138: 03/01/2025 | B138: 10:00 | C138: N | D138: HB_HOUSTON | E138: 20.74 | F138: 2025-03-01T10:00:00 | G138: 01-Mar-2025 10 HB_HOUSTON
A139: 03/01/2025 | B139: 10:00 | C139: N | D139: HB_HUBAVG | E139: 20.8 | F139: 2025-03-01T10:00:00 | G139: 01-Mar-2025 10 HB_HUBAVG
A140: 03/01/2025 | B140: 10:00 | C140: N | D140: HB_NORTH | E140: 20.84 | F140: 2025-03-01T10:00:00 | G140: 01-Mar-2025 10 HB_NORTH
A141: 03/01/2025 | B141: 10:00 | C141: N | D141: HB_PAN | E141: 20.8 | F141: 2025-03-01T10:00:00 | G141: 01-Mar-2025 10 HB_PAN
A142: 03/01/2025 | B142: 10:00 | C142: N | D142: HB_SOUTH | E142: 20.78 | F142: 2025-03-01T10:00:00 | G142: 01-Mar-2025 10 HB_SOUTH
A143: 03/01/2025 | B143: 10:00 | C143: N | D143: HB_WEST | E143: 20.85 | F143: 2025-03-01T10:00:00 | G143: 01-Mar-2025 10 HB_WEST
A144: 03/01/2025 | B144: 10:00 | C144: N | D144: LZ_AEN | E144: 20.87 | F144: 2025-03-01T10:00:00 | G144: 01-Mar-2025 10 LZ_AEN
A145: 03/01/2025 | B145: 10:00 | C145: N | D145: LZ_CPS | E145: 20.85 | F145: 2025-03-01T10:00:00 | G145: 01-Mar-2025 10 LZ_CPS
A146: 03/01/2025 | B146: 10:00 | C146: N | D146: LZ_HOUSTON | E146: 20.79 | F146: 2025-03-01T10:00:00 | G146: 01-Mar-2025 10 LZ_HOUSTON
A147: 03/01/2025 | B147: 10:00 | C147: N | D147: LZ_LCRA | E147: 20.85 | F147: 2025-03-01T10:00:00 | G147: 01-Mar-2025 10 LZ_LCRA
A148: 03/01/2025 | B148: 10:00 | C148: N | D148: LZ_NORTH | E148: 20.85 | F148: 2025-03-01T10:00:00 | G148: 01-Mar-2025 10 LZ_NORTH
A149: 03/01/2025 | B149: 10:00 | C149: N | D149: LZ_RAYBN | E149: 20.86 | F149: 2025-03-01T10:00:00 | G149: 01-Mar-2025 10 LZ_RAYBN
A150: 03/01/2025 | B150: 10:00 | C150: N | D150: LZ_SOUTH | E150: 21.1 | F150: 2025-03-01T10:00:00 | G150: 01-Mar-2025 10 LZ_SOUTH
A151: 03/01/2025 | B151: 10:00 | C151: N | D151: LZ_WEST | E151: 20.93 | F151: 2025-03-01T10:00:00 | G151: 01-Mar-2025 10 LZ_WEST
A152: 03/01/2025 | B152: 11:00 | C152: N | D152: HB_BUSAVG | E152: 20.35 | F152: 2025-03-01T11:00:00 | G152: 01-Mar-2025 11 HB_BUSAVG
A153: 03/01/2025 | B153: 11:00 | C153: N | D153: HB_HOUSTON | E153: 20.33 | F153: 2025-03-01T11:00:00 | G153: 01-Mar-2025 11 HB_HOUSTON
A154: 03/01/2025 | B154: 11:00 | C154: N | D154: HB_HUBAVG | E154: 20.31 | F154: 2025-03-01T11:00:00 | G154: 01-Mar-2025 11 HB_HUBAVG
A155: 03/01/2025 | B155: 11:00 | C155: N | D155: HB_NORTH | E155: 20.46 | F155: 2025-03-01T11:00:00 | G155: 01-Mar-2025 11 HB_NORTH
A156: 03/01/2025 | B156: 11:00 | C156: N | D156: HB_PAN | E156: 20.41 | F156: 2025-03-01T11:00:00 | G156: 01-Mar-2025 11 HB_PAN
A157: 03/01/2025 | B157: 11:00 | C157: N | D157: HB_SOUTH | E157: 20.07 | F157: 2025-03-01T11:00:00 | G157: 01-Mar-2025 11 HB_SOUTH
A158: 03/01/2025 | B158: 11:00 | C158: N | D158: HB_WEST | E158: 20.39 | F158: 2025-03-01T11:00:00 | G158: 01-Mar-2025 11 HB_WEST
A159: 03/01/2025 | B159: 11:00 | C159: N | D159: LZ_AEN | E159: 20.26 | F159: 2025-03-01T11:00:00 | G159: 01-Mar-2025 11 LZ_AEN
A160: 03/01/2025 | B160: 11:00 | C160: N | D160: LZ_CPS | E160: 20.12 | F160: 2025-03-01T11:00:00 | G160: 01-Mar-2025 11 LZ_CPS
A161: 03/01/2025 | B161: 11:00 | C161: N | D161: LZ_HOUSTON | E161: 20.61 | F161: 2025-03-01T11:00:00 | G161: 01-Mar-2025 11 LZ_HOUSTON
A162: 03/01/2025 | B162: 11:00 | C162: N | D162: LZ_LCRA | E162: 20.23 | F162: 2025-03-01T11:00:00 | G162: 01-Mar-2025 11 LZ_LCRA
A163: 03/01/2025 | B163: 11:00 | C163: N | D163: LZ_NORTH | E163: 20.5 | F163: 2025-03-01T11:00:00 | G163: 01-Mar-2025 11 LZ_NORTH
A164: 03/01/2025 | B164: 11:00 | C164: N | D164: LZ_RAYBN | E164: 20.51 | F164: 2025-03-01T11:00:00 | G164: 01-Mar-2025 11 LZ_RAYBN
A165: 03/01/2025 | B165: 11:00 | C165: N | D165: LZ_SOUTH | E165: 20.55 | F165: 2025-03-01T11:00:00 | G165: 01-Mar-2025 11 LZ_SOUTH
A166: 03/01/2025 | B166: 11:00 | C166: N | D166: LZ_WEST | E166: 20.43 | F166: 2025-03-01T11:00:00 | G166: 01-Mar-2025 11 LZ_WEST
A167: 03/01/2025 | B167: 12:00 | C167: N | D167: HB_BUSAVG | E167: 20.23 | F167: 2025-03-01T12:00:00 | G167: 01-Mar-2025 12 HB_BUSAVG
A168: 03/01/2025 | B168: 12:00 | C168: N | D168: HB_HOUSTON | E168: 20.18 | F168: 2025-03-01T12:00:00 | G168: 01-Mar-2025 12 HB_HOUSTON
A169: 03/01/2025 | B169: 12:00 | C169: N | D169: HB_HUBAVG | E169: 20.19 | F169: 2025-03-01T12:00:00 | G169: 01-Mar-2025 12 HB_HUBAVG
A170: 03/01/2025 | B170: 12:00 | C170: N | D170: HB_NORTH | E170: 20.32 | F170: 2025-03-01T12:00:00 | G170: 01-Mar-2025 12 HB_NORTH
A171: 03/01/2025 | B171: 12:00 | C171: N | D171: HB_PAN | E171: 20.22 | F171: 2025-03-01T12:00:00 | G171: 01-Mar-2025 12 HB_PAN
A172: 03/01/2025 | B172: 12:00 | C172: N | D172: HB_SOUTH | E172: 20 | F172: 2025-03-01T12:00:00 | G172: 01-Mar-2025 12 HB_SOUTH
A173: 03/01/2025 | B173: 12:00 | C173: N | D173: HB_WEST | E173: 20.27 | F173: 2025-03-01T12:00:00 | G173: 01-Mar-2025 12 HB_WEST
A174: 03/01/2025 | B174: 12:00 | C174: N | D174: LZ_AEN | E174: 20.14 | F174: 2025-03-01T12:00:00 | G174: 01-Mar-2025 12 LZ_AEN
A175: 03/01/2025 | B175: 12:00 | C175: N | D175: LZ_CPS | E175: 20 | F175: 2025-03-01T12:00:00 | G175: 01-Mar-2025 12 LZ_CPS
A176: 03/01/2025 | B176: 12:00 | C176: N | D176: LZ_HOUSTON | E176: 20.5 | F176: 2025-03-01T12:00:00 | G176: 01-Mar-2025 12 LZ_HOUSTON
A177: 03/01/2025 | B177: 12:00 | C177: N | D177: LZ_LCRA | E177: 20.12 | F177: 2025-03-01T12:00:00 | G177: 01-Mar-2025 12 LZ_LCRA
A178: 03/01/2025 | B178: 12:00 | C178: N | D178: LZ_NORTH | E178: 20.36 | F178: 2025-03-01T12:00:00 | G178: 01-Mar-2025 12 LZ_NORTH
A179: 03/01/2025 | B179: 12:00 | C179: N | D179: LZ_RAYBN | E179: 20.38 | F179: 2025-03-01T12:00:00 | G179: 01-Mar-2025 12 LZ_RAYBN
A180: 03/01/2025 | B180: 12:00 | C180: N | D180: LZ_SOUTH | E180: 20.71 | F180: 2025-03-01T12:00:00 | G180: 01-Mar-2025 12 LZ_SOUTH
A181: 03/01/2025 | B181: 12:00 | C181: N | D181: LZ_WEST | E181: 20.28 | F181: 2025-03-01T12:00:00 | G181: 01-Mar-2025 12 LZ_WEST
A182: 03/01/2025 | B182: 13:00 | C182: N | D182: HB_BUSAVG | E182: 21.01 | F182: 2025-03-01T13:00:00 | G182: 01-Mar-2025 13 HB_BUSAVG
A183: 03/01/2025 | B183: 13:00 | C183: N | D183: HB_HOUSTON | E183: 20.89 | F183: 2025-03-01T13:00:00 | G183: 01-Mar-2025 13 HB_HOUSTON
A184: 03/01/2025 | B184: 13:00 | C184: N | D184: HB_HUBAVG | E184: 20.96 | F184: 2025-03-01T13:00:00 | G184: 01-Mar-2025 13 HB_HUBAVG
A185: 03/01/2025 | B185: 13:00 | C185: N | D185: HB_NORTH | E185: 21.12 | F185: 2025-03-01T13:00:00 | G185: 01-Mar-2025 13 HB_NORTH
A186: 03/01/2025 | B186: 13:00 | C186: N | D186: HB_PAN | E186: 20.99 | F186: 2025-03-01T13:00:00 | G186: 01-Mar-2025 13 HB_PAN
A187: 03/01/2025 | B187: 13:00 | C187: N | D187: HB_SOUTH | E187: 20.78 | F187: 2025-03-01T13:00:00 | G187: 01-Mar-2025 13 HB_SOUTH
A188: 03/01/2025 | B188: 13:00 | C188: N | D188: HB_WEST | E188: 21.06 | F188: 2025-03-01T13:00:00 | G188: 01-Mar-2025 13 HB_WEST
A189: 03/01/2025 | B189: 13:00 | C189: N | D189: LZ_AEN | E189: 20.92 | F189: 2025-03-01T13:00:00 | G189: 01-Mar-2025 13 LZ_AEN
A190: 03/01/2025 | B190: 13:00 | C190: N | D190: LZ_CPS | E190: 20.79 | F190: 2025-03-01T13:00:00 | G190: 01-Mar-2025 13 LZ_CPS
A191: 03/01/2025 | B191: 13:00 | C191: N | D191: LZ_HOUSTON | E191: 21.28 | F191: 2025-03-01T13:00:00 | G191: 01-Mar-2025 13 LZ_HOUSTON
A192: 03/01/2025 | B192: 13:00 | C192: N | D192: LZ_LCRA | E192: 20.92 | F192: 2025-03-01T13:00:00 | G192: 01-Mar-2025 13 LZ_LCRA
A193: 03/01/2025 | B193: 13:00 | C193: N | D193: LZ_NORTH | E193: 21.16 | F193: 2025-03-01T13:00:00 | G193: 01-Mar-2025 13 LZ_NORTH
A194: 03/01/2025 | B194: 13:00 | C194: N | D194: LZ_RAYBN | E194: 21.17 | F194: 2025-03-01T13:00:00 | G194: 01-Mar-2025 13 LZ_RAYBN
A195: 03/01/2025 | B195: 13:00 | C195: N | D195: LZ_SOUTH | E195: 21.65 | F195: =A195+HOUR(B195)/24 -> 2025-03-01T13:00:00 | G195: =TEXT(F195,"dd-mmm-yyyy hh")&" "&D195 -> 01-Mar-2025 13 LZ_SOUTH
A196: 03/01/2025 | B196: 13:00 | C196: N | D196: LZ_WEST | E196: 21.1 | F196: 2025-03-01T13:00:00 | G196: 01-Mar-2025 13 LZ_WEST
A197: 03/01/2025 | B197: 14:00 | C197: N | D197: HB_BUSAVG | E197: 21.69 | F197: 2025-03-01T14:00:00 | G197: 01-Mar-2025 14 HB_BUSAVG
A198: 03/01/2025 | B198: 14:00 | C198: N | D198: HB_HOUSTON | E198: 21.64 | F198: 2025-03-01T14:00:00 | G198: 01-Mar-2025 14 HB_HOUSTON
A199: 03/01/2025 | B199: 14:00 | C199: N | D199: HB_HUBAVG | E199: 21.65 | F199: 2025-03-01T14:00:00 | G199: 01-Mar-2025 14 HB_HUBAVG
A200: 03/01/2025 | B200: 14:00 | C200: N | D200: HB_NORTH | E200: 21.83 | F200: 2025-03-01T14:00:00 | G200: 01-Mar-2025 14 HB_NORTH
... 10946 more rows

Sheet Apr
A1: Delivery Date | B1: Hour Ending | C1: Repeated Hour Flag | D1: Settlement Point | E1: Settlement Point Price
A2: 04/01/2025 | B2: 01:00 | C2: N | D2: HB_BUSAVG | E2: 25.51 | F2: =A2+HOUR(B2)/24 -> 2025-04-01T01:00:00 | G2: =TEXT(F2,"dd-mmm-yyyy hh")&" "&D2 -> 01-Apr-2025 01 HB_BUSAVG
A3: 04/01/2025 | B3: 01:00 | C3: N | D3: HB_HOUSTON | E3: 30.22 | F3: =A3+HOUR(B3)/24 -> 2025-04-01T01:00:00 | G3: =TEXT(F3,"dd-mmm-yyyy hh")&" "&D3 -> 01-Apr-2025 01 HB_HOUSTON
A4: 04/01/2025 | B4: 01:00 | C4: N | D4: HB_HUBAVG | E4: 23.46 | F4: 2025-04-01T01:00:00 | G4: 01-Apr-2025 01 HB_HUBAVG
A5: 04/01/2025 | B5: 01:00 | C5: N | D5: HB_NORTH | E5: 26.73 | F5: 2025-04-01T01:00:00 | G5: 01-Apr-2025 01 HB_NORTH
A6: 04/01/2025 | B6: 01:00 | C6: N | D6: HB_PAN | E6: -14.79 | F6: 2025-04-01T01:00:00 | G6: 01-Apr-2025 01 HB_PAN
A7: 04/01/2025 | B7: 01:00 | C7: N | D7: HB_SOUTH | E7: 29.76 | F7: 2025-04-01T01:00:00 | G7: 01-Apr-2025 01 HB_SOUTH
A8: 04/01/2025 | B8: 01:00 | C8: N | D8: HB_WEST | E8: 7.14 | F8: 2025-04-01T01:00:00 | G8: 01-Apr-2025 01 HB_WEST
A9: 04/01/2025 | B9: 01:00 | C9: N | D9: LZ_AEN | E9: 29.25 | F9: 2025-04-01T01:00:00 | G9: 01-Apr-2025 01 LZ_AEN
A10: 04/01/2025 | B10: 01:00 | C10: N | D10: LZ_CPS | E10: 30.05 | F10: 2025-04-01T01:00:00 | G10: 01-Apr-2025 01 LZ_CPS
A11: 04/01/2025 | B11: 01:00 | C11: N | D11: LZ_HOUSTON | E11: 30.22 | F11: 2025-04-01T01:00:00 | G11: 01-Apr-2025 01 LZ_HOUSTON
A12: 04/01/2025 | B12: 01:00 | C12: N | D12: LZ_LCRA | E12: 29.76 | F12: 2025-04-01T01:00:00 | G12: 01-Apr-2025 01 LZ_LCRA
A13: 04/01/2025 | B13: 01:00 | C13: N | D13: LZ_NORTH | E13: 25.89 | F13: 2025-04-01T01:00:00 | G13: 01-Apr-2025 01 LZ_NORTH
A14: 04/01/2025 | B14: 01:00 | C14: N | D14: LZ_RAYBN | E14: 24.88 | F14: 2025-04-01T01:00:00 | G14: 01-Apr-2025 01 LZ_RAYBN
A15: 04/01/2025 | B15: 01:00 | C15: N | D15: LZ_SOUTH | E15: 29.94 | F15: 2025-04-01T01:00:00 | G15: 01-Apr-2025 01 LZ_SOUTH
A16: 04/01/2025 | B16: 01:00 | C16: N | D16: LZ_WEST | E16: 45.22 | F16: 2025-04-01T01:00:00 | G16: 01-Apr-2025 01 LZ_WEST
A17: 04/01/2025 | B17: 02:00 | C17: N | D17: HB_BUSAVG | E17: 21.27 | F17: 2025-04-01T02:00:00 | G17: 01-Apr-2025 02 HB_BUSAVG
A18: 04/01/2025 | B18: 02:00 | C18: N | D18: HB_HOUSTON | E18: 26.56 | F18: 2025-04-01T02:00:00 | G18: 01-Apr-2025 02 HB_HOUSTON
A19: 04/01/2025 | B19: 02:00 | C19: N | D19: HB_HUBAVG | E19: 18.85 | F19: 2025-04-01T02:00:00 | G19: 01-Apr-2025 02 HB_HUBAVG
A20: 04/01/2025 | B20: 02:00 | C20: N | D20: HB_NORTH | E20: 23 | F20: 2025-04-01T02:00:00 | G20: 01-Apr-2025 02 HB_NORTH
A21: 04/01/2025 | B21: 02:00 | C21: N | D21: HB_PAN | E21: -15.17 | F21: 2025-04-01T02:00:00 | G21: 01-Apr-2025 02 HB_PAN
A22: 04/01/2025 | B22: 02:00 | C22: N | D22: HB_SOUTH | E22: 25.21 | F22: 2025-04-01T02:00:00 | G22: 01-Apr-2025 02 HB_SOUTH
A23: 04/01/2025 | B23: 02:00 | C23: N | D23: HB_WEST | E23: 0.63 | F23: 2025-04-01T02:00:00 | G23: 01-Apr-2025 02 HB_WEST
A24: 04/01/2025 | B24: 02:00 | C24: N | D24: LZ_AEN | E24: 24.49 | F24: 2025-04-01T02:00:00 | G24: 01-Apr-2025 02 LZ_AEN
A25: 04/01/2025 | B25: 02:00 | C25: N | D25: LZ_CPS | E25: 26.08 | F25: 2025-04-01T02:00:00 | G25: 01-Apr-2025 02 LZ_CPS
A26: 04/01/2025 | B26: 02:00 | C26: N | D26: LZ_HOUSTON | E26: 26.52 | F26: 2025-04-01T02:00:00 | G26: 01-Apr-2025 02 LZ_HOUSTON
A27: 04/01/2025 | B27: 02:00 | C27: N | D27: LZ_LCRA | E27: 24.67 | F27: 2025-04-01T02:00:00 | G27: 01-Apr-2025 02 LZ_LCRA
A28: 04/01/2025 | B28: 02:00 | C28: N | D28: LZ_NORTH | E28: 21.89 | F28: 2025-04-01T02:00:00 | G28: 01-Apr-2025 02 LZ_NORTH
A29: 04/01/2025 | B29: 02:00 | C29: N | D29: LZ_RAYBN | E29: 21.48 | F29: 2025-04-01T02:00:00 | G29: 01-Apr-2025 02 LZ_RAYBN
A30: 04/01/2025 | B30: 02:00 | C30: N | D30: LZ_SOUTH | E30: 25.38 | F30: 2025-04-01T02:00:00 | G30: 01-Apr-2025 02 LZ_SOUTH
A31: 04/01/2025 | B31: 02:00 | C31: N | D31: LZ_WEST | E31: 30.89 | F31: 2025-04-01T02:00:00 | G31: 01-Apr-2025 02 LZ_WEST
A32: 04/01/2025 | B32: 03:00 | C32: N | D32: HB_BUSAVG | E32: 19.93 | F32: 2025-04-01T03:00:00 | G32: 01-Apr-2025 03 HB_BUSAVG
A33: 04/01/2025 | B33: 03:00 | C33: N | D33: HB_HOUSTON | E33: 25.75 | F33: 2025-04-01T03:00:00 | G33: 01-Apr-2025 03 HB_HOUSTON
A34: 04/01/2025 | B34: 03:00 | C34: N | D34: HB_HUBAVG | E34: 17.4 | F34: 2025-04-01T03:00:00 | G34: 01-Apr-2025 03 HB_HUBAVG
A35: 04/01/2025 | B35: 03:00 | C35: N | D35: HB_NORTH | E35: 21.7 | F35: 2025-04-01T03:00:00 | G35: 01-Apr-2025 03 HB_NORTH
A36: 04/01/2025 | B36: 03:00 | C36: N | D36: HB_PAN | E36: -17.11 | F36: 2025-04-01T03:00:00 | G36: 01-Apr-2025 03 HB_PAN
A37: 04/01/2025 | B37: 03:00 | C37: N | D37: HB_SOUTH | E37: 24.07 | F37: 2025-04-01T03:00:00 | G37: 01-Apr-2025 03 HB_SOUTH
A38: 04/01/2025 | B38: 03:00 | C38: N | D38: HB_WEST | E38: -1.92 | F38: 2025-04-01T03:00:00 | G38: 01-Apr-2025 03 HB_WEST
A39: 04/01/2025 | B39: 03:00 | C39: N | D39: LZ_AEN | E39: 23.08 | F39: 2025-04-01T03:00:00 | G39: 01-Apr-2025 03 LZ_AEN
A40: 04/01/2025 | B40: 03:00 | C40: N | D40: LZ_CPS | E40: 25.15 | F40: 2025-04-01T03:00:00 | G40: 01-Apr-2025 03 LZ_CPS
A41: 04/01/2025 | B41: 03:00 | C41: N | D41: LZ_HOUSTON | E41: 25.7 | F41: 2025-04-01T03:00:00 | G41: 01-Apr-2025 03 LZ_HOUSTON
A42: 04/01/2025 | B42: 03:00 | C42: N | D42: LZ_LCRA | E42: 23.24 | F42: 2025-04-01T03:00:00 | G42: 01-Apr-2025 03 LZ_LCRA
A43: 04/01/2025 | B43: 03:00 | C43: N | D43: LZ_NORTH | E43: 20.16 | F43: 2025-04-01T03:00:00 | G43: 01-Apr-2025 03 LZ_NORTH
A44: 04/01/2025 | B44: 03:00 | C44: N | D44: LZ_RAYBN | E44: 21.01 | F44: 2025-04-01T03:00:00 | G44: 01-Apr-2025 03 LZ_RAYBN
A45: 04/01/2025 | B45: 03:00 | C45: N | D45: LZ_SOUTH | E45: 24.24 | F45: 2025-04-01T03:00:00 | G45: 01-Apr-2025 03 LZ_SOUTH
A46: 04/01/2025 | B46: 03:00 | C46: N | D46: LZ_WEST | E46: 34.54 | F46: 2025-04-01T03:00:00 | G46: 01-Apr-2025 03 LZ_WEST
A47: 04/01/2025 | B47: 04:00 | C47: N | D47: HB_BUSAVG | E47: 20.07 | F47: 2025-04-01T04:00:00 | G47: 01-Apr-2025 04 HB_BUSAVG
A48: 04/01/2025 | B48: 04:00 | C48: N | D48: HB_HOUSTON | E48: 25.94 | F48: 2025-04-01T04:00:00 | G48: 01-Apr-2025 04 HB_HOUSTON
A49: 04/01/2025 | B49: 04:00 | C49: N | D49: HB_HUBAVG | E49: 17.64 | F49: 2025-04-01T04:00:00 | G49: 01-Apr-2025 04 HB_HUBAVG
A50: 04/01/2025 | B50: 04:00 | C50: N | D50: HB_NORTH | E50: 21.64 | F50: 2025-04-01T04:00:00 | G50: 01-Apr-2025 04 HB_NORTH
A51: 04/01/2025 | B51: 04:00 | C51: N | D51: HB_PAN | E51: -17.45 | F51: 2025-04-01T04:00:00 | G51: 01-Apr-2025 04 HB_PAN
A52: 04/01/2025 | B52: 04:00 | C52: N | D52: HB_SOUTH | E52: 24.58 | F52: 2025-04-01T04:00:00 | G52: 01-Apr-2025 04 HB_SOUTH
A53: 04/01/2025 | B53: 04:00 | C53: N | D53: HB_WEST | E53: -1.61 | F53: 2025-04-01T04:00:00 | G53: 01-Apr-2025 04 HB_WEST
A54: 04/01/2025 | B54: 04:00 | C54: N | D54: LZ_AEN | E54: 23.34 | F54: 2025-04-01T04:00:00 | G54: 01-Apr-2025 04 LZ_AEN
A55: 04/01/2025 | B55: 04:00 | C55: N | D55: LZ_CPS | E55: 26.17 | F55: 2025-04-01T04:00:00 | G55: 01-Apr-2025 04 LZ_CPS
A56: 04/01/2025 | B56: 04:00 | C56: N | D56: LZ_HOUSTON | E56: 25.9 | F56: 2025-04-01T04:00:00 | G56: 01-Apr-2025 04 LZ_HOUSTON
A57: 04/01/2025 | B57: 04:00 | C57: N | D57: LZ_LCRA | E57: 23.43 | F57: 2025-04-01T04:00:00 | G57: 01-Apr-2025 04 LZ_LCRA
A58: 04/01/2025 | B58: 04:00 | C58: N | D58: LZ_NORTH | E58: 20.15 | F58: 2025-04-01T04:00:00 | G58: 01-Apr-2025 04 LZ_NORTH
A59: 04/01/2025 | B59: 04:00 | C59: N | D59: LZ_RAYBN | E59: 20.94 | F59: 2025-04-01T04:00:00 | G59: 01-Apr-2025 04 LZ_RAYBN
A60: 04/01/2025 | B60: 04:00 | C60: N | D60: LZ_SOUTH | E60: 24.84 | F60: 2025-04-01T04:00:00 | G60: 01-Apr-2025 04 LZ_SOUTH
A61: 04/01/2025 | B61: 04:00 | C61: N | D61: LZ_WEST | E61: 34.43 | F61: 2025-04-01T04:00:00 | G61: 01-Apr-2025 04 LZ_WEST
A62: 04/01/2025 | B62: 05:00 | C62: N | D62: HB_BUSAVG | E62: 20.36 | F62: 2025-04-01T05:00:00 | G62: 01-Apr-2025 05 HB_BUSAVG
A63: 04/01/2025 | B63: 05:00 | C63: N | D63: HB_HOUSTON | E63: 25.57 | F63: 2025-04-01T05:00:00 | G63: 01-Apr-2025 05 HB_HOUSTON
A64: 04/01/2025 | B64: 05:00 | C64: N | D64: HB_HUBAVG | E64: 17.71 | F64: 2025-04-01T05:00:00 | G64: 01-Apr-2025 05 HB_HUBAVG
A65: 04/01/2025 | B65: 05:00 | C65: N | D65: HB_NORTH | E65: 22.23 | F65: 2025-04-01T05:00:00 | G65: 01-Apr-2025 05 HB_NORTH
A66: 04/01/2025 | B66: 05:00 | C66: N | D66: HB_PAN | E66: -16.92 | F66: 2025-04-01T05:00:00 | G66: 01-Apr-2025 05 HB_PAN
A67: 04/01/2025 | B67: 05:00 | C67: N | D67: HB_SOUTH | E67: 24.88 | F67: =A67+HOUR(B67)/24 -> 2025-04-01T05:00:00 | G67: =TEXT(F67,"dd-mmm-yyyy hh")&" "&D67 -> 01-Apr-2025 05 HB_SOUTH
A68: 04/01/2025 | B68: 05:00 | C68: N | D68: HB_WEST | E68: -1.86 | F68: 2025-04-01T05:00:00 | G68: 01-Apr-2025 05 HB_WEST
A69: 04/01/2025 | B69: 05:00 | C69: N | D69: LZ_AEN | E69: 23.37 | F69: 2025-04-01T05:00:00 | G69: 01-Apr-2025 05 LZ_AEN
A70: 04/01/2025 | B70: 05:00 | C70: N | D70: LZ_CPS | E70: 27.88 | F70: 2025-04-01T05:00:00 | G70: 01-Apr-2025 05 LZ_CPS
A71: 04/01/2025 | B71: 05:00 | C71: N | D71: LZ_HOUSTON | E71: 25.56 | F71: 2025-04-01T05:00:00 | G71: 01-Apr-2025 05 LZ_HOUSTON
A72: 04/01/2025 | B72: 05:00 | C72: N | D72: LZ_LCRA | E72: 23.14 | F72: 2025-04-01T05:00:00 | G72: 01-Apr-2025 05 LZ_LCRA
A73: 04/01/2025 | B73: 05:00 | C73: N | D73: LZ_NORTH | E73: 20.59 | F73: 2025-04-01T05:00:00 | G73: 01-Apr-2025 05 LZ_NORTH
A74: 04/01/2025 | B74: 05:00 | C74: N | D74: LZ_RAYBN | E74: 21.79 | F74: 2025-04-01T05:00:00 | G74: 01-Apr-2025 05 LZ_RAYBN
A75: 04/01/2025 | B75: 05:00 | C75: N | D75: LZ_SOUTH | E75: 25.13 | F75: 2025-04-01T05:00:00 | G75: 01-Apr-2025 05 LZ_SOUTH
A76: 04/01/2025 | B76: 05:00 | C76: N | D76: LZ_WEST | E76: 29.69 | F76: 2025-04-01T05:00:00 | G76: 01-Apr-2025 05 LZ_WEST
A77: 04/01/2025 | B77: 06:00 | C77: N | D77: HB_BUSAVG | E77: 25.08 | F77: 2025-04-01T06:00:00 | G77: 01-Apr-2025 06 HB_BUSAVG
A78: 04/01/2025 | B78: 06:00 | C78: N | D78: HB_HOUSTON | E78: 30.88 | F78: 2025-04-01T06:00:00 | G78: 01-Apr-2025 06 HB_HOUSTON
A79: 04/01/2025 | B79: 06:00 | C79: N | D79: HB_HUBAVG | E79: 21.7 | F79: 2025-04-01T06:00:00 | G79: 01-Apr-2025 06 HB_HUBAVG
A80: 04/01/2025 | B80: 06:00 | C80: N | D80: HB_NORTH | E80: 28 | F80: 2025-04-01T06:00:00 | G80: 01-Apr-2025 06 HB_NORTH
A81: 04/01/2025 | B81: 06:00 | C81: N | D81: HB_PAN | E81: -14.4 | F81: 2025-04-01T06:00:00 | G81: 01-Apr-2025 06 HB_PAN
A82: 04/01/2025 | B82: 06:00 | C82: N | D82: HB_SOUTH | E82: 28.95 | F82: 2025-04-01T06:00:00 | G82: 01-Apr-2025 06 HB_SOUTH
A83: 04/01/2025 | B83: 06:00 | C83: N | D83: HB_WEST | E83: -1.02 | F83: 2025-04-01T06:00:00 | G83: 01-Apr-2025 06 HB_WEST
A84: 04/01/2025 | B84: 06:00 | C84: N | D84: LZ_AEN | E84: 27.83 | F84: 2025-04-01T06:00:00 | G84: 01-Apr-2025 06 LZ_AEN
A85: 04/01/2025 | B85: 06:00 | C85: N | D85: LZ_CPS | E85: 30.73 | F85: 2025-04-01T06:00:00 | G85: 01-Apr-2025 06 LZ_CPS
A86: 04/01/2025 | B86: 06:00 | C86: N | D86: LZ_HOUSTON | E86: 30.83 | F86: 2025-04-01T06:00:00 | G86: 01-Apr-2025 06 LZ_HOUSTON
A87: 04/01/2025 | B87: 06:00 | C87: N | D87: LZ_LCRA | E87: 27.49 | F87: 2025-04-01T06:00:00 | G87: 01-Apr-2025 06 LZ_LCRA
A88: 04/01/2025 | B88: 06:00 | C88: N | D88: LZ_NORTH | E88: 26.36 | F88: 2025-04-01T06:00:00 | G88: 01-Apr-2025 06 LZ_NORTH
A89: 04/01/2025 | B89: 06:00 | C89: N | D89: LZ_RAYBN | E89: 27.07 | F89: 2025-04-01T06:00:00 | G89: 01-Apr-2025 06 LZ_RAYBN
A90: 04/01/2025 | B90: 06:00 | C90: N | D90: LZ_SOUTH | E90: 29.15 | F90: 2025-04-01T06:00:00 | G90: 01-Apr-2025 06 LZ_SOUTH
A91: 04/01/2025 | B91: 06:00 | C91: N | D91: LZ_WEST | E91: 28.74 | F91: 2025-04-01T06:00:00 | G91: 01-Apr-2025 06 LZ_WEST
A92: 04/01/2025 | B92: 07:00 | C92: N | D92: HB_BUSAVG | E92: 26.65 | F92: 2025-04-01T07:00:00 | G92: 01-Apr-2025 07 HB_BUSAVG
A93: 04/01/2025 | B93: 07:00 | C93: N | D93: HB_HOUSTON | E93: 32.97 | F93: 2025-04-01T07:00:00 | G93: 01-Apr-2025 07 HB_HOUSTON
A94: 04/01/2025 | B94: 07:00 | C94: N | D94: HB_HUBAVG | E94: 23.56 | F94: 2025-04-01T07:00:00 | G94: 01-Apr-2025 07 HB_HUBAVG
A95: 04/01/2025 | B95: 07:00 | C95: N | D95: HB_NORTH | E95: 28.47 | F95: 2025-04-01T07:00:00 | G95: 01-Apr-2025 07 HB_NORTH
A96: 04/01/2025 | B96: 07:00 | C96: N | D96: HB_PAN | E96: -11.9 | F96: 2025-04-01T07:00:00 | G96: 01-Apr-2025 07 HB_PAN
A97: 04/01/2025 | B97: 07:00 | C97: N | D97: HB_SOUTH | E97: 33.32 | F97: 2025-04-01T07:00:00 | G97: 01-Apr-2025 07 HB_SOUTH
A98: 04/01/2025 | B98: 07:00 | C98: N | D98: HB_WEST | E98: -0.51 | F98: 2025-04-01T07:00:00 | G98: 01-Apr-2025 07 HB_WEST
A99: 04/01/2025 | B99: 07:00 | C99: N | D99: LZ_AEN | E99: 30.82 | F99: 2025-04-01T07:00:00 | G99: 01-Apr-2025 07 LZ_AEN
A100: 04/01/2025 | B100: 07:00 | C100: N | D100: LZ_CPS | E100: 39.62 | F100: 2025-04-01T07:00:00 | G100: 01-Apr-2025 07 LZ_CPS
A101: 04/01/2025 | B101: 07:00 | C101: N | D101: LZ_HOUSTON | E101: 33.02 | F101: 2025-04-01T07:00:00 | G101: 01-Apr-2025 07 LZ_HOUSTON
A102: 04/01/2025 | B102: 07:00 | C102: N | D102: LZ_LCRA | E102: 29.94 | F102: 2025-04-01T07:00:00 | G102: 01-Apr-2025 07 LZ_LCRA
A103: 04/01/2025 | B103: 07:00 | C103: N | D103: LZ_NORTH | E103: 27.31 | F103: 2025-04-01T07:00:00 | G103: 01-Apr-2025 07 LZ_NORTH
A104: 04/01/2025 | B104: 07:00 | C104: N | D104: LZ_RAYBN | E104: 26.38 | F104: 2025-04-01T07:00:00 | G104: 01-Apr-2025 07 LZ_RAYBN
A105: 04/01/2025 | B105: 07:00 | C105: N | D105: LZ_SOUTH | E105: 33.52 | F105: 2025-04-01T07:00:00 | G105: 01-Apr-2025 07 LZ_SOUTH
A106: 04/01/2025 | B106: 07:00 | C106: N | D106: LZ_WEST | E106: 21.34 | F106: 2025-04-01T07:00:00 | G106: 01-Apr-2025 07 LZ_WEST
A107: 04/01/2025 | B107: 08:00 | C107: N | D107: HB_BUSAVG | E107: 28.02 | F107: 2025-04-01T08:00:00 | G107: 01-Apr-2025 08 HB_BUSAVG
A108: 04/01/2025 | B108: 08:00 | C108: N | D108: HB_HOUSTON | E108: 33.84 | F108: 2025-04-01T08:00:00 | G108: 01-Apr-2025 08 HB_HOUSTON
A109: 04/01/2025 | B109: 08:00 | C109: N | D109: HB_HUBAVG | E109: 24.8 | F109: 2025-04-01T08:00:00 | G109: 01-Apr-2025 08 HB_HUBAVG
A110: 04/01/2025 | B110: 08:00 | C110: N | D110: HB_NORTH | E110: 30.15 | F110: 2025-04-01T08:00:00 | G110: 01-Apr-2025 08 HB_NORTH
A111: 04/01/2025 | B111: 08:00 | C111: N | D111: HB_PAN | E111: -11.56 | F111: 2025-04-01T08:00:00 | G111: 01-Apr-2025 08 HB_PAN
A112: 04/01/2025 | B112: 08:00 | C112: N | D112: HB_SOUTH | E112: 34.18 | F112: 2025-04-01T08:00:00 | G112: 01-Apr-2025 08 HB_SOUTH
A113: 04/01/2025 | B113: 08:00 | C113: N | D113: HB_WEST | E113: 1.01 | F113: 2025-04-01T08:00:00 | G113: 01-Apr-2025 08 HB_WEST
A114: 04/01/2025 | B114: 08:00 | C114: N | D114: LZ_AEN | E114: 32.12 | F114: 2025-04-01T08:00:00 | G114: 01-Apr-2025 08 LZ_AEN
A115: 04/01/2025 | B115: 08:00 | C115: N | D115: LZ_CPS | E115: 39.57 | F115: 2025-04-01T08:00:00 | G115: 01-Apr-2025 08 LZ_CPS
A116: 04/01/2025 | B116: 08:00 | C116: N | D116: LZ_HOUSTON | E116: 33.89 | F116: 2025-04-01T08:00:00 | G116: 01-Apr-2025 08 LZ_HOUSTON
A117: 04/01/2025 | B117: 08:00 | C117: N | D117: LZ_LCRA | E117: 31.54 | F117: 2025-04-01T08:00:00 | G117: 01-Apr-2025 08 LZ_LCRA
A118: 04/01/2025 | B118: 08:00 | C118: N | D118: LZ_NORTH | E118: 28.88 | F118: 2025-04-01T08:00:00 | G118: 01-Apr-2025 08 LZ_NORTH
A119: 04/01/2025 | B119: 08:00 | C119: N | D119: LZ_RAYBN | E119: 27.74 | F119: 2025-04-01T08:00:00 | G119: 01-Apr-2025 08 LZ_RAYBN
A120: 04/01/2025 | B120: 08:00 | C120: N | D120: LZ_SOUTH | E120: 34.34 | F120: 2025-04-01T08:00:00 | G120: 01-Apr-2025 08 LZ_SOUTH
A121: 04/01/2025 | B121: 08:00 | C121: N | D121: LZ_WEST | E121: 20.01 | F121: 2025-04-01T08:00:00 | G121: 01-Apr-2025 08 LZ_WEST
A122: 04/01/2025 | B122: 09:00 | C122: N | D122: HB_BUSAVG | E122: 20.63 | F122: 2025-04-01T09:00:00 | G122: 01-Apr-2025 09 HB_BUSAVG
A123: 04/01/2025 | B123: 09:00 | C123: N | D123: HB_HOUSTON | E123: 28.28 | F123: 2025-04-01T09:00:00 | G123: 01-Apr-2025 09 HB_HOUSTON
A124: 04/01/2025 | B124: 09:00 | C124: N | D124: HB_HUBAVG | E124: 18.08 | F124: 2025-04-01T09:00:00 | G124: 01-Apr-2025 09 HB_HUBAVG
A125: 04/01/2025 | B125: 09:00 | C125: N | D125: HB_NORTH | E125: 21.49 | F125: 2025-04-01T09:00:00 | G125: 01-Apr-2025 09 HB_NORTH
A126: 04/01/2025 | B126: 09:00 | C126: N | D126: HB_PAN | E126: -17.33 | F126: 2025-04-01T09:00:00 | G126: 01-Apr-2025 09 HB_PAN
A127: 04/01/2025 | B127: 09:00 | C127: N | D127: HB_SOUTH | E127: 28.06 | F127: 2025-04-01T09:00:00 | G127: 01-Apr-2025 09 HB_SOUTH
A128: 04/01/2025 | B128: 09:00 | C128: N | D128: HB_WEST | E128: -5.53 | F128: 2025-04-01T09:00:00 | G128: 01-Apr-2025 09 HB_WEST
A129: 04/01/2025 | B129: 09:00 | C129: N | D129: LZ_AEN | E129: 25.31 | F129: 2025-04-01T09:00:00 | G129: 01-Apr-2025 09 LZ_AEN
A130: 04/01/2025 | B130: 09:00 | C130: N | D130: LZ_CPS | E130: 35.23 | F130: 2025-04-01T09:00:00 | G130: 01-Apr-2025 09 LZ_CPS
A131: 04/01/2025 | B131: 09:00 | C131: N | D131: LZ_HOUSTON | E131: 28.3 | F131: =A131+HOUR(B131)/24 -> 2025-04-01T09:00:00 | G131: =TEXT(F131,"dd-mmm-yyyy hh")&" "&D131 -> 01-Apr-2025 09 LZ_HOUSTON
A132: 04/01/2025 | B132: 09:00 | C132: N | D132: LZ_LCRA | E132: 24.05 | F132: 2025-04-01T09:00:00 | G132: 01-Apr-2025 09 LZ_LCRA
A133: 04/01/2025 | B133: 09:00 | C133: N | D133: LZ_NORTH | E133: 20.73 | F133: 2025-04-01T09:00:00 | G133: 01-Apr-2025 09 LZ_NORTH
A134: 04/01/2025 | B134: 09:00 | C134: N | D134: LZ_RAYBN | E134: 18.76 | F134: 2025-04-01T09:00:00 | G134: 01-Apr-2025 09 LZ_RAYBN
A135: 04/01/2025 | B135: 09:00 | C135: N | D135: LZ_SOUTH | E135: 28.43 | F135: 2025-04-01T09:00:00 | G135: 01-Apr-2025 09 LZ_SOUTH
A136: 04/01/2025 | B136: 09:00 | C136: N | D136: LZ_WEST | E136: 0 | F136: 2025-04-01T09:00:00 | G136: 01-Apr-2025 09 LZ_WEST
A137: 04/01/2025 | B137: 10:00 | C137: N | D137: HB_BUSAVG | E137: 15.25 | F137: 2025-04-01T10:00:00 | G137: 01-Apr-2025 10 HB_BUSAVG
A138: 04/01/2025 | B138: 10:00 | C138: N | D138: HB_HOUSTON | E138: 25.42 | F138: 2025-04-01T10:00:00 | G138: 01-Apr-2025 10 HB_HOUSTON
A139: 04/01/2025 | B139: 10:00 | C139: N | D139: HB_HUBAVG | E139: 13.92 | F139: 2025-04-01T10:00:00 | G139: 01-Apr-2025 10 HB_HUBAVG
A140: 04/01/2025 | B140: 10:00 | C140: N | D140: HB_NORTH | E140: 14.4 | F140: 2025-04-01T10:00:00 | G140: 01-Apr-2025 10 HB_NORTH
A141: 04/01/2025 | B141: 10:00 | C141: N | D141: HB_PAN | E141: -19.46 | F141: 2025-04-01T10:00:00 | G141: 01-Apr-2025 10 HB_PAN
A142: 04/01/2025 | B142: 10:00 | C142: N | D142: HB_SOUTH | E142: 22.8 | F142: 2025-04-01T10:00:00 | G142: 01-Apr-2025 10 HB_SOUTH
A143: 04/01/2025 | B143: 10:00 | C143: N | D143: HB_WEST | E143: -6.96 | F143: 2025-04-01T10:00:00 | G143: 01-Apr-2025 10 HB_WEST
A144: 04/01/2025 | B144: 10:00 | C144: N | D144: LZ_AEN | E144: 19.89 | F144: 2025-04-01T10:00:00 | G144: 01-Apr-2025 10 LZ_AEN
A145: 04/01/2025 | B145: 10:00 | C145: N | D145: LZ_CPS | E145: 28.52 | F145: 2025-04-01T10:00:00 | G145: 01-Apr-2025 10 LZ_CPS
A146: 04/01/2025 | B146: 10:00 | C146: N | D146: LZ_HOUSTON | E146: 25.39 | F146: 2025-04-01T10:00:00 | G146: 01-Apr-2025 10 LZ_HOUSTON
A147: 04/01/2025 | B147: 10:00 | C147: N | D147: LZ_LCRA | E147: 19.73 | F147: 2025-04-01T10:00:00 | G147: 01-Apr-2025 10 LZ_LCRA
A148: 04/01/2025 | B148: 10:00 | C148: N | D148: LZ_NORTH | E148: 13.95 | F148: 2025-04-01T10:00:00 | G148: 01-Apr-2025 10 LZ_NORTH
A149: 04/01/2025 | B149: 10:00 | C149: N | D149: LZ_RAYBN | E149: 12.19 | F149: 2025-04-01T10:00:00 | G149: 01-Apr-2025 10 LZ_RAYBN
A150: 04/01/2025 | B150: 10:00 | C150: N | D150: LZ_SOUTH | E150: 22.95 | F150: 2025-04-01T10:00:00 | G150: 01-Apr-2025 10 LZ_SOUTH
A151: 04/01/2025 | B151: 10:00 | C151: N | D151: LZ_WEST | E151: -1.77 | F151: 2025-04-01T10:00:00 | G151: 01-Apr-2025 10 LZ_WEST
A152: 04/01/2025 | B152: 11:00 | C152: N | D152: HB_BUSAVG | E152: 10.26 | F152: 2025-04-01T11:00:00 | G152: 01-Apr-2025 11 HB_BUSAVG
A153: 04/01/2025 | B153: 11:00 | C153: N | D153: HB_HOUSTON | E153: 25.7 | F153: 2025-04-01T11:00:00 | G153: 01-Apr-2025 11 HB_HOUSTON
A154: 04/01/2025 | B154: 11:00 | C154: N | D154: HB_HUBAVG | E154: 10.02 | F154: 2025-04-01T11:00:00 | G154: 01-Apr-2025 11 HB_HUBAVG
A155: 04/01/2025 | B155: 11:00 | C155: N | D155: HB_NORTH | E155: 7.48 | F155: 2025-04-01T11:00:00 | G155: 01-Apr-2025 11 HB_NORTH
A156: 04/01/2025 | B156: 11:00 | C156: N | D156: HB_PAN | E156: -23.35 | F156: 2025-04-01T11:00:00 | G156: 01-Apr-2025 11 HB_PAN
A157: 04/01/2025 | B157: 11:00 | C157: N | D157: HB_SOUTH | E157: 18.86 | F157: 2025-04-01T11:00:00 | G157: 01-Apr-2025 11 HB_SOUTH
A158: 04/01/2025 | B158: 11:00 | C158: N | D158: HB_WEST | E158: -11.95 | F158: 2025-04-01T11:00:00 | G158: 01-Apr-2025 11 HB_WEST
A159: 04/01/2025 | B159: 11:00 | C159: N | D159: LZ_AEN | E159: 15.81 | F159: 2025-04-01T11:00:00 | G159: 01-Apr-2025 11 LZ_AEN
A160: 04/01/2025 | B160: 11:00 | C160: N | D160: LZ_CPS | E160: 23.18 | F160: 2025-04-01T11:00:00 | G160: 01-Apr-2025 11 LZ_CPS
A161: 04/01/2025 | B161: 11:00 | C161: N | D161: LZ_HOUSTON | E161: 25.5 | F161: 2025-04-01T11:00:00 | G161: 01-Apr-2025 11 LZ_HOUSTON
A162: 04/01/2025 | B162: 11:00 | C162: N | D162: LZ_LCRA | E162: 16.24 | F162: 2025-04-01T11:00:00 | G162: 01-Apr-2025 11 LZ_LCRA
A163: 04/01/2025 | B163: 11:00 | C163: N | D163: LZ_NORTH | E163: 7.1 | F163: 2025-04-01T11:00:00 | G163: 01-Apr-2025 11 LZ_NORTH
A164: 04/01/2025 | B164: 11:00 | C164: N | D164: LZ_RAYBN | E164: 5.57 | F164: 2025-04-01T11:00:00 | G164: 01-Apr-2025 11 LZ_RAYBN
A165: 04/01/2025 | B165: 11:00 | C165: N | D165: LZ_SOUTH | E165: 19.83 | F165: 2025-04-01T11:00:00 | G165: 01-Apr-2025 11 LZ_SOUTH
A166: 04/01/2025 | B166: 11:00 | C166: N | D166: LZ_WEST | E166: -5.93 | F166: 2025-04-01T11:00:00 | G166: 01-Apr-2025 11 LZ_WEST
A167: 04/01/2025 | B167: 12:00 | C167: N | D167: HB_BUSAVG | E167: 9.53 | F167: 2025-04-01T12:00:00 | G167: 01-Apr-2025 12 HB_BUSAVG
A168: 04/01/2025 | B168: 12:00 | C168: N | D168: HB_HOUSTON | E168: 26.32 | F168: 2025-04-01T12:00:00 | G168: 01-Apr-2025 12 HB_HOUSTON
A169: 04/01/2025 | B169: 12:00 | C169: N | D169: HB_HUBAVG | E169: 9.51 | F169: 2025-04-01T12:00:00 | G169: 01-Apr-2025 12 HB_HUBAVG
A170: 04/01/2025 | B170: 12:00 | C170: N | D170: HB_NORTH | E170: 6.32 | F170: 2025-04-01T12:00:00 | G170: 01-Apr-2025 12 HB_NORTH
A171: 04/01/2025 | B171: 12:00 | C171: N | D171: HB_PAN | E171: -25.93 | F171: 2025-04-01T12:00:00 | G171: 01-Apr-2025 12 HB_PAN
A172: 04/01/2025 | B172: 12:00 | C172: N | D172: HB_SOUTH | E172: 18.38 | F172: 2025-04-01T12:00:00 | G172: 01-Apr-2025 12 HB_SOUTH
A173: 04/01/2025 | B173: 12:00 | C173: N | D173: HB_WEST | E173: -12.98 | F173: 2025-04-01T12:00:00 | G173: 01-Apr-2025 12 HB_WEST
A174: 04/01/2025 | B174: 12:00 | C174: N | D174: LZ_AEN | E174: 15.26 | F174: 2025-04-01T12:00:00 | G174: 01-Apr-2025 12 LZ_AEN
A175: 04/01/2025 | B175: 12:00 | C175: N | D175: LZ_CPS | E175: 23.48 | F175: 2025-04-01T12:00:00 | G175: 01-Apr-2025 12 LZ_CPS
A176: 04/01/2025 | B176: 12:00 | C176: N | D176: LZ_HOUSTON | E176: 26.15 | F176: 2025-04-01T12:00:00 | G176: 01-Apr-2025 12 LZ_HOUSTON
A177: 04/01/2025 | B177: 12:00 | C177: N | D177: LZ_LCRA | E177: 15.26 | F177: 2025-04-01T12:00:00 | G177: 01-Apr-2025 12 LZ_LCRA
A178: 04/01/2025 | B178: 12:00 | C178: N | D178: LZ_NORTH | E178: 5.98 | F178: 2025-04-01T12:00:00 | G178: 01-Apr-2025 12 LZ_NORTH
A179: 04/01/2025 | B179: 12:00 | C179: N | D179: LZ_RAYBN | E179: 4.16 | F179: 2025-04-01T12:00:00 | G179: 01-Apr-2025 12 LZ_RAYBN
A180: 04/01/2025 | B180: 12:00 | C180: N | D180: LZ_SOUTH | E180: 20.15 | F180: 2025-04-01T12:00:00 | G180: 01-Apr-2025 12 LZ_SOUTH
A181: 04/01/2025 | B181: 12:00 | C181: N | D181: LZ_WEST | E181: -6.65 | F181: 2025-04-01T12:00:00 | G181: 01-Apr-2025 12 LZ_WEST
A182: 04/01/2025 | B182: 13:00 | C182: N | D182: HB_BUSAVG | E182: 9.45 | F182: 2025-04-01T13:00:00 | G182: 01-Apr-2025 13 HB_BUSAVG
A183: 04/01/2025 | B183: 13:00 | C183: N | D183: HB_HOUSTON | E183: 26.69 | F183: 2025-04-01T13:00:00 | G183: 01-Apr-2025 13 HB_HOUSTON
A184: 04/01/2025 | B184: 13:00 | C184: N | D184: HB_HUBAVG | E184: 9.32 | F184: 2025-04-01T13:00:00 | G184: 01-Apr-2025 13 HB_HUBAVG
A185: 04/01/2025 | B185: 13:00 | C185: N | D185: HB_NORTH | E185: 6.68 | F185: 2025-04-01T13:00:00 | G185: 01-Apr-2025 13 HB_NORTH
A186: 04/01/2025 | B186: 13:00 | C186: N | D186: HB_PAN | E186: -26.2 | F186: 2025-04-01T13:00:00 | G186: 01-Apr-2025 13 HB_PAN
A187: 04/01/2025 | B187: 13:00 | C187: N | D187: HB_SOUTH | E187: 17.12 | F187: 2025-04-01T13:00:00 | G187: 01-Apr-2025 13 HB_SOUTH
A188: 04/01/2025 | B188: 13:00 | C188: N | D188: HB_WEST | E188: -13.21 | F188: 2025-04-01T13:00:00 | G188: 01-Apr-2025 13 HB_WEST
A189: 04/01/2025 | B189: 13:00 | C189: N | D189: LZ_AEN | E189: 15.62 | F189: 2025-04-01T13:00:00 | G189: 01-Apr-2025 13 LZ_AEN
A190: 04/01/2025 | B190: 13:00 | C190: N | D190: LZ_CPS | E190: 21.94 | F190: 2025-04-01T13:00:00 | G190: 01-Apr-2025 13 LZ_CPS
A191: 04/01/2025 | B191: 13:00 | C191: N | D191: LZ_HOUSTON | E191: 26.81 | F191: 2025-04-01T13:00:00 | G191: 01-Apr-2025 13 LZ_HOUSTON
A192: 04/01/2025 | B192: 13:00 | C192: N | D192: LZ_LCRA | E192: 15.6 | F192: 2025-04-01T13:00:00 | G192: 01-Apr-2025 13 LZ_LCRA
A193: 04/01/2025 | B193: 13:00 | C193: N | D193: LZ_NORTH | E193: 6.36 | F193: 2025-04-01T13:00:00 | G193: 01-Apr-2025 13 LZ_NORTH
A194: 04/01/2025 | B194: 13:00 | C194: N | D194: LZ_RAYBN | E194: 4.56 | F194: 2025-04-01T13:00:00 | G194: 01-Apr-2025 13 LZ_RAYBN
A195: 04/01/2025 | B195: 13:00 | C195: N | D195: LZ_SOUTH | E195: 20.52 | F195: =A195+HOUR(B195)/24 -> 2025-04-01T13:00:00 | G195: =TEXT(F195,"dd-mmm-yyyy hh")&" "&D195 -> 01-Apr-2025 13 LZ_SOUTH
A196: 04/01/2025 | B196: 13:00 | C196: N | D196: LZ_WEST | E196: -6.18 | F196: 2025-04-01T13:00:00 | G196: 01-Apr-2025 13 LZ_WEST
A197: 04/01/2025 | B197: 14:00 | C197: N | D197: HB_BUSAVG | E197: 13.83 | F197: 2025-04-01T14:00:00 | G197: 01-Apr-2025 14 HB_BUSAVG
A198: 04/01/2025 | B198: 14:00 | C198: N | D198: HB_HOUSTON | E198: 35.62 | F198: 2025-04-01T14:00:00 | G198: 01-Apr-2025 14 HB_HOUSTON
A199: 04/01/2025 | B199: 14:00 | C199: N | D199: HB_HUBAVG | E199: 14.01 | F199: 2025-04-01T14:00:00 | G199: 01-Apr-2025 14 HB_HUBAVG
A200: 04/01/2025 | B200: 14:00 | C200: N | D200: HB_NORTH | E200: 10.67 | F200: 2025-04-01T14:00:00 | G200: 01-Apr-2025 14 HB_NORTH
... 10601 more rows

Sheet May
A1: Delivery Date | B1: Hour Ending | C1: Repeated Hour Flag | D1: Settlement Point | E1: Settlement Point Price
A2: 05/01/2025 | B2: 01:00 | C2: N | D2: HB_BUSAVG | E2: 52.04 | F2: =A2+HOUR(B2)/24 -> 2025-05-01T01:00:00 | G2: =TEXT(F2,"dd-mmm-yyyy hh")&" "&D2 -> 01-May-2025 01 HB_BUSAVG
A3: 05/01/2025 | B3: 01:00 | C3: N | D3: HB_HOUSTON | E3: 51.82 | F3: =A3+HOUR(B3)/24 -> 2025-05-01T01:00:00 | G3: =TEXT(F3,"dd-mmm-yyyy hh")&" "&D3 -> 01-May-2025 01 HB_HOUSTON
A4: 05/01/2025 | B4: 01:00 | C4: N | D4: HB_HUBAVG | E4: 54.06 | F4: 2025-05-01T01:00:00 | G4: 01-May-2025 01 HB_HUBAVG
A5: 05/01/2025 | B5: 01:00 | C5: N | D5: HB_NORTH | E5: 50.98 | F5: 2025-05-01T01:00:00 | G5: 01-May-2025 01 HB_NORTH
A6: 05/01/2025 | B6: 01:00 | C6: N | D6: HB_PAN | E6: 43.15 | F6: 2025-05-01T01:00:00 | G6: 01-May-2025 01 HB_PAN
A7: 05/01/2025 | B7: 01:00 | C7: N | D7: HB_SOUTH | E7: 46.23 | F7: 2025-05-01T01:00:00 | G7: 01-May-2025 01 HB_SOUTH
A8: 05/01/2025 | B8: 01:00 | C8: N | D8: HB_WEST | E8: 67.19 | F8: 2025-05-01T01:00:00 | G8: 01-May-2025 01 HB_WEST
A9: 05/01/2025 | B9: 01:00 | C9: N | D9: LZ_AEN | E9: 54.08 | F9: 2025-05-01T01:00:00 | G9: 01-May-2025 01 LZ_AEN
A10: 05/01/2025 | B10: 01:00 | C10: N | D10: LZ_CPS | E10: 56.56 | F10: 2025-05-01T01:00:00 | G10: 01-May-2025 01 LZ_CPS
A11: 05/01/2025 | B11: 01:00 | C11: N | D11: LZ_HOUSTON | E11: 51.79 | F11: 2025-05-01T01:00:00 | G11: 01-May-2025 01 LZ_HOUSTON
A12: 05/01/2025 | B12: 01:00 | C12: N | D12: LZ_LCRA | E12: 56.08 | F12: 2025-05-01T01:00:00 | G12: 01-May-2025 01 LZ_LCRA
A13: 05/01/2025 | B13: 01:00 | C13: N | D13: LZ_NORTH | E13: 50.98 | F13: 2025-05-01T01:00:00 | G13: 01-May-2025 01 LZ_NORTH
A14: 05/01/2025 | B14: 01:00 | C14: N | D14: LZ_RAYBN | E14: 50.68 | F14: 2025-05-01T01:00:00 | G14: 01-May-2025 01 LZ_RAYBN
A15: 05/01/2025 | B15: 01:00 | C15: N | D15: LZ_SOUTH | E15: 39.45 | F15: 2025-05-01T01:00:00 | G15: 01-May-2025 01 LZ_SOUTH
A16: 05/01/2025 | B16: 01:00 | C16: N | D16: LZ_WEST | E16: 97.48 | F16: 2025-05-01T01:00:00 | G16: 01-May-2025 01 LZ_WEST
A17: 05/01/2025 | B17: 02:00 | C17: N | D17: HB_BUSAVG | E17: 39.4 | F17: 2025-05-01T02:00:00 | G17: 01-May-2025 02 HB_BUSAVG
A18: 05/01/2025 | B18: 02:00 | C18: N | D18: HB_HOUSTON | E18: 39.37 | F18: 2025-05-01T02:00:00 | G18: 01-May-2025 02 HB_HOUSTON
A19: 05/01/2025 | B19: 02:00 | C19: N | D19: HB_HUBAVG | E19: 41.3 | F19: 2025-05-01T02:00:00 | G19: 01-May-2025 02 HB_HUBAVG
A20: 05/01/2025 | B20: 02:00 | C20: N | D20: HB_NORTH | E20: 38.12 | F20: 2025-05-01T02:00:00 | G20: 01-May-2025 02 HB_NORTH
A21: 05/01/2025 | B21: 02:00 | C21: N | D21: HB_PAN | E21: 31.08 | F21: 2025-05-01T02:00:00 | G21: 01-May-2025 02 HB_PAN
A22: 05/01/2025 | B22: 02:00 | C22: N | D22: HB_SOUTH | E22: 35 | F22: 2025-05-01T02:00:00 | G22: 01-May-2025 02 HB_SOUTH
A23: 05/01/2025 | B23: 02:00 | C23: N | D23: HB_WEST | E23: 52.7 | F23: 2025-05-01T02:00:00 | G23: 01-May-2025 02 HB_WEST
A24: 05/01/2025 | B24: 02:00 | C24: N | D24: LZ_AEN | E24: 41.03 | F24: 2025-05-01T02:00:00 | G24: 01-May-2025 02 LZ_AEN
A25: 05/01/2025 | B25: 02:00 | C25: N | D25: LZ_CPS | E25: 43.62 | F25: 2025-05-01T02:00:00 | G25: 01-May-2025 02 LZ_CPS
A26: 05/01/2025 | B26: 02:00 | C26: N | D26: LZ_HOUSTON | E26: 39.38 | F26: 2025-05-01T02:00:00 | G26: 01-May-2025 02 LZ_HOUSTON
A27: 05/01/2025 | B27: 02:00 | C27: N | D27: LZ_LCRA | E27: 42.33 | F27: 2025-05-01T02:00:00 | G27: 01-May-2025 02 LZ_LCRA
A28: 05/01/2025 | B28: 02:00 | C28: N | D28: LZ_NORTH | E28: 38.18 | F28: 2025-05-01T02:00:00 | G28: 01-May-2025 02 LZ_NORTH
A29: 05/01/2025 | B29: 02:00 | C29: N | D29: LZ_RAYBN | E29: 38.33 | F29: 2025-05-01T02:00:00 | G29: 01-May-2025 02 LZ_RAYBN
A30: 05/01/2025 | B30: 02:00 | C30: N | D30: LZ_SOUTH | E30: 29.72 | F30: 2025-05-01T02:00:00 | G30: 01-May-2025 02 LZ_SOUTH
A31: 05/01/2025 | B31: 02:00 | C31: N | D31: LZ_WEST | E31: 82.14 | F31: 2025-05-01T02:00:00 | G31: 01-May-2025 02 LZ_WEST
A32: 05/01/2025 | B32: 03:00 | C32: N | D32: HB_BUSAVG | E32: 34.75 | F32: 2025-05-01T03:00:00 | G32: 01-May-2025 03 HB_BUSAVG
A33: 05/01/2025 | B33: 03:00 | C33: N | D33: HB_HOUSTON | E33: 34.5 | F33: 2025-05-01T03:00:00 | G33: 01-May-2025 03 HB_HOUSTON
A34: 05/01/2025 | B34: 03:00 | C34: N | D34: HB_HUBAVG | E34: 36.72 | F34: 2025-05-01T03:00:00 | G34: 01-May-2025 03 HB_HUBAVG
A35: 05/01/2025 | B35: 03:00 | C35: N | D35: HB_NORTH | E35: 33.37 | F35: 2025-05-01T03:00:00 | G35: 01-May-2025 03 HB_NORTH
A36: 05/01/2025 | B36: 03:00 | C36: N | D36: HB_PAN | E36: 26.22 | F36: 2025-05-01T03:00:00 | G36: 01-May-2025 03 HB_PAN
A37: 05/01/2025 | B37: 03:00 | C37: N | D37: HB_SOUTH | E37: 30.62 | F37: 2025-05-01T03:00:00 | G37: 01-May-2025 03 HB_SOUTH
A38: 05/01/2025 | B38: 03:00 | C38: N | D38: HB_WEST | E38: 48.37 | F38: 2025-05-01T03:00:00 | G38: 01-May-2025 03 HB_WEST
A39: 05/01/2025 | B39: 03:00 | C39: N | D39: LZ_AEN | E39: 35.89 | F39: 2025-05-01T03:00:00 | G39: 01-May-2025 03 LZ_AEN
A40: 05/01/2025 | B40: 03:00 | C40: N | D40: LZ_CPS | E40: 38.18 | F40: 2025-05-01T03:00:00 | G40: 01-May-2025 03 LZ_CPS
A41: 05/01/2025 | B41: 03:00 | C41: N | D41: LZ_HOUSTON | E41: 34.5 | F41: 2025-05-01T03:00:00 | G41: 01-May-2025 03 LZ_HOUSTON
A42: 05/01/2025 | B42: 03:00 | C42: N | D42: LZ_LCRA | E42: 37.11 | F42: 2025-05-01T03:00:00 | G42: 01-May-2025 03 LZ_LCRA
A43: 05/01/2025 | B43: 03:00 | C43: N | D43: LZ_NORTH | E43: 33.37 | F43: 2025-05-01T03:00:00 | G43: 01-May-2025 03 LZ_NORTH
A44: 05/01/2025 | B44: 03:00 | C44: N | D44: LZ_RAYBN | E44: 33.29 | F44: 2025-05-01T03:00:00 | G44: 01-May-2025 03 LZ_RAYBN
A45: 05/01/2025 | B45: 03:00 | C45: N | D45: LZ_SOUTH | E45: 26.81 | F45: 2025-05-01T03:00:00 | G45: 01-May-2025 03 LZ_SOUTH
A46: 05/01/2025 | B46: 03:00 | C46: N | D46: LZ_WEST | E46: 80.75 | F46: 2025-05-01T03:00:00 | G46: 01-May-2025 03 LZ_WEST
A47: 05/01/2025 | B47: 04:00 | C47: N | D47: HB_BUSAVG | E47: 33.03 | F47: 2025-05-01T04:00:00 | G47: 01-May-2025 04 HB_BUSAVG
A48: 05/01/2025 | B48: 04:00 | C48: N | D48: HB_HOUSTON | E48: 32.72 | F48: 2025-05-01T04:00:00 | G48: 01-May-2025 04 HB_HOUSTON
A49: 05/01/2025 | B49: 04:00 | C49: N | D49: HB_HUBAVG | E49: 34.71 | F49: 2025-05-01T04:00:00 | G49: 01-May-2025 04 HB_HUBAVG
A50: 05/01/2025 | B50: 04:00 | C50: N | D50: HB_NORTH | E50: 31.9 | F50: 2025-05-01T04:00:00 | G50: 01-May-2025 04 HB_NORTH
A51: 05/01/2025 | B51: 04:00 | C51: N | D51: HB_PAN | E51: 27.39 | F51: 2025-05-01T04:00:00 | G51: 01-May-2025 04 HB_PAN
A52: 05/01/2025 | B52: 04:00 | C52: N | D52: HB_SOUTH | E52: 29.32 | F52: 2025-05-01T04:00:00 | G52: 01-May-2025 04 HB_SOUTH
A53: 05/01/2025 | B53: 04:00 | C53: N | D53: HB_WEST | E53: 44.91 | F53: 2025-05-01T04:00:00 | G53: 01-May-2025 04 HB_WEST
A54: 05/01/2025 | B54: 04:00 | C54: N | D54: LZ_AEN | E54: 33.68 | F54: 2025-05-01T04:00:00 | G54: 01-May-2025 04 LZ_AEN
A55: 05/01/2025 | B55: 04:00 | C55: N | D55: LZ_CPS | E55: 35.61 | F55: 2025-05-01T04:00:00 | G55: 01-May-2025 04 LZ_CPS
A56: 05/01/2025 | B56: 04:00 | C56: N | D56: LZ_HOUSTON | E56: 32.71 | F56: 2025-05-01T04:00:00 | G56: 01-May-2025 04 LZ_HOUSTON
A57: 05/01/2025 | B57: 04:00 | C57: N | D57: LZ_LCRA | E57: 34.68 | F57: 2025-05-01T04:00:00 | G57: 01-May-2025 04 LZ_LCRA
A58: 05/01/2025 | B58: 04:00 | C58: N | D58: LZ_NORTH | E58: 31.98 | F58: 2025-05-01T04:00:00 | G58: 01-May-2025 04 LZ_NORTH
A59: 05/01/2025 | B59: 04:00 | C59: N | D59: LZ_RAYBN | E59: 32.17 | F59: 2025-05-01T04:00:00 | G59: 01-May-2025 04 LZ_RAYBN
A60: 05/01/2025 | B60: 04:00 | C60: N | D60: LZ_SOUTH | E60: 26.47 | F60: 2025-05-01T04:00:00 | G60: 01-May-2025 04 LZ_SOUTH
A61: 05/01/2025 | B61: 04:00 | C61: N | D61: LZ_WEST | E61: 75.92 | F61: 2025-05-01T04:00:00 | G61: 01-May-2025 04 LZ_WEST
A62: 05/01/2025 | B62: 05:00 | C62: N | D62: HB_BUSAVG | E62: 34.02 | F62: 2025-05-01T05:00:00 | G62: 01-May-2025 05 HB_BUSAVG
A63: 05/01/2025 | B63: 05:00 | C63: N | D63: HB_HOUSTON | E63: 33.59 | F63: 2025-05-01T05:00:00 | G63: 01-May-2025 05 HB_HOUSTON
A64: 05/01/2025 | B64: 05:00 | C64: N | D64: HB_HUBAVG | E64: 35.68 | F64: 2025-05-01T05:00:00 | G64: 01-May-2025 05 HB_HUBAVG
A65: 05/01/2025 | B65: 05:00 | C65: N | D65: HB_NORTH | E65: 32.54 | F65: 2025-05-01T05:00:00 | G65: 01-May-2025 05 HB_NORTH
A66: 05/01/2025 | B66: 05:00 | C66: N | D66: HB_PAN | E66: 27.71 | F66: 2025-05-01T05:00:00 | G66: 01-May-2025 05 HB_PAN
A67: 05/01/2025 | B67: 05:00 | C67: N | D67: HB_SOUTH | E67: 31.24 | F67: =A67+HOUR(B67)/24 -> 2025-05-01T05:00:00 | G67: =TEXT(F67,"dd-mmm-yyyy hh")&" "&D67 -> 01-May-2025 05 HB_SOUTH
A68: 05/01/2025 | B68: 05:00 | C68: N | D68: HB_WEST | E68: 45.35 | F68: 2025-05-01T05:00:00 | G68: 01-May-2025 05 HB_WEST
A69: 05/01/2025 | B69: 05:00 | C69: N | D69: LZ_AEN | E69: 34.46 | F69: 2025-05-01T05:00:00 | G69: 01-May-2025 05 LZ_AEN
A70: 05/01/2025 | B70: 05:00 | C70: N | D70: LZ_CPS | E70: 36.25 | F70: 2025-05-01T05:00:00 | G70: 01-May-2025 05 LZ_CPS
A71: 05/01/2025 | B71: 05:00 | C71: N | D71: LZ_HOUSTON | E71: 33.59 | F71: 2025-05-01T05:00:00 | G71: 01-May-2025 05 LZ_HOUSTON
A72: 05/01/2025 | B72: 05:00 | C72: N | D72: LZ_LCRA | E72: 35.4 | F72: 2025-05-01T05:00:00 | G72: 01-May-2025 05 LZ_LCRA
A73: 05/01/2025 | B73: 05:00 | C73: N | D73: LZ_NORTH | E73: 32.66 | F73: 2025-05-01T05:00:00 | G73: 01-May-2025 05 LZ_NORTH
A74: 05/01/2025 | B74: 05:00 | C74: N | D74: LZ_RAYBN | E74: 32.81 | F74: 2025-05-01T05:00:00 | G74: 01-May-2025 05 LZ_RAYBN
A75: 05/01/2025 | B75: 05:00 | C75: N | D75: LZ_SOUTH | E75: 29.39 | F75: 2025-05-01T05:00:00 | G75: 01-May-2025 05 LZ_SOUTH
A76: 05/01/2025 | B76: 05:00 | C76: N | D76: LZ_WEST | E76: 75 | F76: 2025-05-01T05:00:00 | G76: 01-May-2025 05 LZ_WEST
A77: 05/01/2025 | B77: 06:00 | C77: N | D77: HB_BUSAVG | E77: 38.59 | F77: 2025-05-01T06:00:00 | G77: 01-May-2025 06 HB_BUSAVG
A78: 05/01/2025 | B78: 06:00 | C78: N | D78: HB_HOUSTON | E78: 38.06 | F78: 2025-05-01T06:00:00 | G78: 01-May-2025 06 HB_HOUSTON
A79: 05/01/2025 | B79: 06:00 | C79: N | D79: HB_HUBAVG | E79: 40.22 | F79: 2025-05-01T06:00:00 | G79: 01-May-2025 06 HB_HUBAVG
A80: 05/01/2025 | B80: 06:00 | C80: N | D80: HB_NORTH | E80: 36.93 | F80: 2025-05-01T06:00:00 | G80: 01-May-2025 06 HB_NORTH
A81: 05/01/2025 | B81: 06:00 | C81: N | D81: HB_PAN | E81: 31.78 | F81: 2025-05-01T06:00:00 | G81: 01-May-2025 06 HB_PAN
A82: 05/01/2025 | B82: 06:00 | C82: N | D82: HB_SOUTH | E82: 37.13 | F82: 2025-05-01T06:00:00 | G82: 01-May-2025 06 HB_SOUTH
A83: 05/01/2025 | B83: 06:00 | C83: N | D83: HB_WEST | E83: 48.78 | F83: 2025-05-01T06:00:00 | G83: 01-May-2025 06 HB_WEST
A84: 05/01/2025 | B84: 06:00 | C84: N | D84: LZ_AEN | E84: 38.92 | F84: 2025-05-01T06:00:00 | G84: 01-May-2025 06 LZ_AEN
A85: 05/01/2025 | B85: 06:00 | C85: N | D85: LZ_CPS | E85: 40.39 | F85: 2025-05-01T06:00:00 | G85: 01-May-2025 06 LZ_CPS
A86: 05/01/2025 | B86: 06:00 | C86: N | D86: LZ_HOUSTON | E86: 38.07 | F86: 2025-05-01T06:00:00 | G86: 01-May-2025 06 LZ_HOUSTON
A87: 05/01/2025 | B87: 06:00 | C87: N | D87: LZ_LCRA | E87: 39.76 | F87: 2025-05-01T06:00:00 | G87: 01-May-2025 06 LZ_LCRA
A88: 05/01/2025 | B88: 06:00 | C88: N | D88: LZ_NORTH | E88: 36.94 | F88: 2025-05-01T06:00:00 | G88: 01-May-2025 06 LZ_NORTH
A89: 05/01/2025 | B89: 06:00 | C89: N | D89: LZ_RAYBN | E89: 37.08 | F89: 2025-05-01T06:00:00 | G89: 01-May-2025 06 LZ_RAYBN
A90: 05/01/2025 | B90: 06:00 | C90: N | D90: LZ_SOUTH | E90: 36.6 | F90: 2025-05-01T06:00:00 | G90: 01-May-2025 06 LZ_SOUTH
A91: 05/01/2025 | B91: 06:00 | C91: N | D91: LZ_WEST | E91: 75.14 | F91: 2025-05-01T06:00:00 | G91: 01-May-2025 06 LZ_WEST
A92: 05/01/2025 | B92: 07:00 | C92: N | D92: HB_BUSAVG | E92: 57.97 | F92: 2025-05-01T07:00:00 | G92: 01-May-2025 07 HB_BUSAVG
A93: 05/01/2025 | B93: 07:00 | C93: N | D93: HB_HOUSTON | E93: 57.72 | F93: 2025-05-01T07:00:00 | G93: 01-May-2025 07 HB_HOUSTON
A94: 05/01/2025 | B94: 07:00 | C94: N | D94: HB_HUBAVG | E94: 59.63 | F94: 2025-05-01T07:00:00 | G94: 01-May-2025 07 HB_HUBAVG
A95: 05/01/2025 | B95: 07:00 | C95: N | D95: HB_NORTH | E95: 56.19 | F95: 2025-05-01T07:00:00 | G95: 01-May-2025 07 HB_NORTH
A96: 05/01/2025 | B96: 07:00 | C96: N | D96: HB_PAN | E96: 49.81 | F96: 2025-05-01T07:00:00 | G96: 01-May-2025 07 HB_PAN
A97: 05/01/2025 | B97: 07:00 | C97: N | D97: HB_SOUTH | E97: 56.82 | F97: 2025-05-01T07:00:00 | G97: 01-May-2025 07 HB_SOUTH
A98: 05/01/2025 | B98: 07:00 | C98: N | D98: HB_WEST | E98: 67.79 | F98: 2025-05-01T07:00:00 | G98: 01-May-2025 07 HB_WEST
A99: 05/01/2025 | B99: 07:00 | C99: N | D99: LZ_AEN | E99: 58.83 | F99: 2025-05-01T07:00:00 | G99: 01-May-2025 07 LZ_AEN
A100: 05/01/2025 | B100: 07:00 | C100: N | D100: LZ_CPS | E100: 60.47 | F100: 2025-05-01T07:00:00 | G100: 01-May-2025 07 LZ_CPS
A101: 05/01/2025 | B101: 07:00 | C101: N | D101: LZ_HOUSTON | E101: 57.75 | F101: 2025-05-01T07:00:00 | G101: 01-May-2025 07 LZ_HOUSTON
A102: 05/01/2025 | B102: 07:00 | C102: N | D102: LZ_LCRA | E102: 59.6 | F102: 2025-05-01T07:00:00 | G102: 01-May-2025 07 LZ_LCRA
A103: 05/01/2025 | B103: 07:00 | C103: N | D103: LZ_NORTH | E103: 56.14 | F103: 2025-05-01T07:00:00 | G103: 01-May-2025 07 LZ_NORTH
A104: 05/01/2025 | B104: 07:00 | C104: N | D104: LZ_RAYBN | E104: 55.93 | F104: 2025-05-01T07:00:00 | G104: 01-May-2025 07 LZ_RAYBN
A105: 05/01/2025 | B105: 07:00 | C105: N | D105: LZ_SOUTH | E105: 54.84 | F105: 2025-05-01T07:00:00 | G105: 01-May-2025 07 LZ_SOUTH
A106: 05/01/2025 | B106: 07:00 | C106: N | D106: LZ_WEST | E106: 92.16 | F106: 2025-05-01T07:00:00 | G106: 01-May-2025 07 LZ_WEST
A107: 05/01/2025 | B107: 08:00 | C107: N | D107: HB_BUSAVG | E107: 44.06 | F107: 2025-05-01T08:00:00 | G107: 01-May-2025 08 HB_BUSAVG
A108: 05/01/2025 | B108: 08:00 | C108: N | D108: HB_HOUSTON | E108: 44.1 | F108: 2025-05-01T08:00:00 | G108: 01-May-2025 08 HB_HOUSTON
A109: 05/01/2025 | B109: 08:00 | C109: N | D109: HB_HUBAVG | E109: 44.74 | F109: 2025-05-01T08:00:00 | G109: 01-May-2025 08 HB_HUBAVG
A110: 05/01/2025 | B110: 08:00 | C110: N | D110: HB_NORTH | E110: 43.37 | F110: 2025-05-01T08:00:00 | G110: 01-May-2025 08 HB_NORTH
A111: 05/01/2025 | B111: 08:00 | C111: N | D111: HB_PAN | E111: 40.46 | F111: 2025-05-01T08:00:00 | G111: 01-May-2025 08 HB_PAN
A112: 05/01/2025 | B112: 08:00 | C112: N | D112: HB_SOUTH | E112: 43.33 | F112: 2025-05-01T08:00:00 | G112: 01-May-2025 08 HB_SOUTH
A113: 05/01/2025 | B113: 08:00 | C113: N | D113: HB_WEST | E113: 48.16 | F113: 2025-05-01T08:00:00 | G113: 01-May-2025 08 HB_WEST
A114: 05/01/2025 | B114: 08:00 | C114: N | D114: LZ_AEN | E114: 44.81 | F114: 2025-05-01T08:00:00 | G114: 01-May-2025 08 LZ_AEN
A115: 05/01/2025 | B115: 08:00 | C115: N | D115: LZ_CPS | E115: 45.66 | F115: 2025-05-01T08:00:00 | G115: 01-May-2025 08 LZ_CPS
A116: 05/01/2025 | B116: 08:00 | C116: N | D116: LZ_HOUSTON | E116: 44.11 | F116: 2025-05-01T08:00:00 | G116: 01-May-2025 08 LZ_HOUSTON
A117: 05/01/2025 | B117: 08:00 | C117: N | D117: LZ_LCRA | E117: 45.19 | F117: 2025-05-01T08:00:00 | G117: 01-May-2025 08 LZ_LCRA
A118: 05/01/2025 | B118: 08:00 | C118: N | D118: LZ_NORTH | E118: 43.35 | F118: 2025-05-01T08:00:00 | G118: 01-May-2025 08 LZ_NORTH
A119: 05/01/2025 | B119: 08:00 | C119: N | D119: LZ_RAYBN | E119: 43.21 | F119: 2025-05-01T08:00:00 | G119: 01-May-2025 08 LZ_RAYBN
A120: 05/01/2025 | B120: 08:00 | C120: N | D120: LZ_SOUTH | E120: 41.74 | F120: 2025-05-01T08:00:00 | G120: 01-May-2025 08 LZ_SOUTH
A121: 05/01/2025 | B121: 08:00 | C121: N | D121: LZ_WEST | E121: 56.52 | F121: 2025-05-01T08:00:00 | G121: 01-May-2025 08 LZ_WEST
A122: 05/01/2025 | B122: 09:00 | C122: N | D122: HB_BUSAVG | E122: 23.87 | F122: 2025-05-01T09:00:00 | G122: 01-May-2025 09 HB_BUSAVG
A123: 05/01/2025 | B123: 09:00 | C123: N | D123: HB_HOUSTON | E123: 24.64 | F123: 2025-05-01T09:00:00 | G123: 01-May-2025 09 HB_HOUSTON
A124: 05/01/2025 | B124: 09:00 | C124: N | D124: HB_HUBAVG | E124: 24.06 | F124: 2025-05-01T09:00:00 | G124: 01-May-2025 09 HB_HUBAVG
A125: 05/01/2025 | B125: 09:00 | C125: N | D125: HB_NORTH | E125: 23.8 | F125: 2025-05-01T09:00:00 | G125: 01-May-2025 09 HB_NORTH
A126: 05/01/2025 | B126: 09:00 | C126: N | D126: HB_PAN | E126: 22.89 | F126: 2025-05-01T09:00:00 | G126: 01-May-2025 09 HB_PAN
A127: 05/01/2025 | B127: 09:00 | C127: N | D127: HB_SOUTH | E127: 23.09 | F127: 2025-05-01T09:00:00 | G127: 01-May-2025 09 HB_SOUTH
A128: 05/01/2025 | B128: 09:00 | C128: N | D128: HB_WEST | E128: 24.71 | F128: 2025-05-01T09:00:00 | G128: 01-May-2025 09 HB_WEST
A129: 05/01/2025 | B129: 09:00 | C129: N | D129: LZ_AEN | E129: 24.16 | F129: 2025-05-01T09:00:00 | G129: 01-May-2025 09 LZ_AEN
A130: 05/01/2025 | B130: 09:00 | C130: N | D130: LZ_CPS | E130: 24.28 | F130: 2025-05-01T09:00:00 | G130: 01-May-2025 09 LZ_CPS
A131: 05/01/2025 | B131: 09:00 | C131: N | D131: LZ_HOUSTON | E131: 24.48 | F131: =A131+HOUR(B131)/24 -> 2025-05-01T09:00:00 | G131: =TEXT(F131,"dd-mmm-yyyy hh")&" "&D131 -> 01-May-2025 09 LZ_HOUSTON
A132: 05/01/2025 | B132: 09:00 | C132: N | D132: LZ_LCRA | E132: 24.23 | F132: 2025-05-01T09:00:00 | G132: 01-May-2025 09 LZ_LCRA
A133: 05/01/2025 | B133: 09:00 | C133: N | D133: LZ_NORTH | E133: 23.8 | F133: 2025-05-01T09:00:00 | G133: 01-May-2025 09 LZ_NORTH
A134: 05/01/2025 | B134: 09:00 | C134: N | D134: LZ_RAYBN | E134: 23.77 | F134: 2025-05-01T09:00:00 | G134: 01-May-2025 09 LZ_RAYBN
A135: 05/01/2025 | B135: 09:00 | C135: N | D135: LZ_SOUTH | E135: 22.6 | F135: 2025-05-01T09:00:00 | G135: 01-May-2025 09 LZ_SOUTH
A136: 05/01/2025 | B136: 09:00 | C136: N | D136: LZ_WEST | E136: 25.92 | F136: 2025-05-01T09:00:00 | G136: 01-May-2025 09 LZ_WEST
A137: 05/01/2025 | B137: 10:00 | C137: N | D137: HB_BUSAVG | E137: 21.76 | F137: 2025-05-01T10:00:00 | G137: 01-May-2025 10 HB_BUSAVG
A138: 05/01/2025 | B138: 10:00 | C138: N | D138: HB_HOUSTON | E138: 26.45 | F138: 2025-05-01T10:00:00 | G138: 01-May-2025 10 HB_HOUSTON
A139: 05/01/2025 | B139: 10:00 | C139: N | D139: HB_HUBAVG | E139: 22.19 | F139: 2025-05-01T10:00:00 | G139: 01-May-2025 10 HB_HUBAVG
A140: 05/01/2025 | B140: 10:00 | C140: N | D140: HB_NORTH | E140: 21.71 | F140: 2025-05-01T10:00:00 | G140: 01-May-2025 10 HB_NORTH
A141: 05/01/2025 | B141: 10:00 | C141: N | D141: HB_PAN | E141: 20.61 | F141: 2025-05-01T10:00:00 | G141: 01-May-2025 10 HB_PAN
A142: 05/01/2025 | B142: 10:00 | C142: N | D142: HB_SOUTH | E142: 18.8 | F142: 2025-05-01T10:00:00 | G142: 01-May-2025 10 HB_SOUTH
A143: 05/01/2025 | B143: 10:00 | C143: N | D143: HB_WEST | E143: 21.8 | F143: 2025-05-01T10:00:00 | G143: 01-May-2025 10 HB_WEST
A144: 05/01/2025 | B144: 10:00 | C144: N | D144: LZ_AEN | E144: 21.23 | F144: 2025-05-01T10:00:00 | G144: 01-May-2025 10 LZ_AEN
A145: 05/01/2025 | B145: 10:00 | C145: N | D145: LZ_CPS | E145: 20.31 | F145: 2025-05-01T10:00:00 | G145: 01-May-2025 10 LZ_CPS
A146: 05/01/2025 | B146: 10:00 | C146: N | D146: LZ_HOUSTON | E146: 25.4 | F146: 2025-05-01T10:00:00 | G146: 01-May-2025 10 LZ_HOUSTON
A147: 05/01/2025 | B147: 10:00 | C147: N | D147: LZ_LCRA | E147: 21.08 | F147: 2025-05-01T10:00:00 | G147: 01-May-2025 10 LZ_LCRA
A148: 05/01/2025 | B148: 10:00 | C148: N | D148: LZ_NORTH | E148: 21.87 | F148: 2025-05-01T10:00:00 | G148: 01-May-2025 10 LZ_NORTH
A149: 05/01/2025 | B149: 10:00 | C149: N | D149: LZ_RAYBN | E149: 22.7 | F149: 2025-05-01T10:00:00 | G149: 01-May-2025 10 LZ_RAYBN
A150: 05/01/2025 | B150: 10:00 | C150: N | D150: LZ_SOUTH | E150: 19.5 | F150: 2025-05-01T10:00:00 | G150: 01-May-2025 10 LZ_SOUTH
A151: 05/01/2025 | B151: 10:00 | C151: N | D151: LZ_WEST | E151: 22.36 | F151: 2025-05-01T10:00:00 | G151: 01-May-2025 10 LZ_WEST
A152: 05/01/2025 | B152: 11:00 | C152: N | D152: HB_BUSAVG | E152: 21.26 | F152: 2025-05-01T11:00:00 | G152: 01-May-2025 11 HB_BUSAVG
A153: 05/01/2025 | B153: 11:00 | C153: N | D153: HB_HOUSTON | E153: 28.25 | F153: 2025-05-01T11:00:00 | G153: 01-May-2025 11 HB_HOUSTON
A154: 05/01/2025 | B154: 11:00 | C154: N | D154: HB_HUBAVG | E154: 21.87 | F154: 2025-05-01T11:00:00 | G154: 01-May-2025 11 HB_HUBAVG
A155: 05/01/2025 | B155: 11:00 | C155: N | D155: HB_NORTH | E155: 21.13 | F155: 2025-05-01T11:00:00 | G155: 01-May-2025 11 HB_NORTH
A156: 05/01/2025 | B156: 11:00 | C156: N | D156: HB_PAN | E156: 20.18 | F156: 2025-05-01T11:00:00 | G156: 01-May-2025 11 HB_PAN
A157: 05/01/2025 | B157: 11:00 | C157: N | D157: HB_SOUTH | E157: 17.29 | F157: 2025-05-01T11:00:00 | G157: 01-May-2025 11 HB_SOUTH
A158: 05/01/2025 | B158: 11:00 | C158: N | D158: HB_WEST | E158: 20.81 | F158: 2025-05-01T11:00:00 | G158: 01-May-2025 11 HB_WEST
A159: 05/01/2025 | B159: 11:00 | C159: N | D159: LZ_AEN | E159: 20.48 | F159: 2025-05-01T11:00:00 | G159: 01-May-2025 11 LZ_AEN
A160: 05/01/2025 | B160: 11:00 | C160: N | D160: LZ_CPS | E160: 19.25 | F160: 2025-05-01T11:00:00 | G160: 01-May-2025 11 LZ_CPS
A161: 05/01/2025 | B161: 11:00 | C161: N | D161: LZ_HOUSTON | E161: 26.78 | F161: 2025-05-01T11:00:00 | G161: 01-May-2025 11 LZ_HOUSTON
A162: 05/01/2025 | B162: 11:00 | C162: N | D162: LZ_LCRA | E162: 20.19 | F162: 2025-05-01T11:00:00 | G162: 01-May-2025 11 LZ_LCRA
A163: 05/01/2025 | B163: 11:00 | C163: N | D163: LZ_NORTH | E163: 21.46 | F163: 2025-05-01T11:00:00 | G163: 01-May-2025 11 LZ_NORTH
A164: 05/01/2025 | B164: 11:00 | C164: N | D164: LZ_RAYBN | E164: 23.43 | F164: 2025-05-01T11:00:00 | G164: 01-May-2025 11 LZ_RAYBN
A165: 05/01/2025 | B165: 11:00 | C165: N | D165: LZ_SOUTH | E165: 18.8 | F165: 2025-05-01T11:00:00 | G165: 01-May-2025 11 LZ_SOUTH
A166: 05/01/2025 | B166: 11:00 | C166: N | D166: LZ_WEST | E166: 21.55 | F166: 2025-05-01T11:00:00 | G166: 01-May-2025 11 LZ_WEST
A167: 05/01/2025 | B167: 12:00 | C167: N | D167: HB_BUSAVG | E167: 23.33 | F167: 2025-05-01T12:00:00 | G167: 01-May-2025 12 HB_BUSAVG
A168: 05/01/2025 | B168: 12:00 | C168: N | D168: HB_HOUSTON | E168: 34.93 | F168: 2025-05-01T12:00:00 | G168: 01-May-2025 12 HB_HOUSTON
A169: 05/01/2025 | B169: 12:00 | C169: N | D169: HB_HUBAVG | E169: 24.36 | F169: 2025-05-01T12:00:00 | G169: 01-May-2025 12 HB_HUBAVG
A170: 05/01/2025 | B170: 12:00 | C170: N | D170: HB_NORTH | E170: 22.85 | F170: 2025-05-01T12:00:00 | G170: 01-May-2025 12 HB_NORTH
A171: 05/01/2025 | B171: 12:00 | C171: N | D171: HB_PAN | E171: 21.55 | F171: 2025-05-01T12:00:00 | G171: 01-May-2025 12 HB_PAN
A172: 05/01/2025 | B172: 12:00 | C172: N | D172: HB_SOUTH | E172: 17.6 | F172: 2025-05-01T12:00:00 | G172: 01-May-2025 12 HB_SOUTH
A173: 05/01/2025 | B173: 12:00 | C173: N | D173: HB_WEST | E173: 22.06 | F173: 2025-05-01T12:00:00 | G173: 01-May-2025 12 HB_WEST
A174: 05/01/2025 | B174: 12:00 | C174: N | D174: LZ_AEN | E174: 22.35 | F174: 2025-05-01T12:00:00 | G174: 01-May-2025 12 LZ_AEN
A175: 05/01/2025 | B175: 12:00 | C175: N | D175: LZ_CPS | E175: 20.45 | F175: 2025-05-01T12:00:00 | G175: 01-May-2025 12 LZ_CPS
A176: 05/01/2025 | B176: 12:00 | C176: N | D176: LZ_HOUSTON | E176: 32.62 | F176: 2025-05-01T12:00:00 | G176: 01-May-2025 12 LZ_HOUSTON
A177: 05/01/2025 | B177: 12:00 | C177: N | D177: LZ_LCRA | E177: 21.83 | F177: 2025-05-01T12:00:00 | G177: 01-May-2025 12 LZ_LCRA
A178: 05/01/2025 | B178: 12:00 | C178: N | D178: LZ_NORTH | E178: 23.43 | F178: 2025-05-01T12:00:00 | G178: 01-May-2025 12 LZ_NORTH
A179: 05/01/2025 | B179: 12:00 | C179: N | D179: LZ_RAYBN | E179: 27.3 | F179: 2025-05-01T12:00:00 | G179: 01-May-2025 12 LZ_RAYBN
A180: 05/01/2025 | B180: 12:00 | C180: N | D180: LZ_SOUTH | E180: 21.2 | F180: 2025-05-01T12:00:00 | G180: 01-May-2025 12 LZ_SOUTH
A181: 05/01/2025 | B181: 12:00 | C181: N | D181: LZ_WEST | E181: 22.75 | F181: 2025-05-01T12:00:00 | G181: 01-May-2025 12 LZ_WEST
A182: 05/01/2025 | B182: 13:00 | C182: N | D182: HB_BUSAVG | E182: 23.71 | F182: 2025-05-01T13:00:00 | G182: 01-May-2025 13 HB_BUSAVG
A183: 05/01/2025 | B183: 13:00 | C183: N | D183: HB_HOUSTON | E183: 39.4 | F183: 2025-05-01T13:00:00 | G183: 01-May-2025 13 HB_HOUSTON
A184: 05/01/2025 | B184: 13:00 | C184: N | D184: HB_HUBAVG | E184: 25.15 | F184: 2025-05-01T13:00:00 | G184: 01-May-2025 13 HB_HUBAVG
A185: 05/01/2025 | B185: 13:00 | C185: N | D185: HB_NORTH | E185: 22.75 | F185: 2025-05-01T13:00:00 | G185: 01-May-2025 13 HB_NORTH
A186: 05/01/2025 | B186: 13:00 | C186: N | D186: HB_PAN | E186: 21.25 | F186: 2025-05-01T13:00:00 | G186: 01-May-2025 13 HB_PAN
A187: 05/01/2025 | B187: 13:00 | C187: N | D187: HB_SOUTH | E187: 17.02 | F187: 2025-05-01T13:00:00 | G187: 01-May-2025 13 HB_SOUTH
A188: 05/01/2025 | B188: 13:00 | C188: N | D188: HB_WEST | E188: 21.45 | F188: 2025-05-01T13:00:00 | G188: 01-May-2025 13 HB_WEST
A189: 05/01/2025 | B189: 13:00 | C189: N | D189: LZ_AEN | E189: 23.07 | F189: 2025-05-01T13:00:00 | G189: 01-May-2025 13 LZ_AEN
A190: 05/01/2025 | B190: 13:00 | C190: N | D190: LZ_CPS | E190: 20.26 | F190: 2025-05-01T13:00:00 | G190: 01-May-2025 13 LZ_CPS
A191: 05/01/2025 | B191: 13:00 | C191: N | D191: LZ_HOUSTON | E191: 36.42 | F191: 2025-05-01T13:00:00 | G191: 01-May-2025 13 LZ_HOUSTON
A192: 05/01/2025 | B192: 13:00 | C192: N | D192: LZ_LCRA | E192: 22.35 | F192: 2025-05-01T13:00:00 | G192: 01-May-2025 13 LZ_LCRA
A193: 05/01/2025 | B193: 13:00 | C193: N | D193: LZ_NORTH | E193: 23.75 | F193: 2025-05-01T13:00:00 | G193: 01-May-2025 13 LZ_NORTH
A194: 05/01/2025 | B194: 13:00 | C194: N | D194: LZ_RAYBN | E194: 30.68 | F194: 2025-05-01T13:00:00 | G194: 01-May-2025 13 LZ_RAYBN
A195: 05/01/2025 | B195: 13:00 | C195: N | D195: LZ_SOUTH | E195: 22.17 | F195: =A195+HOUR(B195)/24 -> 2025-05-01T13:00:00 | G195: =TEXT(F195,"dd-mmm-yyyy hh")&" "&D195 -> 01-May-2025 13 LZ_SOUTH
A196: 05/01/2025 | B196: 13:00 | C196: N | D196: LZ_WEST | E196: 22.02 | F196: 2025-05-01T13:00:00 | G196: 01-May-2025 13 LZ_WEST
A197: 05/01/2025 | B197: 14:00 | C197: N | D197: HB_BUSAVG | E197: 28.45 | F197: 2025-05-01T14:00:00 | G197: 01-May-2025 14 HB_BUSAVG
A198: 05/01/2025 | B198: 14:00 | C198: N | D198: HB_HOUSTON | E198: 48.5 | F198: 2025-05-01T14:00:00 | G198: 01-May-2025 14 HB_HOUSTON
A199: 05/01/2025 | B199: 14:00 | C199: N | D199: HB_HUBAVG | E199: 30.26 | F199: 2025-05-01T14:00:00 | G199: 01-May-2025 14 HB_HUBAVG
A200: 05/01/2025 | B200: 14:00 | C200: N | D200: HB_NORTH | E200: 27.59 | F200: 2025-05-01T14:00:00 | G200: 01-May-2025 14 HB_NORTH
... 10961 more rows

Sheet Jun
A1: Delivery Date | B1: Hour Ending | C1: Repeated Hour Flag | D1: Settlement Point | E1: Settlement Point Price
A2: 06/01/2025 | B2: 01:00 | C2: N | D2: HB_BUSAVG | E2: 24.9 | F2: =A2+HOUR(B2)/24 -> 2025-06-01T01:00:00 | G2: =TEXT(F2,"dd-mmm-yyyy hh")&" "&D2 -> 01-Jun-2025 01 HB_BUSAVG
A3: 06/01/2025 | B3: 01:00 | C3: N | D3: HB_HOUSTON | E3: 24.73 | F3: =A3+HOUR(B3)/24 -> 2025-06-01T01:00:00 | G3: =TEXT(F3,"dd-mmm-yyyy hh")&" "&D3 -> 01-Jun-2025 01 HB_HOUSTON
A4: 06/01/2025 | B4: 01:00 | C4: N | D4: HB_HUBAVG | E4: 25.3 | F4: 2025-06-01T01:00:00 | G4: 01-Jun-2025 01 HB_HUBAVG
A5: 06/01/2025 | B5: 01:00 | C5: N | D5: HB_NORTH | E5: 24.36 | F5: 2025-06-01T01:00:00 | G5: 01-Jun-2025 01 HB_NORTH
A6: 06/01/2025 | B6: 01:00 | C6: N | D6: HB_PAN | E6: 23.01 | F6: 2025-06-01T01:00:00 | G6: 01-Jun-2025 01 HB_PAN
A7: 06/01/2025 | B7: 01:00 | C7: N | D7: HB_SOUTH | E7: 25.09 | F7: 2025-06-01T01:00:00 | G7: 01-Jun-2025 01 HB_SOUTH
A8: 06/01/2025 | B8: 01:00 | C8: N | D8: HB_WEST | E8: 27.02 | F8: 2025-06-01T01:00:00 | G8: 01-Jun-2025 01 HB_WEST
A9: 06/01/2025 | B9: 01:00 | C9: N | D9: LZ_AEN | E9: 24.97 | F9: 2025-06-01T01:00:00 | G9: 01-Jun-2025 01 LZ_AEN
A10: 06/01/2025 | B10: 01:00 | C10: N | D10: LZ_CPS | E10: 25.23 | F10: 2025-06-01T01:00:00 | G10: 01-Jun-2025 01 LZ_CPS
A11: 06/01/2025 | B11: 01:00 | C11: N | D11: LZ_HOUSTON | E11: 24.77 | F11: 2025-06-01T01:00:00 | G11: 01-Jun-2025 01 LZ_HOUSTON
A12: 06/01/2025 | B12: 01:00 | C12: N | D12: LZ_LCRA | E12: 25.07 | F12: 2025-06-01T01:00:00 | G12: 01-Jun-2025 01 LZ_LCRA
A13: 06/01/2025 | B13: 01:00 | C13: N | D13: LZ_NORTH | E13: 24.36 | F13: 2025-06-01T01:00:00 | G13: 01-Jun-2025 01 LZ_NORTH
A14: 06/01/2025 | B14: 01:00 | C14: N | D14: LZ_RAYBN | E14: 24.31 | F14: 2025-06-01T01:00:00 | G14: 01-Jun-2025 01 LZ_RAYBN
A15: 06/01/2025 | B15: 01:00 | C15: N | D15: LZ_SOUTH | E15: 25.18 | F15: 2025-06-01T01:00:00 | G15: 01-Jun-2025 01 LZ_SOUTH
A16: 06/01/2025 | B16: 01:00 | C16: N | D16: LZ_WEST | E16: 31.6 | F16: 2025-06-01T01:00:00 | G16: 01-Jun-2025 01 LZ_WEST
A17: 06/01/2025 | B17: 02:00 | C17: N | D17: HB_BUSAVG | E17: 22.95 | F17: 2025-06-01T02:00:00 | G17: 01-Jun-2025 02 HB_BUSAVG
A18: 06/01/2025 | B18: 02:00 | C18: N | D18: HB_HOUSTON | E18: 22.8 | F18: 2025-06-01T02:00:00 | G18: 01-Jun-2025 02 HB_HOUSTON
A19: 06/01/2025 | B19: 02:00 | C19: N | D19: HB_HUBAVG | E19: 23.21 | F19: 2025-06-01T02:00:00 | G19: 01-Jun-2025 02 HB_HUBAVG
A20: 06/01/2025 | B20: 02:00 | C20: N | D20: HB_NORTH | E20: 22.61 | F20: 2025-06-01T02:00:00 | G20: 01-Jun-2025 02 HB_NORTH
A21: 06/01/2025 | B21: 02:00 | C21: N | D21: HB_PAN | E21: 21.96 | F21: 2025-06-01T02:00:00 | G21: 01-Jun-2025 02 HB_PAN
A22: 06/01/2025 | B22: 02:00 | C22: N | D22: HB_SOUTH | E22: 22.98 | F22: 2025-06-01T02:00:00 | G22: 01-Jun-2025 02 HB_SOUTH
A23: 06/01/2025 | B23: 02:00 | C23: N | D23: HB_WEST | E23: 24.48 | F23: 2025-06-01T02:00:00 | G23: 01-Jun-2025 02 HB_WEST
A24: 06/01/2025 | B24: 02:00 | C24: N | D24: LZ_AEN | E24: 22.88 | F24: 2025-06-01T02:00:00 | G24: 01-Jun-2025 02 LZ_AEN
A25: 06/01/2025 | B25: 02:00 | C25: N | D25: LZ_CPS | E25: 23.06 | F25: 2025-06-01T02:00:00 | G25: 01-Jun-2025 02 LZ_CPS
A26: 06/01/2025 | B26: 02:00 | C26: N | D26: LZ_HOUSTON | E26: 22.82 | F26: 2025-06-01T02:00:00 | G26: 01-Jun-2025 02 LZ_HOUSTON
A27: 06/01/2025 | B27: 02:00 | C27: N | D27: LZ_LCRA | E27: 22.96 | F27: 2025-06-01T02:00:00 | G27: 01-Jun-2025 02 LZ_LCRA
A28: 06/01/2025 | B28: 02:00 | C28: N | D28: LZ_NORTH | E28: 22.61 | F28: 2025-06-01T02:00:00 | G28: 01-Jun-2025 02 LZ_NORTH
A29: 06/01/2025 | B29: 02:00 | C29: N | D29: LZ_RAYBN | E29: 22.59 | F29: 2025-06-01T02:00:00 | G29: 01-Jun-2025 02 LZ_RAYBN
A30: 06/01/2025 | B30: 02:00 | C30: N | D30: LZ_SOUTH | E30: 23.11 | F30: 2025-06-01T02:00:00 | G30: 01-Jun-2025 02 LZ_SOUTH
A31: 06/01/2025 | B31: 02:00 | C31: N | D31: LZ_WEST | E31: 28.43 | F31: 2025-06-01T02:00:00 | G31: 01-Jun-2025 02 LZ_WEST
A32: 06/01/2025 | B32: 03:00 | C32: N | D32: HB_BUSAVG | E32: 21.73 | F32: 2025-06-01T03:00:00 | G32: 01-Jun-2025 03 HB_BUSAVG
A33: 06/01/2025 | B33: 03:00 | C33: N | D33: HB_HOUSTON | E33: 21.51 | F33: 2025-06-01T03:00:00 | G33: 01-Jun-2025 03 HB_HOUSTON
A34: 06/01/2025 | B34: 03:00 | C34: N | D34: HB_HUBAVG | E34: 22.02 | F34: 2025-06-01T03:00:00 | G34: 01-Jun-2025 03 HB_HUBAVG
A35: 06/01/2025 | B35: 03:00 | C35: N | D35: HB_NORTH | E35: 21.36 | F35: 2025-06-01T03:00:00 | G35: 01-Jun-2025 03 HB_NORTH
A36: 06/01/2025 | B36: 03:00 | C36: N | D36: HB_PAN | E36: 21.09 | F36: 2025-06-01T03:00:00 | G36: 01-Jun-2025 03 HB_PAN
A37: 06/01/2025 | B37: 03:00 | C37: N | D37: HB_SOUTH | E37: 21.68 | F37: 2025-06-01T03:00:00 | G37: 01-Jun-2025 03 HB_SOUTH
A38: 06/01/2025 | B38: 03:00 | C38: N | D38: HB_WEST | E38: 23.52 | F38: 2025-06-01T03:00:00 | G38: 01-Jun-2025 03 HB_WEST
A39: 06/01/2025 | B39: 03:00 | C39: N | D39: LZ_AEN | E39: 21.56 | F39: 2025-06-01T03:00:00 | G39: 01-Jun-2025 03 LZ_AEN
A40: 06/01/2025 | B40: 03:00 | C40: N | D40: LZ_CPS | E40: 21.79 | F40: 2025-06-01T03:00:00 | G40: 01-Jun-2025 03 LZ_CPS
A41: 06/01/2025 | B41: 03:00 | C41: N | D41: LZ_HOUSTON | E41: 21.53 | F41: 2025-06-01T03:00:00 | G41: 01-Jun-2025 03 LZ_HOUSTON
A42: 06/01/2025 | B42: 03:00 | C42: N | D42: LZ_LCRA | E42: 21.67 | F42: 2025-06-01T03:00:00 | G42: 01-Jun-2025 03 LZ_LCRA
A43: 06/01/2025 | B43: 03:00 | C43: N | D43: LZ_NORTH | E43: 21.38 | F43: 2025-06-01T03:00:00 | G43: 01-Jun-2025 03 LZ_NORTH
A44: 06/01/2025 | B44: 03:00 | C44: N | D44: LZ_RAYBN | E44: 21.37 | F44: 2025-06-01T03:00:00 | G44: 01-Jun-2025 03 LZ_RAYBN
A45: 06/01/2025 | B45: 03:00 | C45: N | D45: LZ_SOUTH | E45: 21.87 | F45: 2025-06-01T03:00:00 | G45: 01-Jun-2025 03 LZ_SOUTH
A46: 06/01/2025 | B46: 03:00 | C46: N | D46: LZ_WEST | E46: 29.3 | F46: 2025-06-01T03:00:00 | G46: 01-Jun-2025 03 LZ_WEST
A47: 06/01/2025 | B47: 04:00 | C47: N | D47: HB_BUSAVG | E47: 21.51 | F47: 2025-06-01T04:00:00 | G47: 01-Jun-2025 04 HB_BUSAVG
A48: 06/01/2025 | B48: 04:00 | C48: N | D48: HB_HOUSTON | E48: 21.22 | F48: 2025-06-01T04:00:00 | G48: 01-Jun-2025 04 HB_HOUSTON
A49: 06/01/2025 | B49: 04:00 | C49: N | D49: HB_HUBAVG | E49: 21.86 | F49: 2025-06-01T04:00:00 | G49: 01-Jun-2025 04 HB_HUBAVG
A50: 06/01/2025 | B50: 04:00 | C50: N | D50: HB_NORTH | E50: 21.07 | F50: 2025-06-01T04:00:00 | G50: 01-Jun-2025 04 HB_NORTH
A51: 06/01/2025 | B51: 04:00 | C51: N | D51: HB_PAN | E51: 20.9 | F51: 2025-06-01T04:00:00 | G51: 01-Jun-2025 04 HB_PAN
A52: 06/01/2025 | B52: 04:00 | C52: N | D52: HB_SOUTH | E52: 21.41 | F52: 2025-06-01T04:00:00 | G52: 01-Jun-2025 04 HB_SOUTH
A53: 06/01/2025 | B53: 04:00 | C53: N | D53: HB_WEST | E53: 23.74 | F53: 2025-06-01T04:00:00 | G53: 01-Jun-2025 04 HB_WEST
A54: 06/01/2025 | B54: 04:00 | C54: N | D54: LZ_AEN | E54: 21.26 | F54: 2025-06-01T04:00:00 | G54: 01-Jun-2025 04 LZ_AEN
A55: 06/01/2025 | B55: 04:00 | C55: N | D55: LZ_CPS | E55: 21.53 | F55: 2025-06-01T04:00:00 | G55: 01-Jun-2025 04 LZ_CPS
A56: 06/01/2025 | B56: 04:00 | C56: N | D56: LZ_HOUSTON | E56: 21.27 | F56: 2025-06-01T04:00:00 | G56: 01-Jun-2025 04 LZ_HOUSTON
A57: 06/01/2025 | B57: 04:00 | C57: N | D57: LZ_LCRA | E57: 21.42 | F57: 2025-06-01T04:00:00 | G57: 01-Jun-2025 04 LZ_LCRA
A58: 06/01/2025 | B58: 04:00 | C58: N | D58: LZ_NORTH | E58: 21.1 | F58: 2025-06-01T04:00:00 | G58: 01-Jun-2025 04 LZ_NORTH
A59: 06/01/2025 | B59: 04:00 | C59: N | D59: LZ_RAYBN | E59: 21.1 | F59: 2025-06-01T04:00:00 | G59: 01-Jun-2025 04 LZ_RAYBN
A60: 06/01/2025 | B60: 04:00 | C60: N | D60: LZ_SOUTH | E60: 21.65 | F60: 2025-06-01T04:00:00 | G60: 01-Jun-2025 04 LZ_SOUTH
A61: 06/01/2025 | B61: 04:00 | C61: N | D61: LZ_WEST | E61: 30.24 | F61: 2025-06-01T04:00:00 | G61: 01-Jun-2025 04 LZ_WEST
A62: 06/01/2025 | B62: 05:00 | C62: N | D62: HB_BUSAVG | E62: 21.48 | F62: 2025-06-01T05:00:00 | G62: 01-Jun-2025 05 HB_BUSAVG
A63: 06/01/2025 | B63: 05:00 | C63: N | D63: HB_HOUSTON | E63: 21.23 | F63: 2025-06-01T05:00:00 | G63: 01-Jun-2025 05 HB_HOUSTON
A64: 06/01/2025 | B64: 05:00 | C64: N | D64: HB_HUBAVG | E64: 21.79 | F64: 2025-06-01T05:00:00 | G64: 01-Jun-2025 05 HB_HUBAVG
A65: 06/01/2025 | B65: 05:00 | C65: N | D65: HB_NORTH | E65: 21.13 | F65: 2025-06-01T05:00:00 | G65: 01-Jun-2025 05 HB_NORTH
A66: 06/01/2025 | B66: 05:00 | C66: N | D66: HB_PAN | E66: 21.12 | F66: 2025-06-01T05:00:00 | G66: 01-Jun-2025 05 HB_PAN
A67: 06/01/2025 | B67: 05:00 | C67: N | D67: HB_SOUTH | E67: 21.33 | F67: =A67+HOUR(B67)/24 -> 2025-06-01T05:00:00 | G67: =TEXT(F67,"dd-mmm-yyyy hh")&" "&D67 -> 01-Jun-2025 05 HB_SOUTH
A68: 06/01/2025 | B68: 05:00 | C68: N | D68: HB_WEST | E68: 23.45 | F68: 2025-06-01T05:00:00 | G68: 01-Jun-2025 05 HB_WEST
A69: 06/01/2025 | B69: 05:00 | C69: N | D69: LZ_AEN | E69: 21.2 | F69: 2025-06-01T05:00:00 | G69: 01-Jun-2025 05 LZ_AEN
A70: 06/01/2025 | B70: 05:00 | C70: N | D70: LZ_CPS | E70: 21.43 | F70: 2025-06-01T05:00:00 | G70: 01-Jun-2025 05 LZ_CPS
A71: 06/01/2025 | B71: 05:00 | C71: N | D71: LZ_HOUSTON | E71: 21.23 | F71: 2025-06-01T05:00:00 | G71: 01-Jun-2025 05 LZ_HOUSTON
A72: 06/01/2025 | B72: 05:00 | C72: N | D72: LZ_LCRA | E72: 21.33 | F72: 2025-06-01T05:00:00 | G72: 01-Jun-2025 05 LZ_LCRA
A73: 06/01/2025 | B73: 05:00 | C73: N | D73: LZ_NORTH | E73: 21.15 | F73: 2025-06-01T05:00:00 | G73: 01-Jun-2025 05 LZ_NORTH
A74: 06/01/2025 | B74: 05:00 | C74: N | D74: LZ_RAYBN | E74: 21.16 | F74: 2025-06-01T05:00:00 | G74: 01-Jun-2025 05 LZ_RAYBN
A75: 06/01/2025 | B75: 05:00 | C75: N | D75: LZ_SOUTH | E75: 21.56 | F75: 2025-06-01T05:00:00 | G75: 01-Jun-2025 05 LZ_SOUTH
A76: 06/01/2025 | B76: 05:00 | C76: N | D76: LZ_WEST | E76: 29.5 | F76: 2025-06-01T05:00:00 | G76: 01-Jun-2025 05 LZ_WEST
A77: 06/01/2025 | B77: 06:00 | C77: N | D77: HB_BUSAVG | E77: 21.68 | F77: 2025-06-01T06:00:00 | G77: 01-Jun-2025 06 HB_BUSAVG
A78: 06/01/2025 | B78: 06:00 | C78: N | D78: HB_HOUSTON | E78: 21.43 | F78: 2025-06-01T06:00:00 | G78: 01-Jun-2025 06 HB_HOUSTON
A79: 06/01/2025 | B79: 06:00 | C79: N | D79: HB_HUBAVG | E79: 21.91 | F79: 2025-06-01T06:00:00 | G79: 01-Jun-2025 06 HB_HUBAVG
A80: 06/01/2025 | B80: 06:00 | C80: N | D80: HB_NORTH | E80: 21.48 | F80: 2025-06-01T06:00:00 | G80: 01-Jun-2025 06 HB_NORTH
A81: 06/01/2025 | B81: 06:00 | C81: N | D81: HB_PAN | E81: 21.75 | F81: 2025-06-01T06:00:00 | G81: 01-Jun-2025 06 HB_PAN
A82: 06/01/2025 | B82: 06:00 | C82: N | D82: HB_SOUTH | E82: 21.39 | F82: 2025-06-01T06:00:00 | G82: 01-Jun-2025 06 HB_SOUTH
A83: 06/01/2025 | B83: 06:00 | C83: N | D83: HB_WEST | E83: 23.35 | F83: 2025-06-01T06:00:00 | G83: 01-Jun-2025 06 HB_WEST
A84: 06/01/2025 | B84: 06:00 | C84: N | D84: LZ_AEN | E84: 21.3 | F84: 2025-06-01T06:00:00 | G84: 01-Jun-2025 06 LZ_AEN
A85: 06/01/2025 | B85: 06:00 | C85: N | D85: LZ_CPS | E85: 21.43 | F85: 2025-06-01T06:00:00 | G85: 01-Jun-2025 06 LZ_CPS
A86: 06/01/2025 | B86: 06:00 | C86: N | D86: LZ_HOUSTON | E86: 21.44 | F86: 2025-06-01T06:00:00 | G86: 01-Jun-2025 06 LZ_HOUSTON
A87: 06/01/2025 | B87: 06:00 | C87: N | D87: LZ_LCRA | E87: 21.38 | F87: 2025-06-01T06:00:00 | G87: 01-Jun-2025 06 LZ_LCRA
A88: 06/01/2025 | B88: 06:00 | C88: N | D88: LZ_NORTH | E88: 21.5 | F88: 2025-06-01T06:00:00 | G88: 01-Jun-2025 06 LZ_NORTH
A89: 06/01/2025 | B89: 06:00 | C89: N | D89: LZ_RAYBN | E89: 21.52 | F89: 2025-06-01T06:00:00 | G89: 01-Jun-2025 06 LZ_RAYBN
A90: 06/01/2025 | B90: 06:00 | C90: N | D90: LZ_SOUTH | E90: 21.62 | F90: 2025-06-01T06:00:00 | G90: 01-Jun-2025 06 LZ_SOUTH
A91: 06/01/2025 | B91: 06:00 | C91: N | D91: LZ_WEST | E91: 28.54 | F91: 2025-06-01T06:00:00 | G91: 01-Jun-2025 06 LZ_WEST
A92: 06/01/2025 | B92: 07:00 | C92: N | D92: HB_BUSAVG | E92: 23.07 | F92: 2025-06-01T07:00:00 | G92: 01-Jun-2025 07 HB_BUSAVG
A93: 06/01/2025 | B93: 07:00 | C93: N | D93: HB_HOUSTON | E93: 22.84 | F93: 2025-06-01T07:00:00 | G93: 01-Jun-2025 07 HB_HOUSTON
A94: 06/01/2025 | B94: 07:00 | C94: N | D94: HB_HUBAVG | E94: 23.29 | F94: 2025-06-01T07:00:00 | G94: 01-Jun-2025 07 HB_HUBAVG
A95: 06/01/2025 | B95: 07:00 | C95: N | D95: HB_NORTH | E95: 22.87 | F95: 2025-06-01T07:00:00 | G95: 01-Jun-2025 07 HB_NORTH
A96: 06/01/2025 | B96: 07:00 | C96: N | D96: HB_PAN | E96: 23.1 | F96: 2025-06-01T07:00:00 | G96: 01-Jun-2025 07 HB_PAN
A97: 06/01/2025 | B97: 07:00 | C97: N | D97: HB_SOUTH | E97: 22.81 | F97: 2025-06-01T07:00:00 | G97: 01-Jun-2025 07 HB_SOUTH
A98: 06/01/2025 | B98: 07:00 | C98: N | D98: HB_WEST | E98: 24.66 | F98: 2025-06-01T07:00:00 | G98: 01-Jun-2025 07 HB_WEST
A99: 06/01/2025 | B99: 07:00 | C99: N | D99: LZ_AEN | E99: 22.71 | F99: 2025-06-01T07:00:00 | G99: 01-Jun-2025 07 LZ_AEN
A100: 06/01/2025 | B100: 07:00 | C100: N | D100: LZ_CPS | E100: 22.86 | F100: 2025-06-01T07:00:00 | G100: 01-Jun-2025 07 LZ_CPS
A101: 06/01/2025 | B101: 07:00 | C101: N | D101: LZ_HOUSTON | E101: 22.83 | F101: 2025-06-01T07:00:00 | G101: 01-Jun-2025 07 LZ_HOUSTON
A102: 06/01/2025 | B102: 07:00 | C102: N | D102: LZ_LCRA | E102: 22.8 | F102: 2025-06-01T07:00:00 | G102: 01-Jun-2025 07 LZ_LCRA
A103: 06/01/2025 | B103: 07:00 | C103: N | D103: LZ_NORTH | E103: 22.89 | F103: 2025-06-01T07:00:00 | G103: 01-Jun-2025 07 LZ_NORTH
A104: 06/01/2025 | B104: 07:00 | C104: N | D104: LZ_RAYBN | E104: 22.91 | F104: 2025-06-01T07:00:00 | G104: 01-Jun-2025 07 LZ_RAYBN
A105: 06/01/2025 | B105: 07:00 | C105: N | D105: LZ_SOUTH | E105: 23.07 | F105: 2025-06-01T07:00:00 | G105: 01-Jun-2025 07 LZ_SOUTH
A106: 06/01/2025 | B106: 07:00 | C106: N | D106: LZ_WEST | E106: 30.1 | F106: 2025-06-01T07:00:00 | G106: 01-Jun-2025 07 LZ_WEST
A107: 06/01/2025 | B107: 08:00 | C107: N | D107: HB_BUSAVG | E107: 19.88 | F107: 2025-06-01T08:00:00 | G107: 01-Jun-2025 08 HB_BUSAVG
A108: 06/01/2025 | B108: 08:00 | C108: N | D108: HB_HOUSTON | E108: 19.79 | F108: 2025-06-01T08:00:00 | G108: 01-Jun-2025 08 HB_HOUSTON
A109: 06/01/2025 | B109: 08:00 | C109: N | D109: HB_HUBAVG | E109: 20 | F109: 2025-06-01T08:00:00 | G109: 01-Jun-2025 08 HB_HUBAVG
A110: 06/01/2025 | B110: 08:00 | C110: N | D110: HB_NORTH | E110: 19.74 | F110: 2025-06-01T08:00:00 | G110: 01-Jun-2025 08 HB_NORTH
A111: 06/01/2025 | B111: 08:00 | C111: N | D111: HB_PAN | E111: 19.59 | F111: 2025-06-01T08:00:00 | G111: 01-Jun-2025 08 HB_PAN
A112: 06/01/2025 | B112: 08:00 | C112: N | D112: HB_SOUTH | E112: 19.86 | F112: 2025-06-01T08:00:00 | G112: 01-Jun-2025 08 HB_SOUTH
A113: 06/01/2025 | B113: 08:00 | C113: N | D113: HB_WEST | E113: 20.59 | F113: 2025-06-01T08:00:00 | G113: 01-Jun-2025 08 HB_WEST
A114: 06/01/2025 | B114: 08:00 | C114: N | D114: LZ_AEN | E114: 19.8 | F114: 2025-06-01T08:00:00 | G114: 01-Jun-2025 08 LZ_AEN
A115: 06/01/2025 | B115: 08:00 | C115: N | D115: LZ_CPS | E115: 19.9 | F115: 2025-06-01T08:00:00 | G115: 01-Jun-2025 08 LZ_CPS
A116: 06/01/2025 | B116: 08:00 | C116: N | D116: LZ_HOUSTON | E116: 19.79 | F116: 2025-06-01T08:00:00 | G116: 01-Jun-2025 08 LZ_HOUSTON
A117: 06/01/2025 | B117: 08:00 | C117: N | D117: LZ_LCRA | E117: 19.85 | F117: 2025-06-01T08:00:00 | G117: 01-Jun-2025 08 LZ_LCRA
A118: 06/01/2025 | B118: 08:00 | C118: N | D118: LZ_NORTH | E118: 19.75 | F118: 2025-06-01T08:00:00 | G118: 01-Jun-2025 08 LZ_NORTH
A119: 06/01/2025 | B119: 08:00 | C119: N | D119: LZ_RAYBN | E119: 19.75 | F119: 2025-06-01T08:00:00 | G119: 01-Jun-2025 08 LZ_RAYBN
A120: 06/01/2025 | B120: 08:00 | C120: N | D120: LZ_SOUTH | E120: 19.97 | F120: 2025-06-01T08:00:00 | G120: 01-Jun-2025 08 LZ_SOUTH
A121: 06/01/2025 | B121: 08:00 | C121: N | D121: LZ_WEST | E121: 22.88 | F121: 2025-06-01T08:00:00 | G121: 01-Jun-2025 08 LZ_WEST
A122: 06/01/2025 | B122: 09:00 | C122: N | D122: HB_BUSAVG | E122: 15.8 | F122: 2025-06-01T09:00:00 | G122: 01-Jun-2025 09 HB_BUSAVG
A123: 06/01/2025 | B123: 09:00 | C123: N | D123: HB_HOUSTON | E123: 15.8 | F123: 2025-06-01T09:00:00 | G123: 01-Jun-2025 09 HB_HOUSTON
A124: 06/01/2025 | B124: 09:00 | C124: N | D124: HB_HUBAVG | E124: 15.8 | F124: 2025-06-01T09:00:00 | G124: 01-Jun-2025 09 HB_HUBAVG
A125: 06/01/2025 | B125: 09:00 | C125: N | D125: HB_NORTH | E125: 15.79 | F125: 2025-06-01T09:00:00 | G125: 01-Jun-2025 09 HB_NORTH
A126: 06/01/2025 | B126: 09:00 | C126: N | D126: HB_PAN | E126: 15.76 | F126: 2025-06-01T09:00:00 | G126: 01-Jun-2025 09 HB_PAN
A127: 06/01/2025 | B127: 09:00 | C127: N | D127: HB_SOUTH | E127: 15.81 | F127: 2025-06-01T09:00:00 | G127: 01-Jun-2025 09 HB_SOUTH
A128: 06/01/2025 | B128: 09:00 | C128: N | D128: HB_WEST | E128: 15.8 | F128: 2025-06-01T09:00:00 | G128: 01-Jun-2025 09 HB_WEST
A129: 06/01/2025 | B129: 09:00 | C129: N | D129: LZ_AEN | E129: 15.79 | F129: 2025-06-01T09:00:00 | G129: 01-Jun-2025 09 LZ_AEN
A130: 06/01/2025 | B130: 09:00 | C130: N | D130: LZ_CPS | E130: 15.8 | F130: 2025-06-01T09:00:00 | G130: 01-Jun-2025 09 LZ_CPS
A131: 06/01/2025 | B131: 09:00 | C131: N | D131: LZ_HOUSTON | E131: 15.8 | F131: =A131+HOUR(B131)/24 -> 2025-06-01T09:00:00 | G131: =TEXT(F131,"dd-mmm-yyyy hh")&" "&D131 -> 01-Jun-2025 09 LZ_HOUSTON
A132: 06/01/2025 | B132: 09:00 | C132: N | D132: LZ_LCRA | E132: 15.79 | F132: 2025-06-01T09:00:00 | G132: 01-Jun-2025 09 LZ_LCRA
A133: 06/01/2025 | B133: 09:00 | C133: N | D133: LZ_NORTH | E133: 15.79 | F133: 2025-06-01T09:00:00 | G133: 01-Jun-2025 09 LZ_NORTH
A134: 06/01/2025 | B134: 09:00 | C134: N | D134: LZ_RAYBN | E134: 15.79 | F134: 2025-06-01T09:00:00 | G134: 01-Jun-2025 09 LZ_RAYBN
A135: 06/01/2025 | B135: 09:00 | C135: N | D135: LZ_SOUTH | E135: 15.86 | F135: 2025-06-01T09:00:00 | G135: 01-Jun-2025 09 LZ_SOUTH
A136: 06/01/2025 | B136: 09:00 | C136: N | D136: LZ_WEST | E136: 15.85 | F136: 2025-06-01T09:00:00 | G136: 01-Jun-2025 09 LZ_WEST
A137: 06/01/2025 | B137: 10:00 | C137: N | D137: HB_BUSAVG | E137: 15.65 | F137: 2025-06-01T10:00:00 | G137: 01-Jun-2025 10 HB_BUSAVG
A138: 06/01/2025 | B138: 10:00 | C138: N | D138: HB_HOUSTON | E138: 15.96 | F138: 2025-06-01T10:00:00 | G138: 01-Jun-2025 10 HB_HOUSTON
A139: 06/01/2025 | B139: 10:00 | C139: N | D139: HB_HUBAVG | E139: 15.69 | F139: 2025-06-01T10:00:00 | G139: 01-Jun-2025 10 HB_HUBAVG
A140: 06/01/2025 | B140: 10:00 | C140: N | D140: HB_NORTH | E140: 15.57 | F140: 2025-06-01T10:00:00 | G140: 01-Jun-2025 10 HB_NORTH
A141: 06/01/2025 | B141: 10:00 | C141: N | D141: HB_PAN | E141: 15.47 | F141: 2025-06-01T10:00:00 | G141: 01-Jun-2025 10 HB_PAN
A142: 06/01/2025 | B142: 10:00 | C142: N | D142: HB_SOUTH | E142: 15.69 | F142: 2025-06-01T10:00:00 | G142: 01-Jun-2025 10 HB_SOUTH
A143: 06/01/2025 | B143: 10:00 | C143: N | D143: HB_WEST | E143: 15.53 | F143: 2025-06-01T10:00:00 | G143: 01-Jun-2025 10 HB_WEST
A144: 06/01/2025 | B144: 10:00 | C144: N | D144: LZ_AEN | E144: 15.54 | F144: 2025-06-01T10:00:00 | G144: 01-Jun-2025 10 LZ_AEN
A145: 06/01/2025 | B145: 10:00 | C145: N | D145: LZ_CPS | E145: 15.54 | F145: 2025-06-01T10:00:00 | G145: 01-Jun-2025 10 LZ_CPS
A146: 06/01/2025 | B146: 10:00 | C146: N | D146: LZ_HOUSTON | E146: 16.05 | F146: 2025-06-01T10:00:00 | G146: 01-Jun-2025 10 LZ_HOUSTON
A147: 06/01/2025 | B147: 10:00 | C147: N | D147: LZ_LCRA | E147: 15.52 | F147: 2025-06-01T10:00:00 | G147: 01-Jun-2025 10 LZ_LCRA
A148: 06/01/2025 | B148: 10:00 | C148: N | D148: LZ_NORTH | E148: 15.59 | F148: 2025-06-01T10:00:00 | G148: 01-Jun-2025 10 LZ_NORTH
A149: 06/01/2025 | B149: 10:00 | C149: N | D149: LZ_RAYBN | E149: 15.59 | F149: 2025-06-01T10:00:00 | G149: 01-Jun-2025 10 LZ_RAYBN
A150: 06/01/2025 | B150: 10:00 | C150: N | D150: LZ_SOUTH | E150: 15.99 | F150: 2025-06-01T10:00:00 | G150: 01-Jun-2025 10 LZ_SOUTH
A151: 06/01/2025 | B151: 10:00 | C151: N | D151: LZ_WEST | E151: 15.56 | F151: 2025-06-01T10:00:00 | G151: 01-Jun-2025 10 LZ_WEST
A152: 06/01/2025 | B152: 11:00 | C152: N | D152: HB_BUSAVG | E152: 17.62 | F152: 2025-06-01T11:00:00 | G152: 01-Jun-2025 11 HB_BUSAVG
A153: 06/01/2025 | B153: 11:00 | C153: N | D153: HB_HOUSTON | E153: 18.49 | F153: 2025-06-01T11:00:00 | G153: 01-Jun-2025 11 HB_HOUSTON
A154: 06/01/2025 | B154: 11:00 | C154: N | D154: HB_HUBAVG | E154: 17.7 | F154: 2025-06-01T11:00:00 | G154: 01-Jun-2025 11 HB_HUBAVG
A155: 06/01/2025 | B155: 11:00 | C155: N | D155: HB_NORTH | E155: 17.48 | F155: 2025-06-01T11:00:00 | G155: 01-Jun-2025 11 HB_NORTH
A156: 06/01/2025 | B156: 11:00 | C156: N | D156: HB_PAN | E156: 17.23 | F156: 2025-06-01T11:00:00 | G156: 01-Jun-2025 11 HB_PAN
A157: 06/01/2025 | B157: 11:00 | C157: N | D157: HB_SOUTH | E157: 17.55 | F157: 2025-06-01T11:00:00 | G157: 01-Jun-2025 11 HB_SOUTH
A158: 06/01/2025 | B158: 11:00 | C158: N | D158: HB_WEST | E158: 17.28 | F158: 2025-06-01T11:00:00 | G158: 01-Jun-2025 11 HB_WEST
A159: 06/01/2025 | B159: 11:00 | C159: N | D159: LZ_AEN | E159: 17.29 | F159: 2025-06-01T11:00:00 | G159: 01-Jun-2025 11 LZ_AEN
A160: 06/01/2025 | B160: 11:00 | C160: N | D160: LZ_CPS | E160: 17.28 | F160: 2025-06-01T11:00:00 | G160: 01-Jun-2025 11 LZ_CPS
A161: 06/01/2025 | B161: 11:00 | C161: N | D161: LZ_HOUSTON | E161: 18.74 | F161: 2025-06-01T11:00:00 | G161: 01-Jun-2025 11 LZ_HOUSTON
A162: 06/01/2025 | B162: 11:00 | C162: N | D162: LZ_LCRA | E162: 17.24 | F162: 2025-06-01T11:00:00 | G162: 01-Jun-2025 11 LZ_LCRA
A163: 06/01/2025 | B163: 11:00 | C163: N | D163: LZ_NORTH | E163: 17.53 | F163: 2025-06-01T11:00:00 | G163: 01-Jun-2025 11 LZ_NORTH
A164: 06/01/2025 | B164: 11:00 | C164: N | D164: LZ_RAYBN | E164: 17.55 | F164: 2025-06-01T11:00:00 | G164: 01-Jun-2025 11 LZ_RAYBN
A165: 06/01/2025 | B165: 11:00 | C165: N | D165: LZ_SOUTH | E165: 18.19 | F165: 2025-06-01T11:00:00 | G165: 01-Jun-2025 11 LZ_SOUTH
A166: 06/01/2025 | B166: 11:00 | C166: N | D166: LZ_WEST | E166: 17.35 | F166: 2025-06-01T11:00:00 | G166: 01-Jun-2025 11 LZ_WEST
A167: 06/01/2025 | B167: 12:00 | C167: N | D167: HB_BUSAVG | E167: 21.54 | F167: 2025-06-01T12:00:00 | G167: 01-Jun-2025 12 HB_BUSAVG
A168: 06/01/2025 | B168: 12:00 | C168: N | D168: HB_HOUSTON | E168: 23.43 | F168: 2025-06-01T12:00:00 | G168: 01-Jun-2025 12 HB_HOUSTON
A169: 06/01/2025 | B169: 12:00 | C169: N | D169: HB_HUBAVG | E169: 21.77 | F169: 2025-06-01T12:00:00 | G169: 01-Jun-2025 12 HB_HUBAVG
A170: 06/01/2025 | B170: 12:00 | C170: N | D170: HB_NORTH | E170: 21.15 | F170: 2025-06-01T12:00:00 | G170: 01-Jun-2025 12 HB_NORTH
A171: 06/01/2025 | B171: 12:00 | C171: N | D171: HB_PAN | E171: 20.7 | F171: 2025-06-01T12:00:00 | G171: 01-Jun-2025 12 HB_PAN
A172: 06/01/2025 | B172: 12:00 | C172: N | D172: HB_SOUTH | E172: 21.43 | F172: 2025-06-01T12:00:00 | G172: 01-Jun-2025 12 HB_SOUTH
A173: 06/01/2025 | B173: 12:00 | C173: N | D173: HB_WEST | E173: 21.09 | F173: 2025-06-01T12:00:00 | G173: 01-Jun-2025 12 HB_WEST
A174: 06/01/2025 | B174: 12:00 | C174: N | D174: LZ_AEN | E174: 21.5 | F174: 2025-06-01T12:00:00 | G174: 01-Jun-2025 12 LZ_AEN
A175: 06/01/2025 | B175: 12:00 | C175: N | D175: LZ_CPS | E175: 21.19 | F175: 2025-06-01T12:00:00 | G175: 01-Jun-2025 12 LZ_CPS
A176: 06/01/2025 | B176: 12:00 | C176: N | D176: LZ_HOUSTON | E176: 23.75 | F176: 2025-06-01T12:00:00 | G176: 01-Jun-2025 12 LZ_HOUSTON
A177: 06/01/2025 | B177: 12:00 | C177: N | D177: LZ_LCRA | E177: 21.35 | F177: 2025-06-01T12:00:00 | G177: 01-Jun-2025 12 LZ_LCRA
A178: 06/01/2025 | B178: 12:00 | C178: N | D178: LZ_NORTH | E178: 21.23 | F178: 2025-06-01T12:00:00 | G178: 01-Jun-2025 12 LZ_NORTH
A179: 06/01/2025 | B179: 12:00 | C179: N | D179: LZ_RAYBN | E179: 21.25 | F179: 2025-06-01T12:00:00 | G179: 01-Jun-2025 12 LZ_RAYBN
A180: 06/01/2025 | B180: 12:00 | C180: N | D180: LZ_SOUTH | E180: 22.35 | F180: 2025-06-01T12:00:00 | G180: 01-Jun-2025 12 LZ_SOUTH
A181: 06/01/2025 | B181: 12:00 | C181: N | D181: LZ_WEST | E181: 21.66 | F181: 2025-06-01T12:00:00 | G181: 01-Jun-2025 12 LZ_WEST
A182: 06/01/2025 | B182: 13:00 | C182: N | D182: HB_BUSAVG | E182: 24.29 | F182: 2025-06-01T13:00:00 | G182: 01-Jun-2025 13 HB_BUSAVG
A183: 06/01/2025 | B183: 13:00 | C183: N | D183: HB_HOUSTON | E183: 27.3 | F183: 2025-06-01T13:00:00 | G183: 01-Jun-2025 13 HB_HOUSTON
A184: 06/01/2025 | B184: 13:00 | C184: N | D184: HB_HUBAVG | E184: 24.69 | F184: 2025-06-01T13:00:00 | G184: 01-Jun-2025 13 HB_HUBAVG
A185: 06/01/2025 | B185: 13:00 | C185: N | D185: HB_NORTH | E185: 23.57 | F185: 2025-06-01T13:00:00 | G185: 01-Jun-2025 13 HB_NORTH
A186: 06/01/2025 | B186: 13:00 | C186: N | D186: HB_PAN | E186: 23.37 | F186: 2025-06-01T13:00:00 | G186: 01-Jun-2025 13 HB_PAN
A187: 06/01/2025 | B187: 13:00 | C187: N | D187: HB_SOUTH | E187: 24.49 | F187: 2025-06-01T13:00:00 | G187: 01-Jun-2025 13 HB_SOUTH
A188: 06/01/2025 | B188: 13:00 | C188: N | D188: HB_WEST | E188: 23.39 | F188: 2025-06-01T13:00:00 | G188: 01-Jun-2025 13 HB_WEST
A189: 06/01/2025 | B189: 13:00 | C189: N | D189: LZ_AEN | E189: 25.42 | F189: 2025-06-01T13:00:00 | G189: 01-Jun-2025 13 LZ_AEN
A190: 06/01/2025 | B190: 13:00 | C190: N | D190: LZ_CPS | E190: 24.36 | F190: 2025-06-01T13:00:00 | G190: 01-Jun-2025 13 LZ_CPS
A191: 06/01/2025 | B191: 13:00 | C191: N | D191: LZ_HOUSTON | E191: 27.7 | F191: 2025-06-01T13:00:00 | G191: 01-Jun-2025 13 LZ_HOUSTON
A192: 06/01/2025 | B192: 13:00 | C192: N | D192: LZ_LCRA | E192: 24.96 | F192: 2025-06-01T13:00:00 | G192: 01-Jun-2025 13 LZ_LCRA
A193: 06/01/2025 | B193: 13:00 | C193: N | D193: LZ_NORTH | E193: 23.71 | F193: 2025-06-01T13:00:00 | G193: 01-Jun-2025 13 LZ_NORTH
A194: 06/01/2025 | B194: 13:00 | C194: N | D194: LZ_RAYBN | E194: 23.73 | F194: 2025-06-01T13:00:00 | G194: 01-Jun-2025 13 LZ_RAYBN
A195: 06/01/2025 | B195: 13:00 | C195: N | D195: LZ_SOUTH | E195: 25.7 | F195: =A195+HOUR(B195)/24 -> 2025-06-01T13:00:00 | G195: =TEXT(F195,"dd-mmm-yyyy hh")&" "&D195 -> 01-Jun-2025 13 LZ_SOUTH
A196: 06/01/2025 | B196: 13:00 | C196: N | D196: LZ_WEST | E196: 24.39 | F196: 2025-06-01T13:00:00 | G196: 01-Jun-2025 13 LZ_WEST
A197: 06/01/2025 | B197: 14:00 | C197: N | D197: HB_BUSAVG | E197: 27.49 | F197: 2025-06-01T14:00:00 | G197: 01-Jun-2025 14 HB_BUSAVG
A198: 06/01/2025 | B198: 14:00 | C198: N | D198: HB_HOUSTON | E198: 31.52 | F198: 2025-06-01T14:00:00 | G198: 01-Jun-2025 14 HB_HOUSTON
A199: 06/01/2025 | B199: 14:00 | C199: N | D199: HB_HUBAVG | E199: 28.02 | F199: 2025-06-01T14:00:00 | G199: 01-Jun-2025 14 HB_HUBAVG
A200: 06/01/2025 | B200: 14:00 | C200: N | D200: HB_NORTH | E200: 26.48 | F200: 2025-06-01T14:00:00 | G200: 01-Jun-2025 14 HB_NORTH
... 10601 more rows

Sheet Jul
A1: Delivery Date | B1: Hour Ending | C1: Repeated Hour Flag | D1: Settlement Point | E1: Settlement Point Price
A2: 07/01/2025 | B2: 01:00 | C2: N | D2: HB_BUSAVG | E2: 36.3 | F2: =A2+HOUR(B2)/24 -> 2025-07-01T01:00:00 | G2: =TEXT(F2,"dd-mmm-yyyy hh")&" "&D2 -> 01-Jul-2025 01 HB_BUSAVG
A3: 07/01/2025 | B3: 01:00 | C3: N | D3: HB_HOUSTON | E3: 35.45 | F3: =A3+HOUR(B3)/24 -> 2025-07-01T01:00:00 | G3: =TEXT(F3,"dd-mmm-yyyy hh")&" "&D3 -> 01-Jul-2025 01 HB_HOUSTON
A4: 07/01/2025 | B4: 01:00 | C4: N | D4: HB_HUBAVG | E4: 36.77 | F4: 2025-07-01T01:00:00 | G4: 01-Jul-2025 01 HB_HUBAVG
A5: 07/01/2025 | B5: 01:00 | C5: N | D5: HB_NORTH | E5: 36.17 | F5: 2025-07-01T01:00:00 | G5: 01-Jul-2025 01 HB_NORTH
A6: 07/01/2025 | B6: 01:00 | C6: N | D6: HB_PAN | E6: 38.33 | F6: 2025-07-01T01:00:00 | G6: 01-Jul-2025 01 HB_PAN
A7: 07/01/2025 | B7: 01:00 | C7: N | D7: HB_SOUTH | E7: 34.81 | F7: 2025-07-01T01:00:00 | G7: 01-Jul-2025 01 HB_SOUTH
A8: 07/01/2025 | B8: 01:00 | C8: N | D8: HB_WEST | E8: 40.64 | F8: 2025-07-01T01:00:00 | G8: 01-Jul-2025 01 HB_WEST
A9: 07/01/2025 | B9: 01:00 | C9: N | D9: LZ_AEN | E9: 34.78 | F9: 2025-07-01T01:00:00 | G9: 01-Jul-2025 01 LZ_AEN
A10: 07/01/2025 | B10: 01:00 | C10: N | D10: LZ_CPS | E10: 35.23 | F10: 2025-07-01T01:00:00 | G10: 01-Jul-2025 01 LZ_CPS
A11: 07/01/2025 | B11: 01:00 | C11: N | D11: LZ_HOUSTON | E11: 35.39 | F11: 2025-07-01T01:00:00 | G11: 01-Jul-2025 01 LZ_HOUSTON
A12: 07/01/2025 | B12: 01:00 | C12: N | D12: LZ_LCRA | E12: 34.91 | F12: 2025-07-01T01:00:00 | G12: 01-Jul-2025 01 LZ_LCRA
A13: 07/01/2025 | B13: 01:00 | C13: N | D13: LZ_NORTH | E13: 36.21 | F13: 2025-07-01T01:00:00 | G13: 01-Jul-2025 01 LZ_NORTH
A14: 07/01/2025 | B14: 01:00 | C14: N | D14: LZ_RAYBN | E14: 36.32 | F14: 2025-07-01T01:00:00 | G14: 01-Jul-2025 01 LZ_RAYBN
A15: 07/01/2025 | B15: 01:00 | C15: N | D15: LZ_SOUTH | E15: 36.62 | F15: 2025-07-01T01:00:00 | G15: 01-Jul-2025 01 LZ_SOUTH
A16: 07/01/2025 | B16: 01:00 | C16: N | D16: LZ_WEST | E16: 56.8 | F16: 2025-07-01T01:00:00 | G16: 01-Jul-2025 01 LZ_WEST
A17: 07/01/2025 | B17: 02:00 | C17: N | D17: HB_BUSAVG | E17: 36.88 | F17: 2025-07-01T02:00:00 | G17: 01-Jul-2025 02 HB_BUSAVG
A18: 07/01/2025 | B18: 02:00 | C18: N | D18: HB_HOUSTON | E18: 35.95 | F18: 2025-07-01T02:00:00 | G18: 01-Jul-2025 02 HB_HOUSTON
A19: 07/01/2025 | B19: 02:00 | C19: N | D19: HB_HUBAVG | E19: 37.39 | F19: 2025-07-01T02:00:00 | G19: 01-Jul-2025 02 HB_HUBAVG
A20: 07/01/2025 | B20: 02:00 | C20: N | D20: HB_NORTH | E20: 36.74 | F20: 2025-07-01T02:00:00 | G20: 01-Jul-2025 02 HB_NORTH
A21: 07/01/2025 | B21: 02:00 | C21: N | D21: HB_PAN | E21: 39.1 | F21: 2025-07-01T02:00:00 | G21: 01-Jul-2025 02 HB_PAN
A22: 07/01/2025 | B22: 02:00 | C22: N | D22: HB_SOUTH | E22: 35.26 | F22: 2025-07-01T02:00:00 | G22: 01-Jul-2025 02 HB_SOUTH
A23: 07/01/2025 | B23: 02:00 | C23: N | D23: HB_WEST | E23: 41.6 | F23: 2025-07-01T02:00:00 | G23: 01-Jul-2025 02 HB_WEST
A24: 07/01/2025 | B24: 02:00 | C24: N | D24: LZ_AEN | E24: 35.17 | F24: 2025-07-01T02:00:00 | G24: 01-Jul-2025 02 LZ_AEN
A25: 07/01/2025 | B25: 02:00 | C25: N | D25: LZ_CPS | E25: 35.66 | F25: 2025-07-01T02:00:00 | G25: 01-Jul-2025 02 LZ_CPS
A26: 07/01/2025 | B26: 02:00 | C26: N | D26: LZ_HOUSTON | E26: 35.89 | F26: 2025-07-01T02:00:00 | G26: 01-Jul-2025 02 LZ_HOUSTON
A27: 07/01/2025 | B27: 02:00 | C27: N | D27: LZ_LCRA | E27: 35.32 | F27: 2025-07-01T02:00:00 | G27: 01-Jul-2025 02 LZ_LCRA
A28: 07/01/2025 | B28: 02:00 | C28: N | D28: LZ_NORTH | E28: 36.78 | F28: 2025-07-01T02:00:00 | G28: 01-Jul-2025 02 LZ_NORTH
A29: 07/01/2025 | B29: 02:00 | C29: N | D29: LZ_RAYBN | E29: 36.9 | F29: 2025-07-01T02:00:00 | G29: 01-Jul-2025 02 LZ_RAYBN
A30: 07/01/2025 | B30: 02:00 | C30: N | D30: LZ_SOUTH | E30: 37.12 | F30: 2025-07-01T02:00:00 | G30: 01-Jul-2025 02 LZ_SOUTH
A31: 07/01/2025 | B31: 02:00 | C31: N | D31: LZ_WEST | E31: 59.19 | F31: 2025-07-01T02:00:00 | G31: 01-Jul-2025 02 LZ_WEST
A32: 07/01/2025 | B32: 03:00 | C32: N | D32: HB_BUSAVG | E32: 34.23 | F32: 2025-07-01T03:00:00 | G32: 01-Jul-2025 03 HB_BUSAVG
A33: 07/01/2025 | B33: 03:00 | C33: N | D33: HB_HOUSTON | E33: 33.17 | F33: 2025-07-01T03:00:00 | G33: 01-Jul-2025 03 HB_HOUSTON
A34: 07/01/2025 | B34: 03:00 | C34: N | D34: HB_HUBAVG | E34: 34.78 | F34: 2025-07-01T03:00:00 | G34: 01-Jul-2025 03 HB_HUBAVG
A35: 07/01/2025 | B35: 03:00 | C35: N | D35: HB_NORTH | E35: 34.11 | F35: 2025-07-01T03:00:00 | G35: 01-Jul-2025 03 HB_NORTH
A36: 07/01/2025 | B36: 03:00 | C36: N | D36: HB_PAN | E36: 36.8 | F36: 2025-07-01T03:00:00 | G36: 01-Jul-2025 03 HB_PAN
A37: 07/01/2025 | B37: 03:00 | C37: N | D37: HB_SOUTH | E37: 32.35 | F37: 2025-07-01T03:00:00 | G37: 01-Jul-2025 03 HB_SOUTH
A38: 07/01/2025 | B38: 03:00 | C38: N | D38: HB_WEST | E38: 39.5 | F38: 2025-07-01T03:00:00 | G38: 01-Jul-2025 03 HB_WEST
A39: 07/01/2025 | B39: 03:00 | C39: N | D39: LZ_AEN | E39: 32.28 | F39: 2025-07-01T03:00:00 | G39: 01-Jul-2025 03 LZ_AEN
A40: 07/01/2025 | B40: 03:00 | C40: N | D40: LZ_CPS | E40: 32.52 | F40: 2025-07-01T03:00:00 | G40: 01-Jul-2025 03 LZ_CPS
A41: 07/01/2025 | B41: 03:00 | C41: N | D41: LZ_HOUSTON | E41: 33.1 | F41: 2025-07-01T03:00:00 | G41: 01-Jul-2025 03 LZ_HOUSTON
A42: 07/01/2025 | B42: 03:00 | C42: N | D42: LZ_LCRA | E42: 32.42 | F42: 2025-07-01T03:00:00 | G42: 01-Jul-2025 03 LZ_LCRA
A43: 07/01/2025 | B43: 03:00 | C43: N | D43: LZ_NORTH | E43: 34.15 | F43: 2025-07-01T03:00:00 | G43: 01-Jul-2025 03 LZ_NORTH
A44: 07/01/2025 | B44: 03:00 | C44: N | D44: LZ_RAYBN | E44: 34.29 | F44: 2025-07-01T03:00:00 | G44: 01-Jul-2025 03 LZ_RAYBN
A45: 07/01/2025 | B45: 03:00 | C45: N | D45: LZ_SOUTH | E45: 34.25 | F45: 2025-07-01T03:00:00 | G45: 01-Jul-2025 03 LZ_SOUTH
A46: 07/01/2025 | B46: 03:00 | C46: N | D46: LZ_WEST | E46: 59.02 | F46: 2025-07-01T03:00:00 | G46: 01-Jul-2025 03 LZ_WEST
A47: 07/01/2025 | B47: 04:00 | C47: N | D47: HB_BUSAVG | E47: 30.47 | F47: 2025-07-01T04:00:00 | G47: 01-Jul-2025 04 HB_BUSAVG
A48: 07/01/2025 | B48: 04:00 | C48: N | D48: HB_HOUSTON | E48: 29.28 | F48: 2025-07-01T04:00:00 | G48: 01-Jul-2025 04 HB_HOUSTON
A49: 07/01/2025 | B49: 04:00 | C49: N | D49: HB_HUBAVG | E49: 31.09 | F49: 2025-07-01T04:00:00 | G49: 01-Jul-2025 04 HB_HUBAVG
A50: 07/01/2025 | B50: 04:00 | C50: N | D50: HB_NORTH | E50: 30.32 | F50: 2025-07-01T04:00:00 | G50: 01-Jul-2025 04 HB_NORTH
A51: 07/01/2025 | B51: 04:00 | C51: N | D51: HB_PAN | E51: 33.33 | F51: 2025-07-01T04:00:00 | G51: 01-Jul-2025 04 HB_PAN
A52: 07/01/2025 | B52: 04:00 | C52: N | D52: HB_SOUTH | E52: 28.39 | F52: 2025-07-01T04:00:00 | G52: 01-Jul-2025 04 HB_SOUTH
A53: 07/01/2025 | B53: 04:00 | C53: N | D53: HB_WEST | E53: 36.38 | F53: 2025-07-01T04:00:00 | G53: 01-Jul-2025 04 HB_WEST
A54: 07/01/2025 | B54: 04:00 | C54: N | D54: LZ_AEN | E54: 28.27 | F54: 2025-07-01T04:00:00 | G54: 01-Jul-2025 04 LZ_AEN
A55: 07/01/2025 | B55: 04:00 | C55: N | D55: LZ_CPS | E55: 28.46 | F55: 2025-07-01T04:00:00 | G55: 01-Jul-2025 04 LZ_CPS
A56: 07/01/2025 | B56: 04:00 | C56: N | D56: LZ_HOUSTON | E56: 29.2 | F56: 2025-07-01T04:00:00 | G56: 01-Jul-2025 04 LZ_HOUSTON
A57: 07/01/2025 | B57: 04:00 | C57: N | D57: LZ_LCRA | E57: 28.43 | F57: 2025-07-01T04:00:00 | G57: 01-Jul-2025 04 LZ_LCRA
A58: 07/01/2025 | B58: 04:00 | C58: N | D58: LZ_NORTH | E58: 30.36 | F58: 2025-07-01T04:00:00 | G58: 01-Jul-2025 04 LZ_NORTH
A59: 07/01/2025 | B59: 04:00 | C59: N | D59: LZ_RAYBN | E59: 30.53 | F59: 2025-07-01T04:00:00 | G59: 01-Jul-2025 04 LZ_RAYBN
A60: 07/01/2025 | B60: 04:00 | C60: N | D60: LZ_SOUTH | E60: 30.36 | F60: 2025-07-01T04:00:00 | G60: 01-Jul-2025 04 LZ_SOUTH
A61: 07/01/2025 | B61: 04:00 | C61: N | D61: LZ_WEST | E61: 58.52 | F61: 2025-07-01T04:00:00 | G61: 01-Jul-2025 04 LZ_WEST
A62: 07/01/2025 | B62: 05:00 | C62: N | D62: HB_BUSAVG | E62: 31.73 | F62: 2025-07-01T05:00:00 | G62: 01-Jul-2025 05 HB_BUSAVG
A63: 07/01/2025 | B63: 05:00 | C63: N | D63: HB_HOUSTON | E63: 30.44 | F63: 2025-07-01T05:00:00 | G63: 01-Jul-2025 05 HB_HOUSTON
A64: 07/01/2025 | B64: 05:00 | C64: N | D64: HB_HUBAVG | E64: 32.39 | F64: 2025-07-01T05:00:00 | G64: 01-Jul-2025 05 HB_HUBAVG
A65: 07/01/2025 | B65: 05:00 | C65: N | D65: HB_NORTH | E65: 31.61 | F65: 2025-07-01T05:00:00 | G65: 01-Jul-2025 05 HB_NORTH
A66: 07/01/2025 | B66: 05:00 | C66: N | D66: HB_PAN | E66: 34.86 | F66: 2025-07-01T05:00:00 | G66: 01-Jul-2025 05 HB_PAN
A67: 07/01/2025 | B67: 05:00 | C67: N | D67: HB_SOUTH | E67: 29.42 | F67: =A67+HOUR(B67)/24 -> 2025-07-01T05:00:00 | G67: =TEXT(F67,"dd-mmm-yyyy hh")&" "&D67 -> 01-Jul-2025 05 HB_SOUTH
A68: 07/01/2025 | B68: 05:00 | C68: N | D68: HB_WEST | E68: 38.08 | F68: 2025-07-01T05:00:00 | G68: 01-Jul-2025 05 HB_WEST
A69: 07/01/2025 | B69: 05:00 | C69: N | D69: LZ_AEN | E69: 29.32 | F69: 2025-07-01T05:00:00 | G69: 01-Jul-2025 05 LZ_AEN
A70: 07/01/2025 | B70: 05:00 | C70: N | D70: LZ_CPS | E70: 29.49 | F70: 2025-07-01T05:00:00 | G70: 01-Jul-2025 05 LZ_CPS
A71: 07/01/2025 | B71: 05:00 | C71: N | D71: LZ_HOUSTON | E71: 30.35 | F71: 2025-07-01T05:00:00 | G71: 01-Jul-2025 05 LZ_HOUSTON
A72: 07/01/2025 | B72: 05:00 | C72: N | D72: LZ_LCRA | E72: 29.49 | F72: 2025-07-01T05:00:00 | G72: 01-Jul-2025 05 LZ_LCRA
A73: 07/01/2025 | B73: 05:00 | C73: N | D73: LZ_NORTH | E73: 31.66 | F73: 2025-07-01T05:00:00 | G73: 01-Jul-2025 05 LZ_NORTH
A74: 07/01/2025 | B74: 05:00 | C74: N | D74: LZ_RAYBN | E74: 31.83 | F74: 2025-07-01T05:00:00 | G74: 01-Jul-2025 05 LZ_RAYBN
A75: 07/01/2025 | B75: 05:00 | C75: N | D75: LZ_SOUTH | E75: 31.56 | F75: 2025-07-01T05:00:00 | G75: 01-Jul-2025 05 LZ_SOUTH
A76: 07/01/2025 | B76: 05:00 | C76: N | D76: LZ_WEST | E76: 62.15 | F76: 2025-07-01T05:00:00 | G76: 01-Jul-2025 05 LZ_WEST
A77: 07/01/2025 | B77: 06:00 | C77: N | D77: HB_BUSAVG | E77: 34.61 | F77: 2025-07-01T06:00:00 | G77: 01-Jul-2025 06 HB_BUSAVG
A78: 07/01/2025 | B78: 06:00 | C78: N | D78: HB_HOUSTON | E78: 33.26 | F78: 2025-07-01T06:00:00 | G78: 01-Jul-2025 06 HB_HOUSTON
A79: 07/01/2025 | B79: 06:00 | C79: N | D79: HB_HUBAVG | E79: 35.18 | F79: 2025-07-01T06:00:00 | G79: 01-Jul-2025 06 HB_HUBAVG
A80: 07/01/2025 | B80: 06:00 | C80: N | D80: HB_NORTH | E80: 34.71 | F80: 2025-07-01T06:00:00 | G80: 01-Jul-2025 06 HB_NORTH
A81: 07/01/2025 | B81: 06:00 | C81: N | D81: HB_PAN | E81: 37.85 | F81: 2025-07-01T06:00:00 | G81: 01-Jul-2025 06 HB_PAN
A82: 07/01/2025 | B82: 06:00 | C82: N | D82: HB_SOUTH | E82: 31.94 | F82: 2025-07-01T06:00:00 | G82: 01-Jul-2025 06 HB_SOUTH
A83: 07/01/2025 | B83: 06:00 | C83: N | D83: HB_WEST | E83: 40.79 | F83: 2025-07-01T06:00:00 | G83: 01-Jul-2025 06 HB_WEST
A84: 07/01/2025 | B84: 06:00 | C84: N | D84: LZ_AEN | E84: 32.09 | F84: 2025-07-01T06:00:00 | G84: 01-Jul-2025 06 LZ_AEN
A85: 07/01/2025 | B85: 06:00 | C85: N | D85: LZ_CPS | E85: 32.38 | F85: 2025-07-01T06:00:00 | G85: 01-Jul-2025 06 LZ_CPS
A86: 07/01/2025 | B86: 06:00 | C86: N | D86: LZ_HOUSTON | E86: 33.17 | F86: 2025-07-01T06:00:00 | G86: 01-Jul-2025 06 LZ_HOUSTON
A87: 07/01/2025 | B87: 06:00 | C87: N | D87: LZ_LCRA | E87: 32.27 | F87: 2025-07-01T06:00:00 | G87: 01-Jul-2025 06 LZ_LCRA
A88: 07/01/2025 | B88: 06:00 | C88: N | D88: LZ_NORTH | E88: 34.77 | F88: 2025-07-01T06:00:00 | G88: 01-Jul-2025 06 LZ_NORTH
A89: 07/01/2025 | B89: 06:00 | C89: N | D89: LZ_RAYBN | E89: 34.94 | F89: 2025-07-01T06:00:00 | G89: 01-Jul-2025 06 LZ_RAYBN
A90: 07/01/2025 | B90: 06:00 | C90: N | D90: LZ_SOUTH | E90: 34.31 | F90: 2025-07-01T06:00:00 | G90: 01-Jul-2025 06 LZ_SOUTH
A91: 07/01/2025 | B91: 06:00 | C91: N | D91: LZ_WEST | E91: 61.48 | F91: 2025-07-01T06:00:00 | G91: 01-Jul-2025 06 LZ_WEST
A92: 07/01/2025 | B92: 07:00 | C92: N | D92: HB_BUSAVG | E92: 38.27 | F92: 2025-07-01T07:00:00 | G92: 01-Jul-2025 07 HB_BUSAVG
A93: 07/01/2025 | B93: 07:00 | C93: N | D93: HB_HOUSTON | E93: 36.78 | F93: 2025-07-01T07:00:00 | G93: 01-Jul-2025 07 HB_HOUSTON
A94: 07/01/2025 | B94: 07:00 | C94: N | D94: HB_HUBAVG | E94: 38.88 | F94: 2025-07-01T07:00:00 | G94: 01-Jul-2025 07 HB_HUBAVG
A95: 07/01/2025 | B95: 07:00 | C95: N | D95: HB_NORTH | E95: 38.47 | F95: 2025-07-01T07:00:00 | G95: 01-Jul-2025 07 HB_NORTH
A96: 07/01/2025 | B96: 07:00 | C96: N | D96: HB_PAN | E96: 41.98 | F96: 2025-07-01T07:00:00 | G96: 01-Jul-2025 07 HB_PAN
A97: 07/01/2025 | B97: 07:00 | C97: N | D97: HB_SOUTH | E97: 35 | F97: 2025-07-01T07:00:00 | G97: 01-Jul-2025 07 HB_SOUTH
A98: 07/01/2025 | B98: 07:00 | C98: N | D98: HB_WEST | E98: 45.26 | F98: 2025-07-01T07:00:00 | G98: 01-Jul-2025 07 HB_WEST
A99: 07/01/2025 | B99: 07:00 | C99: N | D99: LZ_AEN | E99: 35.55 | F99: 2025-07-01T07:00:00 | G99: 01-Jul-2025 07 LZ_AEN
A100: 07/01/2025 | B100: 07:00 | C100: N | D100: LZ_CPS | E100: 36.04 | F100: 2025-07-01T07:00:00 | G100: 01-Jul-2025 07 LZ_CPS
A101: 07/01/2025 | B101: 07:00 | C101: N | D101: LZ_HOUSTON | E101: 36.67 | F101: 2025-07-01T07:00:00 | G101: 01-Jul-2025 07 LZ_HOUSTON
A102: 07/01/2025 | B102: 07:00 | C102: N | D102: LZ_LCRA | E102: 35.64 | F102: 2025-07-01T07:00:00 | G102: 01-Jul-2025 07 LZ_LCRA
A103: 07/01/2025 | B103: 07:00 | C103: N | D103: LZ_NORTH | E103: 38.54 | F103: 2025-07-01T07:00:00 | G103: 01-Jul-2025 07 LZ_NORTH
A104: 07/01/2025 | B104: 07:00 | C104: N | D104: LZ_RAYBN | E104: 38.72 | F104: 2025-07-01T07:00:00 | G104: 01-Jul-2025 07 LZ_RAYBN
A105: 07/01/2025 | B105: 07:00 | C105: N | D105: LZ_SOUTH | E105: 37.94 | F105: 2025-07-01T07:00:00 | G105: 01-Jul-2025 07 LZ_SOUTH
A106: 07/01/2025 | B106: 07:00 | C106: N | D106: LZ_WEST | E106: 68.01 | F106: 2025-07-01T07:00:00 | G106: 01-Jul-2025 07 LZ_WEST
A107: 07/01/2025 | B107: 08:00 | C107: N | D107: HB_BUSAVG | E107: 30.06 | F107: 2025-07-01T08:00:00 | G107: 01-Jul-2025 08 HB_BUSAVG
A108: 07/01/2025 | B108: 08:00 | C108: N | D108: HB_HOUSTON | E108: 29.17 | F108: 2025-07-01T08:00:00 | G108: 01-Jul-2025 08 HB_HOUSTON
A109: 07/01/2025 | B109: 08:00 | C109: N | D109: HB_HUBAVG | E109: 30.31 | F109: 2025-07-01T08:00:00 | G109: 01-Jul-2025 08 HB_HUBAVG
A110: 07/01/2025 | B110: 08:00 | C110: N | D110: HB_NORTH | E110: 30.24 | F110: 2025-07-01T08:00:00 | G110: 01-Jul-2025 08 HB_NORTH
A111: 07/01/2025 | B111: 08:00 | C111: N | D111: HB_PAN | E111: 31.98 | F111: 2025-07-01T08:00:00 | G111: 01-Jul-2025 08 HB_PAN
A112: 07/01/2025 | B112: 08:00 | C112: N | D112: HB_SOUTH | E112: 28.28 | F112: 2025-07-01T08:00:00 | G112: 01-Jul-2025 08 HB_SOUTH
A113: 07/01/2025 | B113: 08:00 | C113: N | D113: HB_WEST | E113: 33.54 | F113: 2025-07-01T08:00:00 | G113: 01-Jul-2025 08 HB_WEST
A114: 07/01/2025 | B114: 08:00 | C114: N | D114: LZ_AEN | E114: 28.88 | F114: 2025-07-01T08:00:00 | G114: 01-Jul-2025 08 LZ_AEN
A115: 07/01/2025 | B115: 08:00 | C115: N | D115: LZ_CPS | E115: 28.8 | F115: 2025-07-01T08:00:00 | G115: 01-Jul-2025 08 LZ_CPS
A116: 07/01/2025 | B116: 08:00 | C116: N | D116: LZ_HOUSTON | E116: 29.1 | F116: 2025-07-01T08:00:00 | G116: 01-Jul-2025 08 LZ_HOUSTON
A117: 07/01/2025 | B117: 08:00 | C117: N | D117: LZ_LCRA | E117: 28.73 | F117: 2025-07-01T08:00:00 | G117: 01-Jul-2025 08 LZ_LCRA
A118: 07/01/2025 | B118: 08:00 | C118: N | D118: LZ_NORTH | E118: 30.28 | F118: 2025-07-01T08:00:00 | G118: 01-Jul-2025 08 LZ_NORTH
A119: 07/01/2025 | B119: 08:00 | C119: N | D119: LZ_RAYBN | E119: 30.36 | F119: 2025-07-01T08:00:00 | G119: 01-Jul-2025 08 LZ_RAYBN
A120: 07/01/2025 | B120: 08:00 | C120: N | D120: LZ_SOUTH | E120: 29.46 | F120: 2025-07-01T08:00:00 | G120: 01-Jul-2025 08 LZ_SOUTH
A121: 07/01/2025 | B121: 08:00 | C121: N | D121: LZ_WEST | E121: 44.23 | F121: 2025-07-01T08:00:00 | G121: 01-Jul-2025 08 LZ_WEST
A122: 07/01/2025 | B122: 09:00 | C122: N | D122: HB_BUSAVG | E122: 25.38 | F122: 2025-07-01T09:00:00 | G122: 01-Jul-2025 09 HB_BUSAVG
A123: 07/01/2025 | B123: 09:00 | C123: N | D123: HB_HOUSTON | E123: 25.17 | F123: 2025-07-01T09:00:00 | G123: 01-Jul-2025 09 HB_HOUSTON
A124: 07/01/2025 | B124: 09:00 | C124: N | D124: HB_HUBAVG | E124: 25.44 | F124: 2025-07-01T09:00:00 | G124: 01-Jul-2025 09 HB_HUBAVG
A125: 07/01/2025 | B125: 09:00 | C125: N | D125: HB_NORTH | E125: 25.41 | F125: 2025-07-01T09:00:00 | G125: 01-Jul-2025 09 HB_NORTH
A126: 07/01/2025 | B126: 09:00 | C126: N | D126: HB_PAN | E126: 25.53 | F126: 2025-07-01T09:00:00 | G126: 01-Jul-2025 09 HB_PAN
A127: 07/01/2025 | B127: 09:00 | C127: N | D127: HB_SOUTH | E127: 25 | F127: 2025-07-01T09:00:00 | G127: 01-Jul-2025 09 HB_SOUTH
A128: 07/01/2025 | B128: 09:00 | C128: N | D128: HB_WEST | E128: 26.2 | F128: 2025-07-01T09:00:00 | G128: 01-Jul-2025 09 HB_WEST
A129: 07/01/2025 | B129: 09:00 | C129: N | D129: LZ_AEN | E129: 25.18 | F129: 2025-07-01T09:00:00 | G129: 01-Jul-2025 09 LZ_AEN
A130: 07/01/2025 | B130: 09:00 | C130: N | D130: LZ_CPS | E130: 25.09 | F130: 2025-07-01T09:00:00 | G130: 01-Jul-2025 09 LZ_CPS
A131: 07/01/2025 | B131: 09:00 | C131: N | D131: LZ_HOUSTON | E131: 25.15 | F131: =A131+HOUR(B131)/24 -> 2025-07-01T09:00:00 | G131: =TEXT(F131,"dd-mmm-yyyy hh")&" "&D131 -> 01-Jul-2025 09 LZ_HOUSTON
A132: 07/01/2025 | B132: 09:00 | C132: N | D132: LZ_LCRA | E132: 25.13 | F132: 2025-07-01T09:00:00 | G132: 01-Jul-2025 09 LZ_LCRA
A133: 07/01/2025 | B133: 09:00 | C133: N | D133: LZ_NORTH | E133: 25.41 | F133: 2025-07-01T09:00:00 | G133: 01-Jul-2025 09 LZ_NORTH
A134: 07/01/2025 | B134: 09:00 | C134: N | D134: LZ_RAYBN | E134: 25.41 | F134: 2025-07-01T09:00:00 | G134: 01-Jul-2025 09 LZ_RAYBN
A135: 07/01/2025 | B135: 09:00 | C135: N | D135: LZ_SOUTH | E135: 25.1 | F135: 2025-07-01T09:00:00 | G135: 01-Jul-2025 09 LZ_SOUTH
A136: 07/01/2025 | B136: 09:00 | C136: N | D136: LZ_WEST | E136: 28.3 | F136: 2025-07-01T09:00:00 | G136: 01-Jul-2025 09 LZ_WEST
A137: 07/01/2025 | B137: 10:00 | C137: N | D137: HB_BUSAVG | E137: 25.26 | F137: 2025-07-01T10:00:00 | G137: 01-Jul-2025 10 HB_BUSAVG
A138: 07/01/2025 | B138: 10:00 | C138: N | D138: HB_HOUSTON | E138: 25.22 | F138: 2025-07-01T10:00:00 | G138: 01-Jul-2025 10 HB_HOUSTON
A139: 07/01/2025 | B139: 10:00 | C139: N | D139: HB_HUBAVG | E139: 25.26 | F139: 2025-07-01T10:00:00 | G139: 01-Jul-2025 10 HB_HUBAVG
A140: 07/01/2025 | B140: 10:00 | C140: N | D140: HB_NORTH | E140: 25.39 | F140: 2025-07-01T10:00:00 | G140: 01-Jul-2025 10 HB_NORTH
A141: 07/01/2025 | B141: 10:00 | C141: N | D141: HB_PAN | E141: 25.35 | F141: 2025-07-01T10:00:00 | G141: 01-Jul-2025 10 HB_PAN
A142: 07/01/2025 | B142: 10:00 | C142: N | D142: HB_SOUTH | E142: 24.74 | F142: 2025-07-01T10:00:00 | G142: 01-Jul-2025 10 HB_SOUTH
A143: 07/01/2025 | B143: 10:00 | C143: N | D143: HB_WEST | E143: 25.7 | F143: 2025-07-01T10:00:00 | G143: 01-Jul-2025 10 HB_WEST
A144: 07/01/2025 | B144: 10:00 | C144: N | D144: LZ_AEN | E144: 25.12 | F144: 2025-07-01T10:00:00 | G144: 01-Jul-2025 10 LZ_AEN
A145: 07/01/2025 | B145: 10:00 | C145: N | D145: LZ_CPS | E145: 24.95 | F145: 2025-07-01T10:00:00 | G145: 01-Jul-2025 10 LZ_CPS
A146: 07/01/2025 | B146: 10:00 | C146: N | D146: LZ_HOUSTON | E146: 25.22 | F146: 2025-07-01T10:00:00 | G146: 01-Jul-2025 10 LZ_HOUSTON
A147: 07/01/2025 | B147: 10:00 | C147: N | D147: LZ_LCRA | E147: 24.96 | F147: 2025-07-01T10:00:00 | G147: 01-Jul-2025 10 LZ_LCRA
A148: 07/01/2025 | B148: 10:00 | C148: N | D148: LZ_NORTH | E148: 25.42 | F148: 2025-07-01T10:00:00 | G148: 01-Jul-2025 10 LZ_NORTH
A149: 07/01/2025 | B149: 10:00 | C149: N | D149: LZ_RAYBN | E149: 25.45 | F149: 2025-07-01T10:00:00 | G149: 01-Jul-2025 10 LZ_RAYBN
A150: 07/01/2025 | B150: 10:00 | C150: N | D150: LZ_SOUTH | E150: 24.81 | F150: 2025-07-01T10:00:00 | G150: 01-Jul-2025 10 LZ_SOUTH
A151: 07/01/2025 | B151: 10:00 | C151: N | D151: LZ_WEST | E151: 26.81 | F151: 2025-07-01T10:00:00 | G151: 01-Jul-2025 10 LZ_WEST
A152: 07/01/2025 | B152: 11:00 | C152: N | D152: HB_BUSAVG | E152: 25.56 | F152: 2025-07-01T11:00:00 | G152: 01-Jul-2025 11 HB_BUSAVG
A153: 07/01/2025 | B153: 11:00 | C153: N | D153: HB_HOUSTON | E153: 26.72 | F153: 2025-07-01T11:00:00 | G153: 01-Jul-2025 11 HB_HOUSTON
A154: 07/01/2025 | B154: 11:00 | C154: N | D154: HB_HUBAVG | E154: 25.51 | F154: 2025-07-01T11:00:00 | G154: 01-Jul-2025 11 HB_HUBAVG
A155: 07/01/2025 | B155: 11:00 | C155: N | D155: HB_NORTH | E155: 26 | F155: 2025-07-01T11:00:00 | G155: 01-Jul-2025 11 HB_NORTH
A156: 07/01/2025 | B156: 11:00 | C156: N | D156: HB_PAN | E156: 25.63 | F156: 2025-07-01T11:00:00 | G156: 01-Jul-2025 11 HB_PAN
A157: 07/01/2025 | B157: 11:00 | C157: N | D157: HB_SOUTH | E157: 23.7 | F157: 2025-07-01T11:00:00 | G157: 01-Jul-2025 11 HB_SOUTH
A158: 07/01/2025 | B158: 11:00 | C158: N | D158: HB_WEST | E158: 25.62 | F158: 2025-07-01T11:00:00 | G158: 01-Jul-2025 11 HB_WEST
A159: 07/01/2025 | B159: 11:00 | C159: N | D159: LZ_AEN | E159: 24.3 | F159: 2025-07-01T11:00:00 | G159: 01-Jul-2025 11 LZ_AEN
A160: 07/01/2025 | B160: 11:00 | C160: N | D160: LZ_CPS | E160: 23.96 | F160: 2025-07-01T11:00:00 | G160: 01-Jul-2025 11 LZ_CPS
A161: 07/01/2025 | B161: 11:00 | C161: N | D161: LZ_HOUSTON | E161: 26.86 | F161: 2025-07-01T11:00:00 | G161: 01-Jul-2025 11 LZ_HOUSTON
A162: 07/01/2025 | B162: 11:00 | C162: N | D162: LZ_LCRA | E162: 24.18 | F162: 2025-07-01T11:00:00 | G162: 01-Jul-2025 11 LZ_LCRA
A163: 07/01/2025 | B163: 11:00 | C163: N | D163: LZ_NORTH | E163: 26.23 | F163: 2025-07-01T11:00:00 | G163: 01-Jul-2025 11 LZ_NORTH
A164: 07/01/2025 | B164: 11:00 | C164: N | D164: LZ_RAYBN | E164: 27.23 | F164: 2025-07-01T11:00:00 | G164: 01-Jul-2025 11 LZ_RAYBN
A165: 07/01/2025 | B165: 11:00 | C165: N | D165: LZ_SOUTH | E165: 23.69 | F165: 2025-07-01T11:00:00 | G165: 01-Jul-2025 11 LZ_SOUTH
A166: 07/01/2025 | B166: 11:00 | C166: N | D166: LZ_WEST | E166: 25.97 | F166: 2025-07-01T11:00:00 | G166: 01-Jul-2025 11 LZ_WEST
A167: 07/01/2025 | B167: 12:00 | C167: N | D167: HB_BUSAVG | E167: 28.12 | F167: 2025-07-01T12:00:00 | G167: 01-Jul-2025 12 HB_BUSAVG
A168: 07/01/2025 | B168: 12:00 | C168: N | D168: HB_HOUSTON | E168: 30.15 | F168: 2025-07-01T12:00:00 | G168: 01-Jul-2025 12 HB_HOUSTON
A169: 07/01/2025 | B169: 12:00 | C169: N | D169: HB_HUBAVG | E169: 27.97 | F169: 2025-07-01T12:00:00 | G169: 01-Jul-2025 12 HB_HUBAVG
A170: 07/01/2025 | B170: 12:00 | C170: N | D170: HB_NORTH | E170: 29.04 | F170: 2025-07-01T12:00:00 | G170: 01-Jul-2025 12 HB_NORTH
A171: 07/01/2025 | B171: 12:00 | C171: N | D171: HB_PAN | E171: 28.33 | F171: 2025-07-01T12:00:00 | G171: 01-Jul-2025 12 HB_PAN
A172: 07/01/2025 | B172: 12:00 | C172: N | D172: HB_SOUTH | E172: 24.51 | F172: 2025-07-01T12:00:00 | G172: 01-Jul-2025 12 HB_SOUTH
A173: 07/01/2025 | B173: 12:00 | C173: N | D173: HB_WEST | E173: 28.18 | F173: 2025-07-01T12:00:00 | G173: 01-Jul-2025 12 HB_WEST
A174: 07/01/2025 | B174: 12:00 | C174: N | D174: LZ_AEN | E174: 25.76 | F174: 2025-07-01T12:00:00 | G174: 01-Jul-2025 12 LZ_AEN
A175: 07/01/2025 | B175: 12:00 | C175: N | D175: LZ_CPS | E175: 25.26 | F175: 2025-07-01T12:00:00 | G175: 01-Jul-2025 12 LZ_CPS
A176: 07/01/2025 | B176: 12:00 | C176: N | D176: LZ_HOUSTON | E176: 30.2 | F176: 2025-07-01T12:00:00 | G176: 01-Jul-2025 12 LZ_HOUSTON
A177: 07/01/2025 | B177: 12:00 | C177: N | D177: LZ_LCRA | E177: 25.57 | F177: 2025-07-01T12:00:00 | G177: 01-Jul-2025 12 LZ_LCRA
A178: 07/01/2025 | B178: 12:00 | C178: N | D178: LZ_NORTH | E178: 29.6 | F178: 2025-07-01T12:00:00 | G178: 01-Jul-2025 12 LZ_NORTH
A179: 07/01/2025 | B179: 12:00 | C179: N | D179: LZ_RAYBN | E179: 32.47 | F179: 2025-07-01T12:00:00 | G179: 01-Jul-2025 12 LZ_RAYBN
A180: 07/01/2025 | B180: 12:00 | C180: N | D180: LZ_SOUTH | E180: 24.34 | F180: 2025-07-01T12:00:00 | G180: 01-Jul-2025 12 LZ_SOUTH
A181: 07/01/2025 | B181: 12:00 | C181: N | D181: LZ_WEST | E181: 28.41 | F181: 2025-07-01T12:00:00 | G181: 01-Jul-2025 12 LZ_WEST
A182: 07/01/2025 | B182: 13:00 | C182: N | D182: HB_BUSAVG | E182: 31.2 | F182: 2025-07-01T13:00:00 | G182: 01-Jul-2025 13 HB_BUSAVG
A183: 07/01/2025 | B183: 13:00 | C183: N | D183: HB_HOUSTON | E183: 35.41 | F183: 2025-07-01T13:00:00 | G183: 01-Jul-2025 13 HB_HOUSTON
A184: 07/01/2025 | B184: 13:00 | C184: N | D184: HB_HUBAVG | E184: 30.98 | F184: 2025-07-01T13:00:00 | G184: 01-Jul-2025 13 HB_HUBAVG
A185: 07/01/2025 | B185: 13:00 | C185: N | D185: HB_NORTH | E185: 32.81 | F185: 2025-07-01T13:00:00 | G185: 01-Jul-2025 13 HB_NORTH
A186: 07/01/2025 | B186: 13:00 | C186: N | D186: HB_PAN | E186: 31.58 | F186: 2025-07-01T13:00:00 | G186: 01-Jul-2025 13 HB_PAN
A187: 07/01/2025 | B187: 13:00 | C187: N | D187: HB_SOUTH | E187: 24.61 | F187: 2025-07-01T13:00:00 | G187: 01-Jul-2025 13 HB_SOUTH
A188: 07/01/2025 | B188: 13:00 | C188: N | D188: HB_WEST | E188: 31.1 | F188: 2025-07-01T13:00:00 | G188: 01-Jul-2025 13 HB_WEST
A189: 07/01/2025 | B189: 13:00 | C189: N | D189: LZ_AEN | E189: 27.99 | F189: 2025-07-01T13:00:00 | G189: 01-Jul-2025 13 LZ_AEN
A190: 07/01/2025 | B190: 13:00 | C190: N | D190: LZ_CPS | E190: 25.79 | F190: 2025-07-01T13:00:00 | G190: 01-Jul-2025 13 LZ_CPS
A191: 07/01/2025 | B191: 13:00 | C191: N | D191: LZ_HOUSTON | E191: 35.56 | F191: 2025-07-01T13:00:00 | G191: 01-Jul-2025 13 LZ_HOUSTON
A192: 07/01/2025 | B192: 13:00 | C192: N | D192: LZ_LCRA | E192: 26.89 | F192: 2025-07-01T13:00:00 | G192: 01-Jul-2025 13 LZ_LCRA
A193: 07/01/2025 | B193: 13:00 | C193: N | D193: LZ_NORTH | E193: 33.75 | F193: 2025-07-01T13:00:00 | G193: 01-Jul-2025 13 LZ_NORTH
A194: 07/01/2025 | B194: 13:00 | C194: N | D194: LZ_RAYBN | E194: 38.81 | F194: 2025-07-01T13:00:00 | G194: 01-Jul-2025 13 LZ_RAYBN
A195: 07/01/2025 | B195: 13:00 | C195: N | D195: LZ_SOUTH | E195: 24.65 | F195: =A195+HOUR(B195)/24 -> 2025-07-01T13:00:00 | G195: =TEXT(F195,"dd-mmm-yyyy hh")&" "&D195 -> 01-Jul-2025 13 LZ_SOUTH
A196: 07/01/2025 | B196: 13:00 | C196: N | D196: LZ_WEST | E196: 31.59 | F196: 2025-07-01T13:00:00 | G196: 01-Jul-2025 13 LZ_WEST
A197: 07/01/2025 | B197: 14:00 | C197: N | D197: HB_BUSAVG | E197: 36.99 | F197: 2025-07-01T14:00:00 | G197: 01-Jul-2025 14 HB_BUSAVG
A198: 07/01/2025 | B198: 14:00 | C198: N | D198: HB_HOUSTON | E198: 41.48 | F198: 2025-07-01T14:00:00 | G198: 01-Jul-2025 14 HB_HOUSTON
A199: 07/01/2025 | B199: 14:00 | C199: N | D199: HB_HUBAVG | E199: 36.51 | F199: 2025-07-01T14:00:00 | G199: 01-Jul-2025 14 HB_HUBAVG
A200: 07/01/2025 | B200: 14:00 | C200: N | D200: HB_NORTH | E200: 39.53 | F200: 2025-07-01T14:00:00 | G200: 01-Jul-2025 14 HB_NORTH
... 10961 more rows

Sheet Aug
A1: Delivery Date | B1: Hour Ending | C1: Repeated Hour Flag | D1: Settlement Point | E1: Settlement Point Price
A2: 08/01/2025 | B2: 01:00 | C2: N | D2: HB_BUSAVG | E2: 37.45 | F2: =A2+HOUR(B2)/24 -> 2025-08-01T01:00:00 | G2: =TEXT(F2,"dd-mmm-yyyy hh")&" "&D2 -> 01-Aug-2025 01 HB_BUSAVG
A3: 08/01/2025 | B3: 01:00 | C3: N | D3: HB_HOUSTON | E3: 36.65 | F3: =A3+HOUR(B3)/24 -> 2025-08-01T01:00:00 | G3: =TEXT(F3,"dd-mmm-yyyy hh")&" "&D3 -> 01-Aug-2025 01 HB_HOUSTON
A4: 08/01/2025 | B4: 01:00 | C4: N | D4: HB_HUBAVG | E4: 37.71 | F4: 2025-08-01T01:00:00 | G4: 01-Aug-2025 01 HB_HUBAVG
A5: 08/01/2025 | B5: 01:00 | C5: N | D5: HB_NORTH | E5: 37.74 | F5: 2025-08-01T01:00:00 | G5: 01-Aug-2025 01 HB_NORTH
A6: 08/01/2025 | B6: 01:00 | C6: N | D6: HB_PAN | E6: 38.71 | F6: 2025-08-01T01:00:00 | G6: 01-Aug-2025 01 HB_PAN
A7: 08/01/2025 | B7: 01:00 | C7: N | D7: HB_SOUTH | E7: 35.26 | F7: 2025-08-01T01:00:00 | G7: 01-Aug-2025 01 HB_SOUTH
A8: 08/01/2025 | B8: 01:00 | C8: N | D8: HB_WEST | E8: 41.2 | F8: 2025-08-01T01:00:00 | G8: 01-Aug-2025 01 HB_WEST
A9: 08/01/2025 | B9: 01:00 | C9: N | D9: LZ_AEN | E9: 37.44 | F9: 2025-08-01T01:00:00 | G9: 01-Aug-2025 01 LZ_AEN
A10: 08/01/2025 | B10: 01:00 | C10: N | D10: LZ_CPS | E10: 38.9 | F10: 2025-08-01T01:00:00 | G10: 01-Aug-2025 01 LZ_CPS
A11: 08/01/2025 | B11: 01:00 | C11: N | D11: LZ_HOUSTON | E11: 36.58 | F11: 2025-08-01T01:00:00 | G11: 01-Aug-2025 01 LZ_HOUSTON
A12: 08/01/2025 | B12: 01:00 | C12: N | D12: LZ_LCRA | E12: 37.62 | F12: 2025-08-01T01:00:00 | G12: 01-Aug-2025 01 LZ_LCRA
A13: 08/01/2025 | B13: 01:00 | C13: N | D13: LZ_NORTH | E13: 37.79 | F13: 2025-08-01T01:00:00 | G13: 01-Aug-2025 01 LZ_NORTH
A14: 08/01/2025 | B14: 01:00 | C14: N | D14: LZ_RAYBN | E14: 37.82 | F14: 2025-08-01T01:00:00 | G14: 01-Aug-2025 01 LZ_RAYBN
A15: 08/01/2025 | B15: 01:00 | C15: N | D15: LZ_SOUTH | E15: 33.4 | F15: 2025-08-01T01:00:00 | G15: 01-Aug-2025 01 LZ_SOUTH
A16: 08/01/2025 | B16: 01:00 | C16: N | D16: LZ_WEST | E16: 56.92 | F16: 2025-08-01T01:00:00 | G16: 01-Aug-2025 01 LZ_WEST
A17: 08/01/2025 | B17: 02:00 | C17: N | D17: HB_BUSAVG | E17: 35.1 | F17: 2025-08-01T02:00:00 | G17: 01-Aug-2025 02 HB_BUSAVG
A18: 08/01/2025 | B18: 02:00 | C18: N | D18: HB_HOUSTON | E18: 34.25 | F18: 2025-08-01T02:00:00 | G18: 01-Aug-2025 02 HB_HOUSTON
A19: 08/01/2025 | B19: 02:00 | C19: N | D19: HB_HUBAVG | E19: 35.48 | F19: 2025-08-01T02:00:00 | G19: 01-Aug-2025 02 HB_HUBAVG
A20: 08/01/2025 | B20: 02:00 | C20: N | D20: HB_NORTH | E20: 35.2 | F20: 2025-08-01T02:00:00 | G20: 01-Aug-2025 02 HB_NORTH
A21: 08/01/2025 | B21: 02:00 | C21: N | D21: HB_PAN | E21: 36.8 | F21: 2025-08-01T02:00:00 | G21: 01-Aug-2025 02 HB_PAN
A22: 08/01/2025 | B22: 02:00 | C22: N | D22: HB_SOUTH | E22: 33.15 | F22: 2025-08-01T02:00:00 | G22: 01-Aug-2025 02 HB_SOUTH
A23: 08/01/2025 | B23: 02:00 | C23: N | D23: HB_WEST | E23: 39.34 | F23: 2025-08-01T02:00:00 | G23: 01-Aug-2025 02 HB_WEST
A24: 08/01/2025 | B24: 02:00 | C24: N | D24: LZ_AEN | E24: 34.12 | F24: 2025-08-01T02:00:00 | G24: 01-Aug-2025 02 LZ_AEN
A25: 08/01/2025 | B25: 02:00 | C25: N | D25: LZ_CPS | E25: 34.37 | F25: 2025-08-01T02:00:00 | G25: 01-Aug-2025 02 LZ_CPS
A26: 08/01/2025 | B26: 02:00 | C26: N | D26: LZ_HOUSTON | E26: 34.18 | F26: 2025-08-01T02:00:00 | G26: 01-Aug-2025 02 LZ_HOUSTON
A27: 08/01/2025 | B27: 02:00 | C27: N | D27: LZ_LCRA | E27: 34.24 | F27: 2025-08-01T02:00:00 | G27: 01-Aug-2025 02 LZ_LCRA
A28: 08/01/2025 | B28: 02:00 | C28: N | D28: LZ_NORTH | E28: 35.25 | F28: 2025-08-01T02:00:00 | G28: 01-Aug-2025 02 LZ_NORTH
A29: 08/01/2025 | B29: 02:00 | C29: N | D29: LZ_RAYBN | E29: 35.32 | F29: 2025-08-01T02:00:00 | G29: 01-Aug-2025 02 LZ_RAYBN
A30: 08/01/2025 | B30: 02:00 | C30: N | D30: LZ_SOUTH | E30: 32.76 | F30: 2025-08-01T02:00:00 | G30: 01-Aug-2025 02 LZ_SOUTH
A31: 08/01/2025 | B31: 02:00 | C31: N | D31: LZ_WEST | E31: 58.31 | F31: 2025-08-01T02:00:00 | G31: 01-Aug-2025 02 LZ_WEST
A32: 08/01/2025 | B32: 03:00 | C32: N | D32: HB_BUSAVG | E32: 34.65 | F32: 2025-08-01T03:00:00 | G32: 01-Aug-2025 03 HB_BUSAVG
A33: 08/01/2025 | B33: 03:00 | C33: N | D33: HB_HOUSTON | E33: 33.93 | F33: 2025-08-01T03:00:00 | G33: 01-Aug-2025 03 HB_HOUSTON
A34: 08/01/2025 | B34: 03:00 | C34: N | D34: HB_HUBAVG | E34: 35.08 | F34: 2025-08-01T03:00:00 | G34: 01-Aug-2025 03 HB_HUBAVG
A35: 08/01/2025 | B35: 03:00 | C35: N | D35: HB_NORTH | E35: 34.54 | F35: 2025-08-01T03:00:00 | G35: 01-Aug-2025 03 HB_NORTH
A36: 08/01/2025 | B36: 03:00 | C36: N | D36: HB_PAN | E36: 35.68 | F36: 2025-08-01T03:00:00 | G36: 01-Aug-2025 03 HB_PAN
A37: 08/01/2025 | B37: 03:00 | C37: N | D37: HB_SOUTH | E37: 33.25 | F37: 2025-08-01T03:00:00 | G37: 01-Aug-2025 03 HB_SOUTH
A38: 08/01/2025 | B38: 03:00 | C38: N | D38: HB_WEST | E38: 38.58 | F38: 2025-08-01T03:00:00 | G38: 01-Aug-2025 03 HB_WEST
A39: 08/01/2025 | B39: 03:00 | C39: N | D39: LZ_AEN | E39: 33.7 | F39: 2025-08-01T03:00:00 | G39: 01-Aug-2025 03 LZ_AEN
A40: 08/01/2025 | B40: 03:00 | C40: N | D40: LZ_CPS | E40: 33.87 | F40: 2025-08-01T03:00:00 | G40: 01-Aug-2025 03 LZ_CPS
A41: 08/01/2025 | B41: 03:00 | C41: N | D41: LZ_HOUSTON | E41: 33.88 | F41: 2025-08-01T03:00:00 | G41: 01-Aug-2025 03 LZ_HOUSTON
A42: 08/01/2025 | B42: 03:00 | C42: N | D42: LZ_LCRA | E42: 33.84 | F42: 2025-08-01T03:00:00 | G42: 01-Aug-2025 03 LZ_LCRA
A43: 08/01/2025 | B43: 03:00 | C43: N | D43: LZ_NORTH | E43: 34.58 | F43: 2025-08-01T03:00:00 | G43: 01-Aug-2025 03 LZ_NORTH
A44: 08/01/2025 | B44: 03:00 | C44: N | D44: LZ_RAYBN | E44: 34.64 | F44: 2025-08-01T03:00:00 | G44: 01-Aug-2025 03 LZ_RAYBN
A45: 08/01/2025 | B45: 03:00 | C45: N | D45: LZ_SOUTH | E45: 33.33 | F45: 2025-08-01T03:00:00 | G45: 01-Aug-2025 03 LZ_SOUTH
A46: 08/01/2025 | B46: 03:00 | C46: N | D46: LZ_WEST | E46: 58.11 | F46: 2025-08-01T03:00:00 | G46: 01-Aug-2025 03 LZ_WEST
A47: 08/01/2025 | B47: 04:00 | C47: N | D47: HB_BUSAVG | E47: 30.29 | F47: 2025-08-01T04:00:00 | G47: 01-Aug-2025 04 HB_BUSAVG
A48: 08/01/2025 | B48: 04:00 | C48: N | D48: HB_HOUSTON | E48: 29.49 | F48: 2025-08-01T04:00:00 | G48: 01-Aug-2025 04 HB_HOUSTON
A49: 08/01/2025 | B49: 04:00 | C49: N | D49: HB_HUBAVG | E49: 30.82 | F49: 2025-08-01T04:00:00 | G49: 01-Aug-2025 04 HB_HUBAVG
A50: 08/01/2025 | B50: 04:00 | C50: N | D50: HB_NORTH | E50: 30.05 | F50: 2025-08-01T04:00:00 | G50: 01-Aug-2025 04 HB_NORTH
A51: 08/01/2025 | B51: 04:00 | C51: N | D51: HB_PAN | E51: 31.38 | F51: 2025-08-01T04:00:00 | G51: 01-Aug-2025 04 HB_PAN
A52: 08/01/2025 | B52: 04:00 | C52: N | D52: HB_SOUTH | E52: 29.02 | F52: 2025-08-01T04:00:00 | G52: 01-Aug-2025 04 HB_SOUTH
A53: 08/01/2025 | B53: 04:00 | C53: N | D53: HB_WEST | E53: 34.7 | F53: 2025-08-01T04:00:00 | G53: 01-Aug-2025 04 HB_WEST
A54: 08/01/2025 | B54: 04:00 | C54: N | D54: LZ_AEN | E54: 29.1 | F54: 2025-08-01T04:00:00 | G54: 01-Aug-2025 04 LZ_AEN
A55: 08/01/2025 | B55: 04:00 | C55: N | D55: LZ_CPS | E55: 29.36 | F55: 2025-08-01T04:00:00 | G55: 01-Aug-2025 04 LZ_CPS
A56: 08/01/2025 | B56: 04:00 | C56: N | D56: LZ_HOUSTON | E56: 29.44 | F56: 2025-08-01T04:00:00 | G56: 01-Aug-2025 04 LZ_HOUSTON
A57: 08/01/2025 | B57: 04:00 | C57: N | D57: LZ_LCRA | E57: 29.25 | F57: 2025-08-01T04:00:00 | G57: 01-Aug-2025 04 LZ_LCRA
A58: 08/01/2025 | B58: 04:00 | C58: N | D58: LZ_NORTH | E58: 30.09 | F58: 2025-08-01T04:00:00 | G58: 01-Aug-2025 04 LZ_NORTH
A59: 08/01/2025 | B59: 04:00 | C59: N | D59: LZ_RAYBN | E59: 30.17 | F59: 2025-08-01T04:00:00 | G59: 01-Aug-2025 04 LZ_RAYBN
A60: 08/01/2025 | B60: 04:00 | C60: N | D60: LZ_SOUTH | E60: 29.57 | F60: 2025-08-01T04:00:00 | G60: 01-Aug-2025 04 LZ_SOUTH
A61: 08/01/2025 | B61: 04:00 | C61: N | D61: LZ_WEST | E61: 56.27 | F61: 2025-08-01T04:00:00 | G61: 01-Aug-2025 04 LZ_WEST
A62: 08/01/2025 | B62: 05:00 | C62: N | D62: HB_BUSAVG | E62: 30.75 | F62: 2025-08-01T05:00:00 | G62: 01-Aug-2025 05 HB_BUSAVG
A63: 08/01/2025 | B63: 05:00 | C63: N | D63: HB_HOUSTON | E63: 29.84 | F63: 2025-08-01T05:00:00 | G63: 01-Aug-2025 05 HB_HOUSTON
A64: 08/01/2025 | B64: 05:00 | C64: N | D64: HB_HUBAVG | E64: 31.31 | F64: 2025-08-01T05:00:00 | G64: 01-Aug-2025 05 HB_HUBAVG
A65: 08/01/2025 | B65: 05:00 | C65: N | D65: HB_NORTH | E65: 30.37 | F65: 2025-08-01T05:00:00 | G65: 01-Aug-2025 05 HB_NORTH
A66: 08/01/2025 | B66: 05:00 | C66: N | D66: HB_PAN | E66: 31.96 | F66: 2025-08-01T05:00:00 | G66: 01-Aug-2025 05 HB_PAN
A67: 08/01/2025 | B67: 05:00 | C67: N | D67: HB_SOUTH | E67: 29.42 | F67: =A67+HOUR(B67)/24 -> 2025-08-01T05:00:00 | G67: =TEXT(F67,"dd-mmm-yyyy hh")&" "&D67 -> 01-Aug-2025 05 HB_SOUTH
A68: 08/01/2025 | B68: 05:00 | C68: N | D68: HB_WEST | E68: 35.62 | F68: 2025-08-01T05:00:00 | G68: 01-Aug-2025 05 HB_WEST
A69: 08/01/2025 | B69: 05:00 | C69: N | D69: LZ_AEN | E69: 29.34 | F69: 2025-08-01T05:00:00 | G69: 01-Aug-2025 05 LZ_AEN
A70: 08/01/2025 | B70: 05:00 | C70: N | D70: LZ_CPS | E70: 29.63 | F70: 2025-08-01T05:00:00 | G70: 01-Aug-2025 05 LZ_CPS
A71: 08/01/2025 | B71: 05:00 | C71: N | D71: LZ_HOUSTON | E71: 29.78 | F71: 2025-08-01T05:00:00 | G71: 01-Aug-2025 05 LZ_HOUSTON
A72: 08/01/2025 | B72: 05:00 | C72: N | D72: LZ_LCRA | E72: 29.52 | F72: 2025-08-01T05:00:00 | G72: 01-Aug-2025 05 LZ_LCRA
A73: 08/01/2025 | B73: 05:00 | C73: N | D73: LZ_NORTH | E73: 30.51 | F73: 2025-08-01T05:00:00 | G73: 01-Aug-2025 05 LZ_NORTH
A74: 08/01/2025 | B74: 05:00 | C74: N | D74: LZ_RAYBN | E74: 30.6 | F74: 2025-08-01T05:00:00 | G74: 01-Aug-2025 05 LZ_RAYBN
A75: 08/01/2025 | B75: 05:00 | C75: N | D75: LZ_SOUTH | E75: 30.22 | F75: 2025-08-01T05:00:00 | G75: 01-Aug-2025 05 LZ_SOUTH
A76: 08/01/2025 | B76: 05:00 | C76: N | D76: LZ_WEST | E76: 59.21 | F76: 2025-08-01T05:00:00 | G76: 01-Aug-2025 05 LZ_WEST
A77: 08/01/2025 | B77: 06:00 | C77: N | D77: HB_BUSAVG | E77: 34.69 | F77: 2025-08-01T06:00:00 | G77: 01-Aug-2025 06 HB_BUSAVG
A78: 08/01/2025 | B78: 06:00 | C78: N | D78: HB_HOUSTON | E78: 33.59 | F78: 2025-08-01T06:00:00 | G78: 01-Aug-2025 06 HB_HOUSTON
A79: 08/01/2025 | B79: 06:00 | C79: N | D79: HB_HUBAVG | E79: 35.26 | F79: 2025-08-01T06:00:00 | G79: 01-Aug-2025 06 HB_HUBAVG
A80: 08/01/2025 | B80: 06:00 | C80: N | D80: HB_NORTH | E80: 34.39 | F80: 2025-08-01T06:00:00 | G80: 01-Aug-2025 06 HB_NORTH
A81: 08/01/2025 | B81: 06:00 | C81: N | D81: HB_PAN | E81: 36.95 | F81: 2025-08-01T06:00:00 | G81: 01-Aug-2025 06 HB_PAN
A82: 08/01/2025 | B82: 06:00 | C82: N | D82: HB_SOUTH | E82: 32.92 | F82: 2025-08-01T06:00:00 | G82: 01-Aug-2025 06 HB_SOUTH
A83: 08/01/2025 | B83: 06:00 | C83: N | D83: HB_WEST | E83: 40.11 | F83: 2025-08-01T06:00:00 | G83: 01-Aug-2025 06 HB_WEST
A84: 08/01/2025 | B84: 06:00 | C84: N | D84: LZ_AEN | E84: 32.88 | F84: 2025-08-01T06:00:00 | G84: 01-Aug-2025 06 LZ_AEN
A85: 08/01/2025 | B85: 06:00 | C85: N | D85: LZ_CPS | E85: 33.21 | F85: 2025-08-01T06:00:00 | G85: 01-Aug-2025 06 LZ_CPS
A86: 08/01/2025 | B86: 06:00 | C86: N | D86: LZ_HOUSTON | E86: 33.51 | F86: 2025-08-01T06:00:00 | G86: 01-Aug-2025 06 LZ_HOUSTON
A87: 08/01/2025 | B87: 06:00 | C87: N | D87: LZ_LCRA | E87: 33.02 | F87: 2025-08-01T06:00:00 | G87: 01-Aug-2025 06 LZ_LCRA
A88: 08/01/2025 | B88: 06:00 | C88: N | D88: LZ_NORTH | E88: 34.57 | F88: 2025-08-01T06:00:00 | G88: 01-Aug-2025 06 LZ_NORTH
A89: 08/01/2025 | B89: 06:00 | C89: N | D89: LZ_RAYBN | E89: 34.7 | F89: 2025-08-01T06:00:00 | G89: 01-Aug-2025 06 LZ_RAYBN
A90: 08/01/2025 | B90: 06:00 | C90: N | D90: LZ_SOUTH | E90: 33.96 | F90: 2025-08-01T06:00:00 | G90: 01-Aug-2025 06 LZ_SOUTH
A91: 08/01/2025 | B91: 06:00 | C91: N | D91: LZ_WEST | E91: 64.69 | F91: 2025-08-01T06:00:00 | G91: 01-Aug-2025 06 LZ_WEST
A92: 08/01/2025 | B92: 07:00 | C92: N | D92: HB_BUSAVG | E92: 37.08 | F92: 2025-08-01T07:00:00 | G92: 01-Aug-2025 07 HB_BUSAVG
A93: 08/01/2025 | B93: 07:00 | C93: N | D93: HB_HOUSTON | E93: 35.82 | F93: 2025-08-01T07:00:00 | G93: 01-Aug-2025 07 HB_HOUSTON
A94: 08/01/2025 | B94: 07:00 | C94: N | D94: HB_HUBAVG | E94: 37.7 | F94: 2025-08-01T07:00:00 | G94: 01-Aug-2025 07 HB_HUBAVG
A95: 08/01/2025 | B95: 07:00 | C95: N | D95: HB_NORTH | E95: 36.8 | F95: 2025-08-01T07:00:00 | G95: 01-Aug-2025 07 HB_NORTH
A96: 08/01/2025 | B96: 07:00 | C96: N | D96: HB_PAN | E96: 39.43 | F96: 2025-08-01T07:00:00 | G96: 01-Aug-2025 07 HB_PAN
A97: 08/01/2025 | B97: 07:00 | C97: N | D97: HB_SOUTH | E97: 35 | F97: 2025-08-01T07:00:00 | G97: 01-Aug-2025 07 HB_SOUTH
A98: 08/01/2025 | B98: 07:00 | C98: N | D98: HB_WEST | E98: 43.18 | F98: 2025-08-01T07:00:00 | G98: 01-Aug-2025 07 HB_WEST
A99: 08/01/2025 | B99: 07:00 | C99: N | D99: LZ_AEN | E99: 34.87 | F99: 2025-08-01T07:00:00 | G99: 01-Aug-2025 07 LZ_AEN
A100: 08/01/2025 | B100: 07:00 | C100: N | D100: LZ_CPS | E100: 35.36 | F100: 2025-08-01T07:00:00 | G100: 01-Aug-2025 07 LZ_CPS
A101: 08/01/2025 | B101: 07:00 | C101: N | D101: LZ_HOUSTON | E101: 35.73 | F101: 2025-08-01T07:00:00 | G101: 01-Aug-2025 07 LZ_HOUSTON
A102: 08/01/2025 | B102: 07:00 | C102: N | D102: LZ_LCRA | E102: 35 | F102: 2025-08-01T07:00:00 | G102: 01-Aug-2025 07 LZ_LCRA
A103: 08/01/2025 | B103: 07:00 | C103: N | D103: LZ_NORTH | E103: 36.99 | F103: 2025-08-01T07:00:00 | G103: 01-Aug-2025 07 LZ_NORTH
A104: 08/01/2025 | B104: 07:00 | C104: N | D104: LZ_RAYBN | E104: 37.14 | F104: 2025-08-01T07:00:00 | G104: 01-Aug-2025 07 LZ_RAYBN
A105: 08/01/2025 | B105: 07:00 | C105: N | D105: LZ_SOUTH | E105: 36.28 | F105: 2025-08-01T07:00:00 | G105: 01-Aug-2025 07 LZ_SOUTH
A106: 08/01/2025 | B106: 07:00 | C106: N | D106: LZ_WEST | E106: 68.18 | F106: 2025-08-01T07:00:00 | G106: 01-Aug-2025 07 LZ_WEST
A107: 08/01/2025 | B107: 08:00 | C107: N | D107: HB_BUSAVG | E107: 31 | F107: 2025-08-01T08:00:00 | G107: 01-Aug-2025 08 HB_BUSAVG
A108: 08/01/2025 | B108: 08:00 | C108: N | D108: HB_HOUSTON | E108: 30.38 | F108: 2025-08-01T08:00:00 | G108: 01-Aug-2025 08 HB_HOUSTON
A109: 08/01/2025 | B109: 08:00 | C109: N | D109: HB_HUBAVG | E109: 31.36 | F109: 2025-08-01T08:00:00 | G109: 01-Aug-2025 08 HB_HUBAVG
A110: 08/01/2025 | B110: 08:00 | C110: N | D110: HB_NORTH | E110: 30.76 | F110: 2025-08-01T08:00:00 | G110: 01-Aug-2025 08 HB_NORTH
A111: 08/01/2025 | B111: 08:00 | C111: N | D111: HB_PAN | E111: 32.14 | F111: 2025-08-01T08:00:00 | G111: 01-Aug-2025 08 HB_PAN
A112: 08/01/2025 | B112: 08:00 | C112: N | D112: HB_SOUTH | E112: 30.12 | F112: 2025-08-01T08:00:00 | G112: 01-Aug-2025 08 HB_SOUTH
A113: 08/01/2025 | B113: 08:00 | C113: N | D113: HB_WEST | E113: 34.16 | F113: 2025-08-01T08:00:00 | G113: 01-Aug-2025 08 HB_WEST
A114: 08/01/2025 | B114: 08:00 | C114: N | D114: LZ_AEN | E114: 29.93 | F114: 2025-08-01T08:00:00 | G114: 01-Aug-2025 08 LZ_AEN
A115: 08/01/2025 | B115: 08:00 | C115: N | D115: LZ_CPS | E115: 30.19 | F115: 2025-08-01T08:00:00 | G115: 01-Aug-2025 08 LZ_CPS
A116: 08/01/2025 | B116: 08:00 | C116: N | D116: LZ_HOUSTON | E116: 30.34 | F116: 2025-08-01T08:00:00 | G116: 01-Aug-2025 08 LZ_HOUSTON
A117: 08/01/2025 | B117: 08:00 | C117: N | D117: LZ_LCRA | E117: 30.01 | F117: 2025-08-01T08:00:00 | G117: 01-Aug-2025 08 LZ_LCRA
A118: 08/01/2025 | B118: 08:00 | C118: N | D118: LZ_NORTH | E118: 30.86 | F118: 2025-08-01T08:00:00 | G118: 01-Aug-2025 08 LZ_NORTH
A119: 08/01/2025 | B119: 08:00 | C119: N | D119: LZ_RAYBN | E119: 30.94 | F119: 2025-08-01T08:00:00 | G119: 01-Aug-2025 08 LZ_RAYBN
A120: 08/01/2025 | B120: 08:00 | C120: N | D120: LZ_SOUTH | E120: 30.99 | F120: 2025-08-01T08:00:00 | G120: 01-Aug-2025 08 LZ_SOUTH
A121: 08/01/2025 | B121: 08:00 | C121: N | D121: LZ_WEST | E121: 48.28 | F121: 2025-08-01T08:00:00 | G121: 01-Aug-2025 08 LZ_WEST
A122: 08/01/2025 | B122: 09:00 | C122: N | D122: HB_BUSAVG | E122: 24.25 | F122: 2025-08-01T09:00:00 | G122: 01-Aug-2025 09 HB_BUSAVG
A123: 08/01/2025 | B123: 09:00 | C123: N | D123: HB_HOUSTON | E123: 24.08 | F123: 2025-08-01T09:00:00 | G123: 01-Aug-2025 09 HB_HOUSTON
A124: 08/01/2025 | B124: 09:00 | C124: N | D124: HB_HUBAVG | E124: 24.33 | F124: 2025-08-01T09:00:00 | G124: 01-Aug-2025 09 HB_HUBAVG
A125: 08/01/2025 | B125: 09:00 | C125: N | D125: HB_NORTH | E125: 24.19 | F125: 2025-08-01T09:00:00 | G125: 01-Aug-2025 09 HB_NORTH
A126: 08/01/2025 | B126: 09:00 | C126: N | D126: HB_PAN | E126: 24.43 | F126: 2025-08-01T09:00:00 | G126: 01-Aug-2025 09 HB_PAN
A127: 08/01/2025 | B127: 09:00 | C127: N | D127: HB_SOUTH | E127: 24.07 | F127: 2025-08-01T09:00:00 | G127: 01-Aug-2025 09 HB_SOUTH
